{"text_format":"1","workbook":"xlsx","n_sheets":57,"sheets":["0","Sayfa Listesi","index","Giris","Bilgi","Hücre Biçimlendirme","Formül Oluşturma","TemelFormüller1","TemelFormüller2","HücreRefarasları1","İstatistikselFonksiyonlarTemel","Sıralama","Sıralama2","Filtre","Filtre2","Filtre3","Eğer","EğerTemelÖrnekler","EğerÖrnek2","EğerÖrnek3","ÇokEğer","VE-YADA","MetinselFonksiyonlar1","Metinsel Fonksiyonlar 2","VeritabanıFonksiyonları1","VeritabanıFonksiyonları2","Pano1","VeritabanıFonksiyonları3","GruplaÖlçüt","ÖzetÖlçüt","KoşulluBiçimlendirme1","KoşulluBiçimlendirme2","TarihFonksiyonları 1","TarihFonksiyonları 2","Örnek1","TarihFonksiyonları 3","Düşeyara1","Düşeyara2","Ocak","Şubat","Toplam","Yatayara","İndis-Kaçıncı","Çaprazara","Toplama","Alttoplam","PivotTablo","HedefAra","Grafikler","Grafikler (Bilgi)","Uygulama 1","Uygulama 1 Verileri","Uygulama2","Uygulama 2 Verileri","Liste (Bilgi)","Formüller","Sayfa2"],"not_rendered":{"charts":2,"images":64,"macros":1,"external_links":0,"defined_names":44,"comments":2,"pivot_tables":0},"unopened":[],"bounds":{"document_bytes":16777216,"sheet_cells":100000,"rows_first":2000,"rows_last":500,"rows_between":2000,"halvings":0,"cell_chars":16384,"cell_head_chars":4096},"cells_cut":0,"cells_raw":0,"read":"whole","date_system":"1900"}

{"sheet":"0","index":0,"n_rows":0,"n_cols":0,"rows_kept":0,"cut":false,"hidden":false,"merged":[[2,4,2,7]]}

{"sheet":"Sayfa Listesi","index":1,"n_rows":48,"n_cols":2,"rows_kept":48,"cut":false,"hidden":true,"merged":[]}
["Sayfa Adı","Sayfa Linki"]
[]
["index","Git"]
["Giris","Git"]
["Bilgi","Git"]
["Hücre Biçimlendirme","Git"]
["Formül Oluşturma","Git"]
["TemelFormüller1","Git"]
["TemelFormüller2","Git"]
["HücreRefarasları1","Git"]
["Eğer","Git"]
["EğerTemelÖrnekler","Git"]
["EğerÖrnek2","Git"]
["EğerÖrnek3","Git"]
["ÇokEğer","Git"]
["VE-YADA","Git"]
["MetinselFonksiyonlar1","Git"]
["Metinsel Fonksiyonlar 2","Git"]
["VeritabanıFonksiyonları1","Git"]
["VeritabanıFonksiyonları2","Git"]
["Pano1","Git"]
["VeritabanıFonksiyonları3","Git"]
["GruplaÖlçüt","Git"]
["ÖzetÖlçüt","Git"]
["TarihFonksiyonları 1","Git"]
["TarihFonksiyonları 2","Git"]
["Örnek1","Git"]
["TarihFonksiyonları 3","Git"]
["Düşeyara1","Git"]
["Düşeyara2","Git"]
["Düşeyara3","Git"]
["Yatayara","Git"]
["Çaprazara","Git"]
["İstatistikselFonksiyonlar","Git"]
["KoşulluBiçimlendirme1","Git"]
["KoşulluBiçimlendirme2","Git"]
["Sıralama","Git"]
["Filtre","Git"]
["Alttoplam","Git"]
["PivotTablo","Git"]
["HedefAra","Git"]
["Grafikler","Git"]
["Grafikler (A)","Git"]
["Uygulama 1","Git"]
["Uygulama 1 Verileri","Git"]
["Uygulama2","Git"]
["Uygulama 2 Verileri","Git"]
["Formüller","Git"]

{"sheet":"index","index":2,"n_rows":40,"n_cols":10,"rows_kept":40,"cut":false,"hidden":false,"merged":[]}
[]
[null,"Index"]
[]
[null,null,"Kullanılalan Fonksiyon"]
[null,"Giriş","Fonksiyon 1","Fonksiyon 2","Fonksiyon 3","Fonksiyon 4","Fonksiyon 5","Fonksiyon 6","Fonksiyon 7"]
[null,"Temel Formüller 1","TOPLA",null,null,null,null,null,null,{"$f":"IF(COUNTA(C6:I6)>0,COUNTA(C6:I6),\"\")","v":1}]
[null,"Temel Formüller 2","ORTALAMA","MIN","MAK",null,null,null,null,3]
[null,"Hücre Refarasları 1",null,null,null,null,null,null,null,""]
[null,"Eğer Temel Örnekler","EĞER",null,null,null,null,null,null,1]
[null,"Eğer Örnek 2",null,null,null,null,null,null,null,""]
[null,"Eğer Örnek 3",null,null,null,null,null,null,null,""]
[null,"Çokeğer","ÇOKEĞER",null,null,null,null,null,null,1]
[null,"VE - YADA","VE","YADA",null,null,null,null,null,2]
[null,"Metinsel Fonksiyonlar 1","BÜYÜKHARF","KÜÇÜKHARF","YAZIM.DÜZENİ","KIRP","BİRLEŞTİR","METİNBİRLEŞTİR","ARALIKBİRLEŞTİR",7]
[null,"Metinsel Fonksiyonlar 2","SOLDAN","SAĞDAN","PARÇAAL","MBUL","UZUNLUK",null,null,5]
[null,"Veritabanı Fonksiyonları 1","ETOPLA","EĞERSAY",null,null,null,null,null,2]
[null,"Veritabanı Fonksiyonları 2","ÇOKETOPLA",null,null,null,null,null,null,1]
[null,"Veritabanı Fonksiyonları 3","ÇOKEĞERSAY","BENZERSİZ","SIRALAÖLÇÜT",null,null,null,null,3]
[null,"Tarih Fonksiyonları1","BUGÜN","ŞİMDİ",null,null,null,null,null,2]
[null,"Tarih Fonksiyonları2","GÜN","AY","YIL",null,null,null,null,3]
[null,"Tarih Fonksiyonları3","HAFTANINGÜNÜ","ISOHAFTASAY","HAFTASAY","TAMİŞGÜNÜ","TAMİŞGÜNÜ.ULUSL",null,null,5]
[null,"Düşeyara 1","DÜŞEYARA",null,null,null,null,null,null,1]
[null,"Düşeyara 2","EĞERHATA","DÜŞEYYIĞ","BENZERSİZ",null,null,null,null,3]
[null,"Düşeyara 3","TOPLAMA",null,null,null,null,null,null,1]
[null,"Yatayara","YATAYARA",null,null,null,null,null,null,1]
[null,"İndis - Kaçıncı","İNDİS","KAÇINCI",null,null,null,null,null,2]
[null,"Çaprazara","ÇAPRAZARA",null,null,null,null,null,null,1]
[null,"İstatistiksel Fonksiyonlar","BAĞ_DEĞ_DOLU_SAY","BAĞ_DEĞ_SAY","BOŞLUKSAY","BÜYÜK","KÜÇÜK","İNDİS","KAÇINCI",7]
[null,"Koşullu Biçimlendirme",null,null,null,null,null,null,null,""]
[null,"Sıralama","SIRALAÖLÇÜT","SIRALA","SÜTUNSEÇ",null,null,null,null,3]
[null,"Filtre","FİLTRE","ALTTOPLAM",null,null,null,null,null,2]
[null,"Alttoplam",null,null,null,null,null,null,null,""]
[null,"PivotTablo",null,null,null,null,null,null,null,""]
[null,"HedefAra",null,null,null,null,null,null,null,""]
[null,"Grafikler",null,null,null,null,null,null,null,""]
[null,"Form Kontrolleri",null,null,null,null,null,null,null,""]
[null,"Form Kontrolleri Veriler",null,null,null,null,null,null,null,""]
[null,null,null,null,null,null,null,null,null,{"$f":"SUM(J6:J37)","v":57}]
[null,null,null,{"$f":"\"Toplam \"&D40&\" Fonksiyon\"","v":"Toplam 57 Fonksiyon"}]
[null,null,null,{"$f":"COUNTA(C6:I37)","v":57}]

{"sheet":"Giris","index":3,"n_rows":35,"n_cols":14,"rows_kept":35,"cut":false,"hidden":false,"merged":[[3,1,3,4],[5,13,5,15]]}
[]
[null,"Giriş / Bilgi"]
[]
[null,"Aşağıdaki Bilgileri Doldurunuz."]
[]
[null,null,null,null,null,"Excel' i Hangi Dilde Kullanıyorsunuz",null,null,null,":",null,null,null,"Parametre Ayracını Koltrol Edelim"]
[null,"Adınız",":"]
[null,"Soyadınız",":"]
[null,"Doğum Tarihiniz",":"]
[null,"Firmanız",":"]
[]
[]
[]
[]
[null,{"$f":"IF(AND(isim>0,soyisim>0),CONCATENATE(\"Sayın \",PROPER(isim),\" \",UPPER(soyisim),\" Merhaba, Dosyanızı Kaydetmeyi Unutmayınız\"),\"Lütfen Yukarıdaki Bilgileri Doldurun\")","v":"Lütfen Yukarıdaki Bilgileri Doldurun"}]
[]
[]
[]
[]
[null,{"$f":"IF(AND(dtarih>0,firma>0),CONCATENATE(\"Doğum Tarihiniz \",TEXT(dtarih,\"gg aaaa yyyy\"),\" \",\"Firmanız \",UPPER(firma)),\"\")","v":""}]
[null,null,null,"Program :","Microsoft Excel",null,null,null,null,null,null,"Excel Sürümü"]
[null,null,null,"İşletim Sistemi :","Windows (64-bit) NT 10.00",null,null,null,null,null,null,"Excel 2015"]
[null,null,null,"Versiyon :",16,null,null,null,null,null,null,"Excel Sürümü","Yapı Numarası"]
[null,null,null,"Yapı Numarası :",20206,null,null,null,null,null,null,"Excel 2016","16.0"]
[null,null,null,"Versiyon :",16,{"$f":"IF(E25=8,$L$31,IF(E25=9,$L$30,IF(E25=10,$L$29,IF(E25=11,$L$28,IF(E25=12,$L$27,IF(E25=14,$L$26,IF(E25=15,$L$25,\"Excel 2016 ve Üzeri\")))))))","v":"Excel 2016 ve Üzeri"},null,null,null,null,null,"Excel 2013","15.0"]
[null,null,null,"Yapı Numarası :",19131,null,null,null,null,null,null,"Excel 2010","14.0"]
[null,null,null,"Dosya Rev. :","2024-5",null,null,null,null,null,null,"Excel 2007","12.0"]
[null,null,null,null,null,null,null,null,null,null,null,"Excel 2003","11.0"]
[null,null,null,null,null,null,null,null,null,null,null,"Excel 2002","10.0"]
[null,null,null,null,null,null,null,null,null,null,null,"Excel 2000","9.0"]
[null,2,null,null,null,null,null,null,null,null,null,"Excel 97","8.0"]
[null,"Türkçe"]
[null,"İngilizce"]
[null,"Fransızca"]
[null,"Almanca"]

{"sheet":"Bilgi","index":4,"n_rows":33,"n_cols":6,"rows_kept":33,"cut":false,"hidden":true,"merged":[[7,5,13,11]]}
[]
[]
["Excel 1 (1985): İlk Excel sürümü, yalnızca Macintosh için piyasaya sürüldü."]
["Excel 2 (1987): İlk Windows sürümü, Mac sürümüyle uyumlu olarak “2” olarak adlandırıldı.",null,null,"Excel Formüllerinin Farklı Dillerdeki Karşılıkları"]
["Excel 3 (1990): Araç çubukları, çizim yetenekleri, eklenti desteği ve 3D grafikler gibi yeni özellikler eklendi."]
["Excel 4 (1992): AutoFill gibi kullanılabilirlik özellikleri ilk kez bu sürümde tanıtıldı."]
["Excel 5 (1993): Çoklu çalışma sayfalarını içeren çalışma kitapları, VBA ve Makro desteği eklendi."]
["Excel 95 (1995): 32-bit mimariye geçiş yapıldı ve Excel 5’e kıyasla dağıtım sorunları giderildi.",null,null,null,null,"ISO 8601, tarih ve saatle ilgili verilerin değişimini kapsayan bir ISO standardıdır. 1988'de Uluslararası Standardizasyon Örgütü tarafından yayınlanmıştır. Bu standardın amacı, tarihlerin ve saatlerin temsilini yanlış yorumlamaktan kaçınmak için açık ve iyi tanımlanmış bir yöntem sağlamaktır1. \n\nISO 8601, tarih ve saat formatlarını uluslararası olarak anlaşılır bir şekilde standartlaştırır. Örneğin, bu standarda göre tarihler yıl-ay-gün formatında (YYYY-MM-DD) yazılır ve saatler 24 saatlik bir format kullanılarak ifade edilir. Bu sayede, farklı ülkelerde ve farklı kültürlerde yaşayan insanlar arasında tarih ve saatle ilgili karışıklıkların önüne geçilir2. \n\nISO 8601 ayrıca, haftanın ilk gününün pazartesi olarak kabul edildiği haftalık takvim numaralandırmasını da içerir. Bu, özellikle uluslararası iş ilişkilerinde ve veri alışverişinde tutarlılık sağlamak için önemlidir1.. "]
["Excel 97 (1997): VBA geliştiricileri için yeni bir arayüz, UserForms, veri doğrulama gibi özellikler eklendi."]
["Excel 2000 (1999): HTML’in yerel dosya formatı olarak kullanılması, “kendi kendini onarma” yeteneği, gelişmiş panoya kopyalama, pivot grafikler ve modalsız kullanıcı formları gibi yeni özellikler getirildi."]
["Excel 2002 (2001): Akıllı etiketler ve görev bölmesi gibi özellikler tanıtıldı."]
["Excel 2003 (2003): Liste özelliği ve XML dosya desteği eklendi."]
["Excel 2007 (2007): Office Fluent Kullanıcı Arayüzü (Ribbon) tanıtıldı, dosya formatı olarak Office Open XML kullanılmaya başlandı."]
["Excel 2010 (2010): Slicers ve Sparklines gibi veri analizi ve görselleştirme araçları eklendi."]
["Excel 2013 (2013): Dokunmatik ekran desteği, Flash Fill ve Quick Analysis gibi özellikler eklendi."]
["Excel 2016 (2015): Co-Authoring, Power Query ve yeni grafik türleri gibi işbirliği ve veri analizi özellikleri eklendi."]
["Excel 2019 (2018): Eğik çizgiler, 2D haritalar ve FUNNEL grafikleri gibi yeni grafik türleri eklendi."]
["Excel 2021 (2021): XLOOKUP ve LET gibi yeni fonksiyonlar, dinamik diziler ve gelişmiş işbirliği özellikleri eklendi."]
["Excel 365 (Devamlı Güncelleniyor): Excel 365, sürekli güncellenen bir ürün olarak planlandı ve yeni özellikler her yeni sürümle birlikte sunuluyor. Dinamik Diziler ve XLOOKUP gibi önemli özellikler bu sürümle tanıtıldı."]
[]
[]
[]
[]
[]
["İlk Sürüm: Excel ilk olarak 1985 yılında Macintosh için piyasaya sürüldü"]
["Kod Adı “Odyssey”: Excel’in orijinal kod adı “Odyssey” idi"]
["Araç Çubuğu İnovasyonu: Excel 3.0, bir araç çubuğu kullanan ilk uygulamaydı"]
["Formül Uzunluğu: Excel’de bir formülün maksimum uzunluğu 8,192 karakterdir"]
["Hücre Kapasitesi: Bir hücre en fazla 32,767 karakter içerebilir"]
["Formül Bağımlılığı: Tek bir hücreye bağlı olarak 4 milyar (evet, milyar) formül bulunabilir"]
["Renk Desteği: Excel 32 milyon renk destekler"]
[]
["Bir çalışma sayfasında ise toplam hücre sayısı, 1,048,576 satır ve 16,384 sütun olmak üzere toplamda yaklaşık 17 milyar (17,179,869,184) hücre bulunmaktadır"]

{"sheet":"Hücre Biçimlendirme","index":5,"n_rows":13,"n_cols":10,"rows_kept":13,"cut":false,"hidden":true,"merged":[]}
[]
[null,"Hücre Sayı Biçimleri"]
[]
[]
[null,"Genel",null,"Finansal",null,"Kısa Tarih",null,"Saat",null,"Metin"]
[null,100,null,100,null,{"$f":"TODAY()","v":"2026-06-12"},null,"12:15:00",null,100]
[]
[null,"Sayı",null,"Para Birimi",null,"Uzun Tarih",null,"Yüzde"]
[null,100,null,100,null,{"$f":"TODAY()","v":"2026-06-12"},null,0.05]
[]
[]
[null,"Özel 1",null,"Özel 2",null,"Özel 3"]
[null,100,null,100,null,150]

{"sheet":"Formül Oluşturma","index":6,"n_rows":2,"n_cols":2,"rows_kept":2,"cut":false,"hidden":false,"merged":[]}
[]
[null,"Formül Oluşturma"]

{"sheet":"TemelFormüller1","index":7,"n_rows":11,"n_cols":7,"rows_kept":11,"cut":false,"hidden":false,"merged":[]}
[]
[null,"TOPLA",{"$f":"IF(lang_op=1,\"\",IF(lang_op=2,\"/    İngilizce Karşılığı ---->\",IF(lang_op=3,\"/    Fransızca Karşılığı ---->\",\"/    Almanca Karşılığı ---->\")))","v":"/    İngilizce Karşılığı ---->"},null,null,{"$f":"IF(lang_op=2,VLOOKUP(B2,formuller,2,0),IF(lang_op=3,VLOOKUP(B2,formuller,3,0),IF(lang_op=4,VLOOKUP(B2,formuller,4,0),\"\")))","v":"SUM"}]
[]
[]
[null,"İsim","1. Hafta","2. Hafta","Toplam"]
[null,"İlhan IŞIK",1200,1400,null,null,{"$f":"IFERROR(_xlfn.FORMULATEXT(C11),\"\")","v":""}]
[null,"Fatih TANDOĞAN",1500,1300]
[null,"Seda DEĞİRMENCİ",1450,1800]
[null,{"$f":"IF(isim>0,CONCATENATE(TRIM(isim),\" \",UPPER(TRIM(soyisim))),\"İsmini Göremedik\")","v":"İsmini Göremedik"},650,900,null,null,{"$f":"IngFormul(C11)","v":""}]
[null,"Neslihan YILMAZ",2550,2400]
[null,"TOPLAM"]

{"sheet":"TemelFormüller2","index":8,"n_rows":43,"n_cols":16,"rows_kept":43,"cut":false,"hidden":false,"merged":[]}
[]
[null,"ORTALAMA",{"$f":"IF(lang_op=1,\"\",IF(lang_op=2,\"/ İngilizce Karşılığı ---->\",IF(lang_op=3,\"/ Fransızca Karşılığı ---->\",\"/ Almanca Karşılığı ---->\")))","v":"/ İngilizce Karşılığı ---->"},null,null,{"$f":"IF(lang_op=2,VLOOKUP(B2,formuller,2,0),IF(lang_op=3,VLOOKUP(B2,formuller,3,0),IF(lang_op=4,VLOOKUP(B2,formuller,4,0),\"\")))","v":"AVERAGE"}]
[null,"MAK",{"$f":"IF(lang_op=1,\"\",IF(lang_op=2,\"/ İngilizce Karşılığı ---->\",IF(lang_op=3,\"/ Fransızca Karşılığı ---->\",\"/ Almanca Karşılığı ---->\")))","v":"/ İngilizce Karşılığı ---->"},null,null,{"$f":"IF(lang_op=2,VLOOKUP(B3,formuller,2,0),IF(lang_op=3,VLOOKUP(B3,formuller,3,0),IF(lang_op=4,VLOOKUP(B3,formuller,4,0),\"\")))","v":"MAX"}]
[null,"MİN",{"$f":"IF(lang_op=1,\"\",IF(lang_op=2,\"/ İngilizce Karşılığı ---->\",IF(lang_op=3,\"/ Fransızca Karşılığı ---->\",\"/ Almanca Karşılığı ---->\")))","v":"/ İngilizce Karşılığı ---->"},null,null,{"$f":"IF(lang_op=2,VLOOKUP(B4,formuller,2,0),IF(lang_op=3,VLOOKUP(B4,formuller,3,0),IF(lang_op=4,VLOOKUP(B4,formuller,4,0),\"\")))","v":"MIN"}]
[]
[]
[null,"İsim","1. Hafta","2. Hafta","Ortalama","Prim",null,"Prim Oranı",0.05,null,{"$f":"IFERROR(_xlfn.FORMULATEXT(E8),\"\")","v":""},null,null,null,null,{"$f":"IngFormul(E8)","v":""}]
[null,"Efe YILDIZ",10454,22915]
[null,"Egemen ATAY",17619,11773]
[null,"İlhan IŞIK",13789,9401,null,null,null,"En Yüksek Prim",null,null,{"$f":"IFERROR(_xlfn.FORMULATEXT(F8),\"\")","v":""}]
[null,"Fatih TANDOĞAN",11989,14796]
[null,"Seda DEĞİRMENCİ",21723,18415,null,null,null,"En Düşük Prim"]
[null,"Mustafa EMEK",13551,14529]
[null,{"$f":"IF(isim>0,CONCATENATE(TRIM(isim),\" \",UPPER(TRIM(soyisim))),\"İsmini Göremedik\")","v":"İsmini Göremedik"},24082,28786,null,null,null,{"$f":"IFERROR(_xlfn.FORMULATEXT(I10),\"\")","v":""},null,{"$f":"IngFormul(I10)","v":""}]
[null,"Gökhan YAĞIZ",15687,24630]
[null,"Yasemin TURGUT",18077,20722]
[null,"Can YILDIRIM",23329,21048,null,null,null,{"$f":"IFERROR(_xlfn.FORMULATEXT(I12),\"\")","v":""},null,{"$f":"IngFormul(I12)","v":""}]
[null,"Hasan KUTLU",21825,26606]
[null,"TOPLAM",{"$f":"SUM(C8:C18)","v":192125},{"$f":"SUM(D8:D18)","v":213621}]
[]
[]
[]
[]
[]
[]
[]
[]
[]
[]
[]
[]
[]
[]
[]
[]
[]
[]
[]
[]
[]
[null,"Foknsiyon",{"$f":"IF(lang_op=1,\"\",IF(lang_op=2,\"İngilizce Karşılığı\",IF(lang_op=3,\"Fransızca Karşılığı\",\"Almanca Karşılığı\")))","v":"İngilizce Karşılığı"},"Değer 1","Değer 2","Değer 3","Değer 4","Formül Sonucu",null,{"$f":"IFERROR(_xlfn.FORMULATEXT(H43),\"\")","v":"=AVERAGEA(D43:G43)"}]
[null,"ORTALAMA",{"$f":"IF(lang_op=2,VLOOKUP(B42,formuller,2,0),IF(lang_op=3,VLOOKUP(B2,formuller,3,0),IF(lang_op=4,VLOOKUP(B2,formuller,4,0),\"\")))","v":"AVERAGE"},10,"metin",10,10,{"$f":"AVERAGE(D42:G42)","v":10}]
[null,"ORTALAMAA",{"$f":"IF(lang_op=2,VLOOKUP(B43,formuller,2,0),IF(lang_op=3,VLOOKUP(B3,formuller,3,0),IF(lang_op=4,VLOOKUP(B3,formuller,4,0),\"\")))","v":"AVERAGEA"},10,"metin",10,10,{"$f":"AVERAGEA(D43:G43)","v":7.5},null,{"$f":"IngFormul(H43)","v":"=AVERAGEA(D43:G43)"}]

{"sheet":"HücreRefarasları1","index":9,"n_rows":20,"n_cols":9,"rows_kept":20,"cut":false,"hidden":false,"merged":[[21,10,21,15]]}
[]
[null,"Hücre Refaransları - 1"]
[]
[null,null,"Oran"]
[null,"Miktar",5.0000000000000001E-3,1.7999999999999999E-2,2.5999999999999999E-2,3.2000000000000001E-2,5.5E-2]
[null,6250,null,null,null,null,null,null,{"$f":"IFERROR(_xlfn.FORMULATEXT(C6),\"\")","v":""}]
[null,9843.75]
[null,13437.5]
[null,17031.25]
[null,20625]
[null,24218.75]
[null,27812.5]
[null,31406.25]
[null,35000]
[null,38593.75]
[null,42187.5]
[null,45781.25]
[null,49375]
[null,52968.75]
[null,56562.5]

{"sheet":"İstatistikselFonksiyonlarTemel","index":10,"n_rows":42,"n_cols":15,"rows_kept":42,"cut":false,"hidden":false,"merged":[]}
[]
[null,"İstatistiksel Fonksiyonlar"]
[]
[null,"Öğrenci Adı","Sınav 1","Sınav 2",null,"1. Sınava Giren Öğrenci Sayısı",null,null,null,null,null,null,null,null,{"$f":"IF(H5>0,O5,\"\")","v":""}]
[null,"İlhan IŞIK",null,65,null,"BAĞ_DEĞ_DOLU_SAY",{"$f":"IF(lang_op=2,VLOOKUP(F5,formuller,2,0),IF(lang_op=3,VLOOKUP(F5,formuller,3,0),IF(lang_op=4,VLOOKUP(F5,formuller,4,0),\"\")))","v":"COUNTA"},null,null,{"$f":"IFERROR(_xlfn.FORMULATEXT(H5),\"\")","v":""},null,null,null,null," =COUNTA(C5:C17)"]
[null,"Gökhan YAĞIZ",76,82]
[null,"Fatih TANDOĞAN",null,40,null,"2. Sınava Giren Öğrenci Sayısı",null,null,null,null,null,null,null,null,{"$f":"IF(H8>0,O8,\"\")","v":""}]
[null,"Seda DEĞİRMENCİ",85,80,null,"BAĞ_DEĞ_SAY",{"$f":"IF(lang_op=2,VLOOKUP(F8,formuller,2,0),IF(lang_op=3,VLOOKUP(F8,formuller,3,0),IF(lang_op=4,VLOOKUP(F8,formuller,4,0),\"\")))","v":"COUNT"},null,null,{"$f":"IFERROR(_xlfn.FORMULATEXT(H8),\"\")","v":""},null,null,null,null," =COUNT(C5:D17)"]
[null,"Egemen ATAY",65]
[null,"Mustafa EMEK",100,70,null,"1. Sınava Girmeyen Öğrenci Sayısı"]
[null,"Hasan DEMİR",null,94,null,"BOŞLUKSAY",{"$f":"IF(lang_op=2,VLOOKUP(F11,formuller,2,0),IF(lang_op=3,VLOOKUP(F11,formuller,3,0),IF(lang_op=4,VLOOKUP(F11,formuller,4,0),\"\")))","v":"COUNTBLANK"},null,null,{"$f":"IFERROR(_xlfn.FORMULATEXT(H11),\"\")","v":""},null,null,null,null,{"$f":"IF(H11>0,O12,\"\")","v":""}]
[null,"Neslihan YILMAZ",null,null,null,null,null,null,null,null,null,null,null,null," =COUNTBLANK(C5:C17)"]
[null,"Efe YILDIZ",78,83,null,"1. Sınavdaki En Yüksek 2. Not"]
[null,"Can YILDIZ",76,80,null,"BÜYÜK",{"$f":"IF(lang_op=2,VLOOKUP(F14,formuller,2,0),IF(lang_op=3,VLOOKUP(F14,formuller,3,0),IF(lang_op=4,VLOOKUP(F14,formuller,4,0),\"\")))","v":"LARGE"},null,null,{"$f":"IFERROR(_xlfn.FORMULATEXT(H14),\"\")","v":""},null,null,null,null,{"$f":"IngFormul(H14)","v":""}]
[null,"Berkay ÖZEN",83,60]
[null,"Mehmet DEMREN",90,85,null,"1. Sınavdaki En Düşük 2. Not"]
[null,"Emre SARAÇ",66,92,null,"KÜÇÜK",{"$f":"IF(lang_op=2,VLOOKUP(F17,formuller,2,0),IF(lang_op=3,VLOOKUP(F17,formuller,3,0),IF(lang_op=4,VLOOKUP(F17,formuller,4,0),\"\")))","v":"SMALL"},null,null,{"$f":"IFERROR(_xlfn.FORMULATEXT(H17),\"\")","v":""},null,null,null,null,{"$f":"IngFormul(H17)","v":""}]
[]
[]
[null,null,null,null,null,{"$f":"CONCATENATE(F13,\"u\",\" Alan Kim?\")","v":"1. Sınavdaki En Yüksek 2. Notu Alan Kim?"},null,null,null,{"$f":"IFERROR(_xlfn.FORMULATEXT(H20),\"\")","v":""}]
[]
[null,null,null,null,null,{"$f":"CONCATENATE(F16,\"u\",\" Alan Kim?\")","v":"1. Sınavdaki En Düşük 2. Notu Alan Kim?"},null,null,null,{"$f":"IFERROR(_xlfn.FORMULATEXT(H22),\"\")","v":""}]
[]
[]
[]
[]
[]
[]
[]
[]
[]
[]
[]
[]
[null,"Vitamin","Meyve",null,null,"İkinci Sırada Hangi Meyve Var",null,2]
[null,"C - E","Elma",null,null,"İNDİS",{"$f":"IF(lang_op=2,VLOOKUP(F36,formuller,2,0),IF(lang_op=3,VLOOKUP(F36,formuller,3,0),IF(lang_op=4,VLOOKUP(F36,formuller,4,0),\"\")))","v":"INDEX"},{"$f":"INDEX(C36:C40,2)","v":"Muz"}]
[null,"B6 - C","Muz"]
[null,"C - A","Nar",null,null,"Muz Kaçıncı Sırada",null,"Muz"]
[null,"A - C","Kayısı",null,null,"KAÇINCI",{"$f":"IF(lang_op=2,VLOOKUP(F39,formuller,2,0),IF(lang_op=3,VLOOKUP(F39,formuller,3,0),IF(lang_op=4,VLOOKUP(F39,formuller,4,0),\"\")))","v":"MATCH"},{"$f":"MATCH(H38,C36:C40,0)","v":2}]
[null,"C - K","Üzüm"]
[null,null,null,null,null,"Hangi Vitamin",null,"Muz"]
[null,null,null,null,null,"KAÇINCI",{"$f":"IF(lang_op=2,VLOOKUP(F42,formuller,2,0),IF(lang_op=3,VLOOKUP(F42,formuller,3,0),IF(lang_op=4,VLOOKUP(F42,formuller,4,0),\"\")))","v":"MATCH"},{"$f":"INDEX(B36:B40,MATCH(H41,C36:C40,0))","v":"B6 - C"}]

{"sheet":"Sıralama","index":11,"n_rows":41,"n_cols":14,"rows_kept":41,"cut":false,"hidden":false,"merged":[]}
[]
[null,"Sıralama",null,null,null,null,null,null,null,"SIRALAÖLÇÜT",{"$f":"IF(lang_op=1,\"\",IF(lang_op=2,\"/ İngilizce Karşılığı ---->\",IF(lang_op=3,\"/ Fransızca Karşılığı ---->\",\"/ Almanca Karşılığı ---->\")))","v":"/ İngilizce Karşılığı ---->"},null,null,{"$f":"IF(lang_op=2,VLOOKUP(J2,formuller,2,0),IF(lang_op=3,VLOOKUP(J2,formuller,3,0),IF(lang_op=4,VLOOKUP(J2,formuller,4,0),\"\")))","v":"SORTBY"}]
[]
[null,"Raf","Sıra",null,null,"Eğitim","Firma","Teklif Tarihi",null,"Eğitim","Firma","Teklif Tarihi",null,{"$f":"IFERROR(_xlfn.FORMULATEXT(J5),\"\")","v":""}]
[null,"I",3,null,null,"04- Temel Excel","Yazaki","2024-09-21"]
[null,"H",1,null,null,"01- İleri Excel","Yazaki","2024-10-12"]
[null,"G",9,null,null,"03- PowerPoint","Grammer","2024-08-12"]
[null,"F",2,null,null,"01- İleri Excel","Renault","2024-06-10",null,null,null,null,null,{"$f":"IngFormul(J5)","v":""}]
[null,"E",8,null,null,"06- PowerBI","Renault","2024-11-10"]
[null,"D",7,null,null,"02- PowerApps","Yazaki","2024-07-20"]
[null,"C",4,null,null,"04- Temel Excel","Renault","2024-12-02"]
[null,"B",5,null,null,"04- Temel Excel","Yazaki","2024-09-15"]
[null,"A",6,null,null,"03- PowerPoint","Yazaki","2024-10-27"]
[null,null,null,null,null,"03- PowerPoint","Renault","2024-10-19"]
[null,null,null,null,null,"01- İleri Excel","Renault","2024-12-23"]
[null,null,null,null,null,"02- PowerApps","Grammer","2024-07-12"]
[null,null,null,null,null,"07- Excel Macro","Grammer","2024-08-26"]
[null,null,null,null,null,"03- PowerPoint","Grammer","2024-07-22"]
[null,null,null,null,null,"07- Excel Macro","Nobel","2024-09-23"]
[null,null,null,null,null,"02- PowerApps","Renault","2024-06-12"]
[null,null,null,null,null,"02- PowerApps",{"$f":"firma","v":0},"2024-07-07"]
[null,null,null,null,null,"02- PowerApps","Renault","2024-11-20"]
[null,null,null,null,null,"02- PowerApps","Grammer","2024-10-11"]
[null,null,null,null,null,"01- İleri Excel","Yazaki","2024-05-08"]
[null,null,null,null,null,"01- İleri Excel","Renault","2024-08-06"]
[null,null,null,null,null,"01- İleri Excel","Yazaki","2024-06-01"]
[null,null,null,null,null,"05- Project","Grammer","2024-05-23"]
[null,null,null,null,null,"05- Project","Grammer","2024-05-05"]
[null,null,null,null,null,"02- PowerApps","Nobel","2024-09-21"]
[null,null,null,null,null,"04- Temel Excel","Yazaki","2024-05-28"]
[null,null,null,null,null,"06- PowerBI","Nobel","2024-05-11"]
[null,null,null,null,null,"01- İleri Excel","Yazaki","2024-11-12"]
[null,null,null,null,null,"05- Project","Renault","2024-03-28"]
[null,null,null,null,null,"02- PowerApps","Renault","2024-07-15"]
[null,null,null,null,null,"01- İleri Excel","Yazaki","2024-09-12"]
[null,null,null,null,null,"02- PowerApps","Renault","2024-04-25"]
[null,null,null,null,null,"03- PowerPoint","Renault","2024-08-17"]
[null,null,null,null,null,"01- İleri Excel","Yazaki","2024-08-30"]
[null,null,null,null,null,"02- PowerApps","Renault","2024-05-08"]
[null,null,null,null,null,"02- PowerApps","Renault","2024-05-17"]
[null,null,null,null,null,"05- Project","Yazaki","2024-11-27"]

{"sheet":"Sıralama2","index":12,"n_rows":45,"n_cols":11,"rows_kept":45,"cut":false,"hidden":false,"merged":[]}
[]
[null,"SÜTUNSEÇ",null,{"$f":"IF(lang_op=1,\"\",IF(lang_op=2,\"/ İngilizce Karşılığı ---->\",IF(lang_op=3,\"/ Fransızca Karşılığı ---->\",\"/ Almanca Karşılığı ---->\")))","v":"/ İngilizce Karşılığı ---->"},null,{"$f":"IF(lang_op=2,VLOOKUP(B2,formuller,2,0),IF(lang_op=3,VLOOKUP(B2,formuller,3,0),IF(lang_op=4,VLOOKUP(B2,formuller,4,0),\"\")))","v":"CHOOSECOLS"}]
[null,"SIRALAÖLÇÜT",null,{"$f":"IF(lang_op=1,\"\",IF(lang_op=2,\"/ İngilizce Karşılığı ---->\",IF(lang_op=3,\"/ Fransızca Karşılığı ---->\",\"/ Almanca Karşılığı ---->\")))","v":"/ İngilizce Karşılığı ---->"},null,{"$f":"IF(lang_op=2,VLOOKUP(B3,formuller,2,0),IF(lang_op=3,VLOOKUP(B3,formuller,3,0),IF(lang_op=4,VLOOKUP(B3,formuller,4,0),\"\")))","v":"SORTBY"}]
[]
[null,"Eğitim","Firma","Teklif Tarihi",null,"Sıralanacak Sütun","Firma","Sıralama Ölçütü","Z<A",{"$f":"_xlfn.IFS(G5=\"Eğitim\",1,G5=\"Firma\",2,G5=\"Teklif Tarihi\",3)","v":2},{"$f":"IF(I5=\"A>Z\",1,-\"1\")","v":-1}]
[null,"04- Temel Excel","Yazaki","2024-09-21"]
[null,"01- İleri Excel","Yazaki","2024-10-12"]
[null,"03- PowerPoint","Grammer","2024-08-12",null,"Eğitim","Firma","Teklif Tarihi"]
[null,"01- İleri Excel","Renault","2024-06-10",null,{"$f":"_xlfn.SORTBY(B6:D42,_xlfn.CHOOSECOLS(B6:D42,J5),K5)","v":"04- Temel Excel"},"Yazaki","2024-09-21"]
[null,"06- PowerBI","Renault","2024-11-10",null,"01- İleri Excel","Yazaki","2024-10-12"]
[null,"02- PowerApps","Yazaki","2024-07-20",null,"02- PowerApps","Yazaki","2024-07-20"]
[null,"04- Temel Excel","Renault","2024-12-02",null,"04- Temel Excel","Yazaki","2024-09-15"]
[null,"04- Temel Excel","Yazaki","2024-09-15",null,"03- PowerPoint","Yazaki","2024-10-27"]
[null,"03- PowerPoint","Yazaki","2024-10-27",null,"01- İleri Excel","Yazaki","2024-05-08"]
[null,"03- PowerPoint","Renault","2024-10-19",null,"01- İleri Excel","Yazaki","2024-06-01"]
[null,"01- İleri Excel","Renault","2024-12-23",null,"04- Temel Excel","Yazaki","2024-05-28"]
[null,"02- PowerApps","Grammer","2024-07-12",null,"01- İleri Excel","Yazaki","2024-11-12"]
[null,"07- Excel Macro","Grammer","2024-08-26",null,"01- İleri Excel","Yazaki","2024-09-12"]
[null,"03- PowerPoint","Grammer","2024-07-22",null,"01- İleri Excel","Yazaki","2024-08-30"]
[null,"07- Excel Macro","Nobel","2024-09-23",null,"05- Project","Yazaki","2024-11-27"]
[null,"02- PowerApps","Renault","2024-06-12",null,"01- İleri Excel","Renault","2024-06-10"]
[null,"02- PowerApps",{"$f":"firma","v":0},"2024-07-07",null,"06- PowerBI","Renault","2024-11-10"]
[null,"02- PowerApps","Renault","2024-11-20",null,"04- Temel Excel","Renault","2024-12-02"]
[null,"02- PowerApps","Grammer","2024-10-11",null,"03- PowerPoint","Renault","2024-10-19"]
[null,"01- İleri Excel","Yazaki","2024-05-08",null,"01- İleri Excel","Renault","2024-12-23"]
[null,"01- İleri Excel","Renault","2024-08-06",null,"02- PowerApps","Renault","2024-06-12"]
[null,"01- İleri Excel","Yazaki","2024-06-01",null,"02- PowerApps","Renault","2024-11-20"]
[null,"05- Project","Grammer","2024-05-23",null,"01- İleri Excel","Renault","2024-08-06"]
[null,"05- Project","Grammer","2024-05-05",null,"05- Project","Renault","2024-03-28"]
[null,"02- PowerApps","Nobel","2024-09-21",null,"02- PowerApps","Renault","2024-07-15"]
[null,"04- Temel Excel","Yazaki","2024-05-28",null,"02- PowerApps","Renault","2024-04-25"]
[null,"06- PowerBI","Nobel","2024-05-11",null,"03- PowerPoint","Renault","2024-08-17"]
[null,"01- İleri Excel","Yazaki","2024-11-12",null,"02- PowerApps","Renault","2024-05-08"]
[null,"05- Project","Renault","2024-03-28",null,"02- PowerApps","Renault","2024-05-17"]
[null,"02- PowerApps","Renault","2024-07-15",null,"07- Excel Macro","Nobel","2024-09-23"]
[null,"01- İleri Excel","Yazaki","2024-09-12",null,"02- PowerApps","Nobel","2024-09-21"]
[null,"02- PowerApps","Renault","2024-04-25",null,"06- PowerBI","Nobel","2024-05-11"]
[null,"03- PowerPoint","Renault","2024-08-17",null,"03- PowerPoint","Grammer","2024-08-12"]
[null,"01- İleri Excel","Yazaki","2024-08-30",null,"02- PowerApps","Grammer","2024-07-12"]
[null,"02- PowerApps","Renault","2024-05-08",null,"07- Excel Macro","Grammer","2024-08-26"]
[null,"02- PowerApps","Renault","2024-05-17",null,"03- PowerPoint","Grammer","2024-07-22"]
[null,"05- Project","Yazaki","2024-11-27",null,"02- PowerApps","Grammer","2024-10-11"]
[null,null,null,null,null,"05- Project","Grammer","2024-05-23"]
[null,null,null,null,null,"05- Project","Grammer","2024-05-05"]
[null,null,null,null,null,"02- PowerApps",0,"2024-07-07"]

{"sheet":"Filtre","index":13,"n_rows":100,"n_cols":13,"rows_kept":100,"cut":false,"hidden":false,"merged":[]}
[]
[null,"Filtre",null,null,null,null,null,null,"ALTTOPLAM",{"$f":"IF(lang_op=1,\"\",IF(lang_op=2,\"/ İngilizce Karşılığı ---->\",IF(lang_op=3,\"/ Fransızca Karşılığı ---->\",\"/ Almanca Karşılığı ---->\")))","v":"/ İngilizce Karşılığı ---->"},null,null,{"$f":"IF(lang_op=2,VLOOKUP(I2,formuller,2,0),IF(lang_op=3,VLOOKUP(I2,formuller,3,0),IF(lang_op=4,VLOOKUP(I2,formuller,4,0),\"\")))","v":"SUBTOTAL"}]
[]
[null,"Marka","Tür","Satış Türü","Tarih","Şehir","Ödeme Türü","Fiyat",null,"Toplam"]
[null,"DELL","Notebook","Mağaza","2019-10-12","Bursa","Kredi Kartı",15709]
[null,"IBM","PC","Mağaza","2016-09-12","Ankara","Peşin",6243]
[null,"LENOVO","Notebook","Site","2016-01-08","Bursa","Kredi Kartı",17622]
[null,"IBM","PC","Mağaza","2016-05-24","Bursa","Kredi Kartı",6629]
[null,"IBM","PC","Site","2016-06-08","İstanbul","Kredi Kartı",7582,null,{"$f":"IFERROR(_xlfn.FORMULATEXT(K4),\"\")","v":""}]
[null,"MSI","Tablet","Site","2016-10-20","İstanbul","Kredi Kartı",5714]
[null,"HP","PC","Site","2016-02-04","Bursa","Kredi Kartı",8263]
[null,"MSI","Notebook","Mağaza","2016-08-10","Bursa","Peşin",9102,null,{"$f":"IngFormul(K4)","v":""}]
[null,"DELL","Notebook","Mağaza","2016-03-20","İstanbul","Peşin",11792]
[null,"ASUS","Tablet","Site","2016-07-29","Bursa","Kredi Kartı",3583]
[null,"HP","Tablet","Mağaza","2016-09-16","Ankara","Peşin",5549]
[null,"HP","PC","Site","2016-02-18","İstanbul","Kredi Kartı",6165]
[null,"DELL","Notebook","Site","2016-07-30","Bursa","Kredi Kartı",14176]
[null,"IBM","Notebook","Site","2016-02-18","Bursa","Kredi Kartı",14332]
[null,"LENOVO","PC","Site","2016-10-31","İstanbul","Kredi Kartı",5811]
[null,"ASUS","Notebook","Site","2016-06-24","Bursa","Kredi Kartı",8902]
[null,"DELL","PC","Site","2016-05-11","Ankara","Kredi Kartı",11541]
[null,"HP","PC","Mağaza","2016-01-25","Bursa","Peşin",7436]
[null,"HP","Tablet","Mağaza","2016-09-23","Ankara","Kredi Kartı",3361]
[null,"IBM","PC","Mağaza","2016-01-03","İstanbul","Peşin",7687]
[null,"DELL","Notebook","Mağaza","2016-01-31","İstanbul","Peşin",13702]
[null,"LENOVO","Notebook","Mağaza","2016-11-27","İstanbul","Kredi Kartı",15702]
[null,"MSI","Tablet","Mağaza","2016-05-09","İstanbul","Peşin",4374]
[null,"IBM","Tablet","Site","2016-02-12","Ankara","Kredi Kartı",4903]
[null,"DELL","PC","Mağaza","2016-10-08","Bursa","Peşin",8833]
[null,"DELL","Notebook","Mağaza","2016-04-30","İstanbul","Peşin",11889]
[null,"ASUS","Notebook","Mağaza","2016-04-26","Ankara","Peşin",9491]
[null,"MSI","PC","Site","2016-08-25","Ankara","Kredi Kartı",5114]
[null,"DELL","Notebook","Site","2016-09-27","Ankara","Kredi Kartı",11070]
[null,"IBM","PC","Mağaza","2016-02-18","Ankara","Peşin",5100]
[null,"IBM","PC","Mağaza","2016-05-07","İstanbul","Peşin",6587]
[null,"LENOVO","Tablet","Site","2016-09-07","Bursa","Kredi Kartı",3656]
[null,"HP","PC","Mağaza","2016-05-23","İstanbul","Peşin",9317]
[null,"ASUS","Notebook","Site","2016-12-04","Bursa","Kredi Kartı",14258]
[null,"MSI","Notebook","Site","2016-10-22","Bursa","Kredi Kartı",12830]
[null,"IBM","Tablet","Site","2016-05-16","Bursa","Kredi Kartı",2686]
[null,"DELL","Tablet","Mağaza","2016-02-29","Bursa","Peşin",3900]
[null,"HP","PC","Mağaza","2016-04-11","İstanbul","Peşin",8199]
[null,"IBM","Notebook","Site","2016-04-10","Bursa","Kredi Kartı",11447]
[null,"ASUS","Notebook","Mağaza","2016-10-17","Ankara","Peşin",15673]
[null,"HP","PC","Site","2016-08-16","Bursa","Kredi Kartı",6757]
[null,"HP","Notebook","Site","2016-07-29","İstanbul","Kredi Kartı",13553]
[null,"DELL","PC","Site","2016-12-12","İstanbul","Kredi Kartı",11352]
[null,"ASUS","PC","Site","2016-10-05","İstanbul","Kredi Kartı",6489]
[null,"MSI","Tablet","Site","2016-09-14","Bursa","Kredi Kartı",3990]
[null,"MSI","PC","Site","2016-05-25","Bursa","Kredi Kartı",7336]
[null,"LENOVO","Notebook","Mağaza","2016-12-26","Ankara","Peşin",16911]
[null,"MSI","Notebook","Mağaza","2016-03-13","Bursa","Peşin",14512]
[null,"MSI","Tablet","Mağaza","2016-03-21","İstanbul","Kredi Kartı",4839]
[null,"DELL","Tablet","Mağaza","2016-07-11","Bursa","Kredi Kartı",3177]
[null,"LENOVO","PC","Mağaza","2016-09-26","İstanbul","Peşin",6824]
[null,"LENOVO","Notebook","Mağaza","2016-06-17","Bursa","Peşin",9830]
[null,"IBM","Notebook","Site","2016-02-14","Bursa","Kredi Kartı",10363]
[null,"LENOVO","PC","Mağaza","2016-11-05","Bursa","Peşin",11333]
[null,"LENOVO","Notebook","Mağaza","2016-06-26","Ankara","Kredi Kartı",12612]
[null,"LENOVO","PC","Mağaza","2016-07-01","Ankara","Peşin",8053]
[null,"MSI","PC","Site","2016-10-21","Bursa","Kredi Kartı",7739]
[null,"DELL","Tablet","Site","2016-12-16","Bursa","Kredi Kartı",4743]
[null,"ASUS","PC","Mağaza","2016-07-22","Bursa","Peşin",10081]
[null,"IBM","Notebook","Mağaza","2016-04-08","Bursa","Peşin",17649]
[null,"LENOVO","Notebook","Site","2016-12-23","Bursa","Kredi Kartı",15094]
[null,"HP","Tablet","Mağaza","2016-01-16","Bursa","Peşin",2928]
[null,"DELL","Tablet","Site","2016-03-08","Ankara","Kredi Kartı",4843]
[null,"HP","PC","Site","2016-11-05","Bursa","Kredi Kartı",11909]
[null,"ASUS","Notebook","Site","2016-08-25","Bursa","Kredi Kartı",12854]
[null,"LENOVO","Notebook","Mağaza","2016-10-17","Bursa","Peşin",12227]
[null,"HP","PC","Mağaza","2016-03-13","Ankara","Peşin",7973]
[null,"ASUS","Notebook","Site","2016-05-02","İstanbul","Kredi Kartı",13775]
[null,"MSI","PC","Mağaza","2016-11-04","Ankara","Peşin",10012]
[null,"LENOVO","PC","Site","2016-04-24","Ankara","Kredi Kartı",9061]
[null,"ASUS","Tablet","Site","2016-11-27","Bursa","Kredi Kartı",5773]
[null,"LENOVO","PC","Site","2016-09-13","İstanbul","Kredi Kartı",11933]
[null,"HP","Notebook","Site","2016-10-06","Bursa","Kredi Kartı",15500]
[null,"IBM","Notebook","Site","2016-10-03","Bursa","Kredi Kartı",12634]
[null,"LENOVO","Tablet","Site","2016-07-31","Bursa","Kredi Kartı",3945]
[null,"LENOVO","Tablet","Mağaza","2016-08-31","Bursa","Peşin",2723]
[null,"DELL","PC","Mağaza","2016-03-29","Ankara","Kredi Kartı",6566]
[null,"IBM","Notebook","Mağaza","2016-09-05","Bursa","Kredi Kartı",9479]
[null,"HP","Notebook","Mağaza","2016-04-02","Ankara","Peşin",17275]
[null,"IBM","PC","Mağaza","2016-05-19","Bursa","Kredi Kartı",6003]
[null,"ASUS","Notebook","Mağaza","2016-06-04","Ankara","Peşin",17319]
[null,"HP","PC","Site","2016-05-18","İstanbul","Kredi Kartı",7385]
[null,"HP","PC","Mağaza","2016-11-19","Bursa","Peşin",7598]
[null,"IBM","Tablet","Mağaza","2016-07-08","Ankara","Peşin",5088]
[null,"IBM","PC","Mağaza","2016-08-29","İstanbul","Peşin",8162]
[null,"IBM","Notebook","Site","2016-06-23","Ankara","Kredi Kartı",10031]
[null,"DELL","Notebook","Site","2016-10-18","Bursa","Kredi Kartı",15809]
[null,"HP","Tablet","Site","2016-09-30","Bursa","Kredi Kartı",4899]
[null,"HP","Tablet","Mağaza","2016-05-23","Bursa","Peşin",4320]
[null,"ASUS","PC","Mağaza","2016-11-29","İstanbul","Peşin",11077]
[null,"LENOVO","Tablet","Mağaza","2016-01-14","Ankara","Peşin",4516]
[null,"DELL","PC","Site","2016-10-24","Bursa","Kredi Kartı",10376]
[null,"LENOVO","Notebook","Site","2016-11-02","Bursa","Kredi Kartı",8686]
[null,"DELL","Notebook","Site","2016-03-19","İstanbul","Kredi Kartı",17932]
[null,"MSI","Tablet","Mağaza","2016-08-06","Ankara","Peşin",4365]
[null,"DELL","Tablet","Mağaza","2016-01-18","Bursa","Kredi Kartı",3715]

{"sheet":"Filtre2","index":14,"n_rows":100,"n_cols":8,"rows_kept":100,"cut":false,"hidden":false,"merged":[]}
[]
[null,"Filtre / Dinamik Tablo"]
[]
[null,"Marka","Tür","Satış Türü","Tarih","Şehir","Ödeme Türü","Fiyat"]
[null,"DELL","Notebook","Mağaza","2019-10-12","Bursa","Kredi Kartı",15709]
[null,"IBM","PC","Mağaza","2016-09-12","Ankara","Peşin",6243]
[null,"LENOVO","Notebook","Site","2016-01-08","Bursa","Kredi Kartı",17622]
[null,"IBM","PC","Mağaza","2016-05-24","Bursa","Kredi Kartı",6629]
[null,"IBM","PC","Site","2016-06-08","İstanbul","Kredi Kartı",7582]
[null,"MSI","Tablet","Site","2016-10-20","İstanbul","Kredi Kartı",5714]
[null,"HP","PC","Site","2016-02-04","Bursa","Kredi Kartı",8263]
[null,"MSI","Notebook","Mağaza","2016-08-10","Bursa","Peşin",9102]
[null,"DELL","Notebook","Mağaza","2016-03-20","İstanbul","Peşin",11792]
[null,"ASUS","Tablet","Site","2016-07-29","Bursa","Kredi Kartı",3583]
[null,"HP","Tablet","Mağaza","2016-09-16","Ankara","Peşin",5549]
[null,"HP","PC","Site","2016-02-18","İstanbul","Kredi Kartı",6165]
[null,"DELL","Notebook","Site","2016-07-30","Bursa","Kredi Kartı",14176]
[null,"IBM","Notebook","Site","2016-02-18","Bursa","Kredi Kartı",14332]
[null,"LENOVO","PC","Site","2016-10-31","İstanbul","Kredi Kartı",5811]
[null,"ASUS","Notebook","Site","2016-06-24","Bursa","Kredi Kartı",8902]
[null,"DELL","PC","Site","2016-05-11","Ankara","Kredi Kartı",11541]
[null,"HP","PC","Mağaza","2016-01-25","Bursa","Peşin",7436]
[null,"HP","Tablet","Mağaza","2016-09-23","Ankara","Kredi Kartı",3361]
[null,"IBM","PC","Mağaza","2016-01-03","İstanbul","Peşin",7687]
[null,"DELL","Notebook","Mağaza","2016-01-31","İstanbul","Peşin",13702]
[null,"LENOVO","Notebook","Mağaza","2016-11-27","İstanbul","Kredi Kartı",15702]
[null,"MSI","Tablet","Mağaza","2016-05-09","İstanbul","Peşin",4374]
[null,"IBM","Tablet","Site","2016-02-12","Ankara","Kredi Kartı",4903]
[null,"DELL","PC","Mağaza","2016-10-08","Bursa","Peşin",8833]
[null,"DELL","Notebook","Mağaza","2016-04-30","İstanbul","Peşin",11889]
[null,"ASUS","Notebook","Mağaza","2016-04-26","Ankara","Peşin",9491]
[null,"MSI","PC","Site","2016-08-25","Ankara","Kredi Kartı",5114]
[null,"DELL","Notebook","Site","2016-09-27","Ankara","Kredi Kartı",11070]
[null,"IBM","PC","Mağaza","2016-02-18","Ankara","Peşin",5100]
[null,"IBM","PC","Mağaza","2016-05-07","İstanbul","Peşin",6587]
[null,"LENOVO","Tablet","Site","2016-09-07","Bursa","Kredi Kartı",3656]
[null,"HP","PC","Mağaza","2016-05-23","İstanbul","Peşin",9317]
[null,"ASUS","Notebook","Site","2016-12-04","Bursa","Kredi Kartı",14258]
[null,"MSI","Notebook","Site","2016-10-22","Bursa","Kredi Kartı",12830]
[null,"IBM","Tablet","Site","2016-05-16","Bursa","Kredi Kartı",2686]
[null,"DELL","Tablet","Mağaza","2016-02-29","Bursa","Peşin",3900]
[null,"HP","PC","Mağaza","2016-04-11","İstanbul","Peşin",8199]
[null,"IBM","Notebook","Site","2016-04-10","Bursa","Kredi Kartı",11447]
[null,"ASUS","Notebook","Mağaza","2016-10-17","Ankara","Peşin",15673]
[null,"HP","PC","Site","2016-08-16","Bursa","Kredi Kartı",6757]
[null,"HP","Notebook","Site","2016-07-29","İstanbul","Kredi Kartı",13553]
[null,"DELL","PC","Site","2016-12-12","İstanbul","Kredi Kartı",11352]
[null,"ASUS","PC","Site","2016-10-05","İstanbul","Kredi Kartı",6489]
[null,"MSI","Tablet","Site","2016-09-14","Bursa","Kredi Kartı",3990]
[null,"MSI","PC","Site","2016-05-25","Bursa","Kredi Kartı",7336]
[null,"LENOVO","Notebook","Mağaza","2016-12-26","Ankara","Peşin",16911]
[null,"MSI","Notebook","Mağaza","2016-03-13","Bursa","Peşin",14512]
[null,"MSI","Tablet","Mağaza","2016-03-21","İstanbul","Kredi Kartı",4839]
[null,"DELL","Tablet","Mağaza","2016-07-11","Bursa","Kredi Kartı",3177]
[null,"LENOVO","PC","Mağaza","2016-09-26","İstanbul","Peşin",6824]
[null,"LENOVO","Notebook","Mağaza","2016-06-17","Bursa","Peşin",9830]
[null,"IBM","Notebook","Site","2016-02-14","Bursa","Kredi Kartı",10363]
[null,"LENOVO","PC","Mağaza","2016-11-05","Bursa","Peşin",11333]
[null,"LENOVO","Notebook","Mağaza","2016-06-26","Ankara","Kredi Kartı",12612]
[null,"LENOVO","PC","Mağaza","2016-07-01","Ankara","Peşin",8053]
[null,"MSI","PC","Site","2016-10-21","Bursa","Kredi Kartı",7739]
[null,"DELL","Tablet","Site","2016-12-16","Bursa","Kredi Kartı",4743]
[null,"ASUS","PC","Mağaza","2016-07-22","Bursa","Peşin",10081]
[null,"IBM","Notebook","Mağaza","2016-04-08","Bursa","Peşin",17649]
[null,"LENOVO","Notebook","Site","2016-12-23","Bursa","Kredi Kartı",15094]
[null,"HP","Tablet","Mağaza","2016-01-16","Bursa","Peşin",2928]
[null,"DELL","Tablet","Site","2016-03-08","Ankara","Kredi Kartı",4843]
[null,"HP","PC","Site","2016-11-05","Bursa","Kredi Kartı",11909]
[null,"ASUS","Notebook","Site","2016-08-25","Bursa","Kredi Kartı",12854]
[null,"LENOVO","Notebook","Mağaza","2016-10-17","Bursa","Peşin",12227]
[null,"HP","PC","Mağaza","2016-03-13","Ankara","Peşin",7973]
[null,"ASUS","Notebook","Site","2016-05-02","İstanbul","Kredi Kartı",13775]
[null,"MSI","PC","Mağaza","2016-11-04","Ankara","Peşin",10012]
[null,"LENOVO","PC","Site","2016-04-24","Ankara","Kredi Kartı",9061]
[null,"ASUS","Tablet","Site","2016-11-27","Bursa","Kredi Kartı",5773]
[null,"LENOVO","PC","Site","2016-09-13","İstanbul","Kredi Kartı",11933]
[null,"HP","Notebook","Site","2016-10-06","Bursa","Kredi Kartı",15500]
[null,"IBM","Notebook","Site","2016-10-03","Bursa","Kredi Kartı",12634]
[null,"LENOVO","Tablet","Site","2016-07-31","Bursa","Kredi Kartı",3945]
[null,"LENOVO","Tablet","Mağaza","2016-08-31","Bursa","Peşin",2723]
[null,"DELL","PC","Mağaza","2016-03-29","Ankara","Kredi Kartı",6566]
[null,"IBM","Notebook","Mağaza","2016-09-05","Bursa","Kredi Kartı",9479]
[null,"HP","Notebook","Mağaza","2016-04-02","Ankara","Peşin",17275]
[null,"IBM","PC","Mağaza","2016-05-19","Bursa","Kredi Kartı",6003]
[null,"ASUS","Notebook","Mağaza","2016-06-04","Ankara","Peşin",17319]
[null,"HP","PC","Site","2016-05-18","İstanbul","Kredi Kartı",7385]
[null,"HP","PC","Mağaza","2016-11-19","Bursa","Peşin",7598]
[null,"IBM","Tablet","Mağaza","2016-07-08","Ankara","Peşin",5088]
[null,"IBM","PC","Mağaza","2016-08-29","İstanbul","Peşin",8162]
[null,"IBM","Notebook","Site","2016-06-23","Ankara","Kredi Kartı",10031]
[null,"DELL","Notebook","Site","2016-10-18","Bursa","Kredi Kartı",15809]
[null,"HP","Tablet","Site","2016-09-30","Bursa","Kredi Kartı",4899]
[null,"HP","Tablet","Mağaza","2016-05-23","Bursa","Peşin",4320]
[null,"ASUS","PC","Mağaza","2016-11-29","İstanbul","Peşin",11077]
[null,"LENOVO","Tablet","Mağaza","2016-01-14","Ankara","Peşin",4516]
[null,"DELL","PC","Site","2016-10-24","Bursa","Kredi Kartı",10376]
[null,"LENOVO","Notebook","Site","2016-11-02","Bursa","Kredi Kartı",8686]
[null,"DELL","Notebook","Site","2016-03-19","İstanbul","Kredi Kartı",17932]
[null,"MSI","Tablet","Mağaza","2016-08-06","Ankara","Peşin",4365]
[null,"DELL","Tablet","Mağaza","2016-01-18","Bursa","Kredi Kartı",3715]

{"sheet":"Filtre3","index":15,"n_rows":100,"n_cols":27,"rows_kept":100,"cut":false,"hidden":false,"merged":[]}
[]
[null,"FİLTRE",{"$f":"IF(lang_op=1,\"\",IF(lang_op=2,\"/ İngilizce Karşılığı ---->\",IF(lang_op=3,\"/ Fransızca Karşılığı ---->\",\"/ Almanca Karşılığı ---->\")))","v":"/ İngilizce Karşılığı ---->"},null,null,{"$f":"IF(lang_op=2,VLOOKUP(B2,formuller,2,0),IF(lang_op=3,VLOOKUP(B2,formuller,3,0),IF(lang_op=4,VLOOKUP(B2,formuller,4,0),\"\")))","v":"FILTER"}]
[]
[null,"Marka","Tür","Satış Türü","Tarih","Şehir","Ödeme Türü","Fiyat",null,null,"Marka","DELL","Şehir","Bursa"]
[null,"DELL","Notebook","Mağaza","2019-10-12","Bursa","Kredi Kartı",15709]
[null,"IBM","PC","Mağaza","2016-09-12","Ankara","Peşin",6243]
[null,"LENOVO","Notebook","Site","2016-01-08","Bursa","Kredi Kartı",17622,null,null,{"$f":"IFERROR(_xlfn.FORMULATEXT(K11),\"\")","v":""},null,null,null,{"$f":"IngFormul(K11)","v":""}]
[null,"IBM","PC","Mağaza","2016-05-24","Bursa","Kredi Kartı",6629]
[null,"IBM","PC","Site","2016-06-08","İstanbul","Kredi Kartı",7582]
[null,"MSI","Tablet","Site","2016-10-20","İstanbul","Kredi Kartı",5714,null,null,"Marka","Tür","Satış Türü","Tarih","Şehir","Ödeme Türü","Fiyat",null,null,null,null,null,null,null,"Marka",null,"Şehir"]
[null,"HP","PC","Site","2016-02-04","Bursa","Kredi Kartı",8263,null,null,null,null,null,null,null,null,null,null,null,null,null,null,null,null,"DELL",null,"Bursa"]
[null,"MSI","Notebook","Mağaza","2016-08-10","Bursa","Peşin",9102,null,null,null,null,null,null,null,null,null,null,null,null,null,null,null,null,"IBM",null,"Ankara"]
[null,"DELL","Notebook","Mağaza","2016-03-20","İstanbul","Peşin",11792,null,null,null,null,null,null,null,null,null,null,null,null,null,null,null,null,"LENOVO",null,"İstanbul"]
[null,"ASUS","Tablet","Site","2016-07-29","Bursa","Kredi Kartı",3583,null,null,null,null,null,null,null,null,null,null,null,null,null,null,null,null,"MSI"]
[null,"HP","Tablet","Mağaza","2016-09-16","Ankara","Peşin",5549,null,null,null,null,null,null,null,null,null,null,null,null,null,null,null,null,"HP"]
[null,"HP","PC","Site","2016-02-18","İstanbul","Kredi Kartı",6165,null,null,null,null,null,null,null,null,null,null,null,null,null,null,null,null,"ASUS"]
[null,"DELL","Notebook","Site","2016-07-30","Bursa","Kredi Kartı",14176]
[null,"IBM","Notebook","Site","2016-02-18","Bursa","Kredi Kartı",14332]
[null,"LENOVO","PC","Site","2016-10-31","İstanbul","Kredi Kartı",5811]
[null,"ASUS","Notebook","Site","2016-06-24","Bursa","Kredi Kartı",8902]
[null,"DELL","PC","Site","2016-05-11","Ankara","Kredi Kartı",11541]
[null,"HP","PC","Mağaza","2016-01-25","Bursa","Peşin",7436]
[null,"HP","Tablet","Mağaza","2016-09-23","Ankara","Kredi Kartı",3361]
[null,"IBM","PC","Mağaza","2016-01-03","İstanbul","Peşin",7687]
[null,"DELL","Notebook","Mağaza","2016-01-31","İstanbul","Peşin",13702]
[null,"LENOVO","Notebook","Mağaza","2016-11-27","İstanbul","Kredi Kartı",15702]
[null,"MSI","Tablet","Mağaza","2016-05-09","İstanbul","Peşin",4374]
[null,"IBM","Tablet","Site","2016-02-12","Ankara","Kredi Kartı",4903]
[null,"DELL","PC","Mağaza","2016-10-08","Bursa","Peşin",8833]
[null,"DELL","Notebook","Mağaza","2016-04-30","İstanbul","Peşin",11889]
[null,"ASUS","Notebook","Mağaza","2016-04-26","Ankara","Peşin",9491]
[null,"MSI","PC","Site","2016-08-25","Ankara","Kredi Kartı",5114]
[null,"DELL","Notebook","Site","2016-09-27","Ankara","Kredi Kartı",11070]
[null,"IBM","PC","Mağaza","2016-02-18","Ankara","Peşin",5100]
[null,"IBM","PC","Mağaza","2016-05-07","İstanbul","Peşin",6587]
[null,"LENOVO","Tablet","Site","2016-09-07","Bursa","Kredi Kartı",3656]
[null,"HP","PC","Mağaza","2016-05-23","İstanbul","Peşin",9317]
[null,"ASUS","Notebook","Site","2016-12-04","Bursa","Kredi Kartı",14258]
[null,"MSI","Notebook","Site","2016-10-22","Bursa","Kredi Kartı",12830]
[null,"IBM","Tablet","Site","2016-05-16","Bursa","Kredi Kartı",2686]
[null,"DELL","Tablet","Mağaza","2016-02-29","Bursa","Peşin",3900]
[null,"HP","PC","Mağaza","2016-04-11","İstanbul","Peşin",8199]
[null,"IBM","Notebook","Site","2016-04-10","Bursa","Kredi Kartı",11447]
[null,"ASUS","Notebook","Mağaza","2016-10-17","Ankara","Peşin",15673]
[null,"HP","PC","Site","2016-08-16","Bursa","Kredi Kartı",6757]
[null,"HP","Notebook","Site","2016-07-29","İstanbul","Kredi Kartı",13553]
[null,"DELL","PC","Site","2016-12-12","İstanbul","Kredi Kartı",11352]
[null,"ASUS","PC","Site","2016-10-05","İstanbul","Kredi Kartı",6489]
[null,"MSI","Tablet","Site","2016-09-14","Bursa","Kredi Kartı",3990]
[null,"MSI","PC","Site","2016-05-25","Bursa","Kredi Kartı",7336]
[null,"LENOVO","Notebook","Mağaza","2016-12-26","Ankara","Peşin",16911]
[null,"MSI","Notebook","Mağaza","2016-03-13","Bursa","Peşin",14512]
[null,"MSI","Tablet","Mağaza","2016-03-21","İstanbul","Kredi Kartı",4839]
[null,"DELL","Tablet","Mağaza","2016-07-11","Bursa","Kredi Kartı",3177]
[null,"LENOVO","PC","Mağaza","2016-09-26","İstanbul","Peşin",6824]
[null,"LENOVO","Notebook","Mağaza","2016-06-17","Bursa","Peşin",9830]
[null,"IBM","Notebook","Site","2016-02-14","Bursa","Kredi Kartı",10363]
[null,"LENOVO","PC","Mağaza","2016-11-05","Bursa","Peşin",11333]
[null,"LENOVO","Notebook","Mağaza","2016-06-26","Ankara","Kredi Kartı",12612]
[null,"LENOVO","PC","Mağaza","2016-07-01","Ankara","Peşin",8053]
[null,"MSI","PC","Site","2016-10-21","Bursa","Kredi Kartı",7739]
[null,"DELL","Tablet","Site","2016-12-16","Bursa","Kredi Kartı",4743]
[null,"ASUS","PC","Mağaza","2016-07-22","Bursa","Peşin",10081]
[null,"IBM","Notebook","Mağaza","2016-04-08","Bursa","Peşin",17649]
[null,"LENOVO","Notebook","Site","2016-12-23","Bursa","Kredi Kartı",15094]
[null,"HP","Tablet","Mağaza","2016-01-16","Bursa","Peşin",2928]
[null,"DELL","Tablet","Site","2016-03-08","Ankara","Kredi Kartı",4843]
[null,"HP","PC","Site","2016-11-05","Bursa","Kredi Kartı",11909]
[null,"ASUS","Notebook","Site","2016-08-25","Bursa","Kredi Kartı",12854]
[null,"LENOVO","Notebook","Mağaza","2016-10-17","Bursa","Peşin",12227]
[null,"HP","PC","Mağaza","2016-03-13","Ankara","Peşin",7973]
[null,"ASUS","Notebook","Site","2016-05-02","İstanbul","Kredi Kartı",13775]
[null,"MSI","PC","Mağaza","2016-11-04","Ankara","Peşin",10012]
[null,"LENOVO","PC","Site","2016-04-24","Ankara","Kredi Kartı",9061]
[null,"ASUS","Tablet","Site","2016-11-27","Bursa","Kredi Kartı",5773]
[null,"LENOVO","PC","Site","2016-09-13","İstanbul","Kredi Kartı",11933]
[null,"HP","Notebook","Site","2016-10-06","Bursa","Kredi Kartı",15500]
[null,"IBM","Notebook","Site","2016-10-03","Bursa","Kredi Kartı",12634]
[null,"LENOVO","Tablet","Site","2016-07-31","Bursa","Kredi Kartı",3945]
[null,"LENOVO","Tablet","Mağaza","2016-08-31","Bursa","Peşin",2723]
[null,"DELL","PC","Mağaza","2016-03-29","Ankara","Kredi Kartı",6566]
[null,"IBM","Notebook","Mağaza","2016-09-05","Bursa","Kredi Kartı",9479]
[null,"HP","Notebook","Mağaza","2016-04-02","Ankara","Peşin",17275]
[null,"IBM","PC","Mağaza","2016-05-19","Bursa","Kredi Kartı",6003]
[null,"ASUS","Notebook","Mağaza","2016-06-04","Ankara","Peşin",17319]
[null,"HP","PC","Site","2016-05-18","İstanbul","Kredi Kartı",7385]
[null,"HP","PC","Mağaza","2016-11-19","Bursa","Peşin",7598]
[null,"IBM","Tablet","Mağaza","2016-07-08","Ankara","Peşin",5088]
[null,"IBM","PC","Mağaza","2016-08-29","İstanbul","Peşin",8162]
[null,"IBM","Notebook","Site","2016-06-23","Ankara","Kredi Kartı",10031]
[null,"DELL","Notebook","Site","2016-10-18","Bursa","Kredi Kartı",15809]
[null,"HP","Tablet","Site","2016-09-30","Bursa","Kredi Kartı",4899]
[null,"HP","Tablet","Mağaza","2016-05-23","Bursa","Peşin",4320]
[null,"ASUS","PC","Mağaza","2016-11-29","İstanbul","Peşin",11077]
[null,"LENOVO","Tablet","Mağaza","2016-01-14","Ankara","Peşin",4516]
[null,"DELL","PC","Site","2016-10-24","Bursa","Kredi Kartı",10376]
[null,"LENOVO","Notebook","Site","2016-11-02","Bursa","Kredi Kartı",8686]
[null,"DELL","Notebook","Site","2016-03-19","İstanbul","Kredi Kartı",17932]
[null,"MSI","Tablet","Mağaza","2016-08-06","Ankara","Peşin",4365]
[null,"DELL","Tablet","Mağaza","2016-01-18","Bursa","Kredi Kartı",3715]

{"sheet":"Eğer","index":16,"n_rows":10,"n_cols":5,"rows_kept":10,"cut":false,"hidden":false,"merged":[[3,1,3,7]]}
[]
[null,"EĞER",{"$f":"IF(lang_op=1,\"\",IF(lang_op=2,\"/ İngilizce Karşılığı ---->\",IF(lang_op=3,\"/ Fransızca Karşılığı ---->\",\"/ Almanca Karşılığı ---->\")))","v":"/ İngilizce Karşılığı ---->"},null,{"$f":"IF(lang_op=2,VLOOKUP(B2,formuller,2,0),IF(lang_op=3,VLOOKUP(B2,formuller,3,0),IF(lang_op=4,VLOOKUP(B2,formuller,4,0),\"\")))","v":"IF"}]
[]
[null,"Mantıksal Operatörler"]
[null,">","Büyük"]
[null,"<","Küçük"]
[null,">=","Büyük Eşit"]
[null,"<=","Küçük Eşit"]
[null,"=","Eşit"]
[null,"<>","Eşit Değil"]

{"sheet":"EğerTemelÖrnekler","index":17,"n_rows":19,"n_cols":11,"rows_kept":19,"cut":false,"hidden":false,"merged":[]}
[]
[null,"EĞER",{"$f":"IF(lang_op=1,\"\",IF(lang_op=2,\"/ İngilizce Karşılığı ---->\",IF(lang_op=3,\"/ Fransızca Karşılığı ---->\",\"/ Almanca Karşılığı ---->\")))","v":"/ İngilizce Karşılığı ---->"},null,{"$f":"IF(lang_op=2,VLOOKUP(B2,formuller,2,0),IF(lang_op=3,VLOOKUP(B2,formuller,3,0),IF(lang_op=4,VLOOKUP(B2,formuller,4,0),\"\")))","v":"IF"}]
[]
[]
[null,"50' den Büyük mü?",null,null,"50' den Büyük yada Eşit mi?",null,null,"50' den Büyükse 2 ile Çarp, Değilse Böl",null,null,"Metin Karşılaştırma"]
[null,50,null,null,33,null,null,45,null,null,"Ali"]
[null,60,null,null,75,null,null,77,null,null,"Hasan"]
[null,40,null,null,82,null,null,40,null,null,"ali"]
[null,75,null,null,46,null,null,85,null,null,{"$f":"isim","v":0}]
[null,90,null,null,90,null,null,58,null,null,"Efe"]
[null,45,null,null,50,null,null,45,null,null,"Cemal"]
[null,15,null,null,15,null,null,25,null,null,"ALİ"]
[]
[]
[null,{"$f":"IFERROR(_xlfn.FORMULATEXT(C6),\"\")","v":""},null,null,{"$f":"IFERROR(_xlfn.FORMULATEXT(F6),\"\")","v":""},null,null,{"$f":"IFERROR(_xlfn.FORMULATEXT(I6),\"\")","v":""},null,null,{"$f":"IFERROR(_xlfn.FORMULATEXT(L6),\"\")","v":""}]
[]
[]
[]
[null,{"$f":"IngFormul(C6)","v":""},null,null,{"$f":"IngFormul(F6)","v":""},null,null,{"$f":"IngFormul(I6)","v":""},null,null,{"$f":"IngFormul(L6)","v":""}]

{"sheet":"EğerÖrnek2","index":18,"n_rows":23,"n_cols":13,"rows_kept":23,"cut":false,"hidden":false,"merged":[]}
[]
[null,"EĞER",{"$f":"IF(lang_op=1,\"\",IF(lang_op=2,\"/ İngilizce Karşılığı ---->\",IF(lang_op=3,\"/ Fransızca Karşılığı ---->\",\"/ Almanca Karşılığı ---->\")))","v":"/ İngilizce Karşılığı ---->"},null,null,null,{"$f":"IF(lang_op=2,VLOOKUP(B2,formuller,2,0),IF(lang_op=3,VLOOKUP(B2,formuller,3,0),IF(lang_op=4,VLOOKUP(B2,formuller,4,0),\"\")))","v":"IF"}]
[]
[]
[null,"Adı Soyadı","Sınav 1","Sınav 2","Sınav 3","Ortalama","Durum 1",null,"Adı Soyadı","Sınav 1","Sınav 2","Sınav 3","Durum 2"]
[null,"Efe YILDIZ",42,60,65,{"$f":"AVERAGE(C6:E6)","v":55.666666666666664},null,null,"Efe YILDIZ",45,60,65]
[null,"Egemen ATAY",75,68,80,{"$f":"AVERAGE(C7:E7)","v":74.333333333333329},null,null,"Egemen ATAY",75,68,80]
[null,"İlhan IŞIK",55,65,80,66.666666666666671,null,null,"İlhan IŞIK",55,65,80]
[null,"Fatih TANDOĞAN",99,65,44,69.333333333333329,null,null,"Fatih TANDOĞAN",99,65,44]
[null,"Seda DEĞİRMENCİ",58.99,55.8,61.9,58.896666666666668,null,null,"Seda DEĞİRMENCİ",58.99,55.8,61.9]
[null,"Mustafa EMEK",50,80,85,71.666666666666671,null,null,"Mustafa EMEK",50,80,85]
[null,{"$f":"IF(isim>0,CONCATENATE(TRIM(isim),\" \",UPPER(TRIM(soyisim))),\"İsmini Göremedik\")","v":"İsmini Göremedik"},75,85,95,85,null,null,{"$f":"IF(isim>0,CONCATENATE(TRIM(isim),\" \",UPPER(TRIM(soyisim))),\"İsmini Göremedik\")","v":"İsmini Göremedik"},75,80,95]
[null,"Gökhan YAĞIZ",65,60,77,67.333333333333329,null,null,"Gökhan YAĞIZ",65,60,77]
[null,"Yasemin TURGUT",74,78,27,59.666666666666664,null,null,"Yasemin TURGUT",74,78,27]
[]
[null,{"$f":"IFERROR(_xlfn.FORMULATEXT(G6),\"\")","v":""},null,null,null,null,null,null,{"$f":"IFERROR(_xlfn.FORMULATEXT(M6),\"\")","v":""}]
[]
[]
[null,{"$f":"IngFormul(G6)","v":""},null,null,null,null,null,null,{"$f":"IF(M6>0,I23,\"\")","v":""}]
[]
[]
[]
[null,null,null,null,null,null,null,null," =IF(AVERAGE(J6:L6)>=60,\"Geçti\",\"Kaldı\")"]

{"sheet":"EğerÖrnek3","index":19,"n_rows":55,"n_cols":32,"rows_kept":55,"cut":false,"hidden":false,"merged":[]}
[]
[null,"EĞER",{"$f":"IF(lang_op=1,\"\",IF(lang_op=2,\"/ İngilizce Karşılığı ---->\",IF(lang_op=3,\"/ Fransızca Karşılığı ---->\",\"/ Almanca Karşılığı ---->\")))","v":"/ İngilizce Karşılığı ---->"},null,{"$f":"IF(lang_op=2,VLOOKUP(B2,formuller,2,0),IF(lang_op=3,VLOOKUP(B2,formuller,3,0),IF(lang_op=4,VLOOKUP(B2,formuller,4,0),\"\")))","v":"IF"}]
[]
[]
[null,"Satış Temsilcisi","Bölge","Satış Tutarı","Prim Oranı","Prim Tutarı",null,null,"Satış Tutarı",null,"Prim Oranı"]
[null,"Efe YILDIZ","Akdeniz",122844,null,{"$f":"D6*E6","v":0},null,null,45000,"<",0,null,null,null,null,null,null,null,null,null,null,null,null,null,null,null,null,null,{"$f":"E6","v":0},0.1,{"$f":"AC6=AD6","v":false},{"$f":"IF(AND(AE6,AE7,AE8,AE9),1,0)","v":0}]
[null,"Egemen ATAY","Ege",72412,null,0,null,null,45000,">",0.05,null,null,null,null,null,null,null,null,null,null,null,null,null,null,null,null,null,{"$f":"E7","v":0},0.08,{"$f":"AC7=AD7","v":false}]
[null,"İlhan IŞIK","İç Anadolu",45919,null,0,null,null,60000,">",0.08,null,null,null,null,null,null,null,null,null,null,null,null,null,null,null,null,null,{"$f":"E8","v":0},0.05,{"$f":"AC8=AD8","v":false}]
[null,"Fatih TANDOĞAN","Marmara",35689,null,0,null,null,90000,">",0.1,null,null,null,null,null,null,null,null,null,null,null,null,null,null,null,null,null,{"$f":"E9","v":0},0,{"$f":"AC9=AD9","v":true}]
[null,"Seda DEĞİRMENCİ","Ege",68782,null,0]
[null,"Mustafa EMEK","Ege",146889,null,0,null,{"$f":"IFERROR(_xlfn.FORMULATEXT(E6),\"\")","v":""}]
[null,"Neslihan YILMAZ","Güneydoğu Anadolu",76474,null,0]
[null,"Gökhan YAĞIZ","Ege",102011,null,0]
[null,"Yasemin TURGUT","Karadeniz",85863,null,0,null,{"$f":"IngFormul(E6)","v":""}]
[null,"Emin TEMEL","Marmara",177556,null,0]
[null,"Hayri ÖZEL","Doğu Anadolu",175712,null,0]
[null,"Can YILDIZ","Karadeniz",127952,null,0]
[null,"Berkay YALÇIN","İç Anadolu",169763,null,0]
[null,"Eren HASANOĞLU","Karadeniz",90941,null,0]
[null,"Ayşen ÇAKIR","Ege",104907,null,0]
[null,"Serdar ALADAĞ","Güneydoğu Anadolu",39474,null,0]
[null,"Emel YAŞİN","Doğu Anadolu",133368,null,0]
[null,{"$f":"IF(isim>0,CONCATENATE(TRIM(isim),\" \",UPPER(TRIM(soyisim))),\"İsmini Göremedik\")","v":"İsmini Göremedik"},"Marmara",131514,null,0]
[null,"Kemalettin TAN","Ege",111146,null,0]
[null,"Sevim SARPER","Marmara",176391,null,0]
[null,"Ayşe UYAN","Marmara",64015,null,0]
[null,"Engin AYDOĞAN","Marmara",40211,null,0]
[null,"Ayla KARA","Ege",87324,null,0]
[null,"Bülent AYDOĞAN","Güneydoğu Anadolu",75801,null,0]
[null,"Hakan DUMAN","Karadeniz",50202,null,0]
[null,"Efe YILDIZ","Akdeniz",88161,null,0]
[null,"Egemen ATAY","Ege",113723,null,0]
[null,"İlhan IŞIK","İç Anadolu",151542,null,0]
[null,"Fatih TANDOĞAN","Marmara",114751,null,0]
[null,"Seda DEĞİRMENCİ","Ege",54748,null,0]
[null,"Mustafa EMEK","Ege",109347,null,0]
[null,"Neslihan YILMAZ","Güneydoğu Anadolu",69979,null,0]
[null,"Gökhan YAĞIZ","Ege",57125,null,{"$f":"D38*E38","v":0}]
[null,"Yasemin TURGUT","Karadeniz",165033,null,0]
[null,"Emin TEMEL","Marmara",96199,null,0]
[null,"Hayri ÖZEL","Doğu Anadolu",63193,null,0]
[null,"Can YILDIZ","Karadeniz",90896,null,0]
[null,"Berkay YALÇIN","İç Anadolu",110257,null,0]
[null,"Eren HASANOĞLU","Karadeniz",82987,null,0]
[null,"Ayşen ÇAKIR","Ege",116121,null,0]
[null,"Serdar ALADAĞ","Güneydoğu Anadolu",64065,null,0]
[null,"Emel YAŞİN","Doğu Anadolu",90933,null,0]
[null,{"$f":"IF(isim>0,CONCATENATE(TRIM(isim),\" \",UPPER(TRIM(soyisim))),\"İsmini Göremedik\")","v":"İsmini Göremedik"},"Marmara",90063,null,0]
[null,"Kemalettin TAN","Ege",120211,null,0]
[null,"Sevim SARPER","Marmara",49060,null,0]
[null,"Ayşe UYAN","Marmara",167219,null,0]
[null,"Engin AYDOĞAN","Marmara",57695,null,0]
[null,"Ayla KARA","Ege",157762,null,0]
[null,"Bülent AYDOĞAN","Güneydoğu Anadolu",126646,null,0]
[null,"Hakan DUMAN","Karadeniz",119302,null,0]

{"sheet":"ÇokEğer","index":20,"n_rows":55,"n_cols":11,"rows_kept":55,"cut":false,"hidden":false,"merged":[]}
[]
[null,"ÇOKEĞER",{"$f":"IF(lang_op=1,\"\",IF(lang_op=2,\"/ İngilizce Karşılığı ---->\",IF(lang_op=3,\"/ Fransızca Karşılığı ---->\",\"/ Almanca Karşılığı ---->\")))","v":"/ İngilizce Karşılığı ---->"},null,{"$f":"IF(lang_op=2,VLOOKUP(B2,formuller,2,0),IF(lang_op=3,VLOOKUP(B2,formuller,3,0),IF(lang_op=4,VLOOKUP(B2,formuller,4,0),\"\")))","v":"IFS"}]
[]
[]
[null,"Satış Temsilcisi","Bölge","Satış Tutarı","Prim Oranı","Prim Tutarı",null,null,"Satış Tutarı",null,"Prim Oranı"]
[null,"Efe YILDIZ","Akdeniz",122844,null,{"$f":"D6*E6","v":0},null,null,45000,"<",0]
[null,"Egemen ATAY","Ege",72412,null,0,null,null,45000,">=",0.05]
[null,"İlhan IŞIK","İç Anadolu",45919,null,0,null,null,60000,">=",0.08]
[null,"Fatih TANDOĞAN","Marmara",35689,null,0,null,null,90000,">=",0.1]
[null,"Seda DEĞİRMENCİ","Ege",68782,null,0]
[null,"Mustafa EMEK","Ege",146889,null,0,null,{"$f":"IFERROR(_xlfn.FORMULATEXT(E6),\"\")","v":""}]
[null,"Neslihan YILMAZ","Güneydoğu Anadolu",76474,null,0]
[null,"Gökhan YAĞIZ","Ege",102011,null,0]
[null,"Yasemin TURGUT","Karadeniz",85863,null,0,null,{"$f":"IngFormul(E6)","v":""}]
[null,"Emin TEMEL","Marmara",177556,null,0]
[null,"Hayri ÖZEL","Doğu Anadolu",175712,null,0]
[null,"Can YILDIZ","Karadeniz",127952,null,0]
[null,"Berkay YALÇIN","İç Anadolu",169763,null,0]
[null,"Eren HASANOĞLU","Karadeniz",90941,null,0]
[null,"Ayşen ÇAKIR","Ege",104907,null,0]
[null,"Serdar ALADAĞ","Güneydoğu Anadolu",39474,null,0]
[null,"Emel YAŞİN","Doğu Anadolu",133368,null,0]
[null,{"$f":"IF(isim>0,CONCATENATE(TRIM(isim),\" \",UPPER(TRIM(soyisim))),\"İsmini Göremedik\")","v":"İsmini Göremedik"},"Marmara",131514,null,0]
[null,"Kemalettin TAN","Ege",111146,null,0]
[null,"Sevim SARPER","Marmara",176391,null,0]
[null,"Ayşe UYAN","Marmara",64015,null,0]
[null,"Engin AYDOĞAN","Marmara",40211,null,0]
[null,"Ayla KARA","Ege",87324,null,0]
[null,"Bülent AYDOĞAN","Güneydoğu Anadolu",75801,null,0]
[null,"Hakan DUMAN","Karadeniz",50202,null,0]
[null,"Efe YILDIZ","Akdeniz",88161,null,0]
[null,"Egemen ATAY","Ege",113723,null,0]
[null,"İlhan IŞIK","İç Anadolu",151542,null,0]
[null,"Fatih TANDOĞAN","Marmara",114751,null,0]
[null,"Seda DEĞİRMENCİ","Ege",54748,null,0]
[null,"Mustafa EMEK","Ege",109347,null,0]
[null,"Neslihan YILMAZ","Güneydoğu Anadolu",69979,null,0]
[null,"Gökhan YAĞIZ","Ege",57125,null,0]
[null,"Yasemin TURGUT","Karadeniz",165033,null,0]
[null,"Emin TEMEL","Marmara",96199,null,0]
[null,"Hayri ÖZEL","Doğu Anadolu",63193,null,0]
[null,"Can YILDIZ","Karadeniz",90896,null,0]
[null,"Berkay YALÇIN","İç Anadolu",110257,null,0]
[null,"Eren HASANOĞLU","Karadeniz",82987,null,0]
[null,"Ayşen ÇAKIR","Ege",116121,null,0]
[null,"Serdar ALADAĞ","Güneydoğu Anadolu",64065,null,0]
[null,"Emel YAŞİN","Doğu Anadolu",90933,null,0]
[null,{"$f":"IF(isim>0,CONCATENATE(TRIM(isim),\" \",UPPER(TRIM(soyisim))),\"İsmini Göremedik\")","v":"İsmini Göremedik"},"Marmara",90063,null,0]
[null,"Kemalettin TAN","Ege",120211,null,0]
[null,"Sevim SARPER","Marmara",49060,null,0]
[null,"Ayşe UYAN","Marmara",167219,null,0]
[null,"Engin AYDOĞAN","Marmara",57695,null,0]
[null,"Ayla KARA","Ege",157762,null,0]
[null,"Bülent AYDOĞAN","Güneydoğu Anadolu",126646,null,0]
[null,"Hakan DUMAN","Karadeniz",119302,null,0]

{"sheet":"VE-YADA","index":21,"n_rows":60,"n_cols":15,"rows_kept":60,"cut":false,"hidden":false,"merged":[[19,10,19,14],[4,7,5,7],[8,13,9,13],[5,13,6,13],[5,14,6,14],[8,14,9,14]]}
[]
[null,"VE",{"$f":"IF(lang_op=1,\"\",IF(lang_op=2,\"/ İngilizce Karşılığı ---->\",IF(lang_op=3,\"/ Fransızca Karşılığı ---->\",\"/ Almanca Karşılığı ---->\")))","v":"/ İngilizce Karşılığı ---->"},null,{"$f":"IF(lang_op=2,VLOOKUP(B2,formuller,2,0),IF(lang_op=3,VLOOKUP(B2,formuller,3,0),IF(lang_op=4,VLOOKUP(B2,formuller,4,0),\"\")))","v":"AND"}]
[null,"YADA",{"$f":"IF(lang_op=1,\"\",IF(lang_op=2,\"/ İngilizce Karşılığı ---->\",IF(lang_op=3,\"/ Fransızca Karşılığı ---->\",\"/ Almanca Karşılığı ---->\")))","v":"/ İngilizce Karşılığı ---->"},null,{"$f":"IF(lang_op=2,VLOOKUP(B3,formuller,2,0),IF(lang_op=3,VLOOKUP(B3,formuller,3,0),IF(lang_op=4,VLOOKUP(B3,formuller,4,0),\"\")))","v":"OR"}]
[]
[null,null,null,null,null,null,null,3]
[null,"Satış Temsilcisi","Ürün","Satış Tutarı","Satış Adedi",1,2,null,null,"Ürün","Adet",null,"İndirim Oranı",{"$f":"E2","v":"AND"},1]
[null,"Efe YILDIZ","Asus",60310,37,null,null,null,null,"Asus",15,null,0.1]
[null,"Egemen ATAY","HP",64125,45]
[null,"İlhan IŞIK","Lenovo",77645,53,null,null,null,null,"Ürün","Ürün",null,"İndirim Oranı",{"$f":"E3","v":"OR"},2]
[null,"Fatih TANDOĞAN","Asus",19560,12,null,null,null,null,"Dell","MSI",null,0.15]
[null,"Seda DEĞİRMENCİ","MSI",95400,45]
[null,"Mustafa EMEK","Dell",78720,48]
[null,"Neslihan YILMAZ","HP",89775,63,null,null,null,null,1,{"$f":"IFERROR(_xlfn.FORMULATEXT(F7),\"\")","v":""}]
[null,"Gökhan YAĞIZ","Lenovo",82040,56]
[null,"Yasemin TURGUT","HP",66975,47]
[null,{"$f":"IF(isim>0,CONCATENATE(TRIM(isim),\" \",UPPER(TRIM(soyisim))),\"İsmini Göremedik\")","v":"İsmini Göremedik"},"Asus",53790,33,null,null,null,null,1,{"$f":"FormuluIngilizceyeCevir(F7)","v":""}]
[null,"Hayri ÖZEL","Dell",93480,57]
[null,"Can YILDIZ","Asus",40750,25]
[null,"Berkay YALÇIN","Asus",48900,30,null,null,null,null,2,{"$f":"IFERROR(_xlfn.FORMULATEXT(G7),\"\")","v":""}]
[null,"Eren HASANOĞLU","MSI",144160,68]
[null,"Ayşen ÇAKIR","Dell",106600,65]
[null,"Serdar ALADAĞ","HP",69825,49,null,null,null,null,2,{"$f":"FormuluIngilizceyeCevir(G7)","v":""}]
[null,"Emel YAŞİN","Lenovo",43950,30]
[null,"Yıldırım BOZKURT","Dell",72160,44]
[null,"Kemalettin TAN","Asus",104320,64]
[null,"Sevim SARPER","Asus",73350,45]
[null,"Ayşe UYAN","HP",75525,53]
[null,{"$f":"B16","v":"İsmini Göremedik"},"Lenovo",64460,44]
[null,"Ayla KARA","Dell",44280,27]
[null,"Bülent AYDOĞAN","HP",58425,41]
[null,"Hakan DUMAN","HP",59850,42]
[null,"Efe YILDIZ","Asus",60310,37]
[null,"Emel YAŞİN","Lenovo",39555,27]
[null,"Yıldırım BOZKURT","Dell",68880,42]
[null,"Kemalettin TAN","Asus",84760,52]
[null,"Sevim SARPER","Asus",32600,20]
[null,"Ayşe UYAN","HP",81225,57]
[null,"Engin AYDOĞAN","Lenovo",89365,61]
[null,"Ayla KARA","Dell",65600,40]
[null,"Bülent AYDOĞAN","HP",84075,59]
[null,"Hakan DUMAN","HP",31350,22]
[null,"Efe YILDIZ","Asus",107580,66]
[null,"Egemen ATAY","HP",25650,18]
[null,"İlhan IŞIK","Lenovo",52740,36]
[null,{"$f":"B28","v":"İsmini Göremedik"},"Asus",88020,54]
[null,"Seda DEĞİRMENCİ","MSI",78440,37]
[null,"Ayşe UYAN","HP",51300,36]
[null,"Engin AYDOĞAN","Lenovo",30765,21]
[null,"Ayla KARA","Dell",31160,19]
[null,"Bülent AYDOĞAN","HP",94050,66]
[null,"Hakan DUMAN","HP",29925,21]
[null,"Efe YILDIZ","Asus",104320,64]
[null,"Emel YAŞİN","Lenovo",49810,34]
[null,"Yıldırım BOZKURT","Dell",55760,34]
[null,"Kemalettin TAN","Asus",105950,65]
[null,"Berkay YALÇIN","Asus",117360,72]
[null,"Eren HASANOĞLU","MSI",133560,63]
[null,"Ayşen ÇAKIR","Dell",72160,44]
[null,"Serdar ALADAĞ","HP",28500,20]
[null,"Emel YAŞİN","Lenovo",68855,47]

{"sheet":"MetinselFonksiyonlar1","index":22,"n_rows":12,"n_cols":20,"rows_kept":12,"cut":false,"hidden":false,"merged":[]}
[]
[null,"Metinsel Fonksiyonlar - 1"]
[]
[]
[null,"Fonksiyon",{"$f":"IF(lang_op=1,\"\",IF(lang_op=2,\"İngilizce Karşılığı\",IF(lang_op=3,\"Fransızca Karşılığı\",\"Almanca Karşılığı\")))","v":"İngilizce Karşılığı"},"Metin",null,"Fonksiyon Sonucu"]
[null,"BÜYÜKHARF",{"$f":"IF(lang_op=2,VLOOKUP(B6,formuller,2,0),IF(lang_op=3,VLOOKUP(B6,formuller,3,0),IF(lang_op=4,VLOOKUP(B6,formuller,4,0),\"\")))","v":"UPPER"},"datahouse",null,null,null,{"$f":"IFERROR(_xlfn.FORMULATEXT(F6),\"\")","v":""},null,null,null,null,null,null,null,null,null,null,null,{"$f":"IngFormul(F6)","v":""}]
[null,"KÜÇÜKHARF",{"$f":"IF(lang_op=2,VLOOKUP(B7,formuller,2,0),IF(lang_op=3,VLOOKUP(B7,formuller,3,0),IF(lang_op=4,VLOOKUP(B7,formuller,4,0),\"\")))","v":"LOWER"},"MICROSOFT",null,null,null,{"$f":"IFERROR(_xlfn.FORMULATEXT(F7),\"\")","v":""},null,null,null,null,null,null,null,null,null,null,null,{"$f":"IngFormul(F7)","v":""}]
[null,"YAZIM.DÜZENİ","PROPER","office ileri",null,null,null,"",null,null,null,null,null,null,null,null,null,null,null,{"$f":"IngFormul(F8)","v":""}]
[null,"KIRP","TRIM","     excel          eğitimi      ",null,null,null,"",null,null,null,null,null,null,null,null,null,null,null,{"$f":"IngFormul(F9)","v":""}]
[null,"BİRLEŞTİR","CONCATENATE","DataHouse",null,null,null,"",null,null,null,null,null,null,null,null,null,null,null,{"$f":"IngFormul(F10)","v":""}]
[null,"METİNBİRLEŞTİR","TEXTJOIN","DataHouse",null,null,null,"",null,null,null,null,null,null,null,null,null,null,null,{"$f":"IngFormul(F11)","v":""}]
[null,"ARALIKBİRLEŞTİR","CONCAT","DataHouse",null,null,null,"",null,null,null,null,null,null,null,null,null,null,null,{"$f":"IngFormul(F12)","v":""}]

{"sheet":"Metinsel Fonksiyonlar 2","index":23,"n_rows":74,"n_cols":36,"rows_kept":74,"cut":false,"hidden":false,"merged":[]}
[]
[null,"Metinsel Fonksiyonlar - 2"]
[]
[]
[null,"Fonksiyon",{"$f":"IF(lang_op=1,\"\",IF(lang_op=2,\"İngilizce Karşılığı\",IF(lang_op=3,\"Fransızca Karşılığı\",\"Almanca Karşılığı\")))","v":"İngilizce Karşılığı"},"Metin","Fonksiyon Sonucu"]
[null,"SOLDAN",{"$f":"IF(lang_op=2,VLOOKUP(B6,formuller,2,0),IF(lang_op=3,VLOOKUP(B6,formuller,3,0),IF(lang_op=4,VLOOKUP(B6,formuller,4,0),\"\")))","v":"LEFT"},"Excel Eğitimi",null,null,{"$f":"IFERROR(_xlfn.FORMULATEXT(E6),\"\")","v":""},null,null,null,null,null,null,null,null,null,null,null,null,null,null,null,null,null,null,null,null,null,null,null,null,null,null,null,null,{"$f":"IngFormul(E6)","v":""}]
[]
[null,"SAĞDAN",{"$f":"IF(lang_op=2,VLOOKUP(B8,formuller,2,0),IF(lang_op=3,VLOOKUP(B8,formuller,3,0),IF(lang_op=4,VLOOKUP(B8,formuller,4,0),\"\")))","v":"RIGHT"},"Excel Eğitimi",null,null,{"$f":"IFERROR(_xlfn.FORMULATEXT(E8),\"\")","v":""},null,null,null,null,null,null,null,null,null,null,null,null,null,null,null,null,null,null,null,null,null,null,null,null,null,null,null,null,{"$f":"IngFormul(E8)","v":""}]
[null,null,null,null,null,null,null,null,null,null,null,null,null,null,null,null,null,null,null,null,null,null,null,null,null,null,null,null,null,null,null,null,null,null,null,{"$f":"IngFormul(E9)","v":""}]
[null,"PARÇAAL",{"$f":"IF(lang_op=2,VLOOKUP(B10,formuller,2,0),IF(lang_op=3,VLOOKUP(B10,formuller,3,0),IF(lang_op=4,VLOOKUP(B10,formuller,4,0),\"\")))","v":"MID"},"Excel Eğitimi",null,null,{"$f":"IFERROR(_xlfn.FORMULATEXT(E10),\"\")","v":""},null,null,null,null,null,null,null,null,null,null,null,null,null,null,null,null,null,null,null,null,null,null,null,null,null,null,null,null,{"$f":"IngFormul(E10)","v":""}]
[null,null,null,null,null,null,null,null,null,null,null,null,null,null,null,null,null,null,null,null,null,null,null,null,null,null,null,null,null,null,null,null,null,null,null,{"$f":"IngFormul(E11)","v":""}]
[null,"MBUL",{"$f":"IF(lang_op=2,VLOOKUP(B12,formuller,2,0),IF(lang_op=3,VLOOKUP(B12,formuller,3,0),IF(lang_op=4,VLOOKUP(B12,formuller,4,0),\"\")))","v":"SEARCH"},"Excel Eğitimi",null,null,{"$f":"IFERROR(_xlfn.FORMULATEXT(E12),\"\")","v":""},null,null,null,null,null,null,null,null,null,null,null,null,null,null,null,null,null,null,null,null,null,null,null,null,null,null,null,null,{"$f":"IngFormul(E12)","v":""}]
[null,null,null,null,null,null,null,null,null,null,null,null,null,null,null,null,null,null,null,null,null,null,null,null,null,null,null,null,null,null,null,null,null,null,null,{"$f":"IngFormul(E13)","v":""}]
[null,"UZUNLUK",{"$f":"IF(lang_op=2,VLOOKUP(B14,formuller,2,0),IF(lang_op=3,VLOOKUP(B14,formuller,3,0),IF(lang_op=4,VLOOKUP(B14,formuller,4,0),\"\")))","v":"LEN"},"Excel Eğitimi",null,null,{"$f":"IFERROR(_xlfn.FORMULATEXT(E14),\"\")","v":""},null,null,null,null,null,null,null,null,null,null,null,null,null,null,null,null,null,null,null,null,null,null,null,null,null,null,null,null,{"$f":"IngFormul(E14)","v":""}]
[null,null,null,null,null,null,null,null,null,null,null,null,{"$f":"IngFormul(E15)","v":""}]
[]
[]
[]
[]
[]
[]
[]
[]
[]
[]
[]
[]
[]
[]
[null,"Üretici Kod","Kontrol",null,"Kod","Marka","İşlemci","RAM",null,"Kod","Marka",null,"Kod","İşlemci",null,"Kod","RAM"]
[null,2015685,null,null,"AR-775-1",{"$f":"IF(LEFT(E31,1)=$J$31,$K$31,IF(LEFT(E31,1)=$J$32,$K$32,$K$33))","v":"Asus"},{"$f":"IF(MID(E31,4,3)=\"675\",$N$31,IF(MID(E31,4,3)=\"775\",$N$32,$N$33))","v":"i5"},{"$f":"IF(RIGHT(E31,1)=\"1\",$Q$31,IF(RIGHT(E31,1)=\"2\",$Q$32,$Q$33))","v":"8 GB"},null,"A","Asus",null,675,"i3",null,1,"8 GB"]
[null,8085769,null,null,"DG-875-3","Dell","i7","16 GB",null,"H","HP",null,775,"i5",null,2,"12 GB"]
[null,2115856,null,null,"HW-775-2","HP","i5","12 GB",null,"D","Dell",null,875,"i7",null,3,"16 GB"]
[null,2015942,null,null,"DR-875-3","Dell","i7","16 GB"]
[null,20770155,null,null,"AG-675-1","Asus","i3","8 GB"]
[null,3018123,null,null,"DW-775-3","Dell","i5","16 GB"]
[null,2016214]
[null,2019378]
[null,706495]
[null,2012553]
[null,281616]
[null,20165749]
[null,3016845]
[null,40169157]
[null,2017029]
[null,2119134]
[null,2017236]
[null,607342]
[null,2017411]
[]
[]
[]
[]
[]
[]
[]
[]
[]
[null,"Fonksiyon",{"$f":"IF(lang_op=1,\"\",IF(lang_op=2,\"İngilizce Karşılığı\",IF(lang_op=3,\"Fransızca Karşılığı\",\"Almanca Karşılığı\")))","v":"İngilizce Karşılığı"},"Metin","Fonksiyon Sonucu"]
[null,"DEĞİŞTİR",{"$f":"IF(lang_op=2,VLOOKUP(B60,formuller,2,0),IF(lang_op=3,VLOOKUP(B60,formuller,3,0),IF(lang_op=4,VLOOKUP(B60,formuller,4,0),\"\")))","v":"REPLACE"},"Excel Eğitimi",{"$f":"REPLACE(D60,1,5,\"PowerPoint\")","v":"PowerPoint Eğitimi"},null,null,{"$f":"IFERROR(_xlfn.FORMULATEXT(E60),\"\")","v":"=REPLACE(D60;1;5;\"PowerPoint\")"},null,null,null,null,null,null,{"$f":"IngFormul(E60)","v":"=REPLACE(D60,1,5,\"PowerPoint\")"}]
[]
[null,"METİNBÖL",{"$f":"IF(lang_op=2,VLOOKUP(B62,formuller,2,0),IF(lang_op=3,VLOOKUP(B62,formuller,3,0),IF(lang_op=4,VLOOKUP(B62,formuller,4,0),\"\")))","v":"TEXTSPLIT"},"Excel Eğitimi",{"$f":"_xlfn.TEXTSPLIT(D62,\" \")","v":"Excel"},"Eğitimi",null,{"$f":"IFERROR(_xlfn.FORMULATEXT(E62),\"\")","v":"=TEXTSPLIT(D62;\" \")"},null,null,null,null,null,null,{"$f":"IngFormul(E62)","v":"=TEXTSPLIT(D62,\" \")"}]
[]
[null,"ÖZDEŞ",{"$f":"IF(lang_op=2,VLOOKUP(B64,formuller,2,0),IF(lang_op=3,VLOOKUP(B64,formuller,3,0),IF(lang_op=4,VLOOKUP(B64,formuller,4,0),\"\")))","v":"EXACT"},"Excel Eğitimi",{"$f":"EXACT(D64,\"excel eğitimi\")","v":false},null,null,{"$f":"IFERROR(_xlfn.FORMULATEXT(E64),\"\")","v":"=EXACT(D64;\"excel eğitimi\")"},null,null,null,null,null,null,{"$f":"IngFormul(E64)","v":"=EXACT(D64,\"excel eğitimi\")"}]
[]
[null,"YİNELE",{"$f":"IF(lang_op=2,VLOOKUP(B66,formuller,2,0),IF(lang_op=3,VLOOKUP(B66,formuller,3,0),IF(lang_op=4,VLOOKUP(B66,formuller,4,0),\"\")))","v":"REPT"},"Excel Eğitimi",{"$f":"REPT(\"Excel\",3)","v":"ExcelExcelExcel"},null,null,{"$f":"IFERROR(_xlfn.FORMULATEXT(E66),\"\")","v":"=REPT(\"Excel\";3)"},null,null,null,null,null,null,null,{"$f":"IngFormul(E66)","v":"=REPT(\"Excel\",3)"}]
[]
[null,"YERİNEKOY",{"$f":"IF(lang_op=2,VLOOKUP(B68,formuller,2,0),IF(lang_op=3,VLOOKUP(B68,formuller,3,0),IF(lang_op=4,VLOOKUP(B68,formuller,4,0),\"\")))","v":"SUBSTITUTE"},"Excel Eğitimi",{"$f":"SUBSTITUTE(D68,\"Excel\",\"PowerPoint\")","v":"PowerPoint Eğitimi"},null,null,{"$f":"IFERROR(_xlfn.FORMULATEXT(E68),\"\")","v":"=SUBSTITUTE(D68;\"Excel\";\"PowerPoint\")"},null,null,null,null,null,null,null,{"$f":"IngFormul(E68)","v":"=SUBSTITUTE(D68,\"Excel\",\"PowerPoint\")"}]
[]
[null,"DİLİALGILA",{"$f":"IF(lang_op=2,VLOOKUP(B70,formuller,2,0),IF(lang_op=3,VLOOKUP(B70,formuller,3,0),IF(lang_op=4,VLOOKUP(B70,formuller,4,0),\"\")))","v":"DETECTLANGUAGE"},"Excel Eğitimi",{"$f":"_xlfn.DETECTLANGUAGE(D70)","v":"tr"},null,null,{"$f":"IFERROR(_xlfn.FORMULATEXT(E70),\"\")","v":"=DETECTLANGUAGE(D70)"},null,null,null,null,null,null,null,{"$f":"IngFormul(E70)","v":"=DETECTLANGUAGE(D70)"}]
[]
[null,"DİLÇEVİR",{"$f":"IF(lang_op=2,VLOOKUP(B72,formuller,2,0),IF(lang_op=3,VLOOKUP(B72,formuller,3,0),IF(lang_op=4,VLOOKUP(B72,formuller,4,0),\"\")))","v":"TRANSLATE"},"Excel Eğitimi",{"$f":"_xlfn.TRANSLATE(D72,\"tr\",\"en\")","v":"Excel Tutorial"},null,null,{"$f":"IFERROR(_xlfn.FORMULATEXT(E72),\"\")","v":"=TRANSLATE(D72;\"tr\";\"en\")"},null,null,null,null,null,null,null,{"$f":"IngFormul(E72)","v":"=TRANSLATE(D72,\"tr\",\"en\")"}]
[]
[null,null,null,"Excel Eğitimi",{"$f":"_xlfn.TRANSLATE(D74,_xlfn.DETECTLANGUAGE(D74),\"en\")","v":"Excel Tutorial"},null,null,{"$f":"IFERROR(_xlfn.FORMULATEXT(E74),\"\")","v":"=TRANSLATE(D74;DETECTLANGUAGE(D74);\"en\")"},null,null,null,null,null,null,null,{"$f":"IngFormul(E74)","v":"=TRANSLATE(D74,DETECTLANGUAGE(D74),\"en\")"}]

{"sheet":"VeritabanıFonksiyonları1","index":24,"n_rows":111,"n_cols":11,"rows_kept":111,"cut":false,"hidden":false,"merged":[[13,6,13,7],[13,9,13,10],[15,6,15,7],[15,9,15,10]]}
[]
[null,"ETOPLA",{"$f":"IF(lang_op=1,\"\",IF(lang_op=2,\"/ İngilizce Karşılığı ---->\",IF(lang_op=3,\"/ Fransızca Karşılığı ---->\",\"/ Almanca Karşılığı ---->\")))","v":"/ İngilizce Karşılığı ---->"},null,null,{"$f":"IF(lang_op=2,VLOOKUP(B2,formuller,2,0),IF(lang_op=3,VLOOKUP(B2,formuller,3,0),IF(lang_op=4,VLOOKUP(B2,formuller,4,0),\"\")))","v":"SUMIF"}]
[null,"EĞERSAY",{"$f":"IF(lang_op=1,\"\",IF(lang_op=2,\"/ İngilizce Karşılığı ---->\",IF(lang_op=3,\"/ Fransızca Karşılığı ---->\",\"/ Almanca Karşılığı ---->\")))","v":"/ İngilizce Karşılığı ---->"},null,null,{"$f":"IF(lang_op=2,VLOOKUP(B3,formuller,2,0),IF(lang_op=3,VLOOKUP(B3,formuller,3,0),IF(lang_op=4,VLOOKUP(B3,formuller,4,0),\"\")))","v":"COUNTIF"}]
[]
[null,"Satış Temsilcisi","Bölge","Ürün","Satış Adedi",null,"Bölge","Toplam Adet",null,"Bölge","Tekrar Sayısı"]
[null,"Efe YILDIZ","Akdeniz","Asus",145,null,"Akdeniz",null,null,"Akdeniz"]
[null,"Egemen ATAY","Ege","HP",119,null,"Doğu Anadolu",null,null,"Doğu Anadolu"]
[null,"İlhan IŞIK","İç Anadolu","Lenovo",82,null,"Ege",null,null,"Ege"]
[null,"Fatih TANDOĞAN","Marmara","Asus",28,null,"Güneydoğu Anadolu",null,null,"Güneydoğu Anadolu"]
[null,"Seda DEĞİRMENCİ","Ege","MSI",140,null,"İç Anadolu",null,null,"İç Anadolu"]
[null,"Mustafa EMEK","Akdeniz","Dell",58,null,"Karadeniz",null,null,"Karadeniz"]
[null,"Neslihan YILMAZ","Güneydoğu Anadolu","HP",153,null,"Marmara",null,null,"Marmara"]
[null,"Gökhan YAĞIZ","Ege","Lenovo",104]
[null,"Yasemin TURGUT","Karadeniz","HP",60,null,{"$f":"IFERROR(_xlfn.FORMULATEXT(H6),\"\")","v":""},null,null,{"$f":"IFERROR(_xlfn.FORMULATEXT(K6),\"\")","v":""}]
[null,{"$f":"IF(isim>0,CONCATENATE(TRIM(isim),\" \",UPPER(TRIM(soyisim))),\"İsmini Göremedik\")","v":"İsmini Göremedik"},"Marmara","Asus",228]
[null,"Hayri ÖZEL","Doğu Anadolu","Dell",100,null,{"$f":"IngFormul(H6)","v":""},null,null,{"$f":"IngFormul(K6)","v":""}]
[null,"Can YILDIZ","Karadeniz","Asus",138]
[null,"Berkay YALÇIN","İç Anadolu","Asus",55]
[null,"Eren HASANOĞLU","Karadeniz","MSI",100,null,"Toplam Adet","Toplam Adet",null,"> 150 ","Dell"]
[null,"Ayşen ÇAKIR","Ege","Dell",29]
[null,"Serdar ALADAĞ","Güneydoğu Anadolu","HP",123]
[null,"Emel YAŞİN","Doğu Anadolu","Lenovo",129]
[null,"Yıldırım BOZKURT","Karadeniz","Dell",119]
[null,"Kemalettin TAN","Ege","Asus",94]
[null,"Sevim SARPER","Doğu Anadolu","Asus",158]
[null,"Ayşe UYAN","Marmara","HP",106]
[null,"Engin AYDOĞAN","Marmara","Lenovo",151]
[null,"Ayla KARA","Ege","Dell",96]
[null,"Bülent AYDOĞAN","Güneydoğu Anadolu","HP",71]
[null,"Hakan DUMAN","Karadeniz","HP",128]
[null,"Efe YILDIZ","Akdeniz","Asus",93]
[null,"Emel YAŞİN","Doğu Anadolu","Lenovo",155]
[null,"Yıldırım BOZKURT","Karadeniz","Dell",41]
[null,"Kemalettin TAN","Ege","Asus",95]
[null,"Sevim SARPER","Akdeniz","Asus",91]
[null,{"$f":"IF(isim>0,CONCATENATE(TRIM(isim),\" \",UPPER(TRIM(soyisim))),\"İsmini Göremedik\")","v":"İsmini Göremedik"},"Marmara","HP",52]
[null,"Engin AYDOĞAN","Marmara","Lenovo",138]
[null,"Ayla KARA","Ege","Dell",69]
[null,"Bülent AYDOĞAN","Güneydoğu Anadolu","HP",138]
[null,"Hakan DUMAN","Karadeniz","HP",153]
[null,"Efe YILDIZ","Akdeniz","Asus",37]
[null,"Egemen ATAY","Ege","HP",57]
[null,"İlhan IŞIK","İç Anadolu","Lenovo",53]
[null,"Berkay YALÇIN","İç Anadolu","Asus",88]
[null,"Seda DEĞİRMENCİ","Ege","MSI",118]
[null,"Ayşe UYAN","Marmara","HP",127]
[null,"Engin AYDOĞAN","Doğu Anadolu","Lenovo",65]
[null,"Ayla KARA","Ege","Dell",99]
[null,"Bülent AYDOĞAN","Güneydoğu Anadolu","HP",71]
[null,"Hakan DUMAN","Karadeniz","HP",91]
[null,"Efe YILDIZ","Akdeniz","Asus",59]
[null,"Emel YAŞİN","Doğu Anadolu","Lenovo",148]
[null,"Yıldırım BOZKURT","Karadeniz","Dell",81]
[null,"Kemalettin TAN","Ege","Asus",135]
[null,"Berkay YALÇIN","İç Anadolu","Asus",137]
[null,"Eren HASANOĞLU","Karadeniz","MSI",61]
[null,"Ayşen ÇAKIR","Ege","Dell",54]
[null,"Serdar ALADAĞ","Güneydoğu Anadolu","HP",66]
[null,"Emel YAŞİN","Doğu Anadolu","Lenovo",127]
[null,"Efe YILDIZ","Akdeniz","Asus",50]
[null,"Egemen ATAY","Ege","HP",65]
[null,"İlhan IŞIK","İç Anadolu","Lenovo",75]
[null,"Fatih TANDOĞAN","Marmara","Asus",154]
[null,"Seda DEĞİRMENCİ","Ege","MSI",136]
[null,"Mustafa EMEK","Ege","Dell",30]
[null,"Neslihan YILMAZ","Güneydoğu Anadolu","Asus",60]
[null,"Gökhan YAĞIZ","Ege","Lenovo",54]
[null,"Yasemin TURGUT","Karadeniz","HP",40]
[null,"Ayşe UYAN","Akdeniz","HP",102]
[null,"Engin AYDOĞAN","Marmara","Lenovo",147]
[null,"Ayla KARA","Ege","Dell",153]
[null,"Bülent AYDOĞAN","Güneydoğu Anadolu","HP",33]
[null,"Hakan DUMAN","Karadeniz","HP",120]
[null,"Efe YILDIZ","Akdeniz","Asus",61]
[null,"Emel YAŞİN","Doğu Anadolu","HP",87]
[null,"Yıldırım BOZKURT","Karadeniz","Lenovo",118]
[null,"Kemalettin TAN","Ege","Asus",144]
[null,"Berkay YALÇIN","İç Anadolu","HP",27]
[null,"Eren HASANOĞLU","Karadeniz","MSI",91]
[null,"Ayşen ÇAKIR","Ege","Dell",83]
[null,"Serdar ALADAĞ","Güneydoğu Anadolu","HP",68]
[null,"Berkay YALÇIN","İç Anadolu","Lenovo",67]
[null,"Eren HASANOĞLU","Karadeniz","MSI",144]
[null,"Ayşen ÇAKIR","Ege","Dell",156]
[null,"Serdar ALADAĞ","Güneydoğu Anadolu","HP",75]
[null,"Emel YAŞİN","Doğu Anadolu","Lenovo",68]
[null,"Yıldırım BOZKURT","Karadeniz","Dell",92]
[null,"Kemalettin TAN","Ege","Asus",120]
[null,"Sevim SARPER","Marmara","Asus",47]
[null,"Ayşe UYAN","Marmara","HP",30]
[null,{"$f":"IF(isim>0,CONCATENATE(TRIM(isim),\" \",UPPER(TRIM(soyisim))),\"İsmini Göremedik\")","v":"İsmini Göremedik"},"Marmara","Lenovo",63]
[null,"Ayla KARA","Ege","Dell",115]
[null,"Bülent AYDOĞAN","Güneydoğu Anadolu","Lenovo",145]
[null,"Hakan DUMAN","Karadeniz","HP",98]
[null,"Efe YILDIZ","Akdeniz","Asus",154]
[null,"Emel YAŞİN","Akdeniz","Lenovo",72]
[null,"Berkay YALÇIN","İç Anadolu","MSI",67]
[null,"Eren HASANOĞLU","Akdeniz","MSI",144]
[null,"Ayşen ÇAKIR","Marmara","Dell",156]
[null,"Serdar ALADAĞ","Güneydoğu Anadolu","MSI",75]
[null,"Emel YAŞİN","İç Anadolu","MSI",68]
[null,"Yıldırım BOZKURT","Güneydoğu Anadolu","MSI",92]
[null,"Kemalettin TAN","İç Anadolu","MSI",120]
[null,"Sevim SARPER","Marmara","MSI",47]
[null,"Ayşe UYAN","Doğu Anadolu","MSI",30]
[null,"İsmini Göremedik","İç Anadolu","Dell",63]
[null,"Ayla KARA","Akdeniz","MSI",115]
[null,"Bülent AYDOĞAN","Güneydoğu Anadolu","Dell",145]
[null,"Hakan DUMAN","Doğu Anadolu","MSI",98]
[null,"Efe YILDIZ","Akdeniz","Asus",154]
[null,"Emel YAŞİN","Marmara","MSI",72]

{"sheet":"VeritabanıFonksiyonları2","index":25,"n_rows":115,"n_cols":9,"rows_kept":115,"cut":false,"hidden":false,"merged":[[12,6,12,8],[14,6,14,8]]}
[]
[null,"ÇOKETOPLA",{"$f":"IF(lang_op=1,\"\",IF(lang_op=2,\"/ İngilizce Karşılığı ---->\",IF(lang_op=3,\"/ Fransızca Karşılığı ---->\",\"/ Almanca Karşılığı ---->\")))","v":"/ İngilizce Karşılığı ---->"},null,null,{"$f":"IF(lang_op=2,VLOOKUP(B2,formuller,2,0),IF(lang_op=3,VLOOKUP(B2,formuller,3,0),IF(lang_op=4,VLOOKUP(B2,formuller,4,0),\"\")))","v":"SUMIFS"}]
[]
[null,"Satış Temsilcisi","Bölge","Ürün","Satış Adedi",null,"Bölge","Ürün","Toplam Adet"]
[null,"Efe YILDIZ","Akdeniz","Asus",145,null,"Akdeniz","Lenovo"]
[null,"Egemen ATAY","Ege","HP",119,null,"Ege",{"$f":"H5","v":"Lenovo"}]
[null,"İlhan IŞIK","İç Anadolu","Lenovo",82,null,"Marmara","Lenovo"]
[null,"Fatih TANDOĞAN","Marmara","Asus",28,null,"Karadeniz","Lenovo"]
[null,"Seda DEĞİRMENCİ","Ege","MSI",140,null,"İç Anadolu","Lenovo"]
[null,"Mustafa EMEK","Akdeniz","Dell",58,null,"Doğu Anadolu","Lenovo"]
[null,"Neslihan YILMAZ","Güneydoğu Anadolu","Dell",153,null,"Güneydoğu Anadolu","Lenovo"]
[null,"Gökhan YAĞIZ","Ege","Lenovo",104]
[null,"Yasemin TURGUT","İç Anadolu","HP",60,null,{"$f":"IFERROR(_xlfn.FORMULATEXT(I5),\"\")","v":""}]
[null,{"$f":"IF(isim>0,CONCATENATE(TRIM(isim),\" \",UPPER(TRIM(soyisim))),\"İsmini Göremedik\")","v":"İsmini Göremedik"},"Marmara","Asus",35]
[null,"Hayri ÖZEL","Doğu Anadolu","HP",100,null,{"$f":"IngFormul(I5)","v":""}]
[null,"Can YILDIZ","Karadeniz","Asus",138]
[null,"Berkay YALÇIN","İç Anadolu","Asus",55]
[null,"Eren HASANOĞLU","Karadeniz","MSI",100]
[null,"Ayşen ÇAKIR","Ege","Dell",29]
[null,"Serdar ALADAĞ","Güneydoğu Anadolu","HP",123]
[null,"Emel YAŞİN","Doğu Anadolu","Lenovo",129]
[null,"Yıldırım BOZKURT","Karadeniz","Dell",119]
[null,"Kemalettin TAN","Ege","Asus",94]
[null,"Sevim SARPER","Doğu Anadolu","Asus",158]
[null,"Ayşe UYAN","Marmara","HP",106]
[null,"Engin AYDOĞAN","Marmara","Lenovo",151]
[null,"Ayla KARA","Ege","Dell",96]
[null,"Bülent AYDOĞAN","Güneydoğu Anadolu","Asus",71]
[null,"Hakan DUMAN","Karadeniz","HP",128]
[null,"Efe YILDIZ","Akdeniz","Asus",93]
[null,"Emel YAŞİN","Doğu Anadolu","Lenovo",155]
[null,"Yıldırım BOZKURT","Karadeniz","Dell",41]
[null,"Kemalettin TAN","Ege","Asus",95]
[null,"Sevim SARPER","Akdeniz","Asus",91]
[null,{"$f":"IF(isim>0,CONCATENATE(TRIM(isim),\" \",UPPER(TRIM(soyisim))),\"İsmini Göremedik\")","v":"İsmini Göremedik"},"Marmara","HP",52]
[null,"Engin AYDOĞAN","Marmara","Lenovo",138]
[null,"Ayla KARA","Ege","Dell",69]
[null,"Bülent AYDOĞAN","Güneydoğu Anadolu","HP",138]
[null,"Hakan DUMAN","Karadeniz","HP",153]
[null,"Efe YILDIZ","Akdeniz","Asus",37]
[null,"Egemen ATAY","Ege","HP",57]
[null,"İlhan IŞIK","İç Anadolu","Lenovo",53]
[null,"Berkay YALÇIN","İç Anadolu","Asus",88]
[null,"Seda DEĞİRMENCİ","Ege","MSI",118]
[null,"Ayşe UYAN","Marmara","HP",127]
[null,"Engin AYDOĞAN","Doğu Anadolu","Dell",65]
[null,"Ayla KARA","Ege","Dell",99]
[null,"Bülent AYDOĞAN","Güneydoğu Anadolu","HP",71]
[null,"Hakan DUMAN","Karadeniz","HP",91]
[null,"Efe YILDIZ","Akdeniz","Asus",59]
[null,"Emel YAŞİN","Doğu Anadolu","Lenovo",148]
[null,"Yıldırım BOZKURT","Karadeniz","Dell",81]
[null,"Kemalettin TAN","Ege","Asus",135]
[null,"Berkay YALÇIN","İç Anadolu","Asus",137]
[null,"Eren HASANOĞLU","Karadeniz","MSI",61]
[null,"Ayşen ÇAKIR","Ege","Dell",54]
[null,"Serdar ALADAĞ","Güneydoğu Anadolu","HP",66]
[null,"Emel YAŞİN","Doğu Anadolu","Lenovo",127]
[null,"Efe YILDIZ","Akdeniz","Asus",50]
[null,"Egemen ATAY","Ege","HP",65]
[null,"İlhan IŞIK","İç Anadolu","Lenovo",75]
[null,"Fatih TANDOĞAN","Marmara","Asus",154]
[null,"Seda DEĞİRMENCİ","Ege","MSI",136]
[null,"Mustafa EMEK","Ege","Dell",30]
[null,"Neslihan YILMAZ","Güneydoğu Anadolu","HP",60]
[null,"Gökhan YAĞIZ","Ege","Lenovo",54]
[null,"Yasemin TURGUT","Karadeniz","HP",40]
[null,"Ayşe UYAN","Akdeniz","HP",102]
[null,"Engin AYDOĞAN","Marmara","Lenovo",147]
[null,"Ayla KARA","Ege","Dell",153]
[null,"Bülent AYDOĞAN","Güneydoğu Anadolu","HP",33]
[null,"Hakan DUMAN","Karadeniz","HP",120]
[null,"Efe YILDIZ","Akdeniz","Asus",61]
[null,"Emel YAŞİN","Doğu Anadolu","Lenovo",87]
[null,"Yıldırım BOZKURT","Karadeniz","Dell",118]
[null,"Kemalettin TAN","Ege","Asus",144]
[null,"Berkay YALÇIN","İç Anadolu","Asus",27]
[null,"Eren HASANOĞLU","Karadeniz","MSI",91]
[null,"Ayşen ÇAKIR","Ege","Dell",83]
[null,"Serdar ALADAĞ","Güneydoğu Anadolu","HP",68]
[null,"Berkay YALÇIN","İç Anadolu","Lenovo",67]
[null,"Eren HASANOĞLU","Karadeniz","MSI",144]
[null,"Ayşen ÇAKIR","Ege","Dell",156]
[null,"Serdar ALADAĞ","Güneydoğu Anadolu","HP",75]
[null,"Emel YAŞİN","Doğu Anadolu","Lenovo",68]
[null,"Yıldırım BOZKURT","Karadeniz","Dell",92]
[null,"Kemalettin TAN","Ege","Asus",120]
[null,"Sevim SARPER","Marmara","Asus",47]
[null,"Ayşe UYAN","Marmara","HP",30]
[null,{"$f":"IF(isim>0,CONCATENATE(TRIM(isim),\" \",UPPER(TRIM(soyisim))),\"İsmini Göremedik\")","v":"İsmini Göremedik"},"Marmara","Lenovo",63]
[null,"Ayla KARA","Ege","Dell",115]
[null,"Bülent AYDOĞAN","Güneydoğu Anadolu","HP",145]
[null,"Hakan DUMAN","Karadeniz","HP",98]
[null,"Efe YILDIZ","Akdeniz","Asus",154]
[null,"Emel YAŞİN","Akdeniz","Lenovo",72]
[null,"Efe YILDIZ","Akdeniz","Dell",145]
[null,"Egemen ATAY","Ege","Dell",119]
[null,"İlhan IŞIK","İç Anadolu","Dell",82]
[null,"Fatih TANDOĞAN","Marmara","Dell",28]
[null,"Seda DEĞİRMENCİ","Ege","Dell",140]
[null,"Mustafa EMEK","Akdeniz","Dell",58]
[null,"Neslihan YILMAZ","Doğu Anadolu","Dell",153]
[null,"Gökhan YAĞIZ","Ege","Dell",104]
[null,"Yasemin TURGUT","İç Anadolu","Dell",60]
[null,"Efe YILDIZ","Akdeniz","MSI",145]
[null,"Egemen ATAY","Ege","MSI",119]
[null,"İlhan IŞIK","İç Anadolu","MSI",82]
[null,"Fatih TANDOĞAN","Marmara","MSI",28]
[null,"Seda DEĞİRMENCİ","Ege","MSI",140]
[null,"Mustafa EMEK","Akdeniz","MSI",58]
[null,"Neslihan YILMAZ","Doğu Anadolu","MSI",153]
[null,"Gökhan YAĞIZ","Ege","Dell",104]
[null,"Yasemin TURGUT","Karadeniz","Lenovo",60]
[null,"Bülent AYDOĞAN","Güneydoğu Anadolu","MSI",145]
[null,"Bülent AYDOĞAN","Güneydoğu Anadolu","Lenovo",145]

{"sheet":"Pano1","index":26,"n_rows":42,"n_cols":27,"rows_kept":42,"cut":false,"hidden":true,"merged":[[3,12,4,12],[3,14,4,14]]}
[]
[]
[]
[null,"Ürün","Toplam Adet",null,null,null,"Toplam Adet",null,null,null,null,null,{"$f":"C13","v":"Lenovo"},null,"Tüm Bölgeler"]
[null,"Asus",{"$f":"SUMIF(VeritabanıFonksiyonları1!D:D,Pano1!B5,VeritabanıFonksiyonları1!E:E)","v":2525},{"$f":"_xlfn.RANK.EQ(C5,$C$5:$C$9)","v":1},1,{"$f":"INDEX($B$5:$B$9,MATCH(E5,$D$5:$D$9,0))","v":"Asus"},{"$f":"VLOOKUP(F5,$B$5:$C$9,2,0)","v":2525},null,null,null,null,null,null,null,null,null,null,null,null,null,null,null,"Satış Temsilcisi",null,"Bölge",null,"Ürün"]
[null,"HP",{"$f":"SUMIF(VeritabanıFonksiyonları1!D:D,Pano1!B6,VeritabanıFonksiyonları1!E:E)","v":2260},{"$f":"_xlfn.RANK.EQ(C6,$C$5:$C$9)","v":2},2,{"$f":"INDEX($B$5:$B$9,MATCH(E6,$D$5:$D$9,0))","v":"HP"},{"$f":"VLOOKUP(F6,$B$5:$C$9,2,0)","v":2260},null,null,null,null,null,"En Yüksek Satış Adedi\"",null,"En Yüksek Satış Adedi",null,null,null,null,null,null,null,"Efe YILDIZ",null,"Akdeniz",null,"Asus"]
[null,"Lenovo",{"$f":"SUMIF(VeritabanıFonksiyonları1!D:D,Pano1!B7,VeritabanıFonksiyonları1!E:E)","v":1961},{"$f":"_xlfn.RANK.EQ(C7,$C$5:$C$9)","v":3},3,{"$f":"INDEX($B$5:$B$9,MATCH(E7,$D$5:$D$9,0))","v":"Lenovo"},{"$f":"VLOOKUP(F7,$B$5:$C$9,2,0)","v":1961},null,null,null,null,null,{"$f":"_xlfn.MAXIFS(VeritabanıFonksiyonları1!E:E,VeritabanıFonksiyonları1!D:D,Pano1!C13)","v":155},null,{"$f":"MAX(VeritabanıFonksiyonları1!E:E)","v":228},null,null,null,null,null,null,null,"Egemen ATAY",null,"Ege",null,"HP"]
[null,"MSI",{"$f":"SUMIF(VeritabanıFonksiyonları1!D:D,Pano1!B8,VeritabanıFonksiyonları1!E:E)","v":1718},{"$f":"_xlfn.RANK.EQ(C8,$C$5:$C$9)","v":5},4,{"$f":"INDEX($B$5:$B$9,MATCH(E8,$D$5:$D$9,0))","v":"Dell"},{"$f":"VLOOKUP(F8,$B$5:$C$9,2,0)","v":1739},null,null,null,null,null,null,null,null,null,null,null,null,null,null,null,"İlhan IŞIK",null,"İç Anadolu",null,"Lenovo"]
[null,"Dell",{"$f":"SUMIF(VeritabanıFonksiyonları1!D:D,Pano1!B9,VeritabanıFonksiyonları1!E:E)","v":1739},{"$f":"_xlfn.RANK.EQ(C9,$C$5:$C$9)","v":4},5,{"$f":"INDEX($B$5:$B$9,MATCH(E9,$D$5:$D$9,0))","v":"MSI"},{"$f":"VLOOKUP(F9,$B$5:$C$9,2,0)","v":1718},null,null,null,null,null,"Satış Elemanı",null,"Satış Elemanı",null,null,null,null,null,null,null,"Fatih TANDOĞAN",null,"Marmara",null,"MSI"]
[null,null,null,null,null,null,null,null,null,null,null,null,{"$f":"INDEX(VeritabanıFonksiyonları1!B:B,MATCH(Pano1!M7,VeritabanıFonksiyonları1!E:E,0))","v":"Emel YAŞİN"},null,{"$f":"INDEX(VeritabanıFonksiyonları1!B:B,MATCH(Pano1!O7,VeritabanıFonksiyonları1!E:E,0))","v":"İsmini Göremedik"},null,null,null,null,null,null,null,"Seda DEĞİRMENCİ",null,"Güneydoğu Anadolu",null,"Dell"]
[null,null,null,null,null,null,null,null,null,null,null,null,null,null,null,null,null,null,null,null,null,null,"Mustafa EMEK",null,"Doğu Anadolu"]
[null,"Bölge","Ürün","Toplam Adet",null,null,null,null,"Toplam Adet",null,null,null,"Bölge",null,"Bölge",null,null,null,null,null,null,null,"Neslihan YILMAZ",null,"Karadeniz"]
[null,"Akdeniz","Lenovo",{"$f":"SUMIFS(VeritabanıFonksiyonları1!E:E,VeritabanıFonksiyonları1!C:C,Pano1!B13,VeritabanıFonksiyonları1!D:D,Pano1!C13)","v":72},null,{"$f":"_xlfn.RANK.EQ(D13,$D$13:$D$19)","v":7},1,{"$f":"INDEX($B$13:$B$19,MATCH(G13,$F$13:$F$19,0))","v":"Doğu Anadolu"},{"$f":"VLOOKUP(H13,$B$13:$D$19,3,0)","v":692},null,{"$f":"IF(MAX($I$13:$I$19)=I13,I13,\"\")","v":692},null,{"$f":"INDEX(VeritabanıFonksiyonları1!C:C,MATCH(Pano1!M7,VeritabanıFonksiyonları1!$E:$E,0))&\" Bölgesi\"","v":"Doğu Anadolu Bölgesi"},null,{"$f":"INDEX(VeritabanıFonksiyonları1!C:C,MATCH(Pano1!O7,VeritabanıFonksiyonları1!$E:$E,0))&\" Bölgesi\"","v":"Marmara Bölgesi"},null,null,null,null,null,null,null,"Gökhan YAĞIZ"]
[null,"Ege",{"$f":"C13","v":"Lenovo"},{"$f":"SUMIFS(VeritabanıFonksiyonları1!E:E,VeritabanıFonksiyonları1!C:C,Pano1!B14,VeritabanıFonksiyonları1!D:D,Pano1!C14)","v":158},null,{"$f":"_xlfn.RANK.EQ(D14,$D$13:$D$19)","v":4},2,{"$f":"INDEX($B$13:$B$19,MATCH(G14,$F$13:$F$19,0))","v":"Marmara"},{"$f":"VLOOKUP(H14,$B$13:$D$19,3,0)","v":499},null,{"$f":"IF(MAX($I$13:$I$19)=I14,I14,\"\")","v":""},null,null,null,null,null,null,null,null,null,null,null,"Yasemin TURGUT"]
[null,"Marmara","Lenovo",{"$f":"SUMIFS(VeritabanıFonksiyonları1!E:E,VeritabanıFonksiyonları1!C:C,Pano1!B15,VeritabanıFonksiyonları1!D:D,Pano1!C15)","v":499},null,2,3,"İç Anadolu",277,null,"",null,null,null,null,null,null,null,null,null,null,null,{"$f":"IF(isim>0,CONCATENATE(TRIM(isim),\" \",UPPER(TRIM(soyisim))),\"İsmini Göremedik\")","v":"İsmini Göremedik"}]
[null,"Karadeniz","Lenovo",{"$f":"SUMIFS(VeritabanıFonksiyonları1!E:E,VeritabanıFonksiyonları1!C:C,Pano1!B16,VeritabanıFonksiyonları1!D:D,Pano1!C16)","v":118},null,6,4,"Ege",158,null,"",null,null,null,null,null,null,null,null,null,null,null,"Hayri ÖZEL"]
[null,"İç Anadolu","Lenovo",{"$f":"SUMIFS(VeritabanıFonksiyonları1!E:E,VeritabanıFonksiyonları1!C:C,Pano1!B17,VeritabanıFonksiyonları1!D:D,Pano1!C17)","v":277},null,3,5,"Güneydoğu Anadolu",145,null,"",null,null,null,null,null,null,null,null,null,null,null,"Can YILDIZ"]
[null,"Doğu Anadolu","Lenovo",{"$f":"SUMIFS(VeritabanıFonksiyonları1!E:E,VeritabanıFonksiyonları1!C:C,Pano1!B18,VeritabanıFonksiyonları1!D:D,Pano1!C18)","v":692},null,1,6,"Karadeniz",118,null,"",null,null,null,null,null,null,null,null,null,null,null,"Berkay YALÇIN"]
[null,"Güneydoğu Anadolu","Lenovo",{"$f":"SUMIFS(VeritabanıFonksiyonları1!E:E,VeritabanıFonksiyonları1!C:C,Pano1!B19,VeritabanıFonksiyonları1!D:D,Pano1!C19)","v":145},null,5,7,"Akdeniz",72,null,"",null,null,null,null,null,null,null,null,null,null,null,"Eren HASANOĞLU"]
[null,null,null,null,null,null,null,null,null,null,null,null,null,null,null,null,null,null,null,null,null,null,"Ayşen ÇAKIR"]
[null,null,null,null,null,null,null,null,null,null,null,null,null,null,null,null,null,null,null,null,null,null,"Serdar ALADAĞ"]
[null,null,null,null,null,null,null,null,null,null,null,null,null,null,null,null,null,null,null,null,null,null,"Emel YAŞİN"]
[null,"Satış Temsilcisi","Bölge","Ürün","Satış Adedi",null,null,null,null,null,null,null,null,null,null,null,null,null,null,null,null,null,"Yıldırım BOZKURT"]
[null,{"$f":"_xlfn._xlws.FILTER(VeritabanıFonksiyonları1!B5:E111,VeritabanıFonksiyonları1!D5:D111=Pano1!C13)","v":"İlhan IŞIK"},"İç Anadolu","Lenovo",82,null,null,null,null,null,null,null,null,null,null,null,null,null,null,null,null,null,"Kemalettin TAN"]
[null,"Gökhan YAĞIZ","Ege","Lenovo",104,null,null,null,null,null,null,null,null,null,null,null,null,null,null,null,null,null,"Sevim SARPER"]
[null,"Emel YAŞİN","Doğu Anadolu","Lenovo",129,null,null,null,null,null,null,null,null,null,null,null,null,null,null,null,null,null,"Ayşe UYAN"]
[null,"Engin AYDOĞAN","Marmara","Lenovo",151,null,null,null,null,null,null,null,null,null,null,null,null,null,null,null,null,null,"Engin AYDOĞAN"]
[null,"Emel YAŞİN","Doğu Anadolu","Lenovo",155,null,null,null,null,null,null,null,null,null,null,null,null,null,null,null,null,null,"Ayla KARA"]
[null,"Engin AYDOĞAN","Marmara","Lenovo",138,null,null,null,null,null,null,null,null,null,null,null,null,null,null,null,null,null,"Bülent AYDOĞAN"]
[null,"İlhan IŞIK","İç Anadolu","Lenovo",53,null,null,null,null,null,null,null,null,null,null,null,null,null,null,null,null,null,"Hakan DUMAN"]
[null,"Engin AYDOĞAN","Doğu Anadolu","Lenovo",65]
[null,"Emel YAŞİN","Doğu Anadolu","Lenovo",148]
[null,"Emel YAŞİN","Doğu Anadolu","Lenovo",127]
[null,"İlhan IŞIK","İç Anadolu","Lenovo",75]
[null,"Gökhan YAĞIZ","Ege","Lenovo",54]
[null,"Engin AYDOĞAN","Marmara","Lenovo",147]
[null,"Yıldırım BOZKURT","Karadeniz","Lenovo",118]
[null,"Berkay YALÇIN","İç Anadolu","Lenovo",67]
[null,"Emel YAŞİN","Doğu Anadolu","Lenovo",68]
[null,"İsmini Göremedik","Marmara","Lenovo",63]
[null,"Bülent AYDOĞAN","Güneydoğu Anadolu","Lenovo",145]
[null,"Emel YAŞİN","Akdeniz","Lenovo",72]

{"sheet":"VeritabanıFonksiyonları3","index":27,"n_rows":115,"n_cols":9,"rows_kept":115,"cut":false,"hidden":false,"merged":[[12,6,12,8],[14,6,14,8]]}
[]
[null,"ÇOKEĞERSAY",{"$f":"IF(lang_op=1,\"\",IF(lang_op=2,\"/ İngilizce Karşılığı ---->\",IF(lang_op=3,\"/ Fransızca Karşılığı ---->\",\"/ Almanca Karşılığı ---->\")))","v":"/ İngilizce Karşılığı ---->"},null,null,{"$f":"IF(lang_op=2,VLOOKUP(B2,formuller,2,0),IF(lang_op=3,VLOOKUP(B2,formuller,3,0),IF(lang_op=4,VLOOKUP(B2,formuller,4,0),\"\")))","v":"COUNTIFS"}]
[]
[null,"Satış Temsilcisi","Bölge","Ürün","Satış Adedi",null,"Bölge","Ürün","Tekrar Sayısı"]
[null,"Efe YILDIZ","Akdeniz","Asus",145,null,"Akdeniz","Lenovo"]
[null,"Egemen ATAY","Ege","HP",119,null,"Ege",{"$f":"H5","v":"Lenovo"}]
[null,"İlhan IŞIK","İç Anadolu","Lenovo",82,null,"Marmara","Lenovo"]
[null,"Fatih TANDOĞAN","Marmara","Asus",28,null,"Karadeniz","Lenovo"]
[null,"Seda DEĞİRMENCİ","Ege","MSI",140,null,"İç Anadolu","Lenovo"]
[null,"Mustafa EMEK","Akdeniz","Dell",58,null,"Doğu Anadolu","Lenovo"]
[null,"Neslihan YILMAZ","Güneydoğu Anadolu","Dell",153,null,"Güneydoğu Anadolu","Lenovo"]
[null,"Gökhan YAĞIZ","Ege","Lenovo",104]
[null,"Yasemin TURGUT","İç Anadolu","HP",60,null,{"$f":"IFERROR(_xlfn.FORMULATEXT(I5),\"\")","v":""}]
[null,{"$f":"IF(isim>0,CONCATENATE(TRIM(isim),\" \",UPPER(TRIM(soyisim))),\"İsmini Göremedik\")","v":"İsmini Göremedik"},"Marmara","Asus",35]
[null,"Hayri ÖZEL","Doğu Anadolu","HP",100,null,{"$f":"IngFormul(I5)","v":""}]
[null,"Can YILDIZ","Karadeniz","Asus",138]
[null,"Berkay YALÇIN","İç Anadolu","Asus",55]
[null,"Eren HASANOĞLU","Karadeniz","MSI",100]
[null,"Ayşen ÇAKIR","Ege","Dell",29]
[null,"Serdar ALADAĞ","Güneydoğu Anadolu","HP",123]
[null,"Emel YAŞİN","Doğu Anadolu","Lenovo",129]
[null,"Yıldırım BOZKURT","Karadeniz","Dell",119]
[null,"Kemalettin TAN","Ege","Asus",94]
[null,"Sevim SARPER","Doğu Anadolu","Asus",158]
[null,"Ayşe UYAN","Marmara","HP",106]
[null,"Engin AYDOĞAN","Marmara","Lenovo",151]
[null,"Ayla KARA","Ege","Dell",96]
[null,"Bülent AYDOĞAN","Güneydoğu Anadolu","Asus",71]
[null,"Hakan DUMAN","Karadeniz","HP",128]
[null,"Efe YILDIZ","Akdeniz","Asus",93]
[null,"Emel YAŞİN","Doğu Anadolu","Lenovo",155]
[null,"Yıldırım BOZKURT","Karadeniz","Dell",41]
[null,"Kemalettin TAN","Ege","Asus",95]
[null,"Sevim SARPER","Akdeniz","Asus",91]
[null,{"$f":"IF(isim>0,CONCATENATE(TRIM(isim),\" \",UPPER(TRIM(soyisim))),\"İsmini Göremedik\")","v":"İsmini Göremedik"},"Marmara","HP",52]
[null,"Engin AYDOĞAN","Marmara","Lenovo",138]
[null,"Ayla KARA","Ege","Dell",69]
[null,"Bülent AYDOĞAN","Güneydoğu Anadolu","HP",138]
[null,"Hakan DUMAN","Karadeniz","HP",153]
[null,"Efe YILDIZ","Akdeniz","Asus",37]
[null,"Egemen ATAY","Ege","HP",57]
[null,"İlhan IŞIK","İç Anadolu","Lenovo",53]
[null,"Berkay YALÇIN","İç Anadolu","Asus",88]
[null,"Seda DEĞİRMENCİ","Ege","MSI",118]
[null,"Ayşe UYAN","Marmara","HP",127]
[null,"Engin AYDOĞAN","Doğu Anadolu","Dell",65]
[null,"Ayla KARA","Ege","Dell",99]
[null,"Bülent AYDOĞAN","Güneydoğu Anadolu","HP",71]
[null,"Hakan DUMAN","Karadeniz","HP",91]
[null,"Efe YILDIZ","Akdeniz","Asus",59]
[null,"Emel YAŞİN","Doğu Anadolu","Lenovo",148]
[null,"Yıldırım BOZKURT","Karadeniz","Dell",81]
[null,"Kemalettin TAN","Ege","Asus",135]
[null,"Berkay YALÇIN","İç Anadolu","Asus",137]
[null,"Eren HASANOĞLU","Karadeniz","MSI",61]
[null,"Ayşen ÇAKIR","Ege","Dell",54]
[null,"Serdar ALADAĞ","Güneydoğu Anadolu","HP",66]
[null,"Emel YAŞİN","Doğu Anadolu","Lenovo",127]
[null,"Efe YILDIZ","Akdeniz","Asus",50]
[null,"Egemen ATAY","Ege","HP",65]
[null,"İlhan IŞIK","İç Anadolu","Lenovo",75]
[null,"Fatih TANDOĞAN","Marmara","Asus",154]
[null,"Seda DEĞİRMENCİ","Ege","MSI",136]
[null,"Mustafa EMEK","Ege","Dell",30]
[null,"Neslihan YILMAZ","Güneydoğu Anadolu","HP",60]
[null,"Gökhan YAĞIZ","Ege","Lenovo",54]
[null,"Yasemin TURGUT","Karadeniz","HP",40]
[null,"Ayşe UYAN","Akdeniz","HP",102]
[null,"Engin AYDOĞAN","Marmara","Lenovo",147]
[null,"Ayla KARA","Ege","Dell",153]
[null,"Bülent AYDOĞAN","Güneydoğu Anadolu","HP",33]
[null,"Hakan DUMAN","Karadeniz","HP",120]
[null,"Efe YILDIZ","Akdeniz","Asus",61]
[null,"Emel YAŞİN","Doğu Anadolu","Lenovo",87]
[null,"Yıldırım BOZKURT","Karadeniz","Dell",118]
[null,"Kemalettin TAN","Ege","Asus",144]
[null,"Berkay YALÇIN","İç Anadolu","Asus",27]
[null,"Eren HASANOĞLU","Karadeniz","MSI",91]
[null,"Ayşen ÇAKIR","Ege","Dell",83]
[null,"Serdar ALADAĞ","Güneydoğu Anadolu","HP",68]
[null,"Berkay YALÇIN","İç Anadolu","Lenovo",67]
[null,"Eren HASANOĞLU","Karadeniz","MSI",144]
[null,"Ayşen ÇAKIR","Ege","Dell",156]
[null,"Serdar ALADAĞ","Güneydoğu Anadolu","HP",75]
[null,"Emel YAŞİN","Doğu Anadolu","Lenovo",68]
[null,"Yıldırım BOZKURT","Karadeniz","Dell",92]
[null,"Kemalettin TAN","Ege","Asus",120]
[null,"Sevim SARPER","Marmara","Asus",47]
[null,"Ayşe UYAN","Marmara","HP",30]
[null,{"$f":"IF(isim>0,CONCATENATE(TRIM(isim),\" \",UPPER(TRIM(soyisim))),\"İsmini Göremedik\")","v":"İsmini Göremedik"},"Marmara","Lenovo",63]
[null,"Ayla KARA","Ege","Dell",115]
[null,"Bülent AYDOĞAN","Güneydoğu Anadolu","HP",145]
[null,"Hakan DUMAN","Karadeniz","HP",98]
[null,"Efe YILDIZ","Akdeniz","Asus",154]
[null,"Emel YAŞİN","Akdeniz","Lenovo",72]
[null,"Efe YILDIZ","Akdeniz","Dell",145]
[null,"Egemen ATAY","Ege","Dell",119]
[null,"İlhan IŞIK","İç Anadolu","Dell",82]
[null,"Fatih TANDOĞAN","Marmara","Dell",28]
[null,"Seda DEĞİRMENCİ","Ege","Dell",140]
[null,"Mustafa EMEK","Akdeniz","Dell",58]
[null,"Neslihan YILMAZ","Doğu Anadolu","Dell",153]
[null,"Gökhan YAĞIZ","Ege","Dell",104]
[null,"Yasemin TURGUT","İç Anadolu","Dell",60]
[null,"Efe YILDIZ","Akdeniz","MSI",145]
[null,"Egemen ATAY","Ege","MSI",119]
[null,"İlhan IŞIK","İç Anadolu","MSI",82]
[null,"Fatih TANDOĞAN","Marmara","MSI",28]
[null,"Seda DEĞİRMENCİ","Ege","MSI",140]
[null,"Mustafa EMEK","Akdeniz","MSI",58]
[null,"Neslihan YILMAZ","Doğu Anadolu","MSI",153]
[null,"Gökhan YAĞIZ","Ege","Dell",104]
[null,"Yasemin TURGUT","Karadeniz","Lenovo",60]
[null,"Bülent AYDOĞAN","Güneydoğu Anadolu","MSI",145]
[null,"Bülent AYDOĞAN","Güneydoğu Anadolu","Lenovo",145]

{"sheet":"GruplaÖlçüt","index":28,"n_rows":209,"n_cols":6,"rows_kept":209,"cut":false,"hidden":true,"merged":[]}
[]
[null,"GRUPLAÖLÇÜT",{"$f":"IF(lang_op=1,\"\",IF(lang_op=2,\"/ İngilizce Karşılığı ---->\",IF(lang_op=3,\"/ Fransızca Karşılığı ---->\",\"/ Almanca Karşılığı ---->\")))","v":"/ İngilizce Karşılığı ---->"},{"$f":"IF(lang_op=2,VLOOKUP(B2,formuller,2,0),IF(lang_op=3,VLOOKUP(B2,formuller,3,0),IF(lang_op=4,VLOOKUP(B2,formuller,4,0),\"\")))","v":"GROUPBY"}]
[]
[null,"Satış Temsilcisi","Bölge","Şehir","Ürün","Satış Adedi"]
[null,"İlhan IŞIK","Akdeniz Bölgesi","Antalya","Lenovo",141]
[null,"Halime AŞAN","Doğu Anadolu Bölgesi","Van","Lenovo",461]
[null,"Nagihan VATANSEVER","Marmara Bölgesi","İstanbul","Dell",248]
[null,"Zeynep TATLITÜR","Ege Bölgesi","İzmir","Dell",85]
[null,"Mustafa EMEK","Karadeniz Bölgesi","Artvin","Lenovo",92]
[null,"Egemen ATAY","İç Anadolu Bölgesi","Ankara","Lenovo",305]
[null,"Emel YAŞİN","Ege Bölgesi","Denizli","Dell",18]
[null,"Gökhan YAĞIZ","Karadeniz Bölgesi","Artvin","Dell",203]
[null,"Eren AKTÜRK","İç Anadolu Bölgesi","Konya","MSI",32]
[null,"Hüseyin ALBAYRAK","Karadeniz Bölgesi","Ordu","Dell",184]
[null,"Halime AŞAN","Doğu Anadolu Bölgesi","Van","Asus",276]
[null,"Rıza SİLAHLIPODA","Akdeniz Bölgesi","Hatay","Lenovo",410]
[null,"Hüseyin ALBAYRAK","Karadeniz Bölgesi","Ordu","MSI",326]
[null,"Ersin KARADUT","İç Anadolu Bölgesi","Kayseri","Dell",16]
[null,"Rıza SİLAHLIPODA","Akdeniz Bölgesi","Hatay","Dell",292]
[null,"Tuğba TARCAN","Akdeniz Bölgesi","Hatay","Dell",177]
[null,"Rahmi YALÇIN","İç Anadolu Bölgesi","Konya","Dell",149]
[null,"Berkan KUMLU","Ege Bölgesi","İzmir","Dell",32]
[null,"Fatih TÜRKYILMAZ","Karadeniz Bölgesi","Trabzon","HP",331]
[null,"İsmail TÜRKÖNE","Marmara Bölgesi","İstanbul","MSI",412]
[null,"Fatih TÜRKYILMAZ","Karadeniz Bölgesi","Trabzon","Lenovo",451]
[null,"Kemalettin YALÇIN","Güneydoğu Anadolu Bölgesi","Gaziantep","Lenovo",41]
[null,"Berkay YALÇIN","Marmara Bölgesi","Bilecik","Lenovo",474]
[null,"Ayşen ÇAKIR","Doğu Anadolu Bölgesi","Erzincan","MSI",441]
[null,"Hakan DUMAN","Marmara Bölgesi","Çanakkale","Dell",301]
[null,"Eren HASANOĞLU","Marmara Bölgesi","Edirne","Lenovo",111]
[null,"Eren HASANOĞLU","Marmara Bölgesi","Edirne","Dell",280]
[null,"Ahmet SEVİNÇ","Karadeniz Bölgesi","Samsun","Lenovo",271]
[null,"Fatih TÜRKYILMAZ","Karadeniz Bölgesi","Trabzon","MSI",257]
[null,"Ayla KARA","İç Anadolu Bölgesi","Eskişehir","MSI",282]
[null,"Efe YILDIZ","İç Anadolu Bölgesi","Ankara","Dell",489]
[null,"Serdar ALADAĞ","Güneydoğu Anadolu Bölgesi","Diyarbakır","Lenovo",311]
[null,"İsmail TÜRKÖNE","Marmara Bölgesi","İstanbul","MSI",117]
[null,"Hüseyin ALBAYRAK","Karadeniz Bölgesi","Ordu","Lenovo",251]
[null,"Servet DENİZ","Karadeniz Bölgesi","Ordu","Dell",490]
[null,"Volkan ERTÜRK","Marmara Bölgesi","Bursa","MSI",294]
[null,"Berkan KUMLU","Ege Bölgesi","İzmir","Lenovo",290]
[null,"Can YILDIZ","Karadeniz Bölgesi","Sinop","Dell",213]
[null,"Hayri ÖZEL","Marmara Bölgesi","Balıkesir","Dell",207]
[null,"Eren AKTÜRK","İç Anadolu Bölgesi","Konya","Dell",268]
[null,"Hami EREN","Doğu Anadolu Bölgesi","Malatya","Dell",203]
[null,"Can YILDIZ","Karadeniz Bölgesi","Sinop","Dell",286]
[null,"Ersin KARADUT","İç Anadolu Bölgesi","Kayseri","Dell",398]
[null,"Egemen ATAY","İç Anadolu Bölgesi","Ankara","Asus",297]
[null,"Servet DENİZ","Karadeniz Bölgesi","Ordu","Lenovo",315]
[null,"Ayşe UYAN","Marmara Bölgesi","Edirne","Dell",58]
[null,"Egemen ATAY","İç Anadolu Bölgesi","Ankara","HP",260]
[null,"Ayşen ÇAKIR","Doğu Anadolu Bölgesi","Erzincan","Dell",461]
[null,"Ömer GİRGİN","Ege Bölgesi","Kütahya","MSI",224]
[null,"Fatih TANDOĞAN","Akdeniz Bölgesi","Antalya","Dell",174]
[null,"İlhan IŞIK","Akdeniz Bölgesi","Antalya","Dell",286]
[null,"Kamuran TEMUR","İç Anadolu Bölgesi","Kayseri","MSI",232]
[null,"Mustafa EMEK","Karadeniz Bölgesi","Artvin","MSI",186]
[null,"Hakkı ÖLMEZ","Güneydoğu Anadolu Bölgesi","Gaziantep","Dell",239]
[null,"Egemen ATAY","İç Anadolu Bölgesi","Ankara","MSI",454]
[null,"Ayşe UYAN","Marmara Bölgesi","Edirne","Lenovo",402]
[null,"Sevim SARPER","Marmara Bölgesi","Çanakkale","Lenovo",246]
[null,"Halime AŞAN","Doğu Anadolu Bölgesi","Van","Dell",219]
[null,"Hüseyin ALBAYRAK","Karadeniz Bölgesi","Ordu","Lenovo",385]
[null,"Hayri ÖZEL","Marmara Bölgesi","Balıkesir","Lenovo",48]
[null,"Atilla YİĞİT","Karadeniz Bölgesi","Trabzon","Lenovo",271]
[null,"Berkay YALÇIN","Marmara Bölgesi","Bilecik","MSI",341]
[null,"Aliye GEZER","Karadeniz Bölgesi","Samsun","Lenovo",422]
[null,"Rıza SİLAHLIPODA","Akdeniz Bölgesi","Hatay","Dell",46]
[null,"Eren AKTÜRK","İç Anadolu Bölgesi","Konya","Dell",17]
[null,"Hami EREN","Doğu Anadolu Bölgesi","Malatya","Lenovo",356]
[null,"Emel YAŞİN","Ege Bölgesi","Denizli","MSI",59]
[null,"Yıldırım BOZKURT","Güneydoğu Anadolu Bölgesi","Diyarbakır","Lenovo",96]
[null,"Rahmi YALÇIN","İç Anadolu Bölgesi","Konya","Lenovo",405]
[null,"Ayla KARA","İç Anadolu Bölgesi","Eskişehir","Dell",431]
[null,"Bertuğ YENİŞEHİRLİ","Doğu Anadolu Bölgesi","Malatya","MSI",239]
[null,"Gökhan YAĞIZ","Marmara Bölgesi","Balıkesir","Lenovo",215]
[null,"Kemalettin YALÇIN","Güneydoğu Anadolu Bölgesi","Gaziantep","MSI",333]
[null,"Rahmi YALÇIN","İç Anadolu Bölgesi","Konya","Lenovo",457]
[null,"Hami EREN","Doğu Anadolu Bölgesi","Malatya","Lenovo",492]
[null,"Yasemin TURGUT","İç Anadolu Bölgesi","Eskişehir","HP",392]
[null,"Yıldırım BOZKURT","Güneydoğu Anadolu Bölgesi","Diyarbakır","Lenovo",413]
[null,"Ersin KARADUT","İç Anadolu Bölgesi","Kayseri","Dell",310]
[null,"İrem DERİN","Güneydoğu Anadolu Bölgesi","Şanlıurfa","HP",97]
[null,"Tuğba TARCAN","Akdeniz Bölgesi","Hatay","Lenovo",362]
[null,"Aliye GEZER","Karadeniz Bölgesi","Samsun","HP",375]
[null,"Hakan DUMAN","Marmara Bölgesi","Çanakkale","Lenovo",241]
[null,"Ömer GİRGİN","Ege Bölgesi","Kütahya","Lenovo",331]
[null,"Bertuğ YENİŞEHİRLİ","Doğu Anadolu Bölgesi","Malatya","MSI",145]
[null,"Rıza SİLAHLIPODA","Akdeniz Bölgesi","Hatay","MSI",200]
[null,"Ersin KARADUT","İç Anadolu Bölgesi","Kayseri","Dell",347]
[null,"İrem DERİN","Güneydoğu Anadolu Bölgesi","Şanlıurfa","HP",419]
[null,"Efe YILDIZ","Akdeniz Bölgesi","Adana","Asus",114]
[null,"Berkan KUMLU","Ege Bölgesi","İzmir","Lenovo",372]
[null,"Serdar ALADAĞ","Güneydoğu Anadolu Bölgesi","Diyarbakır","MSI",386]
[null,"Kemalettin YALÇIN","Güneydoğu Anadolu Bölgesi","Gaziantep","MSI",449]
[null,{"$f":"IF(isim>0,CONCATENATE(TRIM(isim),\" \",UPPER(TRIM(soyisim))),\"İsmini Göremedik\")","v":"İsmini Göremedik"},"Marmara Bölgesi","Bursa","Dell",52]
[null,"Yasemin TURGUT","İç Anadolu Bölgesi","Eskişehir","Lenovo",218]
[null,"Engin AYDOĞAN","Doğu Anadolu Bölgesi","Erzurum","Dell",491]
[null,"Gökhan YAĞIZ","Marmara Bölgesi","Balıkesir","MSI",345]
[null,"Kemalettin TAN","Marmara Bölgesi","Çanakkale","HP",358]
[null,"Bertuğ YENİŞEHİRLİ","Doğu Anadolu Bölgesi","Malatya","Dell",320]
[null,"Neslihan YILMAZ","Karadeniz Bölgesi","Artvin","Dell",316]
[null,"Bülent AYDOĞAN","Doğu Anadolu Bölgesi","Erzincan","Lenovo",260]
[null,"Egemen ATAY","İç Anadolu Bölgesi","Ankara","HP",478]
[null,"Rıza SİLAHLIPODA","Akdeniz Bölgesi","Hatay","Dell",171]
[null,"Ahmet SEVİNÇ","Karadeniz Bölgesi","Samsun","Lenovo",156]
[null,"Tuğba TARCAN","Akdeniz Bölgesi","Hatay","MSI",252]
[null,"Ömer GİRGİN","Ege Bölgesi","Kütahya","HP",203]
[null,"Berkay YALÇIN","Marmara Bölgesi","Bilecik","Lenovo",57]
[null,"Sevim SARPER","Marmara Bölgesi","Çanakkale","Dell",176]
[null,"Serdar ALADAĞ","Güneydoğu Anadolu Bölgesi","Diyarbakır","HP",48]
[null,"Gökhan YAĞIZ","Marmara Bölgesi","Balıkesir","Dell",13]
[null,"Efe YILDIZ","Akdeniz Bölgesi","Adana","Lenovo",353]
[null,"Can YILDIZ","Karadeniz Bölgesi","Sinop","Lenovo",438]
[null,"Kemalettin YALÇIN","Güneydoğu Anadolu Bölgesi","Gaziantep","Dell",493]
[null,"Nagihan VATANSEVER","Marmara Bölgesi","İstanbul","MSI",413]
[null,"Ayla KARA","İç Anadolu Bölgesi","Eskişehir","Lenovo",222]
[null,"Ayşe UYAN","Marmara Bölgesi","Edirne","Dell",435]
[null,"Kemalettin TAN","Marmara Bölgesi","Çanakkale","Lenovo",156]
[null,"Ayşen ÇAKIR","Doğu Anadolu Bölgesi","Erzincan","Lenovo",197]
[null,"Can YILDIZ","Karadeniz Bölgesi","Sinop","MSI",489]
[null,"Safiye TERGAN","Doğu Anadolu Bölgesi","Van","Dell",22]
[null,"Neslihan YILMAZ","Karadeniz Bölgesi","Artvin","MSI",338]
[null,"Emel YAŞİN","Ege Bölgesi","Denizli","MSI",192]
[null,"Engin AYDOĞAN","Doğu Anadolu Bölgesi","Erzurum","Lenovo",321]
[null,"Aliye GEZER","Karadeniz Bölgesi","Samsun","Asus",45]
[null,"Ömer GİRGİN","Ege Bölgesi","Kütahya","Lenovo",255]
[null,"Can YILDIZ","Karadeniz Bölgesi","Sinop","Asus",91]
[null,"Atilla YİĞİT","Karadeniz Bölgesi","Trabzon","MSI",467]
[null,"Neslihan YILMAZ","Karadeniz Bölgesi","Artvin","Dell",420]
[null,"Yıldırım BOZKURT","Güneydoğu Anadolu Bölgesi","Diyarbakır","MSI",181]
[null,"Kamil BURLU","Güneydoğu Anadolu Bölgesi","Şanlıurfa","MSI",207]
[null,"Berkay YALÇIN","Marmara Bölgesi","Bilecik","Dell",241]
[null,"Bülent AYDOĞAN","Doğu Anadolu Bölgesi","Erzincan","MSI",409]
[null,"Nagihan VATANSEVER","Marmara Bölgesi","İstanbul","Lenovo",210]
[null,"Seda DEĞİRMENCİ","Akdeniz Bölgesi","Antalya","MSI",177]
[null,"Ömer GİRGİN","Ege Bölgesi","Kütahya","MSI",84]
[null,"Nagihan VATANSEVER","Marmara Bölgesi","İstanbul","Dell",400]
[null,"Aliye GEZER","Karadeniz Bölgesi","Samsun","Dell",324]
[null,"Seda DEĞİRMENCİ","Akdeniz Bölgesi","Antalya","HP",398]
[null,"Kamuran TEMUR","İç Anadolu Bölgesi","Kayseri","Lenovo",396]
[null,"Nagihan VATANSEVER","Marmara Bölgesi","İstanbul","Dell",463]
[null,"Eren HASANOĞLU","Marmara Bölgesi","Edirne","MSI",45]
[null,"Bülent AYDOĞAN","Doğu Anadolu Bölgesi","Erzincan","Dell",454]
[null,"Yıldırım BOZKURT","Güneydoğu Anadolu Bölgesi","Diyarbakır","Dell",400]
[null,"İlhan IŞIK","Akdeniz Bölgesi","Antalya","Lenovo",21]
[null,"Ersin KARADUT","İç Anadolu Bölgesi","Kayseri","HP",418]
[null,"Ayşen ÇAKIR","Doğu Anadolu Bölgesi","Erzincan","HP",249]
[null,"Emel YAŞİN","Ege Bölgesi","Denizli","Dell",403]
[null,"İsmail TÜRKÖNE","Marmara Bölgesi","İstanbul","HP",89]
[null,"Kamil BURLU","Güneydoğu Anadolu Bölgesi","Şanlıurfa","Dell",237]
[null,"Fatih TÜRKYILMAZ","Karadeniz Bölgesi","Trabzon","Dell",170]
[null,"Berkan KUMLU","Ege Bölgesi","İzmir","Lenovo",445]
[null,"Serdar ALADAĞ","Güneydoğu Anadolu Bölgesi","Diyarbakır","Dell",304]
[null,"Yıldırım BOZKURT","Güneydoğu Anadolu Bölgesi","Diyarbakır","Dell",279]
[null,"Hakkı ÖLMEZ","Güneydoğu Anadolu Bölgesi","Gaziantep","Lenovo",131]
[null,"Mustafa EMEK","Karadeniz Bölgesi","Artvin","Lenovo",407]
[null,"Ömer GİRGİN","Ege Bölgesi","Kütahya","Dell",144]
[null,"Gökhan YAĞIZ","Karadeniz Bölgesi","Artvin","MSI",74]
[null,"Atilla YİĞİT","Karadeniz Bölgesi","Trabzon","Asus",102]
[null,"Fatih TANDOĞAN","Akdeniz Bölgesi","Antalya","Lenovo",61]
[null,"Zeynep TATLITÜR","Ege Bölgesi","İzmir","MSI",338]
[null,"Hakan DUMAN","Marmara Bölgesi","Çanakkale","Dell",61]
[null,"Ayla KARA","İç Anadolu Bölgesi","Eskişehir","MSI",482]
[null,"Kamuran TEMUR","İç Anadolu Bölgesi","Kayseri","MSI",69]
[null,"Ayşen ÇAKIR","Doğu Anadolu Bölgesi","Erzincan","MSI",47]
[null,"Alper ÖNER","Marmara Bölgesi","Bursa","Lenovo",172]
[null,"Hami EREN","Doğu Anadolu Bölgesi","Malatya","HP",302]
[null,"Emel YAŞİN","Ege Bölgesi","Denizli","Dell",447]
[null,"Safiye TERGAN","Doğu Anadolu Bölgesi","Van","Lenovo",266]
[null,"Kamuran TEMUR","İç Anadolu Bölgesi","Kayseri","MSI",209]
[null,"Yıldırım BOZKURT","Güneydoğu Anadolu Bölgesi","Diyarbakır","MSI",174]
[null,"Ahmet SEVİNÇ","Karadeniz Bölgesi","Samsun","Dell",125]
[null,"Fatih TANDOĞAN","Akdeniz Bölgesi","Antalya","MSI",237]
[null,"Alper ÖNER","Marmara Bölgesi","Bursa","MSI",474]
[null,"Kamuran TEMUR","İç Anadolu Bölgesi","Kayseri","Lenovo",130]
[null,"Servet DENİZ","Karadeniz Bölgesi","Ordu","MSI",196]
[null,"Zeynep TATLITÜR","Ege Bölgesi","İzmir","Dell",464]
[null,"Can YILDIZ","Karadeniz Bölgesi","Sinop","Dell",306]
[null,"Berkay YALÇIN","Marmara Bölgesi","Bilecik","HP",12]
[null,"İsmail TÜRKÖNE","Marmara Bölgesi","İstanbul","Lenovo",155]
[null,"Rıza SİLAHLIPODA","Akdeniz Bölgesi","Hatay","Lenovo",397]
[null,"Servet DENİZ","Karadeniz Bölgesi","Ordu","MSI",46]
[null,"Safiye TERGAN","Doğu Anadolu Bölgesi","Van","Lenovo",418]
[null,"Hakkı ÖLMEZ","Güneydoğu Anadolu Bölgesi","Gaziantep","Dell",259]
[null,"Atilla YİĞİT","Karadeniz Bölgesi","Trabzon","Dell",312]
[null,"İrem DERİN","Güneydoğu Anadolu Bölgesi","Şanlıurfa","Lenovo",453]
[null,"Can YILDIZ","Karadeniz Bölgesi","Sinop","Lenovo",477]
[null,"Atilla YİĞİT","Karadeniz Bölgesi","Trabzon","Asus",400]
[null,"Hüseyin ALBAYRAK","Karadeniz Bölgesi","Ordu","Dell",298]
[null,"Efe YILDIZ","Akdeniz Bölgesi","Adana","Asus",338]
[null,"Egemen ATAY","İç Anadolu Bölgesi","Ankara","Asus",316]
[null,"İrem DERİN","Güneydoğu Anadolu Bölgesi","Şanlıurfa","MSI",136]
[null,"Berkay YALÇIN","Marmara Bölgesi","Bilecik","Dell",38]
[null,"Ahmet SEVİNÇ","Karadeniz Bölgesi","Samsun","MSI",203]
[null,"Engin AYDOĞAN","Doğu Anadolu Bölgesi","Erzurum","Dell",425]
[null,"Nagihan VATANSEVER","Marmara Bölgesi","İstanbul","Dell",322]
[null,"Kamil BURLU","Güneydoğu Anadolu Bölgesi","Şanlıurfa","Lenovo",258]
[null,"Emel YAŞİN","Ege Bölgesi","Denizli","Lenovo",318]
[null,"Mustafa EMEK","Karadeniz Bölgesi","Artvin","Dell",209]
[null,"Tuğba TARCAN","Akdeniz Bölgesi","Hatay","Dell",237]
[null,"Sevim SARPER","Marmara Bölgesi","Çanakkale","MSI",97]
[null,"Seda DEĞİRMENCİ","Akdeniz Bölgesi","Antalya","Lenovo",27]
[null,"Hakkı ÖLMEZ","Güneydoğu Anadolu Bölgesi","Gaziantep","Dell",370]
[null,"İlhan IŞIK","Akdeniz Bölgesi","Antalya","MSI",376]
[null,"Bertuğ YENİŞEHİRLİ","Doğu Anadolu Bölgesi","Malatya","MSI",255]
[null,"Volkan ERTÜRK","Marmara Bölgesi","Bursa","Dell",14]
[null,"Nagihan VATANSEVER","Marmara Bölgesi","İstanbul","Dell",425]
[null,"Hüseyin ALBAYRAK","Karadeniz Bölgesi","Ordu","HP",248]

{"sheet":"ÖzetÖlçüt","index":29,"n_rows":209,"n_cols":7,"rows_kept":209,"cut":false,"hidden":true,"merged":[[12,6,12,8]]}
[]
[null,"ÖZETÖLÇÜT",{"$f":"IF(lang_op=1,\"\",IF(lang_op=2,\"/ İngilizce Karşılığı ---->\",IF(lang_op=3,\"/ Fransızca Karşılığı ---->\",\"/ Almanca Karşılığı ---->\")))","v":"/ İngilizce Karşılığı ---->"},{"$f":"IF(lang_op=2,VLOOKUP(B2,formuller,2,0),IF(lang_op=3,VLOOKUP(B2,formuller,3,0),IF(lang_op=4,VLOOKUP(B2,formuller,4,0),\"\")))","v":"PIVOTBY"}]
[]
[null,"Satış Temsilcisi","Bölge","Şehir","Ürün","Satış Adedi"]
[null,"İlhan IŞIK","Akdeniz Bölgesi","Antalya","Lenovo",141]
[null,"Halime AŞAN","Doğu Anadolu Bölgesi","Van","Lenovo",461]
[null,"Nagihan VATANSEVER","Marmara Bölgesi","İstanbul","Dell",248]
[null,"Zeynep TATLITÜR","Ege Bölgesi","İzmir","Dell",85]
[null,"Mustafa EMEK","Karadeniz Bölgesi","Artvin","Lenovo",92]
[null,"Egemen ATAY","İç Anadolu Bölgesi","Ankara","Lenovo",305]
[null,"Emel YAŞİN","Ege Bölgesi","Denizli","Dell",18]
[null,"Gökhan YAĞIZ","Karadeniz Bölgesi","Artvin","Dell",203]
[null,"Eren AKTÜRK","İç Anadolu Bölgesi","Konya","MSI",32,{"$f":"IFERROR(_xlfn.FORMULATEXT(I5),\"\")","v":""}]
[null,"Hüseyin ALBAYRAK","Karadeniz Bölgesi","Ordu","Dell",184]
[null,"Halime AŞAN","Doğu Anadolu Bölgesi","Van","Asus",276]
[null,"Rıza SİLAHLIPODA","Akdeniz Bölgesi","Hatay","Lenovo",410]
[null,"Hüseyin ALBAYRAK","Karadeniz Bölgesi","Ordu","MSI",326]
[null,"Ersin KARADUT","İç Anadolu Bölgesi","Kayseri","Dell",16]
[null,"Rıza SİLAHLIPODA","Akdeniz Bölgesi","Hatay","Dell",292]
[null,"Tuğba TARCAN","Akdeniz Bölgesi","Hatay","Dell",177]
[null,"Rahmi YALÇIN","İç Anadolu Bölgesi","Konya","Dell",149]
[null,"Berkan KUMLU","Ege Bölgesi","İzmir","Dell",32]
[null,"Fatih TÜRKYILMAZ","Karadeniz Bölgesi","Trabzon","HP",331]
[null,"İsmail TÜRKÖNE","Marmara Bölgesi","İstanbul","MSI",412]
[null,"Fatih TÜRKYILMAZ","Karadeniz Bölgesi","Trabzon","Lenovo",451]
[null,"Kemalettin YALÇIN","Güneydoğu Anadolu Bölgesi","Gaziantep","Lenovo",41]
[null,"Berkay YALÇIN","Marmara Bölgesi","Bilecik","Lenovo",474]
[null,"Ayşen ÇAKIR","Doğu Anadolu Bölgesi","Erzincan","MSI",441]
[null,"Hakan DUMAN","Marmara Bölgesi","Çanakkale","Dell",301]
[null,"Eren HASANOĞLU","Marmara Bölgesi","Edirne","Lenovo",111]
[null,"Eren HASANOĞLU","Marmara Bölgesi","Edirne","Dell",280]
[null,"Ahmet SEVİNÇ","Karadeniz Bölgesi","Samsun","Lenovo",271]
[null,"Fatih TÜRKYILMAZ","Karadeniz Bölgesi","Trabzon","MSI",257]
[null,"Ayla KARA","İç Anadolu Bölgesi","Eskişehir","MSI",282]
[null,"Efe YILDIZ","İç Anadolu Bölgesi","Ankara","Dell",489]
[null,"Serdar ALADAĞ","Güneydoğu Anadolu Bölgesi","Diyarbakır","Lenovo",311]
[null,"İsmail TÜRKÖNE","Marmara Bölgesi","İstanbul","MSI",117]
[null,"Hüseyin ALBAYRAK","Karadeniz Bölgesi","Ordu","Lenovo",251]
[null,"Servet DENİZ","Karadeniz Bölgesi","Ordu","Dell",490]
[null,"Volkan ERTÜRK","Marmara Bölgesi","Bursa","MSI",294]
[null,"Berkan KUMLU","Ege Bölgesi","İzmir","Lenovo",290]
[null,"Can YILDIZ","Karadeniz Bölgesi","Sinop","Dell",213]
[null,"Hayri ÖZEL","Marmara Bölgesi","Balıkesir","Dell",207]
[null,"Eren AKTÜRK","İç Anadolu Bölgesi","Konya","Dell",268]
[null,"Hami EREN","Doğu Anadolu Bölgesi","Malatya","Dell",203]
[null,"Can YILDIZ","Karadeniz Bölgesi","Sinop","Dell",286]
[null,"Ersin KARADUT","İç Anadolu Bölgesi","Kayseri","Dell",398]
[null,"Egemen ATAY","İç Anadolu Bölgesi","Ankara","Asus",297]
[null,"Servet DENİZ","Karadeniz Bölgesi","Ordu","Lenovo",315]
[null,"Ayşe UYAN","Marmara Bölgesi","Edirne","Dell",58]
[null,"Egemen ATAY","İç Anadolu Bölgesi","Ankara","HP",260]
[null,"Ayşen ÇAKIR","Doğu Anadolu Bölgesi","Erzincan","Dell",461]
[null,"Ömer GİRGİN","Ege Bölgesi","Kütahya","MSI",224]
[null,"Fatih TANDOĞAN","Akdeniz Bölgesi","Antalya","Dell",174]
[null,"İlhan IŞIK","Akdeniz Bölgesi","Antalya","Dell",286]
[null,"Kamuran TEMUR","İç Anadolu Bölgesi","Kayseri","MSI",232]
[null,"Mustafa EMEK","Karadeniz Bölgesi","Artvin","MSI",186]
[null,"Hakkı ÖLMEZ","Güneydoğu Anadolu Bölgesi","Gaziantep","Dell",239]
[null,"Egemen ATAY","İç Anadolu Bölgesi","Ankara","MSI",454]
[null,"Ayşe UYAN","Marmara Bölgesi","Edirne","Lenovo",402]
[null,"Sevim SARPER","Marmara Bölgesi","Çanakkale","Lenovo",246]
[null,"Halime AŞAN","Doğu Anadolu Bölgesi","Van","Dell",219]
[null,"Hüseyin ALBAYRAK","Karadeniz Bölgesi","Ordu","Lenovo",385]
[null,"Hayri ÖZEL","Marmara Bölgesi","Balıkesir","Lenovo",48]
[null,"Atilla YİĞİT","Karadeniz Bölgesi","Trabzon","Lenovo",271]
[null,"Berkay YALÇIN","Marmara Bölgesi","Bilecik","MSI",341]
[null,"Aliye GEZER","Karadeniz Bölgesi","Samsun","Lenovo",422]
[null,"Rıza SİLAHLIPODA","Akdeniz Bölgesi","Hatay","Dell",46]
[null,"Eren AKTÜRK","İç Anadolu Bölgesi","Konya","Dell",17]
[null,"Hami EREN","Doğu Anadolu Bölgesi","Malatya","Lenovo",356]
[null,"Emel YAŞİN","Ege Bölgesi","Denizli","MSI",59]
[null,"Yıldırım BOZKURT","Güneydoğu Anadolu Bölgesi","Diyarbakır","Lenovo",96]
[null,"Rahmi YALÇIN","İç Anadolu Bölgesi","Konya","Lenovo",405]
[null,"Ayla KARA","İç Anadolu Bölgesi","Eskişehir","Dell",431]
[null,"Bertuğ YENİŞEHİRLİ","Doğu Anadolu Bölgesi","Malatya","MSI",239]
[null,"Gökhan YAĞIZ","Marmara Bölgesi","Balıkesir","Lenovo",215]
[null,"Kemalettin YALÇIN","Güneydoğu Anadolu Bölgesi","Gaziantep","MSI",333]
[null,"Rahmi YALÇIN","İç Anadolu Bölgesi","Konya","Lenovo",457]
[null,"Hami EREN","Doğu Anadolu Bölgesi","Malatya","Lenovo",492]
[null,"Yasemin TURGUT","İç Anadolu Bölgesi","Eskişehir","HP",392]
[null,"Yıldırım BOZKURT","Güneydoğu Anadolu Bölgesi","Diyarbakır","Lenovo",413]
[null,"Ersin KARADUT","İç Anadolu Bölgesi","Kayseri","Dell",310]
[null,"İrem DERİN","Güneydoğu Anadolu Bölgesi","Şanlıurfa","HP",97]
[null,"Tuğba TARCAN","Akdeniz Bölgesi","Hatay","Lenovo",362]
[null,"Aliye GEZER","Karadeniz Bölgesi","Samsun","HP",375]
[null,"Hakan DUMAN","Marmara Bölgesi","Çanakkale","Lenovo",241]
[null,"Ömer GİRGİN","Ege Bölgesi","Kütahya","Lenovo",331]
[null,"Bertuğ YENİŞEHİRLİ","Doğu Anadolu Bölgesi","Malatya","MSI",145]
[null,"Rıza SİLAHLIPODA","Akdeniz Bölgesi","Hatay","MSI",200]
[null,"Ersin KARADUT","İç Anadolu Bölgesi","Kayseri","Dell",347]
[null,"İrem DERİN","Güneydoğu Anadolu Bölgesi","Şanlıurfa","HP",419]
[null,"Efe YILDIZ","Akdeniz Bölgesi","Adana","Asus",114]
[null,"Berkan KUMLU","Ege Bölgesi","İzmir","Lenovo",372]
[null,"Serdar ALADAĞ","Güneydoğu Anadolu Bölgesi","Diyarbakır","MSI",386]
[null,"Kemalettin YALÇIN","Güneydoğu Anadolu Bölgesi","Gaziantep","MSI",449]
[null,{"$f":"IF(isim>0,CONCATENATE(TRIM(isim),\" \",UPPER(TRIM(soyisim))),\"İsmini Göremedik\")","v":"İsmini Göremedik"},"Marmara Bölgesi","Bursa","Dell",52]
[null,"Yasemin TURGUT","İç Anadolu Bölgesi","Eskişehir","Lenovo",218]
[null,"Engin AYDOĞAN","Doğu Anadolu Bölgesi","Erzurum","Dell",491]
[null,"Gökhan YAĞIZ","Marmara Bölgesi","Balıkesir","MSI",345]
[null,"Kemalettin TAN","Marmara Bölgesi","Çanakkale","HP",358]
[null,"Bertuğ YENİŞEHİRLİ","Doğu Anadolu Bölgesi","Malatya","Dell",320]
[null,"Neslihan YILMAZ","Karadeniz Bölgesi","Artvin","Dell",316]
[null,"Bülent AYDOĞAN","Doğu Anadolu Bölgesi","Erzincan","Lenovo",260]
[null,"Egemen ATAY","İç Anadolu Bölgesi","Ankara","HP",478]
[null,"Rıza SİLAHLIPODA","Akdeniz Bölgesi","Hatay","Dell",171]
[null,"Ahmet SEVİNÇ","Karadeniz Bölgesi","Samsun","Lenovo",156]
[null,"Tuğba TARCAN","Akdeniz Bölgesi","Hatay","MSI",252]
[null,"Ömer GİRGİN","Ege Bölgesi","Kütahya","HP",203]
[null,"Berkay YALÇIN","Marmara Bölgesi","Bilecik","Lenovo",57]
[null,"Sevim SARPER","Marmara Bölgesi","Çanakkale","Dell",176]
[null,"Serdar ALADAĞ","Güneydoğu Anadolu Bölgesi","Diyarbakır","HP",48]
[null,"Gökhan YAĞIZ","Marmara Bölgesi","Balıkesir","Dell",13]
[null,"Efe YILDIZ","Akdeniz Bölgesi","Adana","Lenovo",353]
[null,"Can YILDIZ","Karadeniz Bölgesi","Sinop","Lenovo",438]
[null,"Kemalettin YALÇIN","Güneydoğu Anadolu Bölgesi","Gaziantep","Dell",493]
[null,"Nagihan VATANSEVER","Marmara Bölgesi","İstanbul","MSI",413]
[null,"Ayla KARA","İç Anadolu Bölgesi","Eskişehir","Lenovo",222]
[null,"Ayşe UYAN","Marmara Bölgesi","Edirne","Dell",435]
[null,"Kemalettin TAN","Marmara Bölgesi","Çanakkale","Lenovo",156]
[null,"Ayşen ÇAKIR","Doğu Anadolu Bölgesi","Erzincan","Lenovo",197]
[null,"Can YILDIZ","Karadeniz Bölgesi","Sinop","MSI",489]
[null,"Safiye TERGAN","Doğu Anadolu Bölgesi","Van","Dell",22]
[null,"Neslihan YILMAZ","Karadeniz Bölgesi","Artvin","MSI",338]
[null,"Emel YAŞİN","Ege Bölgesi","Denizli","MSI",192]
[null,"Engin AYDOĞAN","Doğu Anadolu Bölgesi","Erzurum","Lenovo",321]
[null,"Aliye GEZER","Karadeniz Bölgesi","Samsun","Asus",45]
[null,"Ömer GİRGİN","Ege Bölgesi","Kütahya","Lenovo",255]
[null,"Can YILDIZ","Karadeniz Bölgesi","Sinop","Asus",91]
[null,"Atilla YİĞİT","Karadeniz Bölgesi","Trabzon","MSI",467]
[null,"Neslihan YILMAZ","Karadeniz Bölgesi","Artvin","Dell",420]
[null,"Yıldırım BOZKURT","Güneydoğu Anadolu Bölgesi","Diyarbakır","MSI",181]
[null,"Kamil BURLU","Güneydoğu Anadolu Bölgesi","Şanlıurfa","MSI",207]
[null,"Berkay YALÇIN","Marmara Bölgesi","Bilecik","Dell",241]
[null,"Bülent AYDOĞAN","Doğu Anadolu Bölgesi","Erzincan","MSI",409]
[null,"Nagihan VATANSEVER","Marmara Bölgesi","İstanbul","Lenovo",210]
[null,"Seda DEĞİRMENCİ","Akdeniz Bölgesi","Antalya","MSI",177]
[null,"Ömer GİRGİN","Ege Bölgesi","Kütahya","MSI",84]
[null,"Nagihan VATANSEVER","Marmara Bölgesi","İstanbul","Dell",400]
[null,"Aliye GEZER","Karadeniz Bölgesi","Samsun","Dell",324]
[null,"Seda DEĞİRMENCİ","Akdeniz Bölgesi","Antalya","HP",398]
[null,"Kamuran TEMUR","İç Anadolu Bölgesi","Kayseri","Lenovo",396]
[null,"Nagihan VATANSEVER","Marmara Bölgesi","İstanbul","Dell",463]
[null,"Eren HASANOĞLU","Marmara Bölgesi","Edirne","MSI",45]
[null,"Bülent AYDOĞAN","Doğu Anadolu Bölgesi","Erzincan","Dell",454]
[null,"Yıldırım BOZKURT","Güneydoğu Anadolu Bölgesi","Diyarbakır","Dell",400]
[null,"İlhan IŞIK","Akdeniz Bölgesi","Antalya","Lenovo",21]
[null,"Ersin KARADUT","İç Anadolu Bölgesi","Kayseri","HP",418]
[null,"Ayşen ÇAKIR","Doğu Anadolu Bölgesi","Erzincan","HP",249]
[null,"Emel YAŞİN","Ege Bölgesi","Denizli","Dell",403]
[null,"İsmail TÜRKÖNE","Marmara Bölgesi","İstanbul","HP",89]
[null,"Kamil BURLU","Güneydoğu Anadolu Bölgesi","Şanlıurfa","Dell",237]
[null,"Fatih TÜRKYILMAZ","Karadeniz Bölgesi","Trabzon","Dell",170]
[null,"Berkan KUMLU","Ege Bölgesi","İzmir","Lenovo",445]
[null,"Serdar ALADAĞ","Güneydoğu Anadolu Bölgesi","Diyarbakır","Dell",304]
[null,"Yıldırım BOZKURT","Güneydoğu Anadolu Bölgesi","Diyarbakır","Dell",279]
[null,"Hakkı ÖLMEZ","Güneydoğu Anadolu Bölgesi","Gaziantep","Lenovo",131]
[null,"Mustafa EMEK","Karadeniz Bölgesi","Artvin","Lenovo",407]
[null,"Ömer GİRGİN","Ege Bölgesi","Kütahya","Dell",144]
[null,"Gökhan YAĞIZ","Karadeniz Bölgesi","Artvin","MSI",74]
[null,"Atilla YİĞİT","Karadeniz Bölgesi","Trabzon","Asus",102]
[null,"Fatih TANDOĞAN","Akdeniz Bölgesi","Antalya","Lenovo",61]
[null,"Zeynep TATLITÜR","Ege Bölgesi","İzmir","MSI",338]
[null,"Hakan DUMAN","Marmara Bölgesi","Çanakkale","Dell",61]
[null,"Ayla KARA","İç Anadolu Bölgesi","Eskişehir","MSI",482]
[null,"Kamuran TEMUR","İç Anadolu Bölgesi","Kayseri","MSI",69]
[null,"Ayşen ÇAKIR","Doğu Anadolu Bölgesi","Erzincan","MSI",47]
[null,"Alper ÖNER","Marmara Bölgesi","Bursa","Lenovo",172]
[null,"Hami EREN","Doğu Anadolu Bölgesi","Malatya","HP",302]
[null,"Emel YAŞİN","Ege Bölgesi","Denizli","Dell",447]
[null,"Safiye TERGAN","Doğu Anadolu Bölgesi","Van","Lenovo",266]
[null,"Kamuran TEMUR","İç Anadolu Bölgesi","Kayseri","MSI",209]
[null,"Yıldırım BOZKURT","Güneydoğu Anadolu Bölgesi","Diyarbakır","MSI",174]
[null,"Ahmet SEVİNÇ","Karadeniz Bölgesi","Samsun","Dell",125]
[null,"Fatih TANDOĞAN","Akdeniz Bölgesi","Antalya","MSI",237]
[null,"Alper ÖNER","Marmara Bölgesi","Bursa","MSI",474]
[null,"Kamuran TEMUR","İç Anadolu Bölgesi","Kayseri","Lenovo",130]
[null,"Servet DENİZ","Karadeniz Bölgesi","Ordu","MSI",196]
[null,"Zeynep TATLITÜR","Ege Bölgesi","İzmir","Dell",464]
[null,"Can YILDIZ","Karadeniz Bölgesi","Sinop","Dell",306]
[null,"Berkay YALÇIN","Marmara Bölgesi","Bilecik","HP",12]
[null,"İsmail TÜRKÖNE","Marmara Bölgesi","İstanbul","Lenovo",155]
[null,"Rıza SİLAHLIPODA","Akdeniz Bölgesi","Hatay","Lenovo",397]
[null,"Servet DENİZ","Karadeniz Bölgesi","Ordu","MSI",46]
[null,"Safiye TERGAN","Doğu Anadolu Bölgesi","Van","Lenovo",418]
[null,"Hakkı ÖLMEZ","Güneydoğu Anadolu Bölgesi","Gaziantep","Dell",259]
[null,"Atilla YİĞİT","Karadeniz Bölgesi","Trabzon","Dell",312]
[null,"İrem DERİN","Güneydoğu Anadolu Bölgesi","Şanlıurfa","Lenovo",453]
[null,"Can YILDIZ","Karadeniz Bölgesi","Sinop","Lenovo",477]
[null,"Atilla YİĞİT","Karadeniz Bölgesi","Trabzon","Asus",400]
[null,"Hüseyin ALBAYRAK","Karadeniz Bölgesi","Ordu","Dell",298]
[null,"Efe YILDIZ","Akdeniz Bölgesi","Adana","Asus",338]
[null,"Egemen ATAY","İç Anadolu Bölgesi","Ankara","Asus",316]
[null,"İrem DERİN","Güneydoğu Anadolu Bölgesi","Şanlıurfa","MSI",136]
[null,"Berkay YALÇIN","Marmara Bölgesi","Bilecik","Dell",38]
[null,"Ahmet SEVİNÇ","Karadeniz Bölgesi","Samsun","MSI",203]
[null,"Engin AYDOĞAN","Doğu Anadolu Bölgesi","Erzurum","Dell",425]
[null,"Nagihan VATANSEVER","Marmara Bölgesi","İstanbul","Dell",322]
[null,"Kamil BURLU","Güneydoğu Anadolu Bölgesi","Şanlıurfa","Lenovo",258]
[null,"Emel YAŞİN","Ege Bölgesi","Denizli","Lenovo",318]
[null,"Mustafa EMEK","Karadeniz Bölgesi","Artvin","Dell",209]
[null,"Tuğba TARCAN","Akdeniz Bölgesi","Hatay","Dell",237]
[null,"Sevim SARPER","Marmara Bölgesi","Çanakkale","MSI",97]
[null,"Seda DEĞİRMENCİ","Akdeniz Bölgesi","Antalya","Lenovo",27]
[null,"Hakkı ÖLMEZ","Güneydoğu Anadolu Bölgesi","Gaziantep","Dell",370]
[null,"İlhan IŞIK","Akdeniz Bölgesi","Antalya","MSI",376]
[null,"Bertuğ YENİŞEHİRLİ","Doğu Anadolu Bölgesi","Malatya","MSI",255]
[null,"Volkan ERTÜRK","Marmara Bölgesi","Bursa","Dell",14]
[null,"Nagihan VATANSEVER","Marmara Bölgesi","İstanbul","Dell",425]
[null,"Hüseyin ALBAYRAK","Karadeniz Bölgesi","Ordu","HP",248]

{"sheet":"KoşulluBiçimlendirme1","index":30,"n_rows":22,"n_cols":3,"rows_kept":22,"cut":false,"hidden":false,"merged":[]}
[]
[null,"Koşullu Biçimlendirme"]
[]
[null,"Ürün Kodu","Ürün Miktarı"]
[null,"AX-0000-20156",50]
[null,"AX-0000-20857",226]
[null,"AX-0000-21158",59]
[null,"AX-0000-20159",77]
[null,"AX-0000-20770",126]
[null,"AX-0000-30181",123]
[null,"AX-0000-20162",42]
[null,"AX-0000-20193",159]
[null,"AX-0000-20164",158]
[null,"AX-0000-20125",46]
[null,"AX-0000-28186",29]
[null,"AX-0000-20167",144]
[null,"AX-0000-20168",89]
[null,"AX-0000-20169",79]
[null,"AX-0000-20170",19]
[null,"AX-0000-21191",133]
[null,"AX-0000-20172",56]
[null,"AX-0000-20173",33]

{"sheet":"KoşulluBiçimlendirme2","index":31,"n_rows":49,"n_cols":8,"rows_kept":49,"cut":false,"hidden":false,"merged":[]}
[]
[null,"Koşullu Biçimlendirme"]
[]
[null,"Firma",null,"Bugün",{"$f":"TODAY()","v":"2026-06-12"},null,"Ürün Kodu","Ürün Miktarı"]
[null,"Grammer",null,null,null,null,"AX-0000-20156",75]
[null,"Renault",null,"Son Ödeme Tarihi","Tutar",null,"AX-0000-20857",226]
[null,"Can Metal",null,{"$f":"TODAY()","v":"2026-06-12"},53425,null,"AX-0000-21158",59]
[null,"Yazaki",null,{"$f":"E4+1","v":"2026-06-13"},33248,null,"AX-0000-20159",197]
[null,"Matay",null,{"$f":"D8+1","v":"2026-06-14"},90591,null,"AX-0000-20770",126]
[null,"Continental",null,{"$f":"D9+2","v":"2026-06-16"},40599,null,"AX-0000-30181",73]
[null,"Monsanto",null,{"$f":"E4+1","v":"2026-06-13"},34805,null,"AX-0000-20162",60]
[null,"Burulaş",null,{"$f":"D11+1","v":"2026-06-14"},89912,null,"AX-0000-20193",159]
[null,"Autoneum",null,{"$f":"D7+1","v":"2026-06-13"},100428,null,"AX-0000-20168",89]
[null,"Nobel",null,{"$f":"D13+1","v":"2026-06-14"},58437,null,"AX-0000-20169",79]
[null,"Yeşim",null,"2026-06-15",121998,null,"AX-0000-20170",19]
[null,{"$f":"firma","v":0},null,{"$f":"D7+1","v":"2026-06-13"},140291,null,"AX-0000-21191",133]
[null,"Durmazlar",null,{"$f":"D16+8","v":"2026-06-21"},69022,null,"AX-0000-20172",56]
[null,"Aroma",null,"2026-06-22",39246,null,"AX-0000-20173",25]
[null,"Nestle",null,null,null,null,"AX-0000-20174",33]
[null,"TürkTex",null,"Yarın Yapılacak Ödeme Sayısı",null,null,"AX-0000-21185",81]
[null,"Chasess Breaks",null,null,null,null,"AX-0000-20176",117]
[null,"Coşkunöz",null,"Yarın Yapılacak Ödeme Tutarı"]
[null,"Leoni"]
[null,"Coats"]
[null,"Weltew"]
[null,"Mengerler"]
[null,"Cornaglia"]
[null,"Nestle"]
[null,"Renault"]
[null,"HB Plastik"]
[null,"Yazaki"]
[null,"Burulaş"]
[null,"Matlı"]
[null,"UİB"]
[null,"Keskinoğlu"]
[null,"Bosch"]
[null,"İnoksan"]
[null,"Bursa Çimento"]
[null,"Sonoco"]
[null,"Besaş"]
[null,"L&L Product"]
[null,"Gökçelik"]
[null,"Çimtaş"]
[null,"Çahan"]
[null,"BTSO"]
[null,"Prysmian"]
[null,"Mastaş"]
[null,"Buski"]
[null,"Erikli"]

{"sheet":"TarihFonksiyonları 1","index":32,"n_rows":39,"n_cols":18,"rows_kept":39,"cut":false,"hidden":false,"merged":[]}
[]
[null,"Tarih Fonksiyonları"]
[]
[]
[null,"Kısa Tarih","Uzun Tarih",null,null,null,null,null,null,{"$f":"dtarih","v":"00:00:00"}]
[null,{"$f":"TODAY()","v":"2026-06-12"},{"$f":"B6","v":"2026-06-12"},null,null,null,null,null,null,{"$f":"TODAY()","v":"2026-06-12"}]
[]
[]
[null,null,null,null,null,null," =TODAY()"]
[]
[null,"Bugün",{"$f":"IF(lang_op=2,VLOOKUP(B11,formuller,2,0),IF(lang_op=3,VLOOKUP(B11,formuller,3,0),IF(lang_op=4,VLOOKUP(B11,formuller,4,0),\"\")))","v":"TODAY"},null,null,{"$f":"IFERROR(_xlfn.FORMULATEXT(D11),\"\")","v":""},{"$f":"IF(D11>0,G9,\"\")","v":""},null,null,{"$f":"DATEDIF(J5, J6, \"Y\") & \" yıl \" & DATEDIF(J5, J6, \"YM\") & \" ay \" & DATEDIF(J5, J6, \"MD\") & \" gün\"","v":"126 yıl 5 ay 12 gün"},null,null,null,null,null,null,null,"Tarih"]
[]
[null,"Şimdi",{"$f":"IF(lang_op=2,VLOOKUP(B13,formuller,2,0),IF(lang_op=3,VLOOKUP(B13,formuller,3,0),IF(lang_op=4,VLOOKUP(B13,formuller,4,0),\"\")))","v":"NOW"},null,null,{"$f":"IFERROR(_xlfn.FORMULATEXT(D13),\"\")","v":""},{"$f":"IngFormul(D13)","v":""},null,null,{"$f":"IF(AND(MONTH(J5)=1,DAY(J5)>=20),\"Kova\",\nIF(AND(MONTH(J5)=2,DAY(J5)<=18),\"Kova\",\nIF(AND(MONTH(J5)=2,DAY(J5)>=19),\"Balık\",\nIF(AND(MONTH(J5)=3,DAY(J5)<=20),\"Balık\",\nIF(AND(MONTH(J5)=3,DAY(J5)>=21),\"Koç\",\nIF(AND(MONTH(J5)=4,DAY(J5)<=19),\"Koç\",\nIF(AND(MONTH(J5)=4,DAY(J5)>=20),\"Boğa\",\nIF(AND(MONTH(J5)=5,DAY(J5)<=20),\"Boğa\",\nIF(AND(MONTH(J5)=5,DAY(J5)>=21),\"İkizler\",\nIF(AND(MONTH(J5)=6,DAY(J5)<=20),\"İkizler\",\nIF(AND(MONTH(J5)=6,DAY(J5)>=21),\"Yengeç\",\nIF(AND(MONTH(J5)=7,DAY(J5)<=22),\"Yengeç\",\nIF(AND(MONTH(J5)=7,DAY(J5)>=23),\"Aslan\",\nIF(AND(MONTH(J5)=8,DAY(J5)<=22),\"Aslan\",\nIF(AND(MONTH(J5)=8,DAY(J5)>=23),\"Başak\",\nIF(AND(MONTH(J5)=9,DAY(J5)<=22),\"Başak\",\nIF(AND(MONTH(J5)=9,DAY(J5)>=23),\"Terazi\",\nIF(AND(MONTH(J5)=10,DAY(J5)<=22),\"Terazi\",\nIF(AND(MONTH(J5)=10,DAY(J5)>=23),\"Akrep\",\nIF(AND(MONTH(J5)=11,DAY(J5)<=21),\"Akrep\",\nIF(AND(MONTH(J5)=11,DAY(J5)>=22),\"Yay\",\nIF(AND(MONTH(J5)=12,DAY(J5)<=21),\"Yay\",\nIF(AND(MONTH(J5)=12,DAY(J5)>=22),\"Oğlak\",\nIF(AND(MONTH(J5)=1,DAY(J5)<=19),\"Oğlak\",\n\"\"))))))))))))))))))))))))","v":"Oğlak"},null,null,null,null,null,null,null,"Saat"]
[]
[]
[]
[]
[]
[]
[]
[]
[]
[]
[]
[]
[]
[]
[]
[null,"Başlangıç Saati","Bitiş Saati","Saat Farkı",null,null,null,null,null,"Hesap"]
[null,"2024-01-01T08:30:00","2024-01-01T17:30:00",{"$f":"(C30-B30)*24","v":9},null,{"$f":"IFERROR(_xlfn.FORMULATEXT(D30),\"\")","v":"=(C30-B30)*24"},null,null,"Ücret",367]
[null,null,null,null,null,null,null,null,"Saat",{"$f":"(C30-B30)*24","v":9}]
[null,null,null,"Dakika Farkı",null,null,null,null,"Tutar",{"$f":"J30*J31","v":3303}]
[null,null,null,{"$f":"(C30-B30)*1440","v":540},null,{"$f":"IFERROR(_xlfn.FORMULATEXT(D33),\"\")","v":"=(C30-B30)*1440"}]
[]
[null,null,null,"Saniye Farkı"]
[null,null,null,{"$f":"(C30-B30)*86400","v":32400},null,"=(C30-B30)*86400"]
[]
[null,null,null,"Saat Farkı (Sayı Değeri)"]
[null,null,null,{"$f":"INT((C30-B30)*24)","v":9},null,"=INT((C30-B30)*24)"]

{"sheet":"TarihFonksiyonları 2","index":33,"n_rows":15,"n_cols":10,"rows_kept":15,"cut":false,"hidden":false,"merged":[[12,7,12,8],[10,5,10,6],[5,2,5,3],[6,2,6,3],[7,2,7,3],[8,2,8,3],[9,2,9,3],[10,2,10,3],[5,5,5,6],[6,5,6,6],[7,5,7,6],[8,5,8,6],[9,5,9,6]]}
[]
[null,"Tarih Fonksiyonları"]
[]
[null,"Fonksiyon","Gün",null,"Ay",null,"Yıl"]
[null,{"$f":"IF(lang_op=1,\"\",IF(lang_op=2,\"İngilizce Karşılığı ---->\",IF(lang_op=3,\"Fransızca Karşılığı ---->\",\"Almanca Karşılığı ---->\")))","v":"İngilizce Karşılığı ---->"},{"$f":"IF(lang_op=2,VLOOKUP(C4,formuller,2,0),IF(lang_op=3,VLOOKUP(C4,formuller,3,0),IF(lang_op=4,VLOOKUP(C4,formuller,4,0),\"\")))","v":"DAY"},null,{"$f":"IF(lang_op=2,VLOOKUP(E4,formuller,2,0),IF(lang_op=3,VLOOKUP(E4,formuller,3,0),IF(lang_op=4,VLOOKUP(E4,formuller,4,0),\"\")))","v":"MONTH"},null,{"$f":"IF(lang_op=2,VLOOKUP(G4,formuller,2,0),IF(lang_op=3,VLOOKUP(G4,formuller,3,0),IF(lang_op=4,VLOOKUP(G4,formuller,4,0),\"\")))","v":"YEAR"},null,null,{"$f":"IF(C6>0,J6,\"\")","v":""}]
[null,{"$f":"TODAY()","v":"2026-06-12"},null,null,null,null,null,null,null," =DAY(B6)"]
[null,{"$f":"dtarih","v":"00:00:00"}]
[null,{"$f":"B6-95","v":"2026-03-09"}]
[null,{"$f":"B6+60","v":"2026-08-11"}]
[null,{"$f":"B8+51","v":"2026-04-29"}]
[null,{"$f":"B8+45","v":"2026-04-23"}]
[]
[null,null,{"$f":"IFERROR(_xlfn.FORMULATEXT(C6),\"\")","v":""},null,{"$f":"IFERROR(_xlfn.FORMULATEXT(E6),\"\")","v":""},null,{"$f":"IFERROR(_xlfn.FORMULATEXT(F6),\"\")","v":""}]
[]
[null,null,null,null,{"$f":"IngFormul(E6)","v":""},null,{"$f":"IngFormul(F6)","v":""}]

{"sheet":"Örnek1","index":34,"n_rows":370,"n_cols":15,"rows_kept":370,"cut":false,"hidden":false,"merged":[]}
[]
[null,"Örnek 1"]
[]
[null,"Marka","Tür","Satış Türü","Tarih","Şehir","Ödeme Türü","Fiyat",null,null,"Aylar",2020,2021,2022,2023]
[null,"IBM","PC","Mağaza","2020-01-01","İstanbul","Peşin",12542,null,1,"Ocak"]
[null,"HP","Tablet","Mağaza","2020-01-03","Ankara","Peşin",4543,null,2,"Şubat"]
[null,"MSI","PC","Site","2020-01-05","Ankara","Kredi Kartı",20984,null,3,"Mart"]
[null,"DELL","Notebook","Site","2020-01-13","Bursa","Kredi Kartı",35927,null,4,"Nisan"]
[null,"MSI","Tablet","Site","2020-01-22","İstanbul","Kredi Kartı",5647,null,5,"Mayıs"]
[null,"DELL","Tablet","Site","2020-02-06","Bursa","Kredi Kartı",6222,null,6,"Haziran"]
[null,"TOSHIBA","Notebook","Site","2020-02-06","Bursa","Kredi Kartı",26104,null,7,"Temmuz"]
[null,"DELL","Notebook","Mağaza","2020-02-09","İstanbul","Peşin",19257,null,8,"Ağustos"]
[null,"ASUS","Notebook","Site","2020-02-11","Bursa","Kredi Kartı",32911,null,9,"Eylül"]
[null,"HP","Tablet","Site","2020-02-14","Bursa","Kredi Kartı",5256,null,10,"Ekim"]
[null,"DELL","Notebook","Site","2020-02-15","İstanbul","Kredi Kartı",29188,null,11,"Kasım"]
[null,"IBM","PC","Mağaza","2020-02-17","Ankara","Peşin",16736,null,12,"Aralık"]
[null,"ASUS","Notebook","Site","2020-02-20","Bursa","Kredi Kartı",18562]
[null,"MSI","Tablet","Mağaza","2020-02-21","İstanbul","Peşin",6574,null,null,null,{"$f":"IFERROR(_xlfn.FORMULATEXT(L5),\"\")","v":""}]
[null,"IBM","Tablet","Site","2020-02-28","Bursa","Kredi Kartı",8117]
[null,"IBM","PC","Mağaza","2020-03-03","Bursa","Kredi Kartı",16880,null,null,null,{"$f":"IngFormul(L5)","v":""}]
[null,"TOSHIBA","Notebook","Mağaza","2020-03-04","Bursa","Peşin",26627]
[null,"DELL","Notebook","Site","2020-03-12","Bursa","Kredi Kartı",35927]
[null,"HP","Tablet","Site","2020-03-16","Bursa","Kredi Kartı",5256]
[null,"HP","Tablet","Mağaza","2020-03-17","Bursa","Peşin",6193]
[null,"TOSHIBA","Notebook","Site","2020-03-17","Bursa","Kredi Kartı",29834]
[null,"HP","PC","Mağaza","2020-03-19","İstanbul","Peşin",14147]
[null,"MSI","PC","Site","2020-03-22","Bursa","Kredi Kartı",14924]
[null,"HP","Tablet","Mağaza","2020-03-22","Ankara","Peşin",4543]
[null,"IBM","PC","Mağaza","2020-03-25","Ankara","Peşin",19236]
[null,"HP","PC","Mağaza","2020-03-28","İstanbul","Peşin",20940]
[null,"MSI","PC","Mağaza","2020-04-06","Ankara","Peşin",16500]
[null,"TOSHIBA","Tablet","Site","2020-04-12","Bursa","Kredi Kartı",5865]
[null,"IBM","Tablet","Site","2020-04-12","Bursa","Kredi Kartı",8117]
[null,"HP","PC","Mağaza","2020-04-14","İstanbul","Peşin",14147]
[null,"TOSHIBA","Notebook","Mağaza","2020-04-19","Ankara","Peşin",32915]
[null,"TOSHIBA","PC","Mağaza","2020-04-20","Bursa","Peşin",21655]
[null,"TOSHIBA","PC","Site","2020-05-07","İstanbul","Kredi Kartı",21623]
[null,"HP","PC","Site","2020-05-12","Bursa","Kredi Kartı",12776]
[null,"MSI","Notebook","Site","2020-05-13","Bursa","Kredi Kartı",22725]
[null,"TOSHIBA","PC","Mağaza","2020-05-16","Ankara","Peşin",17862]
[null,"HP","PC","Mağaza","2020-05-16","İstanbul","Peşin",14147]
[null,"MSI","PC","Site","2020-05-18","Ankara","Kredi Kartı",20984]
[null,"DELL","PC","Site","2020-05-22","Bursa","Kredi Kartı",13002]
[null,"IBM","PC","Mağaza","2020-06-05","İstanbul","Peşin",12542]
[null,"ASUS","Notebook","Mağaza","2020-06-13","Ankara","Peşin",31393]
[null,"MSI","PC","Mağaza","2020-06-15","Ankara","Peşin",16500]
[null,"TOSHIBA","PC","Mağaza","2020-06-18","İstanbul","Peşin",19034]
[null,"HP","PC","Site","2020-06-20","İstanbul","Kredi Kartı",14590]
[null,"DELL","Notebook","Site","2020-06-21","Bursa","Kredi Kartı",26914]
[null,"TOSHIBA","PC","Mağaza","2020-06-25","İstanbul","Peşin",19034]
[null,"HP","PC","Site","2020-06-26","Bursa","Kredi Kartı",22025]
[null,"TOSHIBA","PC","Mağaza","2020-06-30","Bursa","Peşin",21655]
[null,"ASUS","Notebook","Mağaza","2020-07-01","Ankara","Peşin",20337]
[null,"DELL","Notebook","Mağaza","2020-07-04","İstanbul","Peşin",27077]
[null,"DELL","Notebook","Site","2020-07-07","Ankara","Kredi Kartı",21667]
[null,"MSI","Tablet","Mağaza","2020-07-12","Ankara","Peşin",6818]
[null,"DELL","Tablet","Mağaza","2020-07-15","Bursa","Peşin",6446]
[null,"MSI","PC","Site","2020-07-16","Ankara","Kredi Kartı",20984]
[null,"ASUS","Notebook","Site","2020-07-22","Bursa","Kredi Kartı",32911]
[null,"MSI","Tablet","Mağaza","2020-07-26","İstanbul","Kredi Kartı",7730]
[null,"IBM","Notebook","Site","2020-08-01","Bursa","Kredi Kartı",33206]
[null,"HP","PC","Mağaza","2020-08-02","Bursa","Peşin",13200]
[null,"IBM","Notebook","Site","2020-08-03","Ankara","Kredi Kartı",23934]
[null,"HP","Notebook","Mağaza","2020-08-05","Ankara","Peşin",34208]
[null,"HP","Notebook","Site","2020-08-10","Bursa","Kredi Kartı",31779]
[null,"MSI","PC","Site","2020-08-11","Bursa","Kredi Kartı",14924]
[null,"HP","PC","Mağaza","2020-08-17","Ankara","Peşin",22332]
[null,"ASUS","Notebook","Site","2020-08-22","İstanbul","Kredi Kartı",28022]
[null,"HP","PC","Site","2020-08-25","Bursa","Kredi Kartı",12776]
[null,"ASUS","Notebook","Site","2020-09-01","Bursa","Kredi Kartı",34831]
[null,"DELL","Tablet","Site","2020-09-01","Ankara","Kredi Kartı",7086]
[null,"DELL","PC","Site","2020-09-06","Ankara","Kredi Kartı",17805]
[null,"ASUS","PC","Mağaza","2020-09-06","İstanbul","Peşin",14132]
[null,"ASUS","Tablet","Site","2020-09-08","Bursa","Kredi Kartı",8545]
[null,"MSI","Notebook","Site","2020-09-17","Bursa","Kredi Kartı",22725]
[null,"MSI","Notebook","Mağaza","2020-09-18","Bursa","Peşin",35953]
[null,"DELL","PC","Site","2020-09-18","İstanbul","Kredi Kartı",20955]
[null,"IBM","Notebook","Site","2020-09-23","Bursa","Kredi Kartı",27501]
[null,"MSI","PC","Mağaza","2020-10-08","Ankara","Peşin",16500]
[null,"ASUS","Notebook","Mağaza","2020-11-15","Ankara","Peşin",31393]
[null,"ASUS","Notebook","Mağaza","2020-11-24","Ankara","Peşin",20337]
[null,"IBM","Notebook","Mağaza","2020-12-03","Bursa","Kredi Kartı",20710]
[null,"DELL","Notebook","Site","2020-12-05","İstanbul","Kredi Kartı",29188]
[null,"TOSHIBA","Notebook","Site","2020-12-10","Bursa","Kredi Kartı",24011]
[null,"IBM","Notebook","Site","2020-12-13","Bursa","Kredi Kartı",20723]
[null,"HP","PC","Site","2020-12-14","Bursa","Kredi Kartı",14122]
[null,"DELL","PC","Site","2020-12-17","İstanbul","Kredi Kartı",20955]
[null,"IBM","Tablet","Site","2020-12-24","Bursa","Kredi Kartı",8117]
[null,"DELL","PC","Mağaza","2020-12-25","Ankara","Kredi Kartı",13788]
[null,"TOSHIBA","PC","Mağaza","2020-12-26","Ankara","Peşin",17862]
[null,"TOSHIBA","Tablet","Mağaza","2020-12-28","Bursa","Peşin",3802]
[null,"DELL","Notebook","Site","2021-01-03","Bursa","Kredi Kartı",35927]
[null,"TOSHIBA","PC","Site","2021-01-07","İstanbul","Kredi Kartı",23416]
[null,"IBM","PC","Mağaza","2021-01-12","İstanbul","Peşin",20625]
[null,"TOSHIBA","Tablet","Site","2021-01-12","Bursa","Kredi Kartı",5865]
[null,"IBM","PC","Mağaza","2021-01-13","İstanbul","Peşin",17457]
[null,"HP","Notebook","Site","2021-01-19","İstanbul","Kredi Kartı",27796]
[null,"DELL","Tablet","Mağaza","2021-01-23","Bursa","Kredi Kartı",4701]
[null,"DELL","PC","Site","2021-01-24","İstanbul","Kredi Kartı",20955]
[null,"ASUS","Tablet","Site","2021-01-27","Bursa","Kredi Kartı",5762]
[null,"TOSHIBA","Notebook","Mağaza","2021-01-29","Bursa","Peşin",26627]
[null,"IBM","PC","Mağaza","2021-01-30","Bursa","Kredi Kartı",16880]
[null,"HP","Tablet","Mağaza","2021-01-30","Bursa","Peşin",5137]
[null,"ASUS","Notebook","Mağaza","2021-02-03","Ankara","Peşin",33061]
[null,"ASUS","Notebook","Site","2021-02-07","Bursa","Kredi Kartı",18562]
[null,"ASUS","PC","Site","2021-02-14","İstanbul","Kredi Kartı",12915]
[null,"HP","PC","Site","2021-02-17","Bursa","Kredi Kartı",12776]
[null,"IBM","Notebook","Site","2021-02-23","Bursa","Kredi Kartı",33206]
[null,"DELL","Notebook","Site","2021-02-24","Bursa","Kredi Kartı",26914]
[null,"IBM","PC","Mağaza","2021-03-07","İstanbul","Peşin",20625]
[null,"TOSHIBA","Notebook","Mağaza","2021-03-09","Ankara","Peşin",32915]
[null,"HP","PC","Mağaza","2021-03-13","Bursa","Peşin",12774]
[null,"HP","PC","Mağaza","2021-03-14","Bursa","Peşin",13200]
[null,"TOSHIBA","PC","Mağaza","2021-03-17","İstanbul","Peşin",19034]
[null,"IBM","Tablet","Site","2021-03-23","Ankara","Kredi Kartı",7314]
[null,"ASUS","Notebook","Site","2021-03-23","İstanbul","Kredi Kartı",28022]
[null,"DELL","Notebook","Site","2021-03-23","Ankara","Kredi Kartı",21667]
[null,"TOSHIBA","Tablet","Mağaza","2021-03-26","Bursa","Peşin",3802]
[null,"DELL","Tablet","Site","2021-03-30","Ankara","Kredi Kartı",7086]
[null,"MSI","Tablet","Mağaza","2021-04-02","İstanbul","Kredi Kartı",7730]
[null,"TOSHIBA","Tablet","Site","2021-04-11","Bursa","Kredi Kartı",4827]
[null,"HP","PC","Site","2021-04-12","İstanbul","Kredi Kartı",23446]
[null,"TOSHIBA","Notebook","Mağaza","2021-04-19","Bursa","Peşin",25944]
[null,"HP","Notebook","Site","2021-04-25","Bursa","Kredi Kartı",31779]
[null,"HP","PC","Site","2021-04-28","Bursa","Kredi Kartı",12776]
[null,"HP","Notebook","Site","2021-05-01","Bursa","Kredi Kartı",31779]
[null,"DELL","Notebook","Mağaza","2021-05-02","İstanbul","Peşin",27077]
[null,"MSI","PC","Site","2021-05-02","Bursa","Kredi Kartı",14924]
[null,"HP","PC","Site","2021-05-03","İstanbul","Kredi Kartı",23446]
[null,"DELL","PC","Mağaza","2021-05-03","Bursa","Peşin",19044]
[null,"IBM","Notebook","Site","2021-05-06","Bursa","Kredi Kartı",20723]
[null,"HP","PC","Mağaza","2021-05-06","Ankara","Peşin",22332]
[null,"IBM","Tablet","Site","2021-05-11","Ankara","Kredi Kartı",7314]
[null,"ASUS","PC","Mağaza","2021-05-16","İstanbul","Peşin",14132]
[null,"IBM","PC","Mağaza","2021-05-17","Ankara","Peşin",16736]
[null,"MSI","Tablet","Site","2021-05-22","Bursa","Kredi Kartı",6892]
[null,"MSI","PC","Site","2021-05-28","Bursa","Kredi Kartı",14357]
[null,"IBM","Notebook","Site","2021-05-29","Ankara","Kredi Kartı",23934]
[null,"TOSHIBA","Tablet","Site","2021-06-02","Bursa","Kredi Kartı",4827]
[null,"ASUS","Notebook","Site","2021-06-04","İstanbul","Kredi Kartı",28022]
[null,"HP","Tablet","Mağaza","2021-06-11","Bursa","Peşin",6193]
[null,"HP","PC","Site","2021-06-13","İstanbul","Kredi Kartı",14590]
[null,"ASUS","Notebook","Site","2021-06-14","Bursa","Kredi Kartı",18562]
[null,"HP","PC","Site","2021-06-15","İstanbul","Kredi Kartı",23446]
[null,"ASUS","Notebook","Mağaza","2021-06-19","Ankara","Peşin",20337]
[null,"TOSHIBA","Tablet","Site","2021-06-23","Bursa","Kredi Kartı",5865]
[null,"IBM","Tablet","Site","2021-06-24","Ankara","Kredi Kartı",7314]
[null,"MSI","Tablet","Site","2021-06-24","İstanbul","Kredi Kartı",5647]
[null,"TOSHIBA","Notebook","Site","2021-07-04","Bursa","Kredi Kartı",26104]
[null,"HP","PC","Mağaza","2021-07-11","Bursa","Peşin",12774]
[null,"DELL","Tablet","Site","2021-07-21","Ankara","Kredi Kartı",7086]
[null,"MSI","Tablet","Mağaza","2021-07-22","İstanbul","Peşin",6574]
[null,"DELL","Tablet","Mağaza","2021-07-23","Bursa","Kredi Kartı",4701]
[null,"DELL","Notebook","Mağaza","2021-07-27","İstanbul","Peşin",19257]
[null,"MSI","Tablet","Mağaza","2021-07-28","Ankara","Peşin",6818]
[null,"TOSHIBA","PC","Site","2021-07-28","İstanbul","Kredi Kartı",21623]
[null,"ASUS","Notebook","Mağaza","2021-07-31","Ankara","Peşin",20337]
[null,"HP","Tablet","Mağaza","2021-08-03","Ankara","Kredi Kartı",7344]
[null,"TOSHIBA","Notebook","Mağaza","2021-08-09","Bursa","Peşin",26627]
[null,"DELL","Tablet","Site","2021-08-17","Bursa","Kredi Kartı",6222]
[null,"MSI","PC","Site","2021-08-19","Bursa","Kredi Kartı",14924]
[null,"IBM","Notebook","Mağaza","2021-08-26","Bursa","Kredi Kartı",20710]
[null,"ASUS","PC","Site","2021-08-27","İstanbul","Kredi Kartı",12915]
[null,"MSI","PC","Site","2021-08-28","Bursa","Kredi Kartı",14357]
[null,"TOSHIBA","Tablet","Mağaza","2021-09-04","Ankara","Peşin",7475]
[null,"IBM","PC","Mağaza","2021-09-06","İstanbul","Peşin",17457]
[null,"HP","PC","Site","2021-09-07","Bursa","Kredi Kartı",14122]
[null,"ASUS","PC","Mağaza","2021-09-12","İstanbul","Peşin",14132]
[null,"IBM","Tablet","Site","2021-09-13","Bursa","Kredi Kartı",8117]
[null,"IBM","Notebook","Mağaza","2021-09-22","Bursa","Peşin",19624]
[null,"MSI","Tablet","Site","2021-09-23","İstanbul","Kredi Kartı",5647]
[null,"IBM","Tablet","Mağaza","2021-09-24","Ankara","Peşin",6253]
[null,"ASUS","Notebook","Site","2021-09-29","Bursa","Kredi Kartı",34831]
[null,"IBM","PC","Mağaza","2021-10-08","Bursa","Kredi Kartı",16880]
[null,"IBM","Notebook","Site","2021-10-17","Bursa","Kredi Kartı",27501]
[null,"HP","PC","Mağaza","2021-10-25","Bursa","Peşin",12774]
[null,"HP","PC","Site","2021-10-26","İstanbul","Kredi Kartı",23446]
[null,"IBM","Notebook","Mağaza","2021-10-27","Bursa","Peşin",19624]
[null,"DELL","PC","Mağaza","2021-10-30","Bursa","Peşin",19044]
[null,"DELL","PC","Site","2021-11-07","Ankara","Kredi Kartı",17805]
[null,"MSI","PC","Mağaza","2021-11-12","Ankara","Peşin",16500]
[null,"ASUS","Notebook","Mağaza","2021-11-22","Ankara","Peşin",31393]
[null,"TOSHIBA","Notebook","Site","2021-11-24","Bursa","Kredi Kartı",29834]
[null,"DELL","Notebook","Site","2021-11-26","İstanbul","Kredi Kartı",29188]
[null,"IBM","Notebook","Site","2021-11-26","Bursa","Kredi Kartı",27501]
[null,"DELL","Notebook","Site","2021-11-29","İstanbul","Kredi Kartı",29188]
[null,"DELL","PC","Site","2021-11-30","Ankara","Kredi Kartı",17805]
[null,"IBM","Notebook","Site","2021-11-30","Bursa","Kredi Kartı",33206]
[null,"TOSHIBA","Notebook","Mağaza","2021-12-04","İstanbul","Kredi Kartı",27281]
[null,"DELL","Notebook","Mağaza","2021-12-14","İstanbul","Peşin",19257]
[null,"HP","Tablet","Site","2021-12-14","Bursa","Kredi Kartı",5256]
[null,"HP","Tablet","Mağaza","2021-12-15","Ankara","Peşin",4543]
[null,"DELL","Notebook","Mağaza","2021-12-15","İstanbul","Peşin",28155]
[null,"DELL","PC","Site","2021-12-17","Ankara","Kredi Kartı",17805]
[null,"ASUS","Tablet","Site","2021-12-28","Bursa","Kredi Kartı",5762]
[null,"TOSHIBA","Tablet","Mağaza","2021-12-29","Ankara","Peşin",7475]
[null,"IBM","PC","Mağaza","2022-01-03","Ankara","Peşin",16736]
[null,"DELL","Tablet","Mağaza","2022-01-10","Bursa","Peşin",6446]
[null,"TOSHIBA","Tablet","Mağaza","2022-01-13","Bursa","Peşin",3802]
[null,"MSI","Notebook","Site","2022-01-25","Bursa","Kredi Kartı",22725]
[null,"TOSHIBA","PC","Site","2022-01-29","İstanbul","Kredi Kartı",23416]
[null,"MSI","Notebook","Mağaza","2022-01-30","Bursa","Peşin",35953]
[null,"ASUS","Notebook","Site","2022-02-02","Bursa","Kredi Kartı",32911]
[null,"MSI","PC","Site","2022-02-04","Ankara","Kredi Kartı",20984]
[null,"HP","PC","Site","2022-02-05","Bursa","Kredi Kartı",14122]
[null,"ASUS","PC","Mağaza","2022-02-10","Bursa","Peşin",16601]
[null,"DELL","Tablet","Site","2022-02-13","Bursa","Kredi Kartı",6222]
[null,"DELL","Tablet","Mağaza","2022-02-23","Bursa","Kredi Kartı",4701]
[null,"ASUS","Notebook","Site","2022-02-23","İstanbul","Kredi Kartı",28022]
[null,"DELL","Notebook","Site","2022-02-24","Bursa","Kredi Kartı",35927]
[null,"TOSHIBA","Notebook","Site","2022-02-27","Bursa","Kredi Kartı",26104]
[null,"IBM","Notebook","Site","2022-02-28","Ankara","Kredi Kartı",23934]
[null,"IBM","Tablet","Mağaza","2022-02-28","Ankara","Peşin",6253]
[null,"MSI","Tablet","Mağaza","2022-03-07","İstanbul","Kredi Kartı",7730]
[null,"IBM","PC","Mağaza","2022-03-13","Bursa","Kredi Kartı",16880]
[null,"TOSHIBA","Tablet","Mağaza","2022-03-13","Ankara","Peşin",7475]
[null,"IBM","PC","Mağaza","2022-03-20","Bursa","Kredi Kartı",16764]
[null,"MSI","Tablet","Mağaza","2022-03-25","İstanbul","Kredi Kartı",7730]
[null,"IBM","PC","Mağaza","2022-03-29","İstanbul","Peşin",17457]
[null,"MSI","Tablet","Mağaza","2022-04-04","İstanbul","Peşin",6574]
[null,"HP","PC","Mağaza","2022-04-07","Ankara","Peşin",22332]
[null,"MSI","Notebook","Mağaza","2022-04-07","Bursa","Peşin",23336]
[null,"HP","PC","Mağaza","2022-04-10","İstanbul","Peşin",20940]
[null,"IBM","Notebook","Site","2022-04-19","Bursa","Kredi Kartı",28290]
[null,"ASUS","PC","Site","2022-04-20","İstanbul","Kredi Kartı",12915]
[null,"DELL","PC","Site","2022-04-23","İstanbul","Kredi Kartı",20955]
[null,"IBM","PC","Mağaza","2022-04-25","İstanbul","Peşin",20625]
[null,"ASUS","Tablet","Site","2022-04-25","Bursa","Kredi Kartı",5762]
[null,"HP","PC","Site","2022-04-29","Bursa","Kredi Kartı",14122]
[null,"DELL","PC","Site","2022-05-03","Bursa","Kredi Kartı",13002]
[null,"IBM","Notebook","Site","2022-05-06","Bursa","Kredi Kartı",27501]
[null,"IBM","Notebook","Mağaza","2022-05-09","Bursa","Kredi Kartı",20710]
[null,"DELL","PC","Site","2022-05-14","Bursa","Kredi Kartı",13002]
[null,"DELL","Notebook","Mağaza","2022-05-15","İstanbul","Peşin",27077]
[null,"HP","Tablet","Mağaza","2022-05-16","Ankara","Kredi Kartı",7344]
[null,"MSI","PC","Site","2022-05-17","Bursa","Kredi Kartı",14357]
[null,"HP","Tablet","Mağaza","2022-05-18","Ankara","Kredi Kartı",7344]
[null,"TOSHIBA","PC","Site","2022-05-23","İstanbul","Kredi Kartı",21623]
[null,"TOSHIBA","PC","Site","2022-06-08","İstanbul","Kredi Kartı",21623]
[null,"HP","Notebook","Mağaza","2022-06-15","Ankara","Peşin",34208]
[null,"DELL","Notebook","Site","2022-06-20","Ankara","Kredi Kartı",21667]
[null,"HP","PC","Mağaza","2022-07-01","Ankara","Peşin",22332]
[null,"IBM","PC","Mağaza","2022-07-05","İstanbul","Peşin",12542]
[null,"DELL","Notebook","Mağaza","2022-07-08","İstanbul","Peşin",28155]
[null,"TOSHIBA","PC","Mağaza","2022-07-11","Bursa","Peşin",21655]
[null,"TOSHIBA","PC","Site","2022-07-13","Ankara","Kredi Kartı",18635]
[null,"TOSHIBA","Notebook","Site","2022-07-17","Bursa","Kredi Kartı",26104]
[null,"DELL","Notebook","Mağaza","2022-07-18","İstanbul","Peşin",27077]
[null,"TOSHIBA","PC","Site","2022-07-19","İstanbul","Kredi Kartı",23416]
[null,"HP","Notebook","Site","2022-07-20","İstanbul","Kredi Kartı",27796]
[null,"MSI","PC","Site","2022-08-08","Bursa","Kredi Kartı",14357]
[null,"MSI","Tablet","Mağaza","2022-08-19","İstanbul","Peşin",6574]
[null,"TOSHIBA","Notebook","Mağaza","2022-08-19","Ankara","Kredi Kartı",20030]
[null,"ASUS","Notebook","Mağaza","2022-08-23","Ankara","Peşin",33061]
[null,"DELL","Tablet","Site","2022-08-27","Ankara","Kredi Kartı",7086]
[null,"ASUS","Notebook","Site","2022-08-30","Bursa","Kredi Kartı",18562]
[null,"MSI","Tablet","Site","2022-09-01","Bursa","Kredi Kartı",6892]
[null,"ASUS","PC","Mağaza","2022-09-07","İstanbul","Peşin",14132]
[null,"ASUS","Tablet","Site","2022-09-07","Bursa","Kredi Kartı",8545]
[null,"HP","Tablet","Mağaza","2022-09-07","Bursa","Peşin",5137]
[null,"IBM","Notebook","Mağaza","2022-09-11","Bursa","Peşin",19624]
[null,"IBM","Tablet","Mağaza","2022-09-20","Ankara","Peşin",6253]
[null,"MSI","Tablet","Site","2022-09-25","Bursa","Kredi Kartı",6892]
[null,"MSI","Notebook","Site","2022-09-28","Bursa","Kredi Kartı",22725]
[null,"TOSHIBA","Notebook","Mağaza","2022-10-10","Ankara","Kredi Kartı",20030]
[null,"HP","Tablet","Mağaza","2022-10-11","Ankara","Peşin",4543]
[null,"HP","PC","Site","2022-10-15","Bursa","Kredi Kartı",22025]
[null,"DELL","PC","Mağaza","2022-10-16","Ankara","Kredi Kartı",13788]
[null,"HP","PC","Mağaza","2022-10-25","Bursa","Peşin",13200]
[null,"TOSHIBA","PC","Mağaza","2022-11-01","Bursa","Peşin",21655]
[null,"MSI","Tablet","Mağaza","2022-11-09","Ankara","Peşin",6818]
[null,"HP","PC","Mağaza","2022-11-12","İstanbul","Peşin",14147]
[null,"MSI","Notebook","Mağaza","2022-11-23","Bursa","Peşin",23336]
[null,"TOSHIBA","Notebook","Mağaza","2022-11-25","İstanbul","Kredi Kartı",27281]
[null,"TOSHIBA","Notebook","Mağaza","2022-12-06","Ankara","Kredi Kartı",20030]
[null,"TOSHIBA","Tablet","Site","2022-12-07","Bursa","Kredi Kartı",4827]
[null,"TOSHIBA","PC","Mağaza","2022-12-10","Ankara","Peşin",17862]
[null,"IBM","Notebook","Site","2022-12-12","Bursa","Kredi Kartı",20723]
[null,"IBM","Notebook","Site","2022-12-14","Bursa","Kredi Kartı",33206]
[null,"IBM","Notebook","Site","2022-12-27","Bursa","Kredi Kartı",20723]
[null,"HP","Tablet","Site","2022-12-31","Bursa","Kredi Kartı",5256]
[null,"HP","Tablet","Mağaza","2022-12-31","Bursa","Peşin",5137]
[null,"HP","PC","Mağaza","2023-01-07","Bursa","Peşin",13200]
[null,"HP","PC","Mağaza","2023-01-09","Bursa","Peşin",12774]
[null,"ASUS","Notebook","Mağaza","2023-01-13","Ankara","Peşin",33061]
[null,"ASUS","Notebook","Site","2023-01-18","Bursa","Kredi Kartı",32911]
[null,"HP","PC","Mağaza","2023-01-20","İstanbul","Peşin",20940]
[null,"HP","PC","Mağaza","2023-01-27","İstanbul","Peşin",20940]
[null,"MSI","Notebook","Mağaza","2023-02-02","Bursa","Peşin",35953]
[null,"TOSHIBA","Notebook","Mağaza","2023-02-09","Ankara","Peşin",32915]
[null,"HP","Tablet","Mağaza","2023-02-09","Ankara","Kredi Kartı",7344]
[null,"IBM","PC","Mağaza","2023-02-12","İstanbul","Peşin",17457]
[null,"ASUS","PC","Mağaza","2023-02-12","Bursa","Peşin",16601]
[null,"TOSHIBA","Notebook","Site","2023-02-15","Bursa","Kredi Kartı",29834]
[null,"TOSHIBA","Tablet","Mağaza","2023-02-21","Bursa","Peşin",3802]
[null,"TOSHIBA","PC","Site","2023-02-23","Ankara","Kredi Kartı",18635]
[null,"DELL","Notebook","Mağaza","2023-02-27","İstanbul","Peşin",28155]
[null,"TOSHIBA","Notebook","Mağaza","2023-03-09","Bursa","Peşin",26627]
[null,"TOSHIBA","PC","Mağaza","2023-03-10","İstanbul","Peşin",19034]
[null,"TOSHIBA","Notebook","Site","2023-03-15","Bursa","Kredi Kartı",29834]
[null,"MSI","Tablet","Mağaza","2023-03-17","Ankara","Peşin",6818]
[null,"HP","PC","Site","2023-03-22","Bursa","Kredi Kartı",22025]
[null,"IBM","Notebook","Site","2023-03-29","Ankara","Kredi Kartı",23934]
[null,"DELL","Notebook","Mağaza","2023-03-31","Bursa","Kredi Kartı",28533]
[null,"TOSHIBA","Notebook","Mağaza","2023-03-31","Ankara","Peşin",32915]
[null,"TOSHIBA","Tablet","Site","2023-04-09","Bursa","Kredi Kartı",5865]
[null,"MSI","Notebook","Mağaza","2023-04-26","Bursa","Peşin",23336]
[null,"IBM","Notebook","Mağaza","2023-04-30","Bursa","Kredi Kartı",20710]
[null,"ASUS","Notebook","Mağaza","2023-05-06","Ankara","Peşin",33061]
[null,"TOSHIBA","PC","Mağaza","2023-05-06","Ankara","Peşin",17862]
[null,"ASUS","PC","Site","2023-05-11","İstanbul","Kredi Kartı",12915]
[null,"DELL","Notebook","Site","2023-05-15","Ankara","Kredi Kartı",21667]
[null,"ASUS","Notebook","Site","2023-05-16","Bursa","Kredi Kartı",34831]
[null,"TOSHIBA","Notebook","Mağaza","2023-05-16","Bursa","Peşin",25944]
[null,"ASUS","Notebook","Mağaza","2023-05-21","Ankara","Peşin",31393]
[null,"IBM","PC","Mağaza","2023-06-02","İstanbul","Peşin",20625]
[null,"TOSHIBA","Tablet","Mağaza","2023-06-04","Ankara","Peşin",7475]
[null,"HP","Notebook","Mağaza","2023-06-05","Ankara","Peşin",34208]
[null,"TOSHIBA","Notebook","Mağaza","2023-06-07","İstanbul","Kredi Kartı",27281]
[null,"DELL","Tablet","Mağaza","2023-06-22","Bursa","Peşin",6446]
[null,"HP","PC","Site","2023-06-23","İstanbul","Kredi Kartı",14590]
[null,"IBM","PC","Mağaza","2023-06-26","İstanbul","Peşin",12542]
[null,"IBM","Tablet","Site","2023-07-06","Ankara","Kredi Kartı",7314]
[null,"HP","Notebook","Site","2023-07-08","İstanbul","Kredi Kartı",27796]
[null,"MSI","Notebook","Mağaza","2023-07-11","Bursa","Peşin",23336]
[null,"DELL","PC","Mağaza","2023-07-12","Bursa","Peşin",19044]
[null,"TOSHIBA","Notebook","Mağaza","2023-07-12","İstanbul","Kredi Kartı",27281]
[null,"DELL","Tablet","Mağaza","2023-07-13","Bursa","Kredi Kartı",5363]
[null,"DELL","PC","Mağaza","2023-07-17","Bursa","Peşin",19044]
[null,"TOSHIBA","Notebook","Mağaza","2023-07-20","Bursa","Peşin",25944]
[null,"MSI","Tablet","Site","2023-07-26","Bursa","Kredi Kartı",6892]
[null,"HP","Notebook","Site","2023-07-28","İstanbul","Kredi Kartı",27796]
[null,"TOSHIBA","PC","Site","2023-07-30","Ankara","Kredi Kartı",18635]
[null,"HP","Tablet","Mağaza","2023-08-01","Bursa","Peşin",5137]
[null,"ASUS","PC","Mağaza","2023-08-19","Bursa","Peşin",16601]
[null,"MSI","Tablet","Site","2023-08-25","İstanbul","Kredi Kartı",5647]
[null,"ASUS","Tablet","Site","2023-08-27","Bursa","Kredi Kartı",8545]
[null,"IBM","Notebook","Mağaza","2023-08-28","Bursa","Peşin",19624]
[null,"TOSHIBA","Tablet","Site","2023-08-29","Bursa","Kredi Kartı",4827]
[null,"DELL","PC","Site","2023-08-30","Bursa","Kredi Kartı",13002]
[null,"HP","Notebook","Mağaza","2023-09-04","Ankara","Peşin",34208]
[null,"TOSHIBA","Notebook","Mağaza","2023-09-06","Bursa","Peşin",25944]
[null,"DELL","Notebook","Mağaza","2023-09-16","İstanbul","Peşin",28155]
[null,"DELL","Notebook","Site","2023-09-16","Bursa","Kredi Kartı",26914]
[null,"DELL","Tablet","Mağaza","2023-09-18","Bursa","Peşin",6446]
[null,"ASUS","Tablet","Site","2023-09-20","Bursa","Kredi Kartı",5762]
[null,"HP","Tablet","Mağaza","2023-09-24","Bursa","Peşin",6193]
[null,"DELL","PC","Mağaza","2023-09-27","Ankara","Kredi Kartı",13788]
[null,"TOSHIBA","PC","Site","2023-09-30","İstanbul","Kredi Kartı",23416]
[null,"DELL","Tablet","Mağaza","2023-10-07","Bursa","Kredi Kartı",4701]
[null,"MSI","Notebook","Mağaza","2023-10-10","Bursa","Peşin",35953]
[null,"IBM","Notebook","Site","2023-10-16","Bursa","Kredi Kartı",28290]
[null,"ASUS","PC","Mağaza","2023-10-16","Bursa","Peşin",16601]
[null,"ASUS","Tablet","Site","2023-10-22","Bursa","Kredi Kartı",8545]
[null,"DELL","PC","Mağaza","2023-10-30","Ankara","Kredi Kartı",13788]
[null,"HP","PC","Site","2023-11-08","İstanbul","Kredi Kartı",14590]
[null,"HP","PC","Site","2023-11-14","Bursa","Kredi Kartı",22025]
[null,"IBM","PC","Site","2023-11-16","İstanbul","Kredi Kartı",19106]
[null,"DELL","Notebook","Site","2023-11-21","Bursa","Kredi Kartı",26914]
[null,"IBM","PC","Mağaza","2023-11-25","Ankara","Peşin",16736]
[null,"ASUS","Notebook","Site","2023-12-01","Bursa","Kredi Kartı",34831]
[null,"HP","Tablet","Mağaza","2023-12-09","Bursa","Peşin",6193]
[null,"HP","Notebook","Site","2023-12-14","Bursa","Kredi Kartı",31779]
[null,"TOSHIBA","Notebook","Mağaza","2023-12-17","Ankara","Kredi Kartı",20030]
[null,"IBM","Tablet","Mağaza","2023-12-18","Ankara","Peşin",6253]
[null,"IBM","Notebook","Site","2023-12-18","Bursa","Kredi Kartı",28290]
[null,"DELL","Notebook","Mağaza","2023-12-19","İstanbul","Peşin",19257]
[null,"DELL","Tablet","Site","2023-12-24","Bursa","Kredi Kartı",6222]
[null,"TOSHIBA","PC","Site","2023-12-26","Ankara","Kredi Kartı",18635]
[null,"IBM","Notebook","Site","2023-12-31","Bursa","Kredi Kartı",28290]

{"sheet":"TarihFonksiyonları 3","index":35,"n_rows":61,"n_cols":11,"rows_kept":61,"cut":false,"hidden":false,"merged":[[35,2,35,3],[30,5,30,6],[31,5,31,6],[32,5,32,6],[33,5,33,6],[34,5,34,6],[35,5,35,6],[43,7,43,8],[44,7,44,8],[45,7,45,8],[46,1,46,2],[6,2,6,3],[30,2,30,3],[31,2,31,3],[32,2,32,3],[12,2,12,3],[7,2,7,3],[8,2,8,3],[9,2,9,3],[10,2,10,3],[11,2,11,3],[33,2,33,3],[34,2,34,3]]}
[]
[null,"Tarih Fonksiyonları"]
[]
[]
[null,"METNEÇEVİR"]
[null,{"$f":"IF(lang_op=2,VLOOKUP(B5,formuller,2,0),IF(lang_op=3,VLOOKUP(B5,formuller,3,0),IF(lang_op=4,VLOOKUP(B5,formuller,4,0),\"\")))","v":"TEXT"}]
[null,"Tarih","Gün",null,"Ay"]
[null,{"$f":"TODAY()","v":"2026-06-12"}]
[null,{"$f":"dtarih","v":"00:00:00"}]
[null,{"$f":"B8-95","v":"2026-03-09"}]
[null,{"$f":"B8+60","v":"2026-08-11"}]
[null,{"$f":"B10+51","v":"2026-04-29"}]
[null,{"$f":"B10+45","v":"2026-04-23"}]
[]
[null,null,{"$f":"IFERROR(_xlfn.FORMULATEXT(C8),\"\")","v":""},null,{"$f":"IFERROR(_xlfn.FORMULATEXT(E8),\"\")","v":""},null,null,null,null,null,{"$f":"IFERROR(_xlfn.FORMULATEXT(D31),\"\")","v":""}]
[]
[]
[null,null,{"$f":"IngFormul(C8)","v":""},null,{"$f":"IngFormul(E8)","v":""}]
[]
[]
[]
[]
[]
[]
[]
[]
[]
[]
[null,null,"HAFTANINGÜNÜ",null,"ISOHAFTASAY",null,"HAFTASAY"]
[null,"Tarih",{"$f":"IF(lang_op=2,VLOOKUP(C29,formuller,2,0),IF(lang_op=3,VLOOKUP(C29,formuller,3,0),IF(lang_op=4,VLOOKUP(C29,formuller,4,0),\"\")))","v":"WEEKDAY"},null,{"$f":"IF(lang_op=2,VLOOKUP(E29,formuller,2,0),IF(lang_op=3,VLOOKUP(E29,formuller,3,0),IF(lang_op=4,VLOOKUP(E29,formuller,4,0),\"\")))","v":"ISOWEEKNUM"},null,{"$f":"IF(lang_op=2,VLOOKUP(G29,formuller,2,0),IF(lang_op=3,VLOOKUP(G29,formuller,3,0),IF(lang_op=4,VLOOKUP(G29,formuller,4,0),\"\")))","v":"WEEKNUM"}]
[null,{"$f":"TODAY()","v":"2026-06-12"}]
[null,{"$f":"dtarih","v":"00:00:00"}]
[null,{"$f":"B31-95","v":"2026-03-09"}]
[null,{"$f":"B31+60","v":"2026-08-11"}]
[null,{"$f":"B33+51","v":"2026-04-29"}]
[null,{"$f":"B33+45","v":"2026-04-23"}]
[]
[]
[null,{"$f":"IF(C31>0,B41,\"\")","v":""},{"$f":"IFERROR(_xlfn.FORMULATEXT(C31),\"\")","v":""},null,{"$f":"IFERROR(_xlfn.FORMULATEXT(E31),\"\")","v":""},null,{"$f":"IFERROR(_xlfn.FORMULATEXT(F31),\"\")","v":""}]
[]
[null," =WEEKDAY(B31,2)",{"$f":"B39","v":""},null,{"$f":"IngFormul(E31)","v":""},null,{"$f":"IngFormul(F31)","v":""}]
[]
[]
[null,"Proje Başlangıç Tarihi","Proje Bitiş Tarihi",null,"TAMİŞGÜNÜ",null,null,"TAMİŞGÜNÜ.ULUSL"]
[null,"2025-01-01",{"$f":"B45+364","v":"2025-12-31"},null,{"$f":"IF(lang_op=2,VLOOKUP(E44,formuller,2,0),IF(lang_op=3,VLOOKUP(E44,formuller,3,0),IF(lang_op=4,VLOOKUP(E44,formuller,4,0),\"\")))","v":"NETWORKDAYS"},null,null,{"$f":"IF(lang_op=2,VLOOKUP(H44,formuller,2,0),IF(lang_op=3,VLOOKUP(H44,formuller,3,0),IF(lang_op=4,VLOOKUP(H44,formuller,4,0),\"\")))","v":"NETWORKDAYS.INTL"}]
[]
[null,{"$f":"CONCATENATE(YEAR(buyil),\" Resmi Tatil Günleri\")","v":"2025 Resmi Tatil Günleri"}]
[null,"2025-01-01",{"$f":"TEXT(B48,\"gggg\")","v":"Çarşamba"}]
[null,"2025-03-30",{"$f":"TEXT(B49,\"gggg\")","v":"Pazar"}]
[null,"2025-03-31","Pazartesi",null,{"$f":"IFERROR(_xlfn.FORMULATEXT(E46),\"\")","v":""},null,null,{"$f":"IFERROR(_xlfn.FORMULATEXT(H46),\"\")","v":""}]
[null,"2025-04-01","Salı"]
[null,"2025-04-23","Çarşamba"]
[null,"2025-05-01","Perşembe"]
[null,"2025-05-19","Pazartesi",null,{"$f":"IngFormul(E46)","v":""},null,null,{"$f":"IngFormul(H46)","v":""}]
[null,"2025-06-05","Perşembe"]
[null,"2025-06-06","Cuma"]
[null,"2025-06-07","Cumartesi"]
[null,"2025-06-08","Pazar"]
[null,"2025-07-15","Salı"]
[null,"2025-08-30","Cumartesi"]
[null,"2025-10-29","Çarşamba"]

{"sheet":"Düşeyara1","index":36,"n_rows":21,"n_cols":13,"rows_kept":21,"cut":false,"hidden":false,"merged":[[10,1,10,2],[13,1,13,2],[16,1,16,2]]}
[]
[null,"DÜŞEYARA",{"$f":"IF(lang_op=1,\"\",IF(lang_op=2,\"/ İngilizce Karşılığı ---->\",IF(lang_op=3,\"/ Fransızca Karşılığı ---->\",\"/ Almanca Karşılığı ---->\")))","v":"/ İngilizce Karşılığı ---->"},null,null,{"$f":"IF(lang_op=2,VLOOKUP(B2,formuller,2,0),IF(lang_op=3,VLOOKUP(B2,formuller,3,0),IF(lang_op=4,VLOOKUP(B2,formuller,4,0),\"\")))","v":"VLOOKUP"}]
[]
[null,"Eleman","Egemen ATAY",null,null,null,"Sıra No","Eleman","Bölge","Satış Adedi","Satış Tutarı",null,{"$f":"IngFormul(C6)","v":""}]
[null,null,null,null,null,null,1,"İlhan IŞIK","İç Anadolu",20,125206,null,{"$f":"IngFormul(C7)","v":""}]
[null,"Bölge",null,null,null,null,2,"Gökhan YAĞIZ","Akdeniz",50,116783,null,{"$f":"IngFormul(C8)","v":""}]
[null,"Satış Adedi",null,null,null,null,3,"Fatih TANDOĞAN","Marmara",40,71021]
[null,"Satış Tutarı",null,null,null,null,4,"Seda DEĞİRMENCİ","Karadeniz",15,116818]
[null,null,null,null,null,null,5,"Egemen ATAY","Marmara",68,76248]
[null,null,null,null,null,null,6,"Mustafa EMEK","Ege",75,75301]
[null,{"$f":"IFERROR(_xlfn.FORMULATEXT(C6),\"\")","v":""},null,null,null,null,7,"Yasemin TURGUT","Doğu Anadolu",63,118335]
[null,null,null,null,null,null,8,{"$f":"IF(isim>0,CONCATENATE(TRIM(isim),\" \",UPPER(TRIM(soyisim))),\"İsmini Göremedik\")","v":"İsmini Göremedik"},"Marmara",36,100659]
[null,null,null,null,null,null,9,"Efe YILDIZ","Karadeniz",45,75736]
[null,{"$f":"IFERROR(_xlfn.FORMULATEXT(C7),\"\")","v":""},null,null,null,null,10,"Emin TEMEL","Akdeniz",76,117062]
[null,null,null,null,null,null,11,"Halime AŞAN","Marmara",55,73800]
[null,null,null,null,null,null,12,"Nagihan VATANSEVER","Karadeniz",75,79995]
[null,{"$f":"IFERROR(_xlfn.FORMULATEXT(C8),\"\")","v":""},null,null,null,null,13,"Zeynep TATLITÜR","Marmara",89,134243]
[null,null,null,null,null,null,14,"Gökhan YAĞIZ","Ege",54,89755]
[null,null,null,null,null,null,15,"Eren AKTÜRK","Doğu Anadolu",23,87223]
[null,null,null,null,null,null,16,"Hüseyin ALBAYRAK","Marmara",46,105429]
[null,null,null,null,null,null,17,"Rıza SİLAHLIPODA","Karadeniz",78,83018]

{"sheet":"Düşeyara2","index":37,"n_rows":34,"n_cols":16,"rows_kept":34,"cut":false,"hidden":false,"merged":[[6,12,6,13],[10,12,10,13]]}
[]
[null,"DÜŞEYARA",{"$f":"IF(lang_op=1,\"\",IF(lang_op=2,\"/ İngilizce Karşılığı ---->\",IF(lang_op=3,\"/ Fransızca Karşılığı ---->\",\"/ Almanca Karşılığı ---->\")))","v":"/ İngilizce Karşılığı ---->"},null,null,{"$f":"IF(lang_op=2,VLOOKUP(B2,formuller,2,0),IF(lang_op=3,VLOOKUP(B2,formuller,3,0),IF(lang_op=4,VLOOKUP(B2,formuller,4,0),\"\")))","v":"VLOOKUP"}]
[null,"EĞERHATA",{"$f":"IF(B3=\"\",\"\",IF(lang_op=1,\"\",IF(lang_op=2,\"/ İngilizce Karşılığı ---->\",IF(lang_op=3,\"/ Fransızca Karşılığı ---->\",\"/ Almanca Karşılığı ---->\"))))","v":"/ İngilizce Karşılığı ---->"},null,null,{"$f":"IFERROR(IF(lang_op=2,VLOOKUP(B3,formuller,2,0),IF(lang_op=3,VLOOKUP(B3,formuller,3,0),IF(lang_op=4,VLOOKUP(B3,formuller,4,0),\"\"))),\"\")","v":"IFERROR"}]
[]
[null,"Stok Kodu","Ocak",null,"Stok Kodu","Şubat",null,"Stok Kodu","Ocak","Şubat","Toplam"]
[null,"BB-16995-AA",16,null,"EE-19525-PB",71,null,"CB-18083-JB",null,null,{"$f":"SUM(I6:J6)","v":0}]
[null,"BC-18041-CB",0,null,"EE-16100-AA",54,null,"BB-16995-AA",null,null,0,null,{"$f":"IFERROR(_xlfn.FORMULATEXT(I6),\"\")","v":""},null,null,{"$f":"IngFormul(I6)","v":""}]
[null,"BD-10789-OA",100,null,"EE-10715-AA ",38,null,"BC-18041-CB",null,null,0]
[null,"CA-16707-KA",81,null,"EC-18392-NB",93,null,"BC-18268-BB",null,null,0]
[null,"CB-19367-AA",35,null,"EC-10910-FA",85,null,"EE-19525-PB",null,null,0]
[null,"DC-17107-SA",97,null,"EB-14559-NA",40,null,"CA-16707-KA",null,null,0,null,{"$f":"IFERROR(_xlfn.FORMULATEXT(J6),\"\")","v":""}]
[null,"DC-17921-IA",89,null,"EB-11963-UB ",35,null,"CB-11261-UA",null,null,0,null,null,null,null,{"$f":"IngFormul(J6)","v":""}]
[null,"DD-17161-SA",20,null,"DD-17161-SA",54,null,"AA-16393-FB",null,null,0]
[null,"EC-10910-FA ",24,null,"DD-13260-NB",85,null,"CB-19367-AA",null,null,0]
[null,"ED-14865-FA",54,null,"DC-17921-IA",19,null,"CC-15648-UA",null,null,0]
[null,"EC-18392-NB",44,null,"DC-17107-SA",100,null,"CD-12727-HB",null,null,0]
[null,"EB-11963-UB",97,null,"DA-19478-BA  ",25,null,"CE-10318-UB",null,null,0]
[null,"DD-13260-NB",67,null,"CE-10318-UB",19,null,"DA-19478-BA",null,null,0]
[null,"EE-16100-AA",78,null,"CD-12727-HB",45,null,"DC-17107-SA",null,null,0]
[null,"EE-10715-AA ",22,null,"CC-15648-UA",34,null,"DC-17921-IA",null,null,0]
[null,"EB-14559-NA",83,null,"CB-19367-AA",74,null,"DD-13260-NB",null,null,0]
[null,"DA-19478-BA",34,null,"CB-18083-JB",21,null,"DD-17161-SA",null,null,0]
[null,"CE-10318-UB",64,null,"CB-11261-UA",86,null,"EB-11963-UB",null,null,0]
[null,"CD-12727-HB ",84,null,"BD-10789-OA",50,null,"EB-14559-NA",null,null,0]
[null,"CB-11261-UA",23,null,"BC-18268-BB",46,null,"EC-10910-FA",null,null,0]
[null,"BC-18268-BB",78,null,"BC-18041-CB",87,null,"EC-18392-NB",null,null,0]
[null,"AA-16393-FB",36,null,"BB-16995-AA",53,null,"ED-14865-FA",null,null,0]
[null,null,null,null,"AA-16393-FB",85,null,"EE-10715-AA",null,null,0]
[null,null,null,null,"",null,null,"EE-16100-AA",null,null,0]
[null,null,null,null,"",null,null,"BD-10789-OA",null,null,0]
[null,null,null,null,null,null,null,"TOPLAM",{"$f":"SUM(I6:I30)","v":0},{"$f":"SUM(J6:J30)","v":0}]
[]
[]
[null,null,null,null,null,null,null,"Genel Toplam",{"$f":"SUM(I31:J31)","v":0}]

{"sheet":"Ocak","index":38,"n_rows":23,"n_cols":2,"rows_kept":23,"cut":false,"hidden":false,"merged":[]}
["Stok Kodu","Ocak"]
["BB-16995-AA",16]
["BC-18041-CB",0]
["BD-10789-OA",100]
["CA-16707-KA",81]
["CB-19367-AA",35]
["DC-17107-SA",97]
["DC-17921-IA",89]
["DD-17161-SA",20]
["EC-10910-FA",24]
["ED-14865-FA",54]
["EC-18392-NB",44]
["EB-11963-UB",97]
["DD-13260-NB",67]
["EE-16100-AA",78]
["EE-10715-AA",22]
["EB-14559-NA",83]
["DA-19478-BA",34]
["CE-10318-UB",64]
["CD-12727-HB",84]
["CB-11261-UA",23]
["BC-18268-BB",78]
["AA-16393-FB",36]

{"sheet":"Şubat","index":39,"n_rows":24,"n_cols":2,"rows_kept":24,"cut":false,"hidden":false,"merged":[]}
["Stok Kodu","Şubat"]
["EE-19525-PB",71]
["EE-16100-AA",54]
["EE-10715-AA",38]
["EC-18392-NB",93]
["EC-10910-FA",85]
["EB-14559-NA",40]
["EB-11963-UB",35]
["DD-17161-SA",54]
["DD-13260-NB",85]
["DC-17921-IA",19]
["DC-17107-SA",100]
["DA-19478-BA",25]
["CE-10318-UB",19]
["CD-12727-HB",45]
["CC-15648-UA",34]
["CB-19367-AA",74]
["CB-18083-JB",21]
["CB-11261-UA",86]
["BD-10789-OA",50]
["BC-18268-BB",46]
["BC-18041-CB",87]
["BB-16995-AA",53]
["AA-16393-FB",85]

{"sheet":"Toplam","index":40,"n_rows":27,"n_cols":16,"rows_kept":27,"cut":false,"hidden":false,"merged":[]}
["Stok Kodu","Ocak","Şubat","Toplam",null,null,"Stok Kodu","Ocak","Şubat","Toplam",null,null,"Stok Kodu","Ocak","Şubat","Toplam"]
["BB-16995-AA",null,null,null,null,null,"BB-16995-AA",null,null,null,null,null,"BB-16995-AA"]
["BC-18041-CB",null,null,null,null,null,"BC-18041-CB",null,null,null,null,null,"BC-18041-CB"]
["BD-10789-OA",null,null,null,null,null,"BD-10789-OA",null,null,null,null,null,"BD-10789-OA"]
["CA-16707-KA",null,null,null,null,null,"CA-16707-KA",null,null,null,null,null,"CA-16707-KA"]
["CB-19367-AA",null,null,null,null,null,"CB-19367-AA",null,null,null,null,null,"CB-19367-AA"]
["DC-17107-SA",null,null,null,null,null,"DC-17107-SA",null,null,null,null,null,"DC-17107-SA"]
["DC-17921-IA",null,null,null,null,null,"DC-17921-IA",null,null,null,null,null,"DC-17921-IA"]
["DD-17161-SA",null,null,null,null,null,"DD-17161-SA",null,null,null,null,null,"DD-17161-SA"]
["EC-10910-FA",null,null,null,null,null,"EC-10910-FA",null,null,null,null,null,"EC-10910-FA"]
["ED-14865-FA",null,null,null,null,null,"ED-14865-FA",null,null,null,null,null,"ED-14865-FA"]
["EC-18392-NB",null,null,null,null,null,"EC-18392-NB",null,null,null,null,null,"EC-18392-NB"]
["EB-11963-UB",null,null,null,null,null,"EB-11963-UB",null,null,null,null,null,"EB-11963-UB"]
["DD-13260-NB",null,null,null,null,null,"DD-13260-NB",null,null,null,null,null,"DD-13260-NB"]
["EE-16100-AA",null,null,null,null,null,"EE-16100-AA",null,null,null,null,null,"EE-16100-AA"]
["EE-10715-AA",null,null,null,null,null,"EE-10715-AA",null,null,null,null,null,"EE-10715-AA"]
["EB-14559-NA",null,null,null,null,null,"EB-14559-NA",null,null,null,null,null,"EB-14559-NA"]
["DA-19478-BA",null,null,null,null,null,"DA-19478-BA",null,null,null,null,null,"DA-19478-BA"]
["CE-10318-UB",null,null,null,null,null,"CE-10318-UB",null,null,null,null,null,"CE-10318-UB"]
["CD-12727-HB",null,null,null,null,null,"CD-12727-HB",null,null,null,null,null,"CD-12727-HB"]
["CB-11261-UA",null,null,null,null,null,"CB-11261-UA",null,null,null,null,null,"CB-11261-UA"]
["BC-18268-BB",null,null,null,null,null,"BC-18268-BB",null,null,null,null,null,"BC-18268-BB"]
["AA-16393-FB",null,null,null,null,null,"AA-16393-FB",null,null,null,null,null,"AA-16393-FB"]
["EE-19525-PB",null,null,null,null,null,"EE-19525-PB",null,null,null,null,null,"EE-19525-PB"]
["CC-15648-UA",null,null,null,null,null,"CC-15648-UA",null,null,null,null,null,"CC-15648-UA"]
["CB-18083-JB",null,null,null,null,null,"CB-18083-JB",null,null,null,null,null,"CB-18083-JB"]
["TOPLAM",null,null,null,null,null,"TOPLAM",null,null,null,null,null,"TOPLAM"]

{"sheet":"Yatayara","index":41,"n_rows":14,"n_cols":12,"rows_kept":14,"cut":false,"hidden":false,"merged":[]}
[]
[null,"YATAYARA",{"$f":"IF(lang_op=1,\"\",IF(lang_op=2,\"/ İngilizce Karşılığı ---->\",IF(lang_op=3,\"/ Fransızca Karşılığı ---->\",\"/ Almanca Karşılığı ---->\")))","v":"/ İngilizce Karşılığı ---->"},null,{"$f":"IF(lang_op=2,VLOOKUP(B2,formuller,2,0),IF(lang_op=3,VLOOKUP(B2,formuller,3,0),IF(lang_op=4,VLOOKUP(B2,formuller,4,0),\"\")))","v":"HLOOKUP"}]
[]
[null,"Üye Adı","Egemen ATAY"]
[]
[null,"Başlangıç Tarihi",null,null,{"$f":"IFERROR(_xlfn.FORMULATEXT(C6),\"\")","v":""},null,{"$f":"IngFormul(C6)","v":""}]
[null,"Bitiş Tarihi",null,null,{"$f":"IFERROR(_xlfn.FORMULATEXT(C7),\"\")","v":""},null,{"$f":"IngFormul(C7)","v":""}]
[null,"Ödeme Tutarı",null,null,{"$f":"IFERROR(_xlfn.FORMULATEXT(C8),\"\")","v":""},null,{"$f":"IngFormul(C8)","v":""}]
[]
[null,"Üye No",101003,101008,101004,101005,101002,101006,101009,101007,101001,101010]
[null,"Üye Adı","İlhan IŞIK","Gökhan YAĞIZ","Fatih TANDOĞAN","Seda DEĞİRMENCİ","Egemen ATAY","Mustafa EMEK",{"$f":"CONCATENATE(TRIM(isim),\" \",UPPER(TRIM(soyisim)))","v":" "},"Neslihan YILMAZ","Efe YILDIZ","Emin TEMEL"]
[null,"Başlangıç Tarihi","2022-01-25","2019-03-04","2021-04-09","2022-06-17","2021-07-03","2019-08-04","2022-09-07","2022-10-10","2021-10-12","2022-10-18"]
[null,"Bitiş Tarihi",{"$f":"C12+365","v":"2023-01-25"},"2020-03-03","2022-04-09","2023-06-17","2022-07-03","2020-08-03","2023-09-07","2023-10-10","2022-10-12","2023-10-18"]
[null,"Ödeme Tutarı",175,120,160,120,150,145,150,130,135,150]

{"sheet":"İndis-Kaçıncı","index":42,"n_rows":22,"n_cols":13,"rows_kept":22,"cut":false,"hidden":false,"merged":[[11,1,11,2],[14,1,14,2],[17,1,17,2]]}
[]
[null,"İNDİS",{"$f":"IF(lang_op=1,\"\",IF(lang_op=2,\"/ İngilizce Karşılığı ---->\",IF(lang_op=3,\"/ Fransızca Karşılığı ---->\",\"/ Almanca Karşılığı ---->\")))","v":"/ İngilizce Karşılığı ---->"},null,null,{"$f":"IF(lang_op=2,VLOOKUP(B2,formuller,2,0),IF(lang_op=3,VLOOKUP(B2,formuller,3,0),IF(lang_op=4,VLOOKUP(B2,formuller,4,0),\"\")))","v":"INDEX"}]
[null,"KAÇINCI",{"$f":"IF(lang_op=1,\"\",IF(lang_op=2,\"/ İngilizce Karşılığı ---->\",IF(lang_op=3,\"/ Fransızca Karşılığı ---->\",\"/ Almanca Karşılığı ---->\")))","v":"/ İngilizce Karşılığı ---->"},null,null,{"$f":"IF(lang_op=2,VLOOKUP(B3,formuller,2,0),IF(lang_op=3,VLOOKUP(B3,formuller,3,0),IF(lang_op=4,VLOOKUP(B3,formuller,4,0),\"\")))","v":"MATCH"}]
[]
[null,"Eleman","Egemen ATAY",null,null,null,"Sıra No","Eleman","Bölge","Satış Adedi","Satış Tutarı",null,{"$f":"IngFormul(C7)","v":""}]
[null,null,null,null,null,null,1,"İlhan IŞIK","İç Anadolu",20,125206,null,{"$f":"IngFormul(C8)","v":""}]
[null,"Sıra No",null,null,null,null,2,"Gökhan YAĞIZ","Akdeniz",50,116783,null,{"$f":"IngFormul(C9)","v":""}]
[null,"Bölge",null,null,null,null,3,"Fatih TANDOĞAN","Marmara",40,71021]
[null,"Satış Adedi",null,null,null,null,4,"Seda DEĞİRMENCİ","Karadeniz",15,116818]
[null,null,null,null,null,null,5,"Egemen ATAY","Marmara",68,76248]
[null,null,null,null,null,null,6,"Mustafa EMEK","Ege",75,75301]
[null,{"$f":"IFERROR(_xlfn.FORMULATEXT(C7),\"\")","v":""},null,null,null,null,7,"Yasemin TURGUT","Doğu Anadolu",63,118335]
[null,null,null,null,null,null,8,{"$f":"IF(isim>0,CONCATENATE(TRIM(isim),\" \",UPPER(TRIM(soyisim))),\"İsmini Göremedik\")","v":"İsmini Göremedik"},"Marmara",36,100659]
[null,null,null,null,null,null,9,"Efe YILDIZ","Karadeniz",45,75736]
[null,{"$f":"IFERROR(_xlfn.FORMULATEXT(C8),\"\")","v":""},null,null,null,null,10,"Emin TEMEL","Akdeniz",76,117062]
[null,null,null,null,null,null,11,"Halime AŞAN","Marmara",55,73800]
[null,null,null,null,null,null,12,"Nagihan VATANSEVER","Karadeniz",75,79995]
[null,{"$f":"IFERROR(_xlfn.FORMULATEXT(C9),\"\")","v":""},null,null,null,null,13,"Zeynep TATLITÜR","Marmara",89,134243]
[null,null,null,null,null,null,14,"Gökhan YAĞIZ","Ege",54,89755]
[null,null,null,null,null,null,15,"Eren AKTÜRK","Doğu Anadolu",23,87223]
[null,null,null,null,null,null,16,"Hüseyin ALBAYRAK","Marmara",46,105429]
[null,null,null,null,null,null,17,"Rıza SİLAHLIPODA","Karadeniz",78,83018]

{"sheet":"Çaprazara","index":43,"n_rows":21,"n_cols":10,"rows_kept":21,"cut":false,"hidden":false,"merged":[]}
[]
[null,"ÇAPRAZARA",null,{"$f":"IF(lang_op=1,\"\",IF(lang_op=2,\"   / İngilizce Karşılığı ---->\",IF(lang_op=3,\"   / Fransızca Karşılığı ---->\",\"   / Almanca Karşılığı ---->\")))","v":"   / İngilizce Karşılığı ---->"},null,null,{"$f":"IF(lang_op=2,VLOOKUP(B2,formuller,2,0),IF(lang_op=3,VLOOKUP(B2,formuller,3,0),IF(lang_op=4,VLOOKUP(B2,formuller,4,0),\"\")))","v":"XLOOKUP"}]
[]
[null,"Sıra No","Eleman","Bölge","Satış Adedi","Satış Tutarı",null,"Eleman","Egemen ATAY"]
[null,1,"İlhan IŞIK","İç Anadolu",20,125206]
[null,2,"Gökhan YAĞIZ","Akdeniz",50,116783,null,"Sıra No","Satış Tutarı","Bölge"]
[null,3,"Fatih TANDOĞAN","Marmara",40,71021]
[null,4,"Seda DEĞİRMENCİ","Karadeniz",15,116818]
[null,5,"Egemen ATAY","Marmara",68,76248,null,{"$f":"IFERROR(_xlfn.FORMULATEXT(H7),\"\")","v":""}]
[null,6,"Mustafa EMEK","Ege",75,75301]
[null,7,"Yasemin TURGUT","Doğu Anadolu",63,118335,null,{"$f":"IngFormul(H7)","v":""}]
[null,8,{"$f":"IF(isim>0,CONCATENATE(TRIM(isim),\" \",UPPER(TRIM(soyisim))),\"İsmini Göremedik\")","v":"İsmini Göremedik"},"Marmara",36,100659]
[null,9,"Efe YILDIZ","Karadeniz",45,75736]
[null,10,"Emin TEMEL","Akdeniz",76,117062]
[null,11,"Halime AŞAN","Marmara",55,73800]
[null,12,"Nagihan VATANSEVER","Karadeniz",75,79995]
[null,13,"Zeynep TATLITÜR","Marmara",89,134243]
[null,14,"Gökhan YAĞIZ","Ege",54,89755]
[null,15,"Eren AKTÜRK","Doğu Anadolu",23,87223]
[null,16,"Hüseyin ALBAYRAK","Marmara",46,105429]
[null,17,"Rıza SİLAHLIPODA","Karadeniz",78,83018]

{"sheet":"Toplama","index":44,"n_rows":29,"n_cols":14,"rows_kept":29,"cut":false,"hidden":false,"merged":[[8,12,8,13],[1,5,1,6],[1,10,1,11],[1,40,1,41],[1,15,1,16],[1,20,1,21],[1,25,1,26],[1,30,1,31],[1,35,1,36]]}
[]
[null,"TOPLAMA",{"$f":"IF(B2=\"\",\"\",IF(lang_op=1,\"\",IF(lang_op=2,\"/ İngilizce Karşılığı ---->\",IF(lang_op=3,\"/ Fransızca Karşılığı ---->\",\"/ Almanca Karşılığı ---->\"))))","v":"/ İngilizce Karşılığı ---->"},null,{"$f":"IFERROR(IF(lang_op=2,VLOOKUP(B2,formuller,2,0),IF(lang_op=3,VLOOKUP(B2,formuller,3,0),IF(lang_op=4,VLOOKUP(B2,formuller,4,0),\"\"))),\"\")","v":"AGGREGATE"}]
[]
[null,"Stok Kodu","Ocak","Şubat","Toplam",null,null,"Ocak Toplam",null,null,{"$f":"IFERROR(_xlfn.FORMULATEXT(I4),\"\")","v":""},null,null,{"$f":"IngFormul(I4)","v":""}]
[null,"CB-18083-JB",{"$error":"#N/A"},21,{"$f":"SUM(C5:D5)","v":{"$error":"#N/A"}}]
[null,"BB-16995-AA",16,53,69,null,null,"Şubat Toplam",null,null,{"$f":"IFERROR(_xlfn.FORMULATEXT(I6),\"\")","v":""},null,null,{"$f":"IngFormul(I6)","v":""}]
[null,"BC-18041-CB",80,87,167]
[null,"BC-18268-BB",78,46,124,null,null,"Genel Toplam",null,null,{"$f":"IFERROR(_xlfn.FORMULATEXT(I8),\"\")","v":""},null,null,{"$f":"IngFormul(I8)","v":""}]
[null,"EE-19525-PB",{"$error":"#N/A"},71,{"$error":"#N/A"}]
[null,"CA-16707-KA",81,{"$error":"#N/A"},{"$error":"#N/A"}]
[null,"CB-11261-UA",23,86,109]
[null,"AA-16393-FB",36,85,121]
[null,"CB-19367-AA",35,74,109]
[null,"CC-15648-UA",{"$error":"#N/A"},34,{"$error":"#N/A"}]
[null,"CD-12727-HB",84,45,129]
[null,"CE-10318-UB",64,19,83]
[null,"DA-19478-BA",34,25,59]
[null,"DC-17107-SA",97,100,197]
[null,"DC-17921-IA",89,19,108]
[null,"DD-13260-NB",67,85,152]
[null,"DD-17161-SA",20,54,74]
[null,"EB-11963-UB",97,35,132]
[null,"EB-14559-NA",83,40,123]
[null,"EC-10910-FA",24,85,109]
[null,"EC-18392-NB",44,93,137]
[null,"ED-14865-FA",54,{"$error":"#N/A"},{"$error":"#N/A"}]
[null,"EE-10715-AA",22,38,60]
[null,"EE-16100-AA",78,54,132]
[null,"BD-10789-OA",100,50,150]

{"sheet":"Alttoplam","index":45,"n_rows":100,"n_cols":7,"rows_kept":100,"cut":false,"hidden":false,"merged":[[1,22,1,23],[1,4,1,5],[1,6,1,7],[1,8,1,9],[1,10,1,11],[1,12,1,13],[1,14,1,15],[1,16,1,17],[1,18,1,19],[1,20,1,21],[1,46,1,47],[1,24,1,25],[1,26,1,27],[1,28,1,29],[1,30,1,31],[1,32,1,33],[1,34,1,35],[1,36,1,37],[1,38,1,39],[1,40,1,41],[1,42,1,43],[1,44,1,45],[1,70,1,71],[1,48,1,49],[1,50,1,51],[1,52,1,53],[1,54,1,55],[1,56,1,57],[1,58,1,59],[1,60,1,61],[1,62,1,63],[1,64,1,65],[1,66,1,67],[1,68,1,69],[1,94,1,95],[1,72,1,73],[1,74,1,75],[1,76,1,77],[1,78,1,79],[1,80,1,81],[1,82,1,83],[1,84,1,85],[1,86,1,87],[1,88,1,89],[1,90,1,91],[1,92,1,93],[1,118,1,119],[1,96,1,97],[1,98,1,99],[1,100,1,101],[1,102,1,103],[1,104,1,105],[1,106,1,107],[1,108,1,109],[1,110,1,111],[1,112,1,113],[1,114,1,115],[1,116,1,117],[1,132,1,133],[1,134,1,135],[1,136,1,137],[1,120,1,121],[1,122,1,123],[1,124,1,125],[1,126,1,127],[1,128,1,129],[1,130,1,131]]}
[]
[null,"ALTTOPLAM"]
[]
[null,"Marka","Tür","Satış Türü","Şehir","Ödeme Türü","Fiyat"]
[null,"HUAWEI","Notebook","Site","Bursa","Kredi Kartı",502]
[null,"DELL","PC","Mağaza","Bursa","Peşin",271]
[null,"DELL","Tablet","Mağaza","Bursa","Peşin",1093]
[null,"HUAWEI","Notebook","Mağaza","Bursa","Peşin",487]
[null,"MSI","Tablet","Site","Bursa","Kredi Kartı",511]
[null,"DELL","PC","Mağaza","Ankara","Kredi Kartı",324]
[null,"HP","Tablet","Mağaza","Ankara","Kredi Kartı",519]
[null,"HP","Tablet","Mağaza","Bursa","Peşin",924]
[null,"DELL","Notebook","Mağaza","İstanbul","Peşin",408]
[null,"MICROSOFT","Notebook","Mağaza","Bursa","Kredi Kartı",421]
[null,"HUAWEI","Notebook","Mağaza","Bursa","Peşin",608]
[null,"HUAWEI","Notebook","Mağaza","Ankara","Peşin",736]
[null,"ASUS","Tablet","Site","Bursa","Kredi Kartı",1116]
[null,"DELL","Tablet","Mağaza","Bursa","Kredi Kartı",870]
[null,"HP","PC","Site","İstanbul","Kredi Kartı",1169]
[null,"HP","Tablet","Mağaza","Ankara","Peşin",1438]
[null,"MSI","PC","Mağaza","İstanbul","Peşin",1461]
[null,"MSI","Tablet","Mağaza","İstanbul","Kredi Kartı",354]
[null,"HUAWEI","Notebook","Site","İstanbul","Kredi Kartı",873]
[null,"DELL","Tablet","Mağaza","Bursa","Kredi Kartı",1282]
[null,"MSI","PC","Site","İstanbul","Kredi Kartı",1299]
[null,"MSI","Tablet","Mağaza","Bursa","Peşin",1042]
[null,"HUAWEI","Notebook","Site","İstanbul","Kredi Kartı",752]
[null,"MSI","Tablet","Mağaza","Ankara","Peşin",740]
[null,"MSI","Notebook","Site","Bursa","Kredi Kartı",1201]
[null,"ACER","PC","Mağaza","Bursa","Kredi Kartı",592]
[null,"ASUS","Notebook","Site","Bursa","Kredi Kartı",568]
[null,"ASUS","PC","Mağaza","İstanbul","Peşin",1193]
[null,"HUAWEI","Notebook","Mağaza","Ankara","Peşin",1468]
[null,"MSI","Tablet","Site","İstanbul","Kredi Kartı",615]
[null,"DELL","Notebook","Mağaza","İstanbul","Peşin",518]
[null,"HP","PC","Mağaza","Bursa","Peşin",483]
[null,"MICROSOFT","Notebook","Mağaza","Ankara","Peşin",706]
[null,"HP","PC","Mağaza","Ankara","Peşin",1333]
[null,"MSI","PC","Site","Bursa","Kredi Kartı",1319]
[null,"MSI","PC","Site","Ankara","Kredi Kartı",635]
[null,"HP","PC","Site","Bursa","Kredi Kartı",279]
[null,"ACER","PC","Mağaza","İstanbul","Peşin",843]
[null,"ACER","Notebook","Site","Bursa","Kredi Kartı",251]
[null,"MSI","Notebook","Mağaza","Bursa","Peşin",1324]
[null,"MSI","Notebook","Site","Bursa","Kredi Kartı",291]
[null,"HUAWEI","Notebook","Mağaza","Bursa","Peşin",916]
[null,"MSI","Tablet","Mağaza","Ankara","Peşin",1390]
[null,"ASUS","Tablet","Site","Bursa","Kredi Kartı",460]
[null,"DELL","Tablet","Site","Ankara","Kredi Kartı",930]
[null,"MICROSOFT","PC","Mağaza","İstanbul","Peşin",966]
[null,"MICROSOFT","Notebook","Site","Bursa","Kredi Kartı",1370]
[null,"MSI","Tablet","Site","Bursa","Kredi Kartı",896]
[null,"MSI","Notebook","Mağaza","Bursa","Peşin",1029]
[null,"HP","PC","Site","Bursa","Kredi Kartı",355]
[null,"MSI","Tablet","Site","Bursa","Kredi Kartı",785]
[null,"MICROSOFT","PC","Site","İstanbul","Kredi Kartı",419]
[null,"MSI","PC","Site","Bursa","Kredi Kartı",1260]
[null,"DELL","Notebook","Site","Bursa","Kredi Kartı",354]
[null,"HP","Tablet","Site","Bursa","Kredi Kartı",776]
[null,"DELL","PC","Site","Bursa","Kredi Kartı",596]
[null,"MSI","PC","Site","Ankara","Kredi Kartı",1138]
[null,"MSI","Notebook","Mağaza","Ankara","Kredi Kartı",1396]
[null,"MSI","Notebook","Site","Bursa","Kredi Kartı",1442]
[null,"MICROSOFT","PC","Mağaza","İstanbul","Peşin",1390]
[null,"HUAWEI","PC","Mağaza","Ankara","Peşin",1278]
[null,"ASUS","Notebook","Site","Bursa","Kredi Kartı",1293]
[null,"HP","Notebook","Site","Bursa","Kredi Kartı",634]
[null,"ASUS","Notebook","Mağaza","Ankara","Peşin",268]
[null,"MSI","Tablet","Mağaza","İstanbul","Peşin",1212]
[null,"MSI","PC","Site","İstanbul","Kredi Kartı",802]
[null,"ASUS","Notebook","Site","Bursa","Kredi Kartı",375]
[null,"HP","Notebook","Mağaza","Ankara","Peşin",499]
[null,"HP","PC","Site","İstanbul","Kredi Kartı",910]
[null,"HP","PC","Mağaza","İstanbul","Peşin",598]
[null,"ASUS","Notebook","Mağaza","Ankara","Peşin",1395]
[null,"HP","PC","Site","Bursa","Kredi Kartı",1250]
[null,"MSI","PC","Mağaza","Ankara","Peşin",791]
[null,"DELL","Notebook","Site","Bursa","Kredi Kartı",1231]
[null,"DELL","Notebook","Mağaza","Bursa","Kredi Kartı",530]
[null,"HP","PC","Mağaza","İstanbul","Peşin",766]
[null,"HP","PC","Mağaza","Bursa","Peşin",1163]
[null,"MSI","PC","Mağaza","Bursa","Peşin",1416]
[null,"MSI","Notebook","Mağaza","İstanbul","Kredi Kartı",1450]
[null,"HUAWEI","Notebook","Site","Bursa","Kredi Kartı",1394]
[null,"HUAWEI","Notebook","Mağaza","Bursa","Kredi Kartı",317]
[null,"ASUS","Notebook","Mağaza","Ankara","Peşin",994]
[null,"ASUS","PC","Site","İstanbul","Kredi Kartı",690]
[null,"DELL","Notebook","Site","Ankara","Kredi Kartı",441]
[null,"ASUS","PC","Mağaza","Bursa","Peşin",1196]
[null,"DELL","Notebook","Mağaza","İstanbul","Peşin",1474]
[null,"DELL","Tablet","Site","Bursa","Kredi Kartı",925]
[null,"MICROSOFT","Notebook","Site","Bursa","Kredi Kartı",1137]
[null,"MSI","Notebook","Site","Bursa","Kredi Kartı",1355]
[null,"HP","Tablet","Mağaza","Bursa","Peşin",1212]
[null,"MSI","PC","Mağaza","Ankara","Peşin",512]
[null,"DELL","PC","Site","Ankara","Kredi Kartı",668]
[null,"HP","Notebook","Site","İstanbul","Kredi Kartı",791]
[null,"MICROSOFT","Notebook","Site","Ankara","Kredi Kartı",1002]
[null,"ASUS","Notebook","Site","İstanbul","Kredi Kartı",1046]
[null,"HUAWEI","Notebook","Site","Ankara","Kredi Kartı",860]

{"sheet":"PivotTablo","index":46,"n_rows":249,"n_cols":8,"rows_kept":249,"cut":false,"hidden":false,"merged":[]}
[]
[null,"Pivot Tablo"]
[]
[null,"Satış Elemanı","Marka","Tür","Tarih","Şehir","Ödeme Türü","Fiyat"]
[null,"Kemal ÇINAR","HP","PC","2019-01-15","Antalya","Nakit",12752]
[null,"Hasan YILDIZ","MSI","PC","2019-01-16","Bursa","Kredi Kartı",11573]
[null,"Emel YOLCU","ASUS","PC","2019-01-26","Bursa","Nakit",12238]
[null,"Sabiha YILMAZ","HP","Notebook","2019-01-31","Ankara","Kredi Kartı",10493]
[null,"Kemal ÇINAR","DELL","PC","2019-02-15","Antalya","Nakit",12978]
[null,"Kemal ÇINAR","MSI","PC","2019-02-19","Antalya","Kredi Kartı",13244]
[null,"Emre TEKİN","MICROSOFT","Notebook","2019-03-11","Ankara","Nakit",12263]
[null,"Barış KESKİN","MSI","Notebook","2019-03-15","İzmir","Nakit",12281]
[null,"Mustafa EMEK","MICROSOFT","Notebook","2019-03-17","İzmir","Kredi Kartı",10067]
[null,"Gamze YOKUŞ","LENOVO","Notebook","2019-03-26","Antalya","Kredi Kartı",12937]
[null,"Gamze YOKUŞ","ASUS","Notebook","2019-03-30","Antalya","Nakit",11832]
[null,"Kemal ÇINAR","HUAWEI","Notebook","2019-04-05","Antalya","Nakit",31766]
[null,"Emre TEKİN","DELL","Notebook","2019-04-14","Ankara","Kredi Kartı",13865]
[null,"Sabiha YILMAZ","LENOVO","PC","2019-05-17","Ankara","Kredi Kartı",10965]
[null,"Emel YOLCU","MICROSOFT","Notebook","2019-06-04","Bursa","Nakit",9743]
[null,"Erol BIÇKIN","HP","Notebook","2019-06-04","İzmir","Nakit",10423]
[null,"Erol BIÇKIN","MSI","PC","2019-06-04","İzmir","Nakit",10293]
[null,"Emel YOLCU","MSI","PC","2019-06-09","Bursa","Kredi Kartı",10618]
[null,"Murat UMAR","DELL","Notebook","2019-06-21","İstanbul","Kredi Kartı",11285]
[null,"İlhan IŞIK","DELL","PC","2019-06-23","İstanbul","Kredi Kartı",14069]
[null,"Efe TEMEL","LENOVO","PC","2019-06-25","Ankara","Kredi Kartı",11245]
[null,"Sabiha YILMAZ","MSI","Notebook","2019-06-27","Ankara","Kredi Kartı",14335]
[null,"Erol BIÇKIN","DELL","PC","2019-07-03","İzmir","Kredi Kartı",12967]
[null,"Sabiha YILMAZ","MSI","Notebook","2019-07-09","Ankara","Nakit",11563]
[null,"Emel YOLCU","LENOVO","Notebook","2022-07-10","Bursa","Kredi Kartı",14094]
[null,"Mustafa ÖNDER","MSI","Notebook","2019-07-13","Bursa","Kredi Kartı",26208]
[null,"Sabiha YILMAZ","MICROSOFT","Notebook","2019-07-17","Ankara","Kredi Kartı",31128]
[null,"Mustafa EMEK","MSI","Notebook","2019-07-20","İzmir","Kredi Kartı",10114]
[null,"Efe TEMEL","DELL","PC","2019-07-25","Ankara","Kredi Kartı",11913]
[null,"Murat UMAR","MSI","PC","2019-08-01","İstanbul","Kredi Kartı",13803]
[null,"Hasan YILDIZ","LENOVO","Notebook","2019-08-13","Bursa","Kredi Kartı",12469]
[null,"Kemal ÇINAR","LENOVO","PC","2019-08-18","Antalya","Nakit",13608]
[null,"Hasan YILDIZ","LENOVO","Notebook","2019-08-20","Bursa","Kredi Kartı",10987]
[null,"Murat UMAR","LENOVO","PC","2022-08-21","İstanbul","Nakit",11612]
[null,"İlhan IŞIK","HP","PC","2019-08-24","İstanbul","Kredi Kartı",13236]
[null,"Ergin EMRE","HP","Notebook","2019-09-01","İstanbul","Nakit",13315]
[null,"Emre TEKİN","ASUS","Notebook","2019-09-14","Ankara","Kredi Kartı",29714]
[null,"Erol BIÇKIN","ASUS","Notebook","2019-09-26","İzmir","Kredi Kartı",38488]
[null,"Emel YOLCU","LENOVO","Notebook","2019-10-01","Bursa","Kredi Kartı",12894]
[null,"Erol BIÇKIN","HP","Notebook","2019-10-08","İzmir","Nakit",38100]
[null,"İlhan IŞIK","LENOVO","PC","2022-10-12","İstanbul","Kredi Kartı",13884]
[null,"Efe TEMEL","HP","PC","2019-10-13","Ankara","Nakit",11653]
[null,"Hasan YILDIZ","DELL","Notebook","2022-10-17","Bursa","Kredi Kartı",38954]
[null,"Kemal ÇINAR","DELL","Notebook","2019-10-20","Antalya","Nakit",30518]
[null,"İlhan IŞIK","HP","PC","2019-10-23","İstanbul","Nakit",13430]
[null,"Ergin EMRE","MSI","PC","2019-10-26","İstanbul","Nakit",11183]
[null,"Murat UMAR","HP","PC","2019-10-28","İstanbul","Nakit",12454]
[null,"Mustafa EMEK","LENOVO","PC","2019-11-02","İzmir","Nakit",11413]
[null,"Gamze YOKUŞ","MSI","Notebook","2019-11-08","Antalya","Nakit",14099]
[null,"Efe TEMEL","HP","PC","2019-11-13","Ankara","Nakit",10826]
[null,"Mustafa EMEK","LENOVO","PC","2019-11-20","İzmir","Nakit",12946]
[null,"Gamze YOKUŞ","HP","PC","2019-12-08","Antalya","Kredi Kartı",14317]
[null,"Mustafa ÖNDER","MSI","Notebook","2019-12-11","Bursa","Kredi Kartı",13075]
[null,"Gamze YOKUŞ","MSI","Notebook","2019-12-31","Antalya","Kredi Kartı",38726]
[null,"Gamze YOKUŞ","MSI","Notebook","2020-01-01","Antalya","Nakit",9529]
[null,"İlhan IŞIK","HP","PC","2020-01-05","İstanbul","Nakit",13984]
[null,"Mustafa ÖNDER","HUAWEI","Notebook","2020-01-10","Bursa","Kredi Kartı",36518]
[null,"Kemal ÇINAR","MSI","PC","2020-02-04","Antalya","Kredi Kartı",11424]
[null,"Mustafa ÖNDER","HP","Notebook","2020-02-06","Bursa","Kredi Kartı",14059]
[null,"Gamze YOKUŞ","ASUS","Notebook","2020-02-07","Antalya","Kredi Kartı",14163]
[null,"Efe TEMEL","MSI","Notebook","2020-02-14","Ankara","Kredi Kartı",13055]
[null,"Sabiha YILMAZ","LENOVO","PC","2020-02-17","Ankara","Nakit",11507]
[null,"Emel YOLCU","MICROSOFT","Notebook","2020-02-19","Bursa","Nakit",9590]
[null,"Gamze YOKUŞ","ASUS","Notebook","2020-02-27","Antalya","Kredi Kartı",14329]
[null,"Emel YOLCU","LENOVO","Notebook","2020-02-29","Bursa","Kredi Kartı",26665]
[null,"Mustafa EMEK","HP","PC","2020-03-01","İzmir","Kredi Kartı",12753]
[null,"Mustafa EMEK","MSI","PC","2020-03-04","İzmir","Nakit",14164]
[null,"Kemal ÇINAR","HP","PC","2020-03-20","Antalya","Kredi Kartı",14077]
[null,"Emre TEKİN","LENOVO","PC","2020-04-01","Ankara","Kredi Kartı",10327]
[null,"İlhan IŞIK","LENOVO","PC","2020-04-01","İstanbul","Kredi Kartı",10873]
[null,"Hasan YILDIZ","LENOVO","Notebook","2020-04-07","Bursa","Kredi Kartı",12183]
[null,"Barış KESKİN","LENOVO","PC","2020-04-08","İzmir","Kredi Kartı",12056]
[null,"Emel YOLCU","ASUS","Notebook","2020-05-10","Bursa","Nakit",9630]
[null,"Barış KESKİN","MSI","PC","2020-05-19","İzmir","Nakit",9752]
[null,"Gamze YOKUŞ","ASUS","PC","2020-05-25","Antalya","Kredi Kartı",13128]
[null,"Gamze YOKUŞ","MSI","PC","2020-05-26","Antalya","Nakit",10433]
[null,"Emre TEKİN","HP","Notebook","2020-05-27","Ankara","Kredi Kartı",12338]
[null,"Murat UMAR","MSI","PC","2020-05-30","İstanbul","Kredi Kartı",12846]
[null,"Ergin EMRE","DELL","PC","2020-06-04","İstanbul","Nakit",12369]
[null,"Efe TEMEL","MSI","PC","2020-06-08","Ankara","Kredi Kartı",14089]
[null,"Mustafa ÖNDER","LENOVO","Notebook","2021-06-11","Bursa","Kredi Kartı",12178]
[null,"Efe TEMEL","MSI","PC","2020-06-12","Ankara","Kredi Kartı",13494]
[null,"Kemal ÇINAR","DELL","PC","2020-06-24","Antalya","Kredi Kartı",14044]
[null,"Murat UMAR","MSI","PC","2020-07-07","İstanbul","Kredi Kartı",9639]
[null,"Sabiha YILMAZ","ASUS","Notebook","2020-07-07","Ankara","Nakit",13160]
[null,"İlhan IŞIK","DELL","PC","2020-07-08","İstanbul","Kredi Kartı",10680]
[null,"Murat UMAR","MSI","PC","2020-07-11","İstanbul","Nakit",10125]
[null,"Barış KESKİN","HUAWEI","Notebook","2020-07-13","İzmir","Nakit",12469]
[null,"İlhan IŞIK","MSI","Notebook","2020-07-20","İstanbul","Nakit",12846]
[null,"Mustafa ÖNDER","DELL","Notebook","2020-07-28","Bursa","Kredi Kartı",12234]
[null,"Emel YOLCU","MSI","Notebook","2020-07-30","Bursa","Nakit",14114]
[null,"Mustafa EMEK","MSI","PC","2020-07-30","İzmir","Kredi Kartı",10913]
[null,"Mustafa ÖNDER","DELL","Notebook","2020-07-31","Bursa","Kredi Kartı",10048]
[null,"Efe TEMEL","LENOVO","Notebook","2020-08-02","Ankara","Kredi Kartı",11362]
[null,"İlhan IŞIK","HP","Notebook","2020-08-03","İstanbul","Kredi Kartı",12239]
[null,"Erol BIÇKIN","ASUS","PC","2020-08-03","İzmir","Kredi Kartı",14279]
[null,"Sabiha YILMAZ","MSI","PC","2020-08-15","Ankara","Nakit",11729]
[null,"Barış KESKİN","MICROSOFT","Notebook","2020-08-24","İzmir","Nakit",13275]
[null,"Barış KESKİN","LENOVO","PC","2020-09-13","İzmir","Nakit",10513]
[null,"Emre TEKİN","HP","PC","2020-09-19","Ankara","Kredi Kartı",13428]
[null,"Mustafa ÖNDER","MSI","PC","2020-09-19","Bursa","Kredi Kartı",10556]
[null,"Hasan YILDIZ","MSI","PC","2020-10-01","Bursa","Kredi Kartı",11535]
[null,"Mustafa ÖNDER","HP","Notebook","2020-10-02","Bursa","Kredi Kartı",37970]
[null,"Emre TEKİN","MSI","Notebook","2020-10-09","Ankara","Nakit",33211]
[null,"Barış KESKİN","MSI","Notebook","2020-10-11","İzmir","Nakit",9835]
[null,"İlhan IŞIK","ASUS","PC","2020-10-17","İstanbul","Nakit",10648]
[null,"Mustafa EMEK","LENOVO","Notebook","2020-10-23","İzmir","Kredi Kartı",13828]
[null,"Efe TEMEL","LENOVO","PC","2020-10-26","Ankara","Nakit",12313]
[null,"Efe TEMEL","ASUS","Notebook","2020-10-27","Ankara","Kredi Kartı",14246]
[null,"Emre TEKİN","MSI","PC","2020-11-18","Ankara","Nakit",14259]
[null,"Ergin EMRE","HP","Notebook","2020-11-26","İstanbul","Nakit",14360]
[null,"Ergin EMRE","LENOVO","PC","2020-12-06","İstanbul","Nakit",10004]
[null,"Hasan YILDIZ","LENOVO","Notebook","2020-12-08","Bursa","Kredi Kartı",28706]
[null,"Erol BIÇKIN","ASUS","Notebook","2020-12-13","İzmir","Kredi Kartı",13893]
[null,"Erol BIÇKIN","DELL","PC","2020-12-26","İzmir","Kredi Kartı",11666]
[null,"Hasan YILDIZ","LENOVO","PC","2020-12-29","Bursa","Nakit",13448]
[null,"İlhan IŞIK","HP","PC","2021-01-06","İstanbul","Nakit",10438]
[null,"Efe TEMEL","DELL","Notebook","2021-01-10","Ankara","Kredi Kartı",13184]
[null,"Gamze YOKUŞ","MICROSOFT","Notebook","2021-01-16","Antalya","Nakit",12622]
[null,"Efe TEMEL","MSI","PC","2021-01-21","Ankara","Nakit",13142]
[null,"Hasan YILDIZ","DELL","Notebook","2021-01-26","Bursa","Kredi Kartı",26388]
[null,"Sabiha YILMAZ","ASUS","Notebook","2021-02-02","Ankara","Kredi Kartı",10379]
[null,"Mustafa ÖNDER","DELL","PC","2021-02-10","Bursa","Kredi Kartı",11273]
[null,"Emre TEKİN","MSI","Notebook","2021-02-10","Ankara","Nakit",13699]
[null,"Emre TEKİN","HP","Notebook","2021-02-11","Ankara","Nakit",12284]
[null,"Mustafa EMEK","DELL","Notebook","2021-02-19","İzmir","Kredi Kartı",14157]
[null,"Mustafa EMEK","HP","PC","2021-03-13","İzmir","Kredi Kartı",13457]
[null,"Mustafa ÖNDER","HP","Notebook","2021-03-17","Bursa","Nakit",10511]
[null,"Mustafa EMEK","MSI","PC","2021-03-20","İzmir","Kredi Kartı",13064]
[null,"Gamze YOKUŞ","HP","PC","2021-03-26","Antalya","Kredi Kartı",13562]
[null,"Mustafa EMEK","HUAWEI","Notebook","2021-03-31","İzmir","Kredi Kartı",13299]
[null,"İlhan IŞIK","MSI","PC","2021-04-01","İstanbul","Kredi Kartı",13519]
[null,"Emre TEKİN","HP","Notebook","2021-04-05","Ankara","Nakit",14484]
[null,"Efe TEMEL","MSI","PC","2021-04-08","Ankara","Kredi Kartı",13787]
[null,"Ergin EMRE","MSI","PC","2021-04-14","İstanbul","Nakit",11804]
[null,"Emel YOLCU","HP","PC","2021-04-26","Bursa","Kredi Kartı",12582]
[null,"Emre TEKİN","DELL","Notebook","2021-04-27","Ankara","Kredi Kartı",14076]
[null,"Mustafa ÖNDER","ASUS","PC","2021-05-03","Bursa","Nakit",10445]
[null,"Efe TEMEL","MSI","Notebook","2021-05-05","Ankara","Kredi Kartı",10446]
[null,"Efe TEMEL","MSI","Notebook","2021-05-06","Ankara","Kredi Kartı",10494]
[null,"İlhan IŞIK","MICROSOFT","Notebook","2021-05-10","İstanbul","Kredi Kartı",33954]
[null,"Kemal ÇINAR","HP","PC","2021-05-12","Antalya","Kredi Kartı",11171]
[null,"Hasan YILDIZ","MSI","Notebook","2021-05-12","Bursa","Nakit",11787]
[null,"Mustafa EMEK","MSI","PC","2021-05-21","İzmir","Kredi Kartı",9929]
[null,"Emre TEKİN","MSI","Notebook","2021-05-30","Ankara","Nakit",11611]
[null,"Emre TEKİN","ASUS","Notebook","2021-06-05","Ankara","Kredi Kartı",10374]
[null,"Mustafa ÖNDER","LENOVO","PC","2021-06-14","Bursa","Nakit",14190]
[null,"Hasan YILDIZ","DELL","Notebook","2021-06-17","Bursa","Kredi Kartı",11006]
[null,"Mustafa ÖNDER","HP","Notebook","2021-06-21","Bursa","Kredi Kartı",13940]
[null,"Hasan YILDIZ","ASUS","PC","2021-06-22","Bursa","Kredi Kartı",10089]
[null,"Kemal ÇINAR","HP","PC","2021-06-28","Antalya","Kredi Kartı",10217]
[null,"Efe TEMEL","MSI","PC","2021-07-02","Ankara","Kredi Kartı",12319]
[null,"Emel YOLCU","MICROSOFT","Notebook","2021-07-02","Bursa","Kredi Kartı",27063]
[null,"Erol BIÇKIN","HUAWEI","Notebook","2021-07-07","İzmir","Kredi Kartı",24987]
[null,"Efe TEMEL","LENOVO","Notebook","2021-07-07","Ankara","Kredi Kartı",11690]
[null,"Murat UMAR","MSI","Notebook","2021-07-19","İstanbul","Kredi Kartı",26797]
[null,"Murat UMAR","HP","PC","2021-07-28","İstanbul","Kredi Kartı",13091]
[null,"Ergin EMRE","DELL","Tablet","2021-08-01","İstanbul","Nakit",12192]
[null,"Murat UMAR","LENOVO","PC","2021-08-04","İstanbul","Kredi Kartı",13936]
[null,"Efe TEMEL","HP","Notebook","2021-08-05","Ankara","Nakit",13186]
[null,"Emel YOLCU","DELL","Notebook","2021-08-16","Bursa","Nakit",42083]
[null,"Hasan YILDIZ","LENOVO","Notebook","2021-08-20","Bursa","Kredi Kartı",35653]
[null,"Mustafa ÖNDER","LENOVO","Notebook","2021-08-23","Bursa","Kredi Kartı",31097]
[null,"Emre TEKİN","MSI","Notebook","2021-08-27","Ankara","Nakit",11094]
[null,"İlhan IŞIK","LENOVO","Notebook","2021-09-04","İstanbul","Kredi Kartı",34047]
[null,"Kemal ÇINAR","MSI","PC","2021-09-08","Antalya","Kredi Kartı",13057]
[null,"Gamze YOKUŞ","ASUS","PC","2021-09-11","Antalya","Kredi Kartı",13156]
[null,"Kemal ÇINAR","HP","PC","2021-09-24","Antalya","Kredi Kartı",12742]
[null,"Barış KESKİN","MSI","PC","2021-09-24","İzmir","Nakit",10122]
[null,"İlhan IŞIK","HUAWEI","Notebook","2021-09-27","İstanbul","Kredi Kartı",10756]
[null,"Hasan YILDIZ","HUAWEI","Notebook","2021-10-04","Bursa","Nakit",11068]
[null,"Efe TEMEL","ASUS","Notebook","2021-10-30","Ankara","Kredi Kartı",13134]
[null,"Murat UMAR","HP","PC","2021-10-31","İstanbul","Nakit",12808]
[null,"Efe TEMEL","HP","PC","2021-11-08","Ankara","Nakit",13494]
[null,"Efe TEMEL","HP","PC","2021-11-09","Ankara","Nakit",11936]
[null,"Erol BIÇKIN","DELL","PC","2021-11-14","İzmir","Nakit",12926]
[null,"Erol BIÇKIN","MSI","PC","2021-11-25","İzmir","Nakit",11672]
[null,"Emel YOLCU","DELL","Notebook","2021-11-28","Bursa","Nakit",40941]
[null,"Erol BIÇKIN","LENOVO","PC","2021-11-28","İzmir","Kredi Kartı",13862]
[null,"Emel YOLCU","MSI","PC","2021-12-01","Bursa","Kredi Kartı",13918]
[null,"Erol BIÇKIN","MSI","Notebook","2021-12-18","İzmir","Kredi Kartı",31385]
[null,"Mustafa EMEK","ASUS","Notebook","2021-12-19","İzmir","Nakit",14308]
[null,"Barış KESKİN","MSI","Notebook","2021-12-27","İzmir","Nakit",10870]
[null,"Emel YOLCU","MSI","PC","2022-01-04","Bursa","Kredi Kartı",12581]
[null,"Mustafa EMEK","MSI","Notebook","2022-01-05","İzmir","Kredi Kartı",11991]
[null,"Barış KESKİN","MSI","Notebook","2022-01-06","İzmir","Nakit",31477]
[null,"Murat UMAR","DELL","Notebook","2022-01-09","İstanbul","Nakit",13164]
[null,"Sabiha YILMAZ","LENOVO","Notebook","2022-01-13","Ankara","Nakit",11195]
[null,"Barış KESKİN","MSI","Notebook","2022-01-19","İzmir","Nakit",10105]
[null,"Barış KESKİN","MSI","Notebook","2022-01-21","İzmir","Kredi Kartı",14349]
[null,"Barış KESKİN","MSI","Notebook","2022-01-22","İzmir","Kredi Kartı",32822]
[null,"Barış KESKİN","MSI","PC","2022-01-31","İzmir","Nakit",14417]
[null,"Mustafa ÖNDER","DELL","Notebook","2022-02-01","Bursa","Kredi Kartı",14042]
[null,"Efe TEMEL","ASUS","Notebook","2022-02-09","Ankara","Kredi Kartı",9672]
[null,"Barış KESKİN","HP","PC","2022-02-23","İzmir","Nakit",10754]
[null,"Erol BIÇKIN","HP","PC","2022-02-27","İzmir","Kredi Kartı",10028]
[null,"Ergin EMRE","DELL","PC","2022-03-08","İstanbul","Kredi Kartı",13070]
[null,"Erol BIÇKIN","ASUS","PC","2022-03-11","İzmir","Nakit",12955]
[null,"İlhan IŞIK","MSI","Notebook","2022-03-14","İstanbul","Kredi Kartı",13844]
[null,"Murat UMAR","MSI","PC","2022-04-01","İstanbul","Nakit",9616]
[null,"Kemal ÇINAR","MSI","Notebook","2022-04-12","Antalya","Kredi Kartı",11668]
[null,"Barış KESKİN","MSI","Notebook","2022-04-13","İzmir","Kredi Kartı",40803]
[null,"Erol BIÇKIN","MSI","PC","2022-04-22","İzmir","Nakit",14383]
[null,"Mustafa EMEK","MSI","PC","2022-05-07","İzmir","Kredi Kartı",11727]
[null,"İlhan IŞIK","DELL","Notebook","2022-05-07","İstanbul","Kredi Kartı",35083]
[null,"Efe TEMEL","HUAWEI","Notebook","2022-06-17","Ankara","Kredi Kartı",11221]
[null,"Barış KESKİN","DELL","PC","2022-06-19","İzmir","Kredi Kartı",12602]
[null,"Barış KESKİN","MSI","PC","2022-07-03","İzmir","Nakit",11496]
[null,"İlhan IŞIK","MSI","PC","2022-07-12","İstanbul","Kredi Kartı",11688]
[null,"Mustafa EMEK","HP","PC","2022-07-14","İzmir","Nakit",10807]
[null,"Murat UMAR","ASUS","PC","2022-07-17","İstanbul","Kredi Kartı",9722]
[null,"Emel YOLCU","HP","Notebook","2022-07-20","Bursa","Kredi Kartı",10301]
[null,"Murat UMAR","MSI","PC","2022-07-26","İstanbul","Nakit",9770]
[null,"İlhan IŞIK","DELL","PC","2022-07-29","İstanbul","Kredi Kartı",12524]
[null,"Efe TEMEL","LENOVO","PC","2022-08-02","Ankara","Nakit",12779]
[null,"Ergin EMRE","DELL","PC","2022-08-02","İstanbul","Kredi Kartı",10486]
[null,"Mustafa ÖNDER","HP","PC","2022-08-18","Bursa","Nakit",11097]
[null,"Mustafa EMEK","HUAWEI","Notebook","2022-08-24","İzmir","Nakit",12695]
[null,"Emre TEKİN","MSI","PC","2022-09-04","Ankara","Kredi Kartı",13936]
[null,"İlhan IŞIK","MSI","PC","2022-09-12","İstanbul","Kredi Kartı",13009]
[null,"Ergin EMRE","MSI","PC","2022-09-23","İstanbul","Kredi Kartı",12295]
[null,"Emel YOLCU","DELL","Notebook","2022-09-24","Bursa","Nakit",10166]
[null,"Kemal ÇINAR","HP","PC","2022-10-07","Antalya","Kredi Kartı",11813]
[null,"Ergin EMRE","LENOVO","PC","2022-10-09","İstanbul","Nakit",10201]
[null,"Ergin EMRE","HP","PC","2022-10-10","İstanbul","Kredi Kartı",10199]
[null,"Hasan YILDIZ","HP","PC","2022-10-11","Bursa","Kredi Kartı",12551]
[null,"Kemal ÇINAR","MICROSOFT","Notebook","2022-10-13","Antalya","Nakit",33828]
[null,"Emel YOLCU","HUAWEI","Notebook","2022-10-16","Bursa","Nakit",10572]
[null,"Sabiha YILMAZ","ASUS","Notebook","2022-10-20","Ankara","Nakit",10809]
[null,"İlhan IŞIK","LENOVO","PC","2022-10-20","İstanbul","Kredi Kartı",12956]
[null,"Kemal ÇINAR","DELL","Notebook","2022-10-26","Antalya","Kredi Kartı",11984]
[null,"İlhan IŞIK","DELL","PC","2022-10-28","İstanbul","Kredi Kartı",10877]
[null,"Emre TEKİN","LENOVO","Notebook","2022-10-29","Ankara","Kredi Kartı",12660]
[null,"Emel YOLCU","ASUS","Notebook","2022-10-31","Bursa","Nakit",12812]
[null,"Kemal ÇINAR","HP","PC","2022-11-14","Antalya","Kredi Kartı",10831]
[null,"Mustafa ÖNDER","DELL","Notebook","2022-11-18","Bursa","Kredi Kartı",12155]
[null,"Emel YOLCU","ASUS","PC","2022-11-20","Bursa","Nakit",10255]
[null,"Kemal ÇINAR","DELL","Notebook","2022-11-25","Antalya","Nakit",38804]
[null,"Sabiha YILMAZ","LENOVO","PC","2022-11-25","Ankara","Kredi Kartı",12491]
[null,"Kemal ÇINAR","HP","PC","2022-12-03","Antalya","Kredi Kartı",14405]
[null,"Erol BIÇKIN","DELL","PC","2022-12-06","İzmir","Kredi Kartı",13262]
[null,"Sabiha YILMAZ","MSI","Notebook","2022-12-13","Ankara","Kredi Kartı",40596]
[null,"Emre TEKİN","MSI","PC","2022-12-16","Ankara","Kredi Kartı",12487]
[null,"Efe TEMEL","LENOVO","PC","2022-12-20","Ankara","Kredi Kartı",12694]
[null,"Mustafa EMEK","HUAWEI","Notebook","2022-12-25","İzmir","Nakit",11752]

{"sheet":"HedefAra","index":47,"n_rows":10,"n_cols":8,"rows_kept":10,"cut":false,"hidden":false,"merged":[]}
[]
[null,"Hedef Ara"]
[]
[]
[null,"Ürün","Adet","Birim Fiyatı","Toplam Tutar",null,"Faiz Oranı",1.3899999999999999E-2]
[null,"Ürün 1",21,150,{"$f":"D6*C6","v":3150},null,"Vade Sayısı",48]
[null,"Ürün 2",null,465,{"$f":"D7*C7","v":0},null,"Ana Para",95000]
[null,"Ürün 3",23,320,{"$f":"D8*C8","v":7360}]
[null,null,null,null,null,null,"Aylık Ödeme",{"$f":"-PMT(H5,H6,H7)","v":2725.5264123526654}]
[null,null,null,"Toplam",{"$f":"SUM(E6:E8)","v":10510},null,"Toplam Ödeme",{"$f":"H9*H6","v":130825.26779292795}]

{"sheet":"Grafikler","index":48,"n_rows":11,"n_cols":21,"rows_kept":11,"cut":false,"hidden":false,"merged":[]}
[]
[null,"Grafikler"]
[]
[]
[null,"Marka","Satış Oranı","Satış Tutarı",null,"ÜRÜN","OCAK",null,"ÜRÜN","OCAK","ŞUBAT","MART","NİSAN","MAYIS","HAZİRAN","TEMMUZ","AĞUSTOS","EYLÜL","EKİM","KASIM","ARALIK"]
[null,"HP",{"$f":"D6/SUM($D$6:$D$11)","v":0.11789446515461256},40196,null,"Notebook",63,null,"Notebook",24,29,18,24,43,16,33,30,38,20,34,36]
[null,"DELL",0.20728613370328114,70674,null,"Tablet",91,null,"PC",20,31,20,36,20,21,34,32,43,29,42,23]
[null,"TOSHIBA",0.2214876711766276,75516,null,"PC",62,null,"Tablet",25,28,42,38,20,25,41,28,25,17,37,40]
[null,"ASUS",0.19120454965405384,65191,null,"Telefon",90]
[null,"IBM",0.21755746460614345,74176,null,"TV",72]
[null,"MSI",4.4569715705281433E-2,15196,null,"Oyun Konsolu",53]

{"sheet":"Grafikler (Bilgi)","index":49,"n_rows":41,"n_cols":2,"rows_kept":41,"cut":false,"hidden":false,"merged":[]}
[]
[null,"Grafikler"]
[]
[null,"Grafik Seçerken Dikkat Edilmesi Gerekenler:"]
[]
[null,"Veri Türü: Sayısal mı, kategorik mi?"]
[null,"Göstermek İstediğiniz Bilgi: Farklılık, değişim, oran, ilişki?"]
[null,"İzleyiciniz: Teknik bilgi düzeyleri ne?"]
[null,"Veri Miktarı: Çok fazla veri mi, az mı?"]
[]
[null,"1. Sütun Grafiği:"]
[]
[null,"Ne zaman kullanılır: Kategorik veriler arasındaki farklılıkları karşılaştırmak için idealdir."]
[null,"Örnek: Farklı meyvelerin satış miktarlarını karşılaştırmak, farklı departmanların aylık satışlarını göstermek."]
[]
[null,"2. Çizgi Grafiği:"]
[]
[null,"Ne zaman kullanılır: Sürekli değişen verileri zaman içinde takip etmek için kullanılır."]
[null,"Örnek: Bir şirketin aylık karını zaman içinde göstermek, bir ürünün satışlarının zaman içindeki değişimini takip etmek."]
[]
[null,"3. Pasta Grafiği:"]
[]
[null,"Ne zaman kullanılır: Bir bütünün parçalarına oranını göstermek için kullanılır."]
[null,"Örnek: Bir şirketin toplam gelir içindeki farklı ürünlerin payını göstermek, bir bütçenin farklı kalemlere dağılımını göstermek."]
[]
[null,"4. Dağılım Grafiği (XY Grafiği):"]
[]
[null,"Ne zaman kullanılır: İki sayısal değişken arasındaki ilişkiyi göstermek için kullanılır."]
[null,"Örnek: Ürün fiyatlarının satış miktarı ile olan ilişkisini göstermek, öğrencilerin notları ile çalışma süreleri arasındaki ilişkiyi göstermek."]
[]
[null,"5. Alan Grafiği:"]
[]
[null,"Ne zaman kullanılır: Zaman içindeki değişimleri ve toplamları göstermek için kullanılır."]
[null,"Örnek: Farklı ürünlerin toplam satışlarının zaman içindeki değişimini göstermek."]
[]
[null,"Diğer Grafik Türleri:"]
[]
[null,"Halkalı Grafik: Pasta grafinin bir varyasyonu olup, iç içe geçmiş daireler şeklindedir."]
[null,"Kabarcık Grafiği: Dağılım grafiğine benzer, ancak her veri noktasının büyüklüğü üçüncü bir değişkenle temsil edilir."]
[null,"Coğrafi Harita: Coğrafi verilere dayalı görselleştirmeler için kullanılır."]
[null,"Hisogram: Verilerin frekans dağılımını göstermek için kullanılır."]

{"sheet":"Uygulama 1","index":50,"n_rows":24,"n_cols":12,"rows_kept":24,"cut":false,"hidden":false,"merged":[]}
[]
[null,"Uygulama 1"]
[]
[null,"SİPARİŞ FORMU"]
[]
[null,null,null,null,null,null,"Tarih"]
[]
[null,"Sıra No","Ürün Kodu","Marka","Tür","Birim Fiyat","Adet","Tutar",null,"İşlem Adımları","Durum","Formül"]
[null,{"$f":"IF(C9>0,COUNTA($C$9:C9),\"\")","v":""},null,null,null,null,null,null,null,"Tarih Otomatik Gelsin",false,{"$f":"IF(K9,\"BUGÜN()\",\"\")","v":""}]
[null,{"$f":"IF(C10>0,COUNTA($C$9:C10),\"\")","v":""},null,null,null,null,null,null,null,"Sıra Numaraları Otomatik Gelsin",false,{"$f":"IF(K10,\"EĞER - BAĞ_DEĞ_DOLU_SAY()\",\"\")","v":""}]
[null,{"$f":"IF(C11>0,COUNTA($C$9:C11),\"\")","v":""},null,null,null,null,null,null,null,"Ürün Kodları Listeden Seçilsin",false,{"$f":"IF(K11,\"Veri Doğrulama\",\"\")","v":""}]
[null,{"$f":"IF(C12>0,COUNTA($C$9:C12),\"\")","v":""},null,null,null,null,null,null,null,"Liste Dinamik Olsun",false,{"$f":"IF(K12,\"KIRPARALIĞI()\",\"\")","v":""}]
[null,{"$f":"IF(C13>0,COUNTA($C$9:C13),\"\")","v":""},null,null,null,null,null,null,null,"Kod Seçildiğinde Ürün Bilgileri Gelsin",false,{"$f":"IF(K13,\"DÜŞEYARA()\",\"\")","v":""}]
[null,{"$f":"IF(C14>0,COUNTA($C$9:C14),\"\")","v":""},null,null,null,null,null,null,null,"Kod Seçilmediğinde Hücre Boş Kalsın",false,{"$f":"IF(K14,\"EĞERHATA()\",\"\")","v":""}]
[null,{"$f":"IF(C15>0,COUNTA($C$9:C15),\"\")","v":""},null,null,null,null,null,null,null,"Tutar Hesaplansın",false,{"$f":"IF(K15,\"TOPLA()\",\"\")","v":""}]
[null,{"$f":"IF(C16>0,COUNTA($C$9:C16),\"\")","v":""},null,null,null,null,null,null,null,"Toplam Hesaplansın",false,{"$f":"IF(K16,\"TOPLA()\",\"\")","v":""}]
[null,{"$f":"IF(C17>0,COUNTA($C$9:C17),\"\")","v":""},null,null,null,null,null,null,null,"KDV Hesaplansın",false,{"$f":"IF(K17,\"Toplam *20%\",\"\")","v":""}]
[null,{"$f":"IF(C18>0,COUNTA($C$9:C18),\"\")","v":""},null,null,null,null,null,null,null,"Toplam Tutar Hesaplansın",false,{"$f":"IF(K18,\"TOPLA()\",\"\")","v":""}]
[]
[null,null,null,null,null,null,"Toplam"]
[]
[null,null,null,null,null,null,"KDV"]
[]
[null,null,null,null,null,null,"Toplam Tutar"]

{"sheet":"Uygulama 1 Verileri","index":51,"n_rows":23,"n_cols":5,"rows_kept":23,"cut":false,"hidden":false,"merged":[]}
[]
[null,"Uygulama 1 Veriler"]
[]
[null,"Ürün Kodu","Marka","Tür","Birim Fiyat"]
[null,"ND-1352","Dell","Notebook",3500]
[null,"RL-1210","Lenovo","PC",1850]
[null,"NT-1468","Dell","Notebook",3860]
[null,"PL-1219","Lenovo","PC",1480]
[null,"XL-1105","Lenovo","Tablet",350]
[null,"TS-1236","MSI","Tablet",575]
[null,"PH-1269","HP","PC",1945]
[null,"ZD-1220","MSI","Notebook",2200]
[null,"ND-1247","Dell","Notebook",4260]
[null,"TA-1365","Asus","Tablet",1350]
[null,"TH-1382","HP","Tablet",1500]
[null,"PH-1244","HP","PC",2100]
[null,"ND-1499","Dell","Notebook",3000]
[null,"KL-1052","Lenovo","Notebook",4600]
[null,"PT-1364","Dell","PC",3000]
[null,"NA-1100","Asus","Notebook",5630]
[null,"QD-1052","Dell","PC",2450]
[null,"PH-1432","HP","PC",2230]
[null,"TH-1471","HP","Tablet",750]

{"sheet":"Uygulama2","index":52,"n_rows":5,"n_cols":9,"rows_kept":5,"cut":false,"hidden":true,"merged":[]}
[]
[null,"Uygulama 2"]
[]
[]
[null,"Sıra No","Marka","Tür","Satış Türü","Tarih","Şehir","Ödeme Türü","Fiyat"]

{"sheet":"Uygulama 2 Verileri","index":53,"n_rows":196,"n_cols":8,"rows_kept":196,"cut":false,"hidden":true,"merged":[]}
[]
[null,"Uygulama 2 Veriler"]
[]
[null,"Marka","Tür","Satış Türü","Tarih","Şehir","Ödeme Türü","Fiyat"]
[null,"ASUS","Notebook","Site","2019-08-04","İstanbul","Kredi Kartı",7319]
[null,"HP","Tablet","Mağaza","2018-08-24","Ankara","Peşin",8354]
[null,"DELL","Notebook","Mağaza","2018-06-13","Bursa","Kredi Kartı",4696]
[null,"HP","Notebook","Mağaza","2018-03-19","Ankara","Peşin",4773]
[null,"HP","PC","Site","2019-11-22","İstanbul","Kredi Kartı",5432]
[null,"DELL","Notebook","Site","2019-11-30","Bursa","Kredi Kartı",6238]
[null,"MSI","Notebook","Site","2018-06-23","Bursa","Kredi Kartı",9195]
[null,"DELL","Tablet","Site","2018-03-16","Bursa","Kredi Kartı",6240]
[null,"MSI","Tablet","Mağaza","2018-02-13","İstanbul","Peşin",5284]
[null,"TOSHIBA","PC","Site","2018-11-25","İstanbul","Kredi Kartı",8855]
[null,"MSI","Tablet","Site","2018-09-18","Ankara","Kredi Kartı",4202]
[null,"MSI","PC","Mağaza","2019-01-31","Ankara","Peşin",6655]
[null,"MSI","PC","Mağaza","2018-02-05","Ankara","Peşin",7689]
[null,"TOSHIBA","PC","Site","2018-09-03","Ankara","Kredi Kartı",7241]
[null,"TOSHIBA","Notebook","Site","2018-04-30","Bursa","Kredi Kartı",7692]
[null,"ASUS","Notebook","Site","2018-04-26","Bursa","Kredi Kartı",7950]
[null,"DELL","PC","Mağaza","2019-03-29","Bursa","Peşin",5984]
[null,"MSI","PC","Mağaza","2018-03-20","Bursa","Kredi Kartı",4652]
[null,"MSI","PC","Mağaza","2019-05-20","Bursa","Kredi Kartı",9326]
[null,"MSI","PC","Site","2019-07-03","İstanbul","Kredi Kartı",5738]
[null,"ASUS","Notebook","Mağaza","2018-10-17","Ankara","Peşin",5064]
[null,"ASUS","Tablet","Site","2018-10-02","Bursa","Kredi Kartı",9233]
[null,"ASUS","Tablet","Site","2019-10-22","Bursa","Kredi Kartı",6872]
[null,"MSI","PC","Site","2019-09-17","Ankara","Kredi Kartı",6472]
[null,"DELL","Notebook","Site","2018-01-09","Ankara","Kredi Kartı",6071]
[null,"TOSHIBA","PC","Site","2018-03-24","İstanbul","Kredi Kartı",9227]
[null,"MSI","PC","Mağaza","2018-08-16","Ankara","Peşin",4715]
[null,"ASUS","Notebook","Mağaza","2018-07-21","Ankara","Peşin",4747]
[null,"HP","PC","Site","2019-05-27","İstanbul","Kredi Kartı",5980]
[null,"HP","Notebook","Site","2019-07-19","Bursa","Kredi Kartı",6991]
[null,"HP","PC","Mağaza","2019-01-22","Bursa","Peşin",9254]
[null,"MSI","Tablet","Mağaza","2018-09-14","Ankara","Peşin",7689]
[null,"MSI","PC","Mağaza","2019-03-08","İstanbul","Peşin",7099]
[null,"MSI","Notebook","Site","2019-06-13","Bursa","Kredi Kartı",7085]
[null,"DELL","PC","Site","2019-02-13","İstanbul","Kredi Kartı",7497]
[null,"DELL","PC","Site","2018-01-13","Ankara","Kredi Kartı",6412]
[null,"ASUS","PC","Site","2019-09-09","İstanbul","Kredi Kartı",6676]
[null,"MSI","Tablet","Site","2019-05-23","Bursa","Kredi Kartı",9287]
[null,"MSI","PC","Mağaza","2019-12-20","İstanbul","Peşin",9053]
[null,"ASUS","PC","Mağaza","2018-07-15","Bursa","Peşin",3999]
[null,"MSI","Tablet","Site","2018-01-31","İstanbul","Kredi Kartı",4430]
[null,"TOSHIBA","Tablet","Site","2018-12-11","Bursa","Kredi Kartı",5730]
[null,"HP","PC","Mağaza","2019-01-05","İstanbul","Peşin",5722]
[null,"MSI","PC","Site","2018-10-29","Bursa","Kredi Kartı",8578]
[null,"MSI","Notebook","Site","2019-07-22","Ankara","Kredi Kartı",7401]
[null,"DELL","Notebook","Site","2018-03-11","Bursa","Kredi Kartı",4664]
[null,"HP","PC","Mağaza","2018-01-12","Bursa","Peşin",9158]
[null,"HP","Tablet","Site","2019-07-17","Bursa","Kredi Kartı",5428]
[null,"HP","Tablet","Mağaza","2018-05-04","Bursa","Peşin",8352]
[null,"MSI","Notebook","Mağaza","2019-08-28","Bursa","Peşin",7172]
[null,"TOSHIBA","Notebook","Site","2018-04-13","Bursa","Kredi Kartı",7397]
[null,"TOSHIBA","Notebook","Mağaza","2018-12-31","Ankara","Peşin",4382]
[null,"TOSHIBA","Tablet","Site","2019-07-25","Bursa","Kredi Kartı",6718]
[null,"ASUS","PC","Mağaza","2018-11-25","İstanbul","Peşin",7352]
[null,"MSI","Notebook","Mağaza","2018-11-10","Bursa","Peşin",7168]
[null,"HP","Tablet","Mağaza","2019-05-05","Bursa","Peşin",5124]
[null,"ASUS","Notebook","Site","2018-11-19","Bursa","Kredi Kartı",6994]
[null,"TOSHIBA","Tablet","Mağaza","2019-07-30","Bursa","Peşin",6375]
[null,"MSI","Notebook","Site","2019-02-25","Bursa","Kredi Kartı",5844]
[null,"HP","Tablet","Mağaza","2019-11-11","Ankara","Kredi Kartı",8419]
[null,"TOSHIBA","Tablet","Mağaza","2019-09-24","Ankara","Peşin",4919]
[null,"MSI","Tablet","Mağaza","2018-11-09","İstanbul","Kredi Kartı",7091]
[null,"DELL","Tablet","Mağaza","2018-07-12","Bursa","Kredi Kartı",7682]
[null,"MSI","Tablet","Site","2018-12-03","Bursa","Kredi Kartı",4135]
[null,"DELL","PC","Site","2018-09-19","Bursa","Kredi Kartı",6570]
[null,"TOSHIBA","PC","Mağaza","2018-01-29","İstanbul","Peşin",7283]
[null,"DELL","PC","Mağaza","2018-02-13","Ankara","Kredi Kartı",5363]
[null,"TOSHIBA","Notebook","Site","2019-01-12","Bursa","Kredi Kartı",8702]
[null,"DELL","Notebook","Site","2018-03-12","İstanbul","Kredi Kartı",9464]
[null,"HP","PC","Site","2018-04-17","Bursa","Kredi Kartı",9112]
[null,"MSI","PC","Mağaza","2019-03-19","İstanbul","Peşin",6434]
[null,"MSI","Tablet","Mağaza","2019-05-12","Ankara","Peşin",4446]
[null,"DELL","Tablet","Site","2019-03-01","Ankara","Kredi Kartı",7642]
[null,"MSI","Notebook","Mağaza","2019-02-09","Bursa","Peşin",7830]
[null,"TOSHIBA","Notebook","Mağaza","2019-02-23","Bursa","Peşin",7490]
[null,"DELL","Tablet","Mağaza","2019-06-05","Bursa","Peşin",6450]
[null,"MSI","Notebook","Site","2019-06-20","Bursa","Kredi Kartı",6780]
[null,"TOSHIBA","PC","Mağaza","2018-02-08","Bursa","Peşin",7063]
[null,"DELL","Notebook","Mağaza","2018-03-28","İstanbul","Peşin",5454]
[null,"HP","PC","Mağaza","2019-11-18","İstanbul","Peşin",9472]
[null,"HP","PC","Site","2018-03-02","Bursa","Kredi Kartı",8156]
[null,"ASUS","Notebook","Site","2019-12-25","Bursa","Kredi Kartı",3879]
[null,"TOSHIBA","Notebook","Mağaza","2018-11-21","Bursa","Peşin",5721]
[null,"TOSHIBA","Notebook","Mağaza","2019-03-25","Ankara","Kredi Kartı",3932]
[null,"TOSHIBA","Notebook","Mağaza","2019-10-17","İstanbul","Kredi Kartı",5281]
[null,"HP","PC","Mağaza","2018-04-22","Ankara","Peşin",7062]
[null,"DELL","Notebook","Mağaza","2019-06-08","İstanbul","Peşin",6228]
[null,"MSI","Notebook","Site","2018-09-25","Bursa","Kredi Kartı",8949]
[null,"ASUS","Notebook","Mağaza","2019-06-11","Ankara","Peşin",5045]
[null,"TOSHIBA","PC","Mağaza","2019-05-14","Ankara","Peşin",9175]
[null,"MSI","PC","Site","2018-11-10","Bursa","Kredi Kartı",6251]
[null,"HP","PC","Site","2019-10-11","Bursa","Kredi Kartı",5911]
[null,"DELL","Tablet","Mağaza","2019-12-29","Bursa","Kredi Kartı",6621]
[null,"HP","Notebook","Site","2019-03-02","İstanbul","Kredi Kartı",5076]
[null,"MSI","Notebook","Mağaza","2019-04-05","Bursa","Kredi Kartı",9184]
[null,"ASUS","Tablet","Site","2019-12-19","Bursa","Kredi Kartı",8066]
[null,"ASUS","Notebook","Site","2018-10-15","İstanbul","Kredi Kartı",4421]
[null,"HP","Tablet","Mağaza","2018-09-22","Ankara","Peşin",4677]
[null,"DELL","Notebook","Mağaza","2018-10-11","Bursa","Kredi Kartı",6965]
[null,"HP","Notebook","Mağaza","2018-11-19","Ankara","Peşin",7335]
[null,"HP","PC","Site","2019-03-27","İstanbul","Kredi Kartı",4752]
[null,"DELL","Notebook","Site","2019-07-26","Bursa","Kredi Kartı",6376]
[null,"MSI","Notebook","Site","2018-08-11","Bursa","Kredi Kartı",5569]
[null,"DELL","Tablet","Site","2018-04-27","Bursa","Kredi Kartı",8931]
[null,"MSI","Tablet","Mağaza","2018-01-31","İstanbul","Peşin",4992]
[null,"TOSHIBA","PC","Site","2018-08-14","İstanbul","Kredi Kartı",8266]
[null,"MSI","Tablet","Site","2019-08-28","Ankara","Kredi Kartı",4001]
[null,"MSI","PC","Mağaza","2018-12-17","Ankara","Peşin",6258]
[null,"MSI","PC","Mağaza","2018-06-15","Ankara","Peşin",7552]
[null,"TOSHIBA","PC","Site","2019-05-02","Ankara","Kredi Kartı",7336]
[null,"TOSHIBA","Notebook","Site","2019-06-05","Bursa","Kredi Kartı",8023]
[null,"ASUS","Notebook","Site","2019-11-10","Bursa","Kredi Kartı",3963]
[null,"DELL","PC","Mağaza","2019-12-11","Bursa","Peşin",7663]
[null,"MSI","PC","Mağaza","2018-04-01","Bursa","Kredi Kartı",6084]
[null,"MSI","PC","Mağaza","2018-07-29","Bursa","Kredi Kartı",6260]
[null,"MSI","PC","Site","2018-08-12","İstanbul","Kredi Kartı",8739]
[null,"ASUS","Notebook","Mağaza","2019-03-12","Ankara","Peşin",4804]
[null,"ASUS","Tablet","Site","2018-11-18","Bursa","Kredi Kartı",8628]
[null,"ASUS","Tablet","Site","2018-09-01","Bursa","Kredi Kartı",8109]
[null,"MSI","PC","Site","2018-12-16","Ankara","Kredi Kartı",9497]
[null,"DELL","Notebook","Site","2018-10-24","Ankara","Kredi Kartı",8463]
[null,"TOSHIBA","PC","Site","2018-10-21","İstanbul","Kredi Kartı",5250]
[null,"MSI","PC","Mağaza","2018-09-22","Ankara","Peşin",7361]
[null,"ASUS","Notebook","Mağaza","2018-06-20","Ankara","Peşin",9178]
[null,"HP","PC","Site","2019-05-22","İstanbul","Kredi Kartı",5302]
[null,"HP","Notebook","Site","2018-11-15","Bursa","Kredi Kartı",4205]
[null,"HP","PC","Mağaza","2019-08-27","Bursa","Peşin",6608]
[null,"MSI","Tablet","Mağaza","2018-07-27","Ankara","Peşin",7642]
[null,"MSI","PC","Mağaza","2019-05-28","İstanbul","Peşin",6752]
[null,"MSI","Notebook","Site","2019-05-21","Bursa","Kredi Kartı",9152]
[null,"DELL","PC","Site","2019-10-12","İstanbul","Kredi Kartı",5285]
[null,"DELL","PC","Site","2019-11-21","Ankara","Kredi Kartı",5247]
[null,"ASUS","PC","Site","2019-05-08","İstanbul","Kredi Kartı",4484]
[null,"MSI","Tablet","Site","2018-06-18","Bursa","Kredi Kartı",9416]
[null,"MSI","PC","Mağaza","2019-10-25","İstanbul","Peşin",7111]
[null,"ASUS","PC","Mağaza","2018-06-13","Bursa","Peşin",9357]
[null,"MSI","Tablet","Site","2018-04-11","İstanbul","Kredi Kartı",7857]
[null,"TOSHIBA","Tablet","Site","2018-10-30","Bursa","Kredi Kartı",7674]
[null,"HP","PC","Mağaza","2018-07-03","İstanbul","Peşin",5285]
[null,"MSI","PC","Site","2019-03-10","Bursa","Kredi Kartı",8061]
[null,"MSI","Notebook","Site","2019-07-13","Ankara","Kredi Kartı",7100]
[null,"DELL","Notebook","Site","2019-09-17","Bursa","Kredi Kartı",5768]
[null,"HP","PC","Mağaza","2018-01-06","Bursa","Peşin",7008]
[null,"HP","Tablet","Site","2019-10-01","Bursa","Kredi Kartı",6266]
[null,"HP","Tablet","Mağaza","2018-08-28","Bursa","Peşin",9419]
[null,"MSI","Notebook","Mağaza","2019-10-02","Bursa","Peşin",3982]
[null,"TOSHIBA","Notebook","Site","2019-01-10","Bursa","Kredi Kartı",7046]
[null,"TOSHIBA","Notebook","Mağaza","2019-09-07","Ankara","Peşin",7342]
[null,"TOSHIBA","Tablet","Site","2019-02-09","Bursa","Kredi Kartı",7474]
[null,"ASUS","PC","Mağaza","2019-02-04","İstanbul","Peşin",9362]
[null,"MSI","Notebook","Mağaza","2019-02-24","Bursa","Peşin",5727]
[null,"HP","Tablet","Mağaza","2018-10-29","Bursa","Peşin",7343]
[null,"ASUS","Notebook","Site","2019-09-08","Bursa","Kredi Kartı",6245]
[null,"TOSHIBA","Tablet","Mağaza","2018-10-16","Bursa","Peşin",8594]
[null,"MSI","Notebook","Site","2018-04-18","Bursa","Kredi Kartı",4437]
[null,"HP","Tablet","Mağaza","2019-10-30","Ankara","Kredi Kartı",9244]
[null,"TOSHIBA","Tablet","Mağaza","2018-10-13","Ankara","Peşin",8112]
[null,"MSI","Tablet","Mağaza","2018-01-11","İstanbul","Kredi Kartı",4519]
[null,"DELL","Tablet","Mağaza","2019-11-05","Bursa","Kredi Kartı",8445]
[null,"MSI","Tablet","Site","2018-02-05","Bursa","Kredi Kartı",8801]
[null,"DELL","PC","Site","2019-08-28","Bursa","Kredi Kartı",4243]
[null,"TOSHIBA","PC","Mağaza","2018-10-20","İstanbul","Peşin",8207]
[null,"DELL","PC","Mağaza","2018-11-06","Ankara","Kredi Kartı",7457]
[null,"TOSHIBA","Notebook","Site","2018-08-13","Bursa","Kredi Kartı",7660]
[null,"DELL","Notebook","Site","2018-09-29","İstanbul","Kredi Kartı",7642]
[null,"HP","PC","Site","2019-05-01","Bursa","Kredi Kartı",8807]
[null,"MSI","PC","Mağaza","2018-05-24","İstanbul","Peşin",7392]
[null,"MSI","Tablet","Mağaza","2018-04-28","Ankara","Peşin",7512]
[null,"DELL","Tablet","Site","2018-09-01","Ankara","Kredi Kartı",6142]
[null,"MSI","Notebook","Mağaza","2018-09-18","Bursa","Peşin",5000]
[null,"TOSHIBA","Notebook","Mağaza","2019-01-12","Bursa","Peşin",7654]
[null,"DELL","Tablet","Mağaza","2018-05-20","Bursa","Peşin",6623]
[null,"MSI","Notebook","Site","2018-09-12","Bursa","Kredi Kartı",5416]
[null,"TOSHIBA","PC","Mağaza","2019-10-16","Bursa","Peşin",8365]
[null,"DELL","Notebook","Mağaza","2019-09-17","İstanbul","Peşin",4978]
[null,"HP","PC","Mağaza","2018-07-31","İstanbul","Peşin",6063]
[null,"HP","PC","Site","2019-09-09","Bursa","Kredi Kartı",7428]
[null,"ASUS","Notebook","Site","2019-09-09","Bursa","Kredi Kartı",5325]
[null,"TOSHIBA","Notebook","Mağaza","2019-05-30","Bursa","Peşin",7882]
[null,"TOSHIBA","Notebook","Mağaza","2019-11-01","Ankara","Kredi Kartı",7430]
[null,"TOSHIBA","Notebook","Mağaza","2019-05-30","İstanbul","Kredi Kartı",5281]
[null,"HP","PC","Mağaza","2019-07-11","Ankara","Peşin",3894]
[null,"DELL","Notebook","Mağaza","2018-11-07","İstanbul","Peşin",8208]
[null,"MSI","Notebook","Site","2019-12-01","Bursa","Kredi Kartı",9057]
[null,"ASUS","Notebook","Mağaza","2019-04-30","Ankara","Peşin",6408]
[null,"TOSHIBA","PC","Mağaza","2018-10-20","Ankara","Peşin",8967]
[null,"MSI","PC","Site","2018-01-12","Bursa","Kredi Kartı",4896]
[null,"HP","PC","Site","2018-03-05","Bursa","Kredi Kartı",9416]
[null,"DELL","Tablet","Mağaza","2018-10-10","Bursa","Kredi Kartı",9016]
[null,"HP","Notebook","Site","2018-12-07","İstanbul","Kredi Kartı",8118]
[null,"MSI","Notebook","Mağaza","2018-08-24","Bursa","Kredi Kartı",6472]
[null,"ASUS","Tablet","Site","2019-01-25","Bursa","Kredi Kartı",7761]

{"sheet":"Liste (Bilgi)","index":54,"n_rows":254,"n_cols":18,"rows_kept":254,"cut":false,"hidden":false,"merged":[[4,17,4,25],[11,17,11,25],[18,17,18,25],[25,17,25,25]]}
[]
[null,"Pivot Tablo"]
[]
[null,"Tarih","Şehir","Satış Elemanı","Ürün","Marka","Tür","Adet","Birim Fiyat","Tutar","Ödeme Türü"]
[null,"2023-11-25","Bursa","Sabiha YALIN","Tablet","Lenovo","12'",1,4000,{"$f":"H5*I5","v":4000},"Nakit",null,null,null,null,null,null,"Ürün KPI'ları*"]
[null,"2024-07-28","İstanbul","Emre DEMİR","Kulaklık","Jabra","Kulak İçi Bluetoth",1,2500,{"$f":"H6*I6","v":2500},"Nakit"]
[null,"2022-05-20","Ankara","Emel YOLCU","Bilgisayar","HP","PC",2,22134,44268,"Kredi Kartı",null,null,null,null,null,null,"Satış Hacmi: Her bir ürünün toplam satış hacmi."]
[null,"2019-04-07","İzmir","Kemal ARGAN","Bilgisayar","HP","Game Notebook",2,34982,69964,"Kredi Kartı",null,null,null,null,null,null,"Kar Marjı: Her bir ürünün kar marjı."]
[null,"2021-12-15","Bursa","Sabiha YALIN","Bilgisayar","HP","Game Notebook",1,62971,62971,"Kredi Kartı",null,null,null,null,null,null,"En Çok Satan Ürünler: Belirli bir dönemdeki en çok satan ürünler."]
[null,"2021-05-17","İstanbul","Emre DEMİR","Bilgisayar","HP","Notebook",1,34773,34773,"Kredi Kartı",null,null,null,null,null,null,"En Az Satan Ürünler: Belirli bir dönemdeki en az satan ürünler."]
[null,"2019-12-09","Bursa","Sabiha YALIN","Kulaklık","Sennheiser","Kulak İçi Bluetoth",2,8568,17136,"Nakit"]
[null,"2021-07-22","Bursa","Mustafa YILDIZ","Tablet","Xiomi","14.1'",1,4909,4909,"Nakit",null,null,null,null,null,null,"Müşteri KPI'ları"]
[null,"2020-10-04","Ankara","Emel YOLCU","Kulaklık","Xiomi","Kulak İçi Bluetoth",1,3249,3249,"Nakit"]
[null,"2023-09-08","Bursa","Sabiha YALIN","Bilgisayar","Lenovo","Notebook",2,47126,94252,"Havale / EFT",null,null,null,null,null,null,"Müşteri Kazanım Oranı: Belirli bir dönemde kazanılan yeni müşteri sayısı."]
[null,"2020-12-12","Bursa","Sabiha YALIN","Bilgisayar","MSI","PC",5,51024,255120,"Havale / EFT",null,null,null,null,null,null,"Müşteri Kayıp Oranı: Belirli bir dönemde kaybedilen müşteri sayısı."]
[null,"2022-08-09","İzmir","Ergin ŞANLI","Tablet","Huawei","13.5'",1,7608,7608,"Nakit",null,null,null,null,null,null,"Ortalama Sipariş Değeri: Müşterilerin ortalama sipariş değeri."]
[null,"2024-04-16","Bursa","Mustafa YILDIZ","Bilgisayar","Lenovo","Workstation",3,93102,279306,"Havale / EFT",null,null,null,null,null,null,"Müşteri Yaşam Boyu Değeri: Bir müşterinin işletmeye sağladığı toplam gelir."]
[null,"2021-05-09","Antalya","İlhan IŞIK","Kulaklık","Marshall","Kulak İçi",1,5097,5097,"Nakit"]
[null,"2021-03-22","Bursa","Mustafa YILDIZ","Bilgisayar","Lenovo","PC",1,64353,64353,"Kredi Kartı",null,null,null,null,null,null,"Satış Kanalı KPI'ları"]
[null,"2023-11-02","İzmir","Erol HÜSEYİN","Kulaklık","Huawei","Kulak İçi",2,5333,10666,"Nakit"]
[null,"2022-02-16","Mersin","Efe MUTLU","Bilgisayar","Asus","Game PC",2,39550,79100,"Havale / EFT",null,null,null,null,null,null,"Online Satış Oranı: Toplam satış içindeki online satış oranı."]
[null,"2022-01-06","Bursa","Mustafa YILDIZ","Yazıcı","Epson","Tarayıcı + Yazıcı + Fotokopi",1,4603,4603,"Nakit",null,null,null,null,null,null,"Mağaza Satış Oranı: Toplam satış içindeki mağaza satış oranı."]
[null,"2021-04-27","Antalya","İlhan IŞIK","Yazıcı","HP","Tarayıcı + Yazıcı + Fotokopi",1,4782,4782,"Nakit",null,null,null,null,null,null,"Kanal Başına Ortalama Sipariş Değeri: Her bir satış kanalının ortalama sipariş değeri."]
[null,"2024-04-09","Ankara","Barış KESKİN","Bilgisayar","Lenovo","PC",2,63396,126792,"Havale / EFT"]
[null,"2023-01-12","Antalya","İlhan IŞIK","Tablet","Huawei","13.5'",1,6836,6836,"Nakit"]
[null,"2023-09-04","İzmir","Kemal ARGAN","Kulaklık","Xiomi","Kulak Üstü",1,2158,2158,"Nakit",null,null,null,null,null,null,"KPI'ları Oluştururken Dikkat Edilmesi Gerekenler:"]
[null,"2021-04-09","Mersin","Efe MUTLU","Yazıcı","HP","Tarayıcı + Yazıcı + Fotokopi",2,6050,12100,"Nakit"]
[null,"2023-04-24","Ankara","Barış KESKİN","Kulaklık","Xiomi","Kulak İçi Bluetoth",5,5533,27665,"Kredi Kartı",null,null,null,null,null,null,"SMART Prensibi: KPI'larınız Specific (Belirli), Measurable (Ölçülebilir), Achievable (Ulaşılabilir), Relevant (İlgili) ve Time-bound (Zamana Bağlı) olmalıdır."]
[null,"2021-09-21","İzmir","Erol HÜSEYİN","Kulaklık","Xiomi","Kulak Üstü Bluetoth",1,4453,4453,"Nakit",null,null,null,null,null,null,"Veri Kalitesi: Verilerinizin doğru ve tutarlı olduğundan emin olun."]
[null,"2022-04-23","Antalya","İlhan IŞIK","Bilgisayar","HP","PC",3,34240,102720,"Havale / EFT",null,null,null,null,null,null,"Hedef Belirleme: Her bir KPI için gerçekçi ve ulaşılabilir hedefler belirleyin."]
[null,"2020-07-29","Mersin","Tunç ERGİN","Kulaklık","Marshall","Kulak Üstü Bluetoth",1,5340,5340,"Nakit",null,null,null,null,null,null,"Düzenli Takip: KPI'larınızı düzenli olarak takip edin ve gerekli durumlarda hedeflerinizi güncelleyin."]
[null,"2023-12-23","İzmir","Ergin ŞANLI","Kulaklık","Xiomi","Kulak İçi Bluetoth",1,5651,5651,"Nakit"]
[null,"2022-12-06","Balıkesir","Efe DEMİR","Bilgisayar","HP","PC",2,43464,86928,"Havale / EFT"]
[null,"2023-10-31","Antalya","İlhan IŞIK","Bilgisayar","HP","Game PC",2,40168,80336,"Havale / EFT"]
[null,"2022-12-05","Bursa","Mustafa YILDIZ","Kulaklık","Phillips","Kulak Üstü",1,6856,6856,"Nakit"]
[null,"2023-08-15","İzmir","Ergin ŞANLI","Bilgisayar","HP","PC",1,43301,43301,"Kredi Kartı"]
[null,"2019-03-27","Balıkesir","Efe DEMİR","Yazıcı","HP","Tarayıcı + Yazıcı + Fotokopi",2,5189,10378,"Nakit"]
[null,"2019-11-19","Antalya","İlhan IŞIK","Yazıcı","HP","Tarayıcı + Yazıcı",1,3666,3666,"Nakit"]
[null,"2024-01-20","Bursa","Mustafa YILDIZ","Kulaklık","Phillips","Kulak Üstü",1,10775,10775,"Nakit"]
[null,"2019-01-05","Bursa","Sabiha YALIN","Bilgisayar","MSI","Notebook",2,59101,118202,"Havale / EFT"]
[null,"2023-02-27","Ankara","Emel YOLCU","Bilgisayar","Asus","Game Notebook",5,48960,244800,"Havale / EFT"]
[null,"2024-04-26","İzmir","Ergin ŞANLI","Kulaklık","Marshall","Kulak Üstü Bluetoth",1,5716,5716,"Nakit"]
[null,"2019-01-25","Bursa","Mustafa YILDIZ","Kulaklık","Beats","Kulak Üstü Bluetoth",3,7912,23736,"Nakit"]
[null,"2022-09-28","Mersin","Tunç ERGİN","Bilgisayar","MSI","PC",1,47204,47204,"Kredi Kartı"]
[null,"2023-02-09","İzmir","Ergin ŞANLI","Tablet","Lenovo","12'",1,5310,5310,"Nakit"]
[null,"2024-02-22","Antalya","İlhan IŞIK","Kulaklık","Jabra","Kulak İçi Bluetoth",2,4623,9246,"Nakit"]
[null,"2020-10-13","Mersin","Efe MUTLU","Kulaklık","Huawei","Kulak Üstü",2,7016,14032,"Nakit"]
[null,"2022-02-09","İzmir","Erol HÜSEYİN","Kulaklık","Sennheiser","Kulak İçi Bluetoth",1,4486,4486,"Nakit"]
[null,"2020-11-14","Bursa","Sabiha YALIN","Bilgisayar","Asus","Game Notebook",1,58950,58950,"Kredi Kartı"]
[null,"2022-08-07","Balıkesir","Efe DEMİR","Bilgisayar","Lenovo","Notebook",2,26385,52770,"Kredi Kartı"]
[null,"2023-05-06","Ankara","Barış KESKİN","Yazıcı","Epson","Renki",1,6101,6101,"Nakit"]
[null,"2023-03-29","İzmir","Erol HÜSEYİN","Kulaklık","Sennheiser","Kulak İçi Bluetoth",1,10620,10620,"Nakit"]
[null,"2020-10-17","İstanbul","Emre DEMİR","Bilgisayar","Asus","Game Notebook",2,38460,76920,"Havale / EFT"]
[null,"2023-05-23","Ankara","Barış KESKİN","Bilgisayar","Lenovo","PC",5,39104,195520,"Havale / EFT"]
[null,"2023-11-14","Antalya","İlhan IŞIK","Yazıcı","Epson","Renki",1,3795,3795,"Nakit"]
[null,"2019-01-04","Bursa","Sabiha YALIN","Yazıcı","Epson","Renki",3,5306,15918,"Nakit"]
[null,"2020-03-21","Ankara","Şule SEZGİN","Bilgisayar","HP","PC",2,22371,44742,"Kredi Kartı"]
[null,"2019-11-15","Ankara","Şule SEZGİN","Tablet","Huawei","13.5'",1,4765,4765,"Nakit"]
[null,"2021-09-26","Ankara","Emel YOLCU","Bilgisayar","Lenovo","PC",1,56744,56744,"Kredi Kartı"]
[null,"2023-11-21","Mersin","Efe MUTLU","Tablet","Samsung","14'",2,6264,12528,"Nakit"]
[null,"2020-02-19","Ankara","Şule SEZGİN","Kulaklık","Xiomi","Kulak Üstü",1,5549,5549,"Nakit"]
[null,"2020-12-09","İzmir","Ergin ŞANLI","Bilgisayar","HP","Game Notebook",2,24598,49196,"Kredi Kartı"]
[null,"2023-04-10","Ankara","Şule SEZGİN","Bilgisayar","Lenovo","Notebook",1,35074,35074,"Kredi Kartı"]
[null,"2020-12-15","İstanbul","Emre DEMİR","Bilgisayar","MSI","Game PC",1,53596,53596,"Kredi Kartı"]
[null,"2019-01-09","Antalya","İlhan IŞIK","Bilgisayar","Lenovo","Workstation",6,69793,418758,"Havale / EFT"]
[null,"2019-10-20","İzmir","Ergin ŞANLI","Kulaklık","Huawei","Kulak Üstü",1,4147,4147,"Nakit"]
[null,"2019-08-26","İzmir","Erol HÜSEYİN","Kulaklık","Xiomi","Kulak Üstü Bluetoth",3,8966,26898,"Kredi Kartı"]
[null,"2023-10-25","Ankara","Barış KESKİN","Yazıcı","Epson","Renki",2,6327,12654,"Nakit"]
[null,"2022-04-29","İzmir","Kemal ARGAN","Bilgisayar","MSI","PC",1,34672,34672,"Kredi Kartı"]
[null,"2023-10-16","İstanbul","Emre DEMİR","Kulaklık","Marshall","Kulak İçi",1,7673,{"$f":"H70*I70","v":7673},"Nakit"]
[null,"2023-05-25","Bursa","Sabiha YALIN","Bilgisayar","MSI","PC",2,46035,92070,"Havale / EFT"]
[null,"2019-12-22","Mersin","Efe MUTLU","Kulaklık","Phillips","Kulak Üstü",1,11771,11771,"Nakit"]
[null,"2022-08-21","Ankara","Barış KESKİN","Bilgisayar","Lenovo","PC",2,26830,53660,"Kredi Kartı"]
[null,"2019-05-12","Mersin","Tunç ERGİN","Tablet","Lenovo","12'",1,4900,4900,"Nakit"]
[null,"2022-09-11","Mersin","Tunç ERGİN","Bilgisayar","Asus","PC",1,43352,43352,"Kredi Kartı"]
[null,"2024-01-07","İzmir","Erol HÜSEYİN","Yazıcı","HP","Tarayıcı + Yazıcı",1,6379,6379,"Nakit"]
[null,"2020-10-31","İzmir","Ergin ŞANLI","Kulaklık","Beats","Kulak Üstü Bluetoth",3,11618,34854,"Kredi Kartı"]
[null,"2019-02-05","İstanbul","Hasan TUNÇ","Bilgisayar","HP","Game PC",2,24773,49546,"Kredi Kartı"]
[null,"2021-12-13","Ankara","Şule SEZGİN","Bilgisayar","MSI","Game PC",1,27439,27439,"Kredi Kartı"]
[null,"2021-07-29","Bursa","Mustafa YILDIZ","Yazıcı","HP","Tarayıcı + Yazıcı + Fotokopi",1,4019,4019,"Nakit"]
[null,"2020-12-16","Mersin","Tunç ERGİN","Kulaklık","Xiomi","Kulak Üstü Bluetoth",2,9645,19290,"Nakit"]
[null,"2022-12-17","Ankara","Barış KESKİN","Yazıcı","HP","Tarayıcı + Yazıcı",1,4675,4675,"Nakit"]
[null,"2019-11-08","İstanbul","Hasan TUNÇ","Yazıcı","HP","Tarayıcı + Yazıcı + Fotokopi",2,4690,9380,"Nakit"]
[null,"2021-07-26","İzmir","Kemal ARGAN","Yazıcı","Epson","Tarayıcı + Yazıcı + Fotokopi",1,6454,6454,"Nakit"]
[null,"2020-08-24","Ankara","Emel YOLCU","Tablet","Lenovo","13.5'",1,7500,7500,"Nakit"]
[null,"2019-01-14","İzmir","Erol HÜSEYİN","Bilgisayar","HP","Notebook",1,36174,36174,"Kredi Kartı"]
[null,"2021-07-03","İzmir","Erol HÜSEYİN","Kulaklık","Sennheiser","Kulak İçi Bluetoth",3,8379,25137,"Kredi Kartı"]
[null,"2024-04-20","İstanbul","Emre DEMİR","Yazıcı","Epson","Tarayıcı + Yazıcı + Fotokopi",2,3464,6928,"Nakit"]
[null,"2021-07-12","İzmir","Kemal ARGAN","Bilgisayar","MSI","Notebook",1,64613,64613,"Kredi Kartı"]
[null,"2022-02-10","Bursa","Sabiha YALIN","Kulaklık","Marshall","Kulak Üstü Bluetoth",1,11141,11141,"Nakit"]
[null,"2022-12-08","Ankara","Barış KESKİN","Yazıcı","Epson","Renki",2,3793,7586,"Nakit"]
[null,"2022-04-14","Bursa","Sabiha YALIN","Kulaklık","Phillips","Kulak Üstü",1,11116,11116,"Nakit"]
[null,"2024-03-29","Antalya","İlhan IŞIK","Kulaklık","Beats","Kulak İçi",2,4680,9360,"Nakit"]
[null,"2020-04-02","İstanbul","Hasan TUNÇ","Kulaklık","Marshall","Kulak Üstü Bluetoth",1,11141,11141,"Nakit"]
[null,"2023-08-03","Mersin","Efe MUTLU","Bilgisayar","Lenovo","Notebook",1,43494,43494,"Kredi Kartı"]
[null,"2021-04-25","İstanbul","Emre DEMİR","Tablet","Samsung","14'",1,8445,8445,"Nakit"]
[null,"2023-07-29","Bursa","Mustafa YILDIZ","Bilgisayar","Asus","Notebook",3,30668,92004,"Havale / EFT"]
[null,"2022-04-20","İzmir","Ergin ŞANLI","Kulaklık","Jabra","Kulak İçi Bluetoth",2,2480,4960,"Nakit"]
[null,"2020-01-07","İzmir","Kemal ARGAN","Bilgisayar","Asus","Game Notebook",1,55740,55740,"Kredi Kartı"]
[null,"2024-07-26","Bursa","Sabiha YALIN","Kulaklık","Beats","Kulak Üstü Bluetoth",1,11434,11434,"Nakit"]
[null,"2020-05-21","Ankara","Barış KESKİN","Bilgisayar","MSI","Notebook",2,41557,83114,"Havale / EFT"]
[null,"2020-06-10","Mersin","Tunç ERGİN","Kulaklık","Huawei","kulak Üstü",1,2495,2495,"Nakit"]
[null,"2023-09-28","İstanbul","Hasan TUNÇ","Bilgisayar","Asus","Game Notebook",2,37097,74194,"Havale / EFT"]
[null,"2022-11-27","Bursa","Mustafa YILDIZ","Tablet","Xiomi","14.1'",1,6394,6394,"Nakit"]
[null,"2021-02-19","Ankara","Barış KESKİN","Kulaklık","Sennheiser","Kulak Üstü",1,12215,12215,"Nakit"]
[null,"2024-03-23","Balıkesir","Efe DEMİR","Tablet","Asus","14'",1,6559,6559,"Nakit"]
[null,"2019-01-09","İstanbul","Emre DEMİR","Yazıcı","HP","Tarayıcı + Yazıcı",2,3575,7150,"Nakit"]
[null,"2023-06-23","İstanbul","Emre DEMİR","Yazıcı","Epson","Tarayıcı + Yazıcı + Fotokopi",1,3259,3259,"Nakit"]
[null,"2023-04-02","Balıkesir","Efe DEMİR","Bilgisayar","MSI","PC",2,60783,121566,"Havale / EFT"]
[null,"2020-09-03","İstanbul","Emre DEMİR","Bilgisayar","HP","Game Notebook",1,47735,47735,"Kredi Kartı"]
[null,"2022-12-05","Mersin","Efe MUTLU","Bilgisayar","HP","PC",1,41811,41811,"Kredi Kartı"]
[null,"2024-01-30","İstanbul","Emre DEMİR","Bilgisayar","Lenovo","Workstation",4,83156,332624,"Havale / EFT"]
[null,"2024-03-05","Balıkesir","Efe DEMİR","Bilgisayar","Asus","Game Notebook",1,62742,62742,"Kredi Kartı"]
[null,"2022-08-20","İstanbul","Emre DEMİR","Bilgisayar","MSI","Notebook",3,30165,90495,"Havale / EFT"]
[null,"2024-03-13","Bursa","Mustafa YILDIZ","Kulaklık","Xiomi","Kulak İçi Bluetoth",2,3514,7028,"Nakit"]
[null,"2022-12-16","İzmir","Ergin ŞANLI","Kulaklık","Marshall","Kulak İçi",1,5097,5097,"Nakit"]
[null,"2019-09-20","Ankara","Barış KESKİN","Kulaklık","Sennheiser","Kulak İçi Bluetoth",1,11751,11751,"Nakit"]
[null,"2020-02-19","İzmir","Erol HÜSEYİN","Bilgisayar","Asus","Notebook",2,38950,77900,"Havale / EFT"]
[null,"2021-10-13","Ankara","Şule SEZGİN","Bilgisayar","Asus","Notebook",1,21516,21516,"Nakit"]
[null,"2022-04-10","İstanbul","Hasan TUNÇ","Tablet","HP","13'",2,5000,10000,"Nakit"]
[null,"2022-11-12","Mersin","Efe MUTLU","Kulaklık","Jabra","Kulak İçi Bluetoth",1,5500,5500,"Nakit"]
[null,"2020-05-30","İzmir","Ergin ŞANLI","Kulaklık","Xiomi","Kulak İçi Bluetoth",1,10154,10154,"Nakit"]
[null,"2024-04-27","İzmir","Erol HÜSEYİN","Tablet","Huawei","13.5'",1,4250,4250,"Nakit"]
[null,"2022-09-06","İzmir","Kemal ARGAN","Yazıcı","HP","Tarayıcı + Yazıcı",3,6015,18045,"Nakit"]
[null,"2019-05-31","Bursa","Sabiha YALIN","Tablet","Xiomi","14.1'",2,5987,11974,"Nakit"]
[null,"2019-03-13","Bursa","Mustafa YILDIZ","Kulaklık","Jabra","Kulak İçi Bluetoth",1,4550,4550,"Nakit"]
[null,"2020-03-31","Ankara","Barış KESKİN","Bilgisayar","MSI","Game PC",1,40306,40306,"Kredi Kartı"]
[null,"2020-08-16","Balıkesir","Efe DEMİR","Bilgisayar","Lenovo","PC",2,26579,53158,"Kredi Kartı"]
[null,"2022-10-24","Ankara","Emel YOLCU","Kulaklık","Sennheiser","Kulak İçi Bluetoth",1,8530,8530,"Nakit"]
[null,"2022-02-24","İzmir","Erol HÜSEYİN","Bilgisayar","Lenovo","Notebook",2,48387,96774,"Havale / EFT"]
[null,"2019-09-07","Bursa","Mustafa YILDIZ","Bilgisayar","Asus","Game Notebook",1,35650,35650,"Kredi Kartı"]
[null,"2024-02-06","İzmir","Kemal ARGAN","Bilgisayar","Asus","PC",1,56864,56864,"Kredi Kartı"]
[null,"2024-03-10","İzmir","Kemal ARGAN","Kulaklık","Xiomi","Kulak Üstü Bluetoth",1,5469,5469,"Nakit"]
[null,"2021-01-21","Antalya","İlhan IŞIK","Tablet","Asus","13'",3,6559,{"$f":"H134*I134","v":19677},"Nakit"]
[null,"2024-05-01","Balıkesir","Efe DEMİR","Kulaklık","Huawei","Kulak İçi",2,6077,12154,"Nakit"]
[null,"2020-03-03","Ankara","Barış KESKİN","Bilgisayar","MSI","Notebook",1,59990,59990,"Kredi Kartı"]
[null,"2020-09-25","Balıkesir","Efe DEMİR","Tablet","Asus","14.1'",1,8222,8222,"Nakit"]
[null,"2019-01-21","Antalya","İlhan IŞIK","Kulaklık","Sennheiser","Kulak Üstü",2,9345,18690,"Nakit"]
[null,"2021-12-25","Bursa","Sabiha YALIN","Bilgisayar","Lenovo","Notebook",1,63261,63261,"Kredi Kartı"]
[null,"2019-11-28","İstanbul","Emre DEMİR","Yazıcı","HP","Tarayıcı + Yazıcı + Fotokopi",2,5489,10978,"Nakit"]
[null,"2020-06-13","İstanbul","Emre DEMİR","Bilgisayar","Asus","Notebook",1,27022,27022,"Kredi Kartı"]
[null,"2020-08-12","İstanbul","Emre DEMİR","Kulaklık","Xiomi","Kulak Üstü Bluetoth",1,3332,3332,"Nakit"]
[null,"2020-01-22","Antalya","İlhan IŞIK","Bilgisayar","HP","Game PC",1,55295,55295,"Kredi Kartı"]
[null,"2024-02-04","Ankara","Şule SEZGİN","Bilgisayar","HP","Notebook",3,42432,127296,"Havale / EFT"]
[null,"2022-09-01","İzmir","Kemal ARGAN","Kulaklık","Marshall","Kulak İçi",2,12230,24460,"Nakit"]
[null,"2021-03-03","İstanbul","Hasan TUNÇ","Bilgisayar","MSI","Notebook",1,25349,25349,"Kredi Kartı"]
[null,"2023-02-04","Ankara","Barış KESKİN","Bilgisayar","HP","Game PC",1,27404,27404,"Kredi Kartı"]
[null,"2023-05-17","İzmir","Kemal ARGAN","Tablet","Samsung","14'",2,7619,15238,"Nakit"]
[null,"2021-01-13","Mersin","Tunç ERGİN","Bilgisayar","Asus","Game PC",1,61524,61524,"Kredi Kartı"]
[null,"2024-06-18","Antalya","İlhan IŞIK","Bilgisayar","HP","Game Notebook",2,48560,97120,"Havale / EFT"]
[null,"2023-10-06","Ankara","Barış KESKİN","Kulaklık","Xiomi","Kulak İçi Bluetoth",1,11107,11107,"Nakit"]
[null,"2021-12-09","Ankara","Emel YOLCU","Tablet","Xiomi","14.1'",1,4821,4821,"Nakit"]
[null,"2019-12-13","İzmir","Erol HÜSEYİN","Bilgisayar","Asus","Game PC",1,38029,38029,"Kredi Kartı"]
[null,"2023-03-30","İzmir","Kemal ARGAN","Kulaklık","Beats","Kulak İçi",1,11649,11649,"Nakit"]
[null,"2021-10-24","İzmir","Erol HÜSEYİN","Bilgisayar","HP","Game PC",2,26601,53202,"Kredi Kartı"]
[null,"2019-01-28","İstanbul","Hasan TUNÇ","Bilgisayar","Lenovo","Workstation",5,84732,423660,"Havale / EFT"]
[null,"2020-11-11","İzmir","Kemal ARGAN","Bilgisayar","HP","Game Notebook",1,36016,36016,"Kredi Kartı"]
[null,"2019-01-21","İzmir","Ergin ŞANLI","Bilgisayar","Asus","Notebook",1,49027,49027,"Kredi Kartı"]
[null,"2020-11-10","Ankara","Şule SEZGİN","Kulaklık","Sennheiser","Kulak İçi Bluetoth",1,10836,10836,"Nakit"]
[null,"2023-08-14","İstanbul","Emre DEMİR","Bilgisayar","HP","PC",3,54801,164403,"Havale / EFT"]
[null,"2022-07-26","Mersin","Tunç ERGİN","Kulaklık","Beats","Kulak Üstü Bluetoth",2,6500,13000,"Nakit"]
[null,"2021-03-13","İzmir","Erol HÜSEYİN","Bilgisayar","HP","Notebook",1,21235,21235,"Nakit"]
[null,"2022-08-18","Mersin","Efe MUTLU","Tablet","Huawei","13.5'",1,5856,5856,"Nakit"]
[null,"2019-12-17","İzmir","Kemal ARGAN","Bilgisayar","MSI","PC",2,20396,40792,"Kredi Kartı"]
[null,"2022-03-02","Ankara","Barış KESKİN","Bilgisayar","MSI","Notebook",1,54526,54526,"Kredi Kartı"]
[null,"2021-10-28","İzmir","Erol HÜSEYİN","Bilgisayar","MSI","Game PC",2,50024,100048,"Havale / EFT"]
[null,"2023-07-16","Ankara","Şule SEZGİN","Kulaklık","Sennheiser","Kulak İçi Bluetoth",1,1475,1475,"Nakit"]
[null,"2023-09-16","Balıkesir","Efe DEMİR","Yazıcı","HP","Tarayıcı + Yazıcı + Fotokopi",1,3494,3494,"Nakit"]
[null,"2021-09-04","İzmir","Erol HÜSEYİN","Bilgisayar","Asus","Notebook",1,36322,36322,"Kredi Kartı"]
[null,"2021-04-06","Bursa","Mustafa YILDIZ","Bilgisayar","Asus","Notebook",1,53001,53001,"Kredi Kartı"]
[null,"2021-08-21","Balıkesir","Efe DEMİR","Tablet","HP","13'",2,4255,8510,"Nakit"]
[null,"2019-10-14","İstanbul","Hasan TUNÇ","Bilgisayar","HP","Game Notebook",1,65000,65000,"Kredi Kartı"]
[null,"2019-03-25","Mersin","Tunç ERGİN","Tablet","Lenovo","14.1'",1,4940,4940,"Nakit"]
[null,"2021-01-03","Antalya","İlhan IŞIK","Kulaklık","Beats","Kulak Üstü Bluetoth",1,7856,7856,"Nakit"]
[null,"2021-03-30","Balıkesir","Efe DEMİR","Kulaklık","Xiomi","Kulak İçi Bluetoth",3,7632,22896,"Nakit"]
[null,"2020-03-07","İzmir","Kemal ARGAN","Bilgisayar","Asus","PC",2,41474,82948,"Havale / EFT"]
[null,"2023-07-21","Ankara","Emel YOLCU","Yazıcı","Epson","Renki",1,4667,4667,"Nakit"]
[null,"2021-11-12","Mersin","Efe MUTLU","Bilgisayar","MSI","Game PC",1,21375,21375,"Nakit"]
[null,"2022-11-11","Ankara","Şule SEZGİN","Kulaklık","Sennheiser","Kulak İçi Bluetoth",2,2708,5416,"Nakit"]
[null,"2021-01-31","Mersin","Tunç ERGİN","Bilgisayar","Asus","Notebook",1,43529,43529,"Kredi Kartı"]
[null,"2023-05-03","Balıkesir","Efe DEMİR","Bilgisayar","Asus","Game PC",2,62927,125854,"Havale / EFT"]
[null,"2022-03-13","İzmir","Erol HÜSEYİN","Kulaklık","Sennheiser","Kulak Üstü",1,2595,2595,"Nakit"]
[null,"2019-02-18","Mersin","Tunç ERGİN","Tablet","Asus","13'",1,3500,3500,"Nakit"]
[null,"2020-03-13","İstanbul","Emre DEMİR","Bilgisayar","HP","Game PC",1,31856,31856,"Kredi Kartı"]
[null,"2023-08-24","Mersin","Tunç ERGİN","Kulaklık","Xiomi","Kulak İçi Bluetoth",1,11380,11380,"Nakit"]
[null,"2021-04-01","İstanbul","Emre DEMİR","Bilgisayar","HP","Game PC",2,62776,125552,"Havale / EFT"]
[null,"2021-11-29","İzmir","Ergin ŞANLI","Kulaklık","Xiomi","Kulak İçi Bluetoth",1,4293,4293,"Nakit"]
[null,"2020-04-12","İzmir","Erol HÜSEYİN","Tablet","Lenovo","12'",1,7100,7100,"Nakit"]
[null,"2020-07-21","İstanbul","Hasan TUNÇ","Bilgisayar","Lenovo","Workstation",12,91568,1098816,"Havale / EFT"]
[null,"2024-05-02","Bursa","Mustafa YILDIZ","Kulaklık","Marshall","Kulak İçi",3,10847,32541,"Kredi Kartı"]
[null,"2022-02-03","Bursa","Sabiha YALIN","Bilgisayar","MSI","Game PC",2,22437,44874,"Kredi Kartı"]
[null,"2021-07-02","İstanbul","Emre DEMİR","Kulaklık","Xiomi","Kulak Üstü",1,8114,8114,"Nakit"]
[null,"2020-12-04","Ankara","Emel YOLCU","Bilgisayar","Asus","PC",1,40391,40391,"Kredi Kartı"]
[null,"2024-07-03","Balıkesir","Efe DEMİR","Bilgisayar","Asus","PC",2,34811,69622,"Kredi Kartı"]
[null,"2019-12-09","İzmir","Erol HÜSEYİN","Tablet","Lenovo","12'",1,6250,6250,"Nakit"]
[null,"2020-01-26","Antalya","İlhan IŞIK","Bilgisayar","HP","Game PC",2,62552,125104,"Havale / EFT"]
[null,"2021-05-15","Ankara","Şule SEZGİN","Bilgisayar","Lenovo","PC",1,32774,32774,"Kredi Kartı"]
[null,"2024-04-07","Ankara","Barış KESKİN","Yazıcı","Epson","Renki",1,3749,{"$f":"H198*I198","v":3749},"Nakit"]
[null,"2023-03-25","Mersin","Tunç ERGİN","Kulaklık","Xiomi","Kulak İçi Bluetoth",1,3992,3992,"Nakit"]
[null,"2021-06-17","Mersin","Tunç ERGİN","Bilgisayar","MSI","Game PC",1,44572,44572,"Kredi Kartı"]
[null,"2019-07-08","Ankara","Barış KESKİN","Bilgisayar","HP","Notebook",2,33981,67962,"Kredi Kartı"]
[null,"2024-01-25","İstanbul","Hasan TUNÇ","Bilgisayar","Asus","Notebook",1,30418,30418,"Kredi Kartı"]
[null,"2021-09-15","İstanbul","Emre DEMİR","Kulaklık","Jabra","Kulak İçi Bluetoth",1,10723,10723,"Nakit"]
[null,"2020-05-23","İzmir","Ergin ŞANLI","Kulaklık","Marshall","Kulak İçi",2,4363,8726,"Nakit"]
[null,"2021-08-04","İzmir","Ergin ŞANLI","Tablet","HP","13'",1,8479,8479,"Nakit"]
[null,"2019-02-19","Antalya","İlhan IŞIK","Kulaklık","Xiomi","Kulak İçi Bluetoth",1,11067,11067,"Nakit"]
[null,"2022-11-14","İstanbul","Emre DEMİR","Yazıcı","HP","Tarayıcı + Yazıcı + Fotokopi",1,6205,6205,"Nakit"]
[null,"2023-07-31","Antalya","İlhan IŞIK","Bilgisayar","HP","Game PC",1,60788,60788,"Kredi Kartı"]
[null,"2023-02-06","İstanbul","Hasan TUNÇ","Kulaklık","Marshall","Kulak Üstü Bluetoth",2,12000,24000,"Nakit"]
[null,"2019-02-01","Mersin","Tunç ERGİN","Bilgisayar","HP","Game Notebook",1,33500,33500,"Kredi Kartı"]
[null,"2020-10-14","Mersin","Efe MUTLU","Bilgisayar","HP","Notebook",1,42265,42265,"Kredi Kartı"]
[null,"2020-04-01","İstanbul","Emre DEMİR","Kulaklık","Huawei","Kulak İçi",1,11523,11523,"Nakit"]
[null,"2024-06-01","Ankara","Şule SEZGİN","Tablet","HP","13'",2,6475,12950,"Nakit"]
[null,"2020-08-13","Ankara","Barış KESKİN","Bilgisayar","Lenovo","Workstation",5,71589,357945,"Havale / EFT"]
[null,"2022-07-28","Bursa","Mustafa YILDIZ","Kulaklık","Xiomi","Kulak Üstü Bluetoth",2,5377,10754,"Nakit"]
[null,"2019-08-03","Mersin","Tunç ERGİN","Kulaklık","Sennheiser","Kulak Üstü",1,8709,8709,"Nakit"]
[null,"2023-08-19","Ankara","Barış KESKİN","Yazıcı","Epson","Tarayıcı + Yazıcı + Fotokopi",1,5885,5885,"Nakit"]
[null,"2021-09-03","Balıkesir","Efe DEMİR","Bilgisayar","HP","PC",1,25231,25231,"Kredi Kartı"]
[null,"2023-08-31","Antalya","İlhan IŞIK","Bilgisayar","HP","PC",1,51049,51049,"Kredi Kartı"]
[null,"2021-11-29","Balıkesir","Efe DEMİR","Kulaklık","Huawei","Kulak İçi",2,7468,14936,"Nakit"]
[null,"2023-11-12","Bursa","Mustafa YILDIZ","Yazıcı","HP","Tarayıcı + Yazıcı + Fotokopi",1,3465,3465,"Nakit"]
[null,"2022-12-01","İstanbul","Hasan TUNÇ","Kulaklık","Phillips","Kulak Üstü",1,8535,8535,"Nakit"]
[null,"2022-12-01","Ankara","Emel YOLCU","Kulaklık","Xiomi","Kulak Üstü Bluetoth",2,5566,11132,"Nakit"]
[null,"2022-10-21","İzmir","Ergin ŞANLI","Kulaklık","Marshall","Kulak İçi",1,6429,6429,"Nakit"]
[null,"2019-05-03","Ankara","Şule SEZGİN","Bilgisayar","Asus","Notebook",1,55733,55733,"Kredi Kartı"]
[null,"2019-05-29","İzmir","Erol HÜSEYİN","Bilgisayar","Asus","Game Notebook",1,39997,39997,"Kredi Kartı"]
[null,"2023-06-14","İzmir","Ergin ŞANLI","Kulaklık","Huawei","kulak Üstü",1,6885,6885,"Nakit"]
[null,"2022-03-21","Ankara","Barış KESKİN","Yazıcı","Epson","Renki",2,5930,11860,"Nakit"]
[null,"2020-04-04","İzmir","Ergin ŞANLI","Kulaklık","Phillips","Kulak Üstü",1,2661,2661,"Nakit"]
[null,"2023-01-04","İstanbul","Hasan TUNÇ","Kulaklık","Xiomi","Kulak Üstü Bluetoth",1,3298,3298,"Nakit"]
[null,"2020-06-21","İstanbul","Emre DEMİR","Kulaklık","Sennheiser","Kulak İçi Bluetoth",1,6276,6276,"Nakit"]
[null,"2019-06-05","Mersin","Efe MUTLU","Bilgisayar","Asus","PC",2,21707,43414,"Kredi Kartı"]
[null,"2019-02-05","İstanbul","Hasan TUNÇ","Bilgisayar","Lenovo","Workstation",6,84095,504570,"Havale / EFT"]
[null,"2019-03-01","İzmir","Kemal ARGAN","Bilgisayar","MSI","PC",1,58705,58705,"Kredi Kartı"]
[null,"2021-09-17","Bursa","Sabiha YALIN","Yazıcı","HP","Tarayıcı + Yazıcı",1,5846,5846,"Nakit"]
[null,"2019-10-29","Balıkesir","Efe DEMİR","Bilgisayar","Lenovo","Workstation",4,78174,312696,"Havale / EFT"]
[null,"2023-10-08","Antalya","İlhan IŞIK","Kulaklık","Sennheiser","Kulak Üstü",1,10009,10009,"Nakit"]
[null,"2020-12-24","Bursa","Mustafa YILDIZ","Kulaklık","Sennheiser","Kulak Üstü",1,11184,11184,"Nakit"]
[null,"2023-01-16","Ankara","Barış KESKİN","Bilgisayar","MSI","Game PC",1,24974,24974,"Nakit"]
[null,"2023-06-19","Mersin","Tunç ERGİN","Yazıcı","HP","Tarayıcı + Yazıcı + Fotokopi",1,3946,3946,"Nakit"]
[null,"2020-08-27","İzmir","Ergin ŞANLI","Kulaklık","Phillips","Kulak Üstü",2,7753,15506,"Nakit"]
[null,"2024-04-20","İstanbul","Hasan TUNÇ","Kulaklık","Beats","Kulak İçi",1,11170,11170,"Nakit"]
[null,"2023-12-13","İzmir","Erol HÜSEYİN","Bilgisayar","Asus","PC",1,64892,64892,"Kredi Kartı"]
[null,"2024-05-22","İzmir","Ergin ŞANLI","Tablet","Lenovo","14'",1,4850,4850,"Nakit"]
[null,"2023-03-14","Ankara","Emel YOLCU","Tablet","Xiomi","14.1'",2,6589,13178,"Nakit"]
[null,"2019-01-03","İzmir","Erol HÜSEYİN","Bilgisayar","Asus","Game PC",3,24333,72999,"Havale / EFT"]
[null,"2021-04-09","Ankara","Emel YOLCU","Kulaklık","Beats","Kulak Üstü Bluetoth",2,6881,13762,"Nakit"]
[null,"2021-06-19","İzmir","Kemal ARGAN","Tablet","Asus","12'",2,4500,9000,"Nakit"]
[null,"2021-09-20","Ankara","Barış KESKİN","Kulaklık","Huawei","kulak Üstü",1,6292,6292,"Nakit"]
[null,"2022-09-25","Bursa","Sabiha YALIN","Kulaklık","Huawei","Kulak İçi",1,10014,10014,"Nakit"]
[null,"2022-09-06","İzmir","Erol HÜSEYİN","Bilgisayar","HP","PC",2,56550,113100,"Havale / EFT"]
[null,"2024-01-28","Mersin","Tunç ERGİN","Kulaklık","Sennheiser","Kulak İçi Bluetoth",2,7908,15816,"Nakit"]
[null,"2023-11-18","İzmir","Erol HÜSEYİN","Yazıcı","HP","Tarayıcı + Yazıcı + Fotokopi",4,3318,13272,"Nakit"]
[null,"2019-08-10","Bursa","Sabiha YALIN","Bilgisayar","Lenovo","Notebook",2,47126,94252,"Havale / EFT"]

{"sheet":"Formüller","index":55,"n_rows":511,"n_cols":5,"rows_kept":511,"cut":false,"hidden":false,"merged":[[8,2,9,2],[8,3,9,3],[8,4,9,4]]}
[]
[null,"Tüm Formüller"]
[]
[]
[null,"Fonksiyon Seçiniz","ABDDOLAR"]
[]
[null,null,{"$f":"VLOOKUP($C$5,$B$13:$E$500,2,0)","v":"USDOLLAR"},{"$f":"VLOOKUP($C$5,$B$13:$E$500,3,0)","v":"USDOLLAR"},{"$f":"VLOOKUP($C$5,$B$13:$E$500,4,0)","v":"USDOLLAR"}]
[]
[null,null,{"$f":"IFERROR(C7,\"\")","v":"USDOLLAR"},{"$f":"IFERROR(D7,\"\")","v":"USDOLLAR"},{"$f":"IFERROR(E7,\"\")","v":"USDOLLAR"}]
[]
[]
[]
[null,"Türkçe","English","French","German"]
[null,"ABDDOLAR","USDOLLAR","USDOLLAR","USDOLLAR"]
[null,"ACOS","ACOS","ACOS","ARCCOS"]
[null,"ACOSH","ACOSH","ACOSH","ARCCOSHYP"]
[null,"ACOT","ACOT","ACOT","ARCCOT"]
[null,"ACOTH","ACOTH","ACOTH","ARCCOTHYP"]
[null,"ADRES","ADDRESS","ADRESSE","ADRESSE"]
[null,"AİÇVERİMORANI","XIRR","TRI.PAIEMENTS","XINTZINSFUSS"]
[null,"ALANSAY","AREAS","ZONES","BEREICHE"]
[null,"ALTTOPLAM","SUBTOTAL","SOUS.TOTAL","TEILERGEBNIS"]
[null,"AMORDEGRC","AMORDEGRC","AMORDEGRC","AMORDEGRK"]
[null,"AMORLINC","AMORLINC","AMORLINC","AMORLINEARK"]
[null,"ANA_PARA_ÖDEMESİ","PPMT","PRINCPER","KAPZ"]
[null,"ANBD","XNPV","VAN.PAIEMENTS","XKAPITALWERT"]
[null,"ARA","LOOKUP","RECHERCHE","VERWEIS"]
[null,"ARAB","SEARCHB","CHERCHERB","SUCHENB"]
[null,"ARALIKBİRLEŞTİR","CONCAT","CONCAT","TEXTKETTE"]
[null,"ARAP","ARABIC","CHIFFRE.ARABE","ARABISCH"]
[null,"ASC","ASC","ASC","ASC"]
[null,"ASİN","ASIN","ASIN","ARCSIN"]
[null,"ASİNH","ASINH","ASINH","ARCSINHYP"]
[null,"AŞAĞIYUVARLA","ROUNDDOWN","ARRONDI.INF","ABRUNDEN"]
[null,"ATAN","ATAN","ATAN","ARCTAN"]
[null,"ATAN2","ATAN2","ATAN2","ARCTAN2"]
[null,"ATANH","ATANH","ATANH","ARCTANHYP"]
[null,"AY","MONTH","MOIS","MONAT"]
[null,"AZALANBAKİYE","DB","DB","GDA2"]
[null,"BAĞ_DEĞ_DOLU_SAY","COUNTA","NBVAL","ANZAHL2"]
[null,"BAĞ_DEĞ_SAY","COUNT","NB","ANZAHL"]
[null,"BAHTAŞAĞIYUVARLA","ROUNDBAHTDOWN","ROUNDBAHTDOWN","BAHTABRUNDEN"]
[null,"BAHTMETİN","BAHTTEXT","BAHTTEXT","BAHTTEXT"]
[null,"BAHTYUKARIYUVARLA","ROUNDBAHTUP","ROUNDBAHTUP","BAHTAUFRUNDEN"]
[null,"BASIKLIK","KURT","KURTOSIS","KURT"]
[null,"BD","PV","VA","BW"]
[null,"BESINIR","GESTEP","SUP.SEUIL","GGANZZAHL"]
[null,"BESSELI","BESSELI","BESSELI","BESSELI"]
[null,"BESSELJ","BESSELJ","BESSELJ","BESSELJ"]
[null,"BESSELK","BESSELK","BESSELK","BESSELK"]
[null,"BESSELY","BESSELY","BESSELY","BESSELY"]
[null,"BETA.DAĞ","BETA.DIST","LOI.BETA.N","BETA.VERT"]
[null,"BETA.TERS","BETA.INV","BETA.INVERSE.N","BETA.INV"]
[null,"BETADAĞ","BETADIST","LOI.BETA","BETAVERT"]
[null,"BETATERS","BETAINV","BETA.INVERSE","BETAINV"]
[null,"BIN2DEC","BIN2DEC","BINDEC","BININDEZ"]
[null,"BIN2HEX","BIN2HEX","BINHEX","BININHEX"]
[null,"BIN2OCT","BIN2OCT","BINOCT","BININOKT"]
[null,"BİLGİ","INFO","INFORMATIONS","INFO"]
[null,"BİNOM.DAĞ","BINOM.DIST","LOI.BINOMIALE.N","BINOM.VERT"]
[null,"BİNOM.DAĞ.ARALIK","BINOM.DIST.RANGE","LOI.BINOMIALE.SERIE","BINOM.VERT.BEREICH"]
[null,"BİNOM.TERS","BINOM.INV","LOI.BINOMIALE.INVERSE","BINOM.INV"]
[null,"BİNOMDAĞ","BINOMDIST","LOI.BINOMIALE","BINOMVERT"]
[null,"BİRİMMATRİS","MUNIT","MATRICE.UNITAIRE","MEINHEIT"]
[null,"BİRLEŞTİR","CONCATENATE","CONCATENER","VERKETTEN"]
[null,"BİTÖZELVEYA","BITXOR","BITOUEXCLUSIF","BITXODER"]
[null,"BİTSAĞAKAYDIR","BITRSHIFT","BITDECALD","BITRVERSCHIEB"]
[null,"BİTSOLAKAYDIR","BITLSHIFT","BITDECALG","BITLVERSCHIEB"]
[null,"BİTVE","BITAND","BITET","BITUND"]
[null,"BİTVEYA","BITOR","BITOU","BITODER"]
[null,"BOŞLUKSAY","COUNTBLANK","NB.VIDE","ANZAHLLEEREZELLEN"]
[null,"BÖLÜM","QUOTIENT","QUOTIENT","QUOTIENT"]
[null,"BUGÜN","TODAY","AUJOURDHUI","HEUTE"]
[null,"BUL","FIND","TROUVE","FINDEN"]
[null,"BULB","FINDB","TROUVERB","FINDENB"]
[null,"BÜYÜK","LARGE","GRANDE.VALEUR","KGRÖSSTE"]
[null,"BÜYÜKHARF","UPPER","MAJUSCULE","GROSS"]
[null,"BÜYÜME","GROWTH","CROISSANCE","VARIATION"]
[null,"COS","COS","COS","COS"]
[null,"COSH","COSH","COSH","COSHYP"]
[null,"COT","COT","COT","COT"]
[null,"COTH","COTH","COTH","COTHYP"]
[null,"CSC","CSC","CSC","COSEC"]
[null,"CSCH","CSCH","CSCH","COSECHYP"]
[null,"ÇARPIKLIK","SKEW","COEFFICIENT.ASYMETRIE","SCHIEFE"]
[null,"ÇARPIKLIK.P","SKEW.P","COEFFICIENT.ASYMETRIE.P","SCHIEFE.P"]
[null,"ÇARPIM","PRODUCT","PRODUIT","PRODUKT"]
[null,"ÇARPINIM","FACT","FACT","FAKULTÄT"]
[null,"ÇEVİR","CONVERT","CONVERT","UMWANDELN"]
[null,"ÇİFT","EVEN","PAIR","GERADE"]
[null,"ÇİFTAZALANBAKİYE","DDB","DDB","GDA"]
[null,"ÇİFTFAKTÖR","FACTDOUBLE","FACTDOUBLE","ZWEIFAKULTÄT"]
[null,"ÇİFTMİ","ISEVEN","EST.PAIR","ISTGERADE"]
[null,"ÇOKEĞER","IFS","SI.CONDITIONS","WENNS"]
[null,"ÇOKEĞERMAK","MAXIFS","MAX.SI","MAXWENNS"]
[null,"ÇOKEĞERMİN","MINIFS","MIN.SI","MINWENNS"]
[null,"ÇOKEĞERORTALAMA","AVERAGEIFS","MOYENNE.SI.ENS","MITTELWERTWENNS"]
[null,"ÇOKEĞERSAY","COUNTIFS","NB.SI.ENS","ZÄHLENWENNS"]
[null,"ÇOKETOPLA","SUMIFS","SOMME.SI.ENS","SUMMEWENNS"]
[null,"ÇOKTERİMLİ","MULTINOMIAL","MULTINOMIALE","POLYNOMIAL"]
[null,"D_İÇ_VERİM_ORANI","MIRR","TRIM","QIKV"]
[null,"DA","SLN","AMORLIN","LIA"]
[null,"DAB","VDB","VDB","VDB"]
[null,"DAKİKA","MINUTE","MINUTE","MINUTE"]
[null,"DAMGA","CHAR","CAR","ZEICHEN"]
[null,"DBCS","DBCS","DBCS","DBCS"]
[null,"DÇARP","MMULT","PRODUITMAT","MMULT"]
[null,"DEC2BIN","DEC2BIN","DECBIN","DEZINBIN"]
[null,"DEC2HEX","DEC2HEX","DECHEX","DEZINHEX"]
[null,"DEC2OCT","DEC2OCT","DECOCT","DEZINOKT"]
[null,"DEĞER","PRICE","PRIX.TITRE","KURS"]
[null,"DEĞERİND","PRICEDISC","VALEUR.ENCAISSEMENT","KURSDISAGIO"]
[null,"DEĞERVADE","PRICEMAT","PRIX.TITRE.ECHEANCE","KURSFÄLLIG"]
[null,"DEĞİL","NOT","NON","NICHT"]
[null,"DEĞİŞTİR","REPLACE","REMPLACER","ERSETZEN"]
[null,"DEĞİŞTİRB","REPLACEB","REMPLACERB","ERSETZENB"]
[null,"DELTA","DELTA","DELTA","DELTA"]
[null,"DERECE","DEGREES","DEGRES","GRAD"]
[null,"DERECELİKÜPÜYESİ","CUBERANKEDMEMBER","RANGMEMBRECUBE","CUBERANGELEMENT"]
[null,"DETERMİNANT","MDETERM","DETERMAT","MDET"]
[null,"DEVRESEL_ÖDEME","PMT","VPM","RMZ"]
[null,"DEVRİK_DÖNÜŞÜM","TRANSPOSE","TRANSPOSE","MTRANS"]
[null,"DİZEY_TERS","MINVERSE","INVERSEMAT","MINV"]
[null,"DOLAYLI","INDIRECT","INDIRECT","INDIREKT"]
[null,"DOT","LINEST","DROITEREG","RGP"]
[null,"DÖRTTEBİRLİK","QUARTILE","QUARTILE","QUARTILE"]
[null,"DÖRTTEBİRLİK.DHL","QUARTILE.INC","QUARTILE.INCLURE","QUARTILE.INKL"]
[null,"DÖRTTEBİRLİK.HRC","QUARTILE.EXC","QUARTILE.EXCLURE","QUARTILE.EXKL"]
[null,"DÜŞEYARA","VLOOKUP","RECHERCHEV","SVERWEIS"]
[null,"EBOŞSA","ISBLANK","ESTVIDE","ISTLEER"]
[null,"ECMA.TAVAN","ECMA.CEILING","ECMA.PLAFOND","ECMA.OBERGRENZE"]
[null,"EFORMÜLSE","ISFORMULA","ESTFORMULE","ISTFORMEL"]
[null,"EĞER","IF","SI","WENN"]
[null,"EĞERHATA","IFERROR","SIERREUR","WENNFEHLER"]
[null,"EĞERORTALAMA","AVERAGEIF","MOYENNE.SI","MITTELWERTWENN"]
[null,"EĞERSAY","COUNTIF","NB.SI","ZÄHLENWENN"]
[null,"EĞERYOKSA","IFNA","SI.NON.DISP","WENNNV"]
[null,"EĞİLİM","TREND","TENDANCE","TREND"]
[null,"EĞİM","SLOPE","PENTE","STEIGUNG"]
[null,"EHATA","ISERR","ESTERR","ISTFEHL"]
[null,"EHATALIYSA","ISERROR","ESTERREUR","ISTFEHLER"]
[null,"ELEMAN","CHOOSE","CHOISIR","WAHL"]
[null,"EMANTIKSALSA","ISLOGICAL","ESTLOGIQUE","ISTLOG"]
[null,"EMETİNDEĞİLSE","ISNONTEXT","ESTNONTEXTE","ISTKTEXT"]
[null,"EMETİNSE","ISTEXT","ESTTEXTE","ISTTEXT"]
[null,"ENÇOK_OLAN","MODE","MODE","MODALWERT"]
[null,"ENÇOK_OLAN.ÇOK","MODE.MULT","MODE.MULTIPLE","MODUS.VIELF"]
[null,"ENÇOK_OLAN.TEK","MODE.SNGL","MODE.SIMPLE","MODUS.EINF"]
[null,"EREFSE","ISREF","ESTREF","ISTBEZUG"]
[null,"ESAYIYSA","ISNUMBER","ESTNUM","ISTZAHL"]
[null,"ETARİHLİ","DATEDIF","DATEDIF","DATEDIF"]
[null,"ETKİN","EFFECT","TAUX.EFFECTIF","EFFEKTIV"]
[null,"ETOPLA","SUMIF","SOMME.SI","SUMMEWENN"]
[null,"EYOKSA","ISNA","ESTNA","ISTNV"]
[null,"F.DAĞ","F.DIST","LOI.F.N","F.VERT"]
[null,"F.DAĞ.SAĞK","F.DIST.RT","LOI.F.DROITE","F.VERT.RE"]
[null,"F.TERS","F.INV","INVERSE.LOI.F.N","F.INV"]
[null,"F.TERS.SAĞK","F.INV.RT","INVERSE.LOI.F.DROITE","F.INV.RE"]
[null,"F.TEST","F.TEST","F.TEST","F.TEST"]
[null,"FAİZ_ORANI","RATE","TAUX","ZINS"]
[null,"FAİZORANI","INTRATE","TAUX.INTERET","ZINSSATZ"]
[null,"FAİZTUTARI","IPMT","INTPER","ZINSZ"]
[null,"FDAĞ","FDIST","LOI.F","FVERT"]
[null,"FISHER","FISHER","FISHER","FISHER"]
[null,"FISHERTERS","FISHERINV","FISHER.INVERSE","FISHERINV"]
[null,"FORMÜLMETNİ","FORMULATEXT","FORMULETEXTE","FORMELTEXT"]
[null,"FTERS","FINV","INVERSE.LOI.F","FINV"]
[null,"FTEST","FTEST","TEST.F","FTEST"]
[null,"GAMA","GAMMA","GAMMA","GAMMA"]
[null,"GAMA.DAĞ","GAMMA.DIST","LOI.GAMMA.N","GAMMA.VERT"]
[null,"GAMA.TERS","GAMMA.INV","LOI.GAMMA.INVERSE.N","GAMMA.INV"]
[null,"GAMADAĞ","GAMMADIST","LOI.GAMMA","GAMMAVERT"]
[null,"GAMALN","GAMMALN","LNGAMMA","GAMMALN"]
[null,"GAMALN.DUYARLI","GAMMALN.PRECISE","LNGAMMA.PRECIS","GAMMALN.GENAU"]
[null,"GAMATERS","GAMMAINV","LOI.GAMMA.INVERSE","GAMMAINV"]
[null,"GAUSS","GAUSS","GAUSS","GAUSS"]
[null,"GD","FV","VC","ZW"]
[null,"GDPROGRAM","FVSCHEDULE","VC.PAIEMENTS","ZW2"]
[null,"GEOORT","GEOMEAN","MOYENNE.GEOMETRIQUE","GEOMITTEL"]
[null,"GERÇEKFAİZ","ACCRINT","INTERET.ACC","AUFGELZINS"]
[null,"GERÇEKFAİZV","ACCRINTM","INTERET.ACC.MAT","AUFGELZINSF"]
[null,"GERÇEKLEŞENYATIRIMGETİRİSİ","RRI","TAUX.INT.EQUIV","ZSATZINVEST"]
[null,"GETİRİ","RECEIVED","VALEUR.NOMINALE","AUSZAHLUNG"]
[null,"GÜN","DAY","JOUR","TAG"]
[null,"GÜN360","DAYS360","JOURS360","TAGE360"]
[null,"GÜNSAY","DAYS","JOURS","TAGE"]
[null,"GÜVENİLİRLİK.NORM","CONFIDENCE.NORM","INTERVALLE.CONFIANCE.NORMAL","KONFIDENZ.NORM"]
[null,"GÜVENİLİRLİK.T","CONFIDENCE.T","INTERVALLE.CONFIANCE.STUDENT","KONFIDENZ.T"]
[null,"GÜVENİRLİK","CONFIDENCE","INTERVALLE.CONFIANCE","KONFIDENZ"]
[null,"GZV","RTD","RTD","RTD"]
[null,"HAFTANINGÜNÜ","WEEKDAY","JOURSEM","WOCHENTAG"]
[null,"HAFTASAY","WEEKNUM","NO.SEMAINE","KALENDERWOCHE"]
[null,"HARORT","HARMEAN","MOYENNE.HARMONIQUE","HARMITTEL"]
[null,"HATA.TİPİ","ERROR.TYPE","TYPE.ERREUR","FEHLER.TYP"]
[null,"HATAİŞLEV","ERF","ERF","GAUSSFEHLER"]
[null,"HATAİŞLEV.DUYARLI","ERF.PRECISE","ERF.PRECIS","GAUSSF.GENAU"]
[null,"HEX2BIN","HEX2BIN","HEXBIN","HEXINBIN"]
[null,"HEX2DEC","HEX2DEC","HEXDEC","HEXINDEZ"]
[null,"HEX2OCT","HEX2OCT","HEXOCT","HEXINOKT"]
[null,"HİPERGEOM.DAĞ","HYPGEOM.DIST","LOI.HYPERGEOMETRIQUE.N","HYPGEOM.VERT"]
[null,"HİPERGEOMDAĞ","HYPGEOMDIST","LOI.HYPERGEOMETRIQUE","HYPGEOMVERT"]
[null,"HTAHDEĞER","TBILLPRICE","PRIX.BON.TRESOR","TBILLKURS"]
[null,"HTAHEŞ","TBILLEQ","TAUX.ESCOMPTE.R","TBILLÄQUIV"]
[null,"HTAHÖDEME","TBILLYIELD","RENDEMENT.BON.TRESOR","TBILLRENDITE"]
[null,"HÜCRE","CELL","CELLULE","ZELLE"]
[null,"ISO.TAVAN","ISO.CEILING","ISO.PLAFOND","ISO.OBERGRENZE"]
[null,"ISOHAFTASAY","ISOWEEKNUM","NO.SEMAINE.ISO","ISOKALENDERWOCHE"]
[null,"ISPMT","ISPMT","ISPMT","ISPMT"]
[null,"İÇ_VERİM_ORANI","IRR","TRI","IKV"]
[null,"İLKEŞLEŞEN","SWITCH","SI.MULTIPLE","ERSTERWERT"]
[null,"İNDİRİM","DISC","TAUX.ESCOMPTE","DISAGIO"]
[null,"İNDİS","INDEX","INDEX","INDEX"]
[null,"İŞARET","SIGN","SIGNE","VORZEICHEN"]
[null,"İŞGÜNÜ","WORKDAY","SERIE.JOUR.OUVRE","ARBEITSTAG"]
[null,"İŞGÜNÜ.ULUSL","WORKDAY.INTL","SERIE.JOUR.OUVRE.INTL","ARBEITSTAG.INTL"]
[null,"KAÇINCI","MATCH","EQUIV","VERGLEICH"]
[null,"KAREKÖK","SQRT","RACINE","WURZEL"]
[null,"KAREKÖKPİ","SQRTPI","RACINE.PI","WURZELPI"]
[null,"KARMAŞIK","COMPLEX","COMPLEXE","KOMPLEXE"]
[null,"KAYDIR","OFFSET","DECALER","BEREICH.VERSCHIEBEN"]
[null,"KESMENOKTASI","INTERCEPT","ORDONNEE.ORIGINE","ACHSENABSCHNITT"]
[null,"KIRP","TRIM","SUPPRESPACE","GLÄTTEN"]
[null,"KIRPORTALAMA","TRIMMEAN","MOYENNE.REDUITE","GESTUTZTMITTEL"]
[null,"KİKARE.DAĞ","CHISQ.DIST","LOI.KHIDEUX.N","CHIQU.VERT"]
[null,"KİKARE.DAĞ.SAĞK","CHISQ.DIST.RT","LOI.KHIDEUX.DROITE","CHIQU.VERT.RE"]
[null,"KİKARE.TERS","CHISQ.INV","LOI.KHIDEUX.INVERSE","CHIQU.INV"]
[null,"KİKARE.TERS.SAĞK","CHISQ.INV.RT","LOI.KHIDEUX.INVERSE.DROITE","CHIQU.INV.RE"]
[null,"KİKARE.TEST","CHISQ.TEST","CHISQ.TEST","CHIQU.TEST"]
[null,"KİKAREDAĞ","CHIDIST","LOI.KHIDEUX","CHIVERT"]
[null,"KİKARETERS","CHIINV","KHIDEUX.INVERSE","CHIINV"]
[null,"KİKARETEST","CHITEST","TEST.KHIDEUX","CHITEST"]
[null,"KOD","CODE","CODE","CODE"]
[null,"KOMBİNASYON","COMBIN","COMBIN","KOMBINATIONEN"]
[null,"KOMBİNASYONA","COMBINA","COMBINA","KOMBINATIONEN2"]
[null,"KORELASYON","CORREL","COEFFICIENT.CORRELATION","KORREL"]
[null,"KOVARYANS","COVAR","COVARIANCE","KOVAR"]
[null,"KOVARYANS.P","COVARIANCE.P","COVARIANCE.PEARSON","KOVARIANZ.P"]
[null,"KOVARYANS.S","COVARIANCE.S","COVARIANCE.STANDARD","KOVARIANZ.S"]
[null,"KÖPRÜ","HYPERLINK","LIEN_HYPERTEXTE","HYPERLINK"]
[null,"KRİTİKBİNOM","CRITBINOM","CRITERE.LOI.BINOMIALE","KRITBINOM"]
[null,"KUPONGÜN","COUPDAYS","NB.JOURS.COUPONS","ZINSTERMTAGE"]
[null,"KUPONGÜNBD","COUPDAYBS","NB.JOURS.COUPON.PREC","ZINSTERMTAGVA"]
[null,"KUPONGÜNDSK","COUPDAYSNC","NB.JOURS.COUPON.SUIV","ZINSTERMTAGNZ"]
[null,"KUPONGÜNÖKT","COUPPCD","DATE.COUPON.PREC","ZINSTERMVZ"]
[null,"KUPONGÜNSKT","COUPNCD","DATE.COUPON.SUIV","ZINSTERMNZ"]
[null,"KUPONSAYI","COUPNUM","NB.COUPONS","ZINSTERMZAHL"]
[null,"KUVVET","POWER","PUISSANCE","POTENZ"]
[null,"KÜÇÜK","SMALL","PETITE.VALEUR","KKLEINSTE"]
[null,"KÜÇÜKHARF","LOWER","MINUSCULE","KLEIN"]
[null,"KÜPDEĞERİ","CUBEVALUE","VALEURCUBE","CUBEWERT"]
[null,"KÜPKPIÜYESİ","CUBEKPIMEMBER","MEMBREKPICUBE","CUBEKPIELEMENT"]
[null,"KÜPKÜMESAYISI","CUBESETCOUNT","NBJEUCUBE","CUBEMENGENANZAHL"]
[null,"KÜPKÜMESİ","CUBESET","JEUCUBE","CUBEMENGE"]
[null,"KÜPÜYEÖZELLİĞİ","CUBEMEMBERPROPERTY","PROPRIETEMEMBRECUBE","CUBEELEMENTEIGENSCHAFT"]
[null,"KÜPÜYESİ","CUBEMEMBER","MEMBRECUBE","CUBEELEMENT"]
[null,"KYUVARLA","MROUND","ARRONDI.AU.MULTIPLE","VRUNDEN"]
[null,"LİRA","DOLLAR","DEVISE","DM"]
[null,"LİRAKES","DOLLARFR","PRIX.FRAC","NOTIERUNGBRU"]
[null,"LİRAON","DOLLARDE","PRIX.DEC","NOTIERUNGDEZ"]
[null,"LN","LN","LN","LN"]
[null,"LOG","LOG","LOG","LOG"]
[null,"LOG10","LOG10","LOG10","LOG10"]
[null,"LOGNORM.DAĞ","LOGNORM.DIST","LOI.LOGNORMALE.N","LOGNORM.VERT"]
[null,"LOGNORM.TERS","LOGNORM.INV","LOI.LOGNORMALE.INVERSE.N","LOGNORM.INV"]
[null,"LOGNORMDAĞ","LOGNORMDIST","LOI.LOGNORMALE","LOGNORMVERT"]
[null,"LOGTERS","LOGINV","LOI.LOGNORMALE.INVERSE","LOGINV"]
[null,"LOT","LOGEST","LOGREG","RKP"]
[null,"M","T","T","T"]
[null,"MAK","MAX","MAX","MAX"]
[null,"MAKA","MAXA","MAXA","MAXA"]
[null,"MBUL","SEARCH","CHERCHE","SUCHEN"]
[null,"METİNBİRLEŞTİR","TEXTJOIN","JOINDRE.TEXTE","TEXTVERKETTEN"]
[null,"METNEÇEVİR","TEXT","TEXTE","TEXT"]
[null,"MİN","MIN","MIN","MIN"]
[null,"MİNA","MINA","MINA","MINA"]
[null,"MOD","MOD","MOD","REST"]
[null,"MSÜRE","MDURATION","DUREE.MODIFIEE","MDURATION"]
[null,"MUTLAK","ABS","ABS","ABS"]
[null,"NBD","NPV","VAN","NBW"]
[null,"NEGBİNOM.DAĞ","NEGBINOM.DIST","LOI.BINOMIALE.NEG.N","NEGBINOM.VERT"]
[null,"NEGBİNOMDAĞ","NEGBINOMDIST","LOI.BINOMIALE.NEG","NEGBINOMVERT"]
[null,"NOMİNAL","NOMINAL","TAUX.NOMINAL","NOMINAL"]
[null,"NORM.DAĞ","NORM.DIST","LOI.NORMALE.N","NORM.VERT"]
[null,"NORM.S.DAĞ","NORM.S.DIST","LOI.NORMALE.STANDARD.N","NORM.S.VERT"]
[null,"NORM.S.TERS","NORM.S.INV","LOI.NORMALE.STANDARD.INVERSE.N","NORM.S.INV"]
[null,"NORM.TERS","NORM.INV","LOI.NORMALE.INVERSE.N","NORM.INV"]
[null,"NORMDAĞ","NORMDIST","LOI.NORMALE","NORMVERT"]
[null,"NORMSDAĞ","NORMSDIST","LOI.NORMALE.STANDARD","STANDNORMVERT"]
[null,"NORMSTERS","NORMSINV","LOI.NORMALE.STANDARD.INVERSE","STANDNORMINV"]
[null,"NORMTERS","NORMINV","LOI.NORMALE.INVERSE","NORMINV"]
[null,"NSAT","TRUNC","TRONQUE","KÜRZEN"]
[null,"OBEB","GCD","PGCD","GGT"]
[null,"OCT2BIN","OCT2BIN","OCTBIN","OKTINBIN"]
[null,"OCT2DEC","OCT2DEC","OCTDEC","OKTINDEZ"]
[null,"OCT2HEX","OCT2HEX","OCTHEX","OKTINHEX"]
[null,"OKEK","LCM","PPCM","KGV"]
[null,"OLASILIK","PROB","PROBABILITE","WAHRSCHBEREICH"]
[null,"ONDALIK","DECIMAL","DECIMAL","DEZIMAL"]
[null,"ORTAB","MIDB","MIDB","TEILB"]
[null,"ORTALAMA","AVERAGE","MOYENNE","MITTELWERT"]
[null,"ORTALAMAA","AVERAGEA","AVERAGEA","MITTELWERTA"]
[null,"ORTANCA","MEDIAN","MEDIANE","MEDIAN"]
[null,"ORTSAP","AVEDEV","ECART.MOYEN","MITTELABW"]
[null,"ÖDEME","YIELD","RENDEMENT.TITRE","RENDITE"]
[null,"ÖDEMEİND","YIELDDISC","RENDEMENT.SIMPLE","RENDITEDIS"]
[null,"ÖDEMEVADE","YIELDMAT","RENDEMENT.TITRE.ECHEANCE","RENDITEFÄLL"]
[null,"ÖZDEŞ","EXACT","EXACT","IDENTISCH"]
[null,"ÖZELVEYA","XOR","OUX","XODER"]
[null,"ÖZETVERİAL","GETPIVOTDATA","LIREDONNEESTABCROISDYNAMIQUE","PIVOTDATENZUORDNEN"]
[null,"PARÇAAL","MID","STXT","TEIL"]
[null,"PEARSON","PEARSON","PEARSON","PEARSON"]
[null,"PERMÜTASYON","PERMUT","PERMUTATION","VARIATIONEN"]
[null,"PERMÜTASYONA","PERMUTATIONA","PERMUTATIONA","VARIATIONEN2"]
[null,"PHI","PHI","PHI","PHI"]
[null,"Pİ","PI","PI","PI"]
[null,"POISSON","POISSON","LOI.POISSON","POISSON"]
[null,"POISSON.DAĞ","POISSON.DIST","LOI.POISSON.N","POISSON.VERT"]
[null,"PSÜRE","PDURATION","PDUREE","PDURATION"]
[null,"RADYAN","RADIANS","RADIANS","BOGENMASS"]
[null,"RANK","RANK","RANG","RANG"]
[null,"RANK.EŞİT","RANK.EQ","EQUATION.RANG","RANG.GLEICH"]
[null,"RANK.ORT","RANK.AVG","MOYENNE.RANG","RANG.MITTELW"]
[null,"RASTGELEARADA","RANDBETWEEN","ALEA.ENTRE.BORNES","ZUFALLSBEREICH"]
[null,"RKARE","RSQ","COEFFICIENT.DETERMINATION","BESTIMMTHEITSMASS"]
[null,"ROMEN","ROMAN","ROMAIN","RÖMISCH"]
[null,"S","N","N","N"]
[null,"S_SAYI_ÜRET","RAND","ALEA","ZUFALLSZAHL"]
[null,"SAAT","HOUR","HEURE","STUNDE"]
[null,"SAĞB","RIGHTB","DROITEB","RECHTSB"]
[null,"SAĞDAN","RIGHT","DROITE","RECHTS"]
[null,"SANAL","IMAGINARY","COMPLEXE.IMAGINAIRE","IMAGINÄRTEIL"]
[null,"SANBAĞ_DEĞİŞKEN","IMARGUMENT","COMPLEXE.ARGUMENT","IMARGUMENT"]
[null,"SANBÖL","IMDIV","COMPLEXE.DIV","IMDIV"]
[null,"SANCOS","IMCOS","COMPLEXE.COS","IMCOS"]
[null,"SANCOSH","IMCOSH","COMPLEXE.COSH","IMCOSHYP"]
[null,"SANCOT","IMCOT","COMPLEXE.COT","IMCOT"]
[null,"SANCSC","IMCSC","COMPLEXE.CSC","IMCOSEC"]
[null,"SANCSCH","IMCSCH","COMPLEXE.CSCH","IMCOSECHYP"]
[null,"SANÇARP","IMPRODUCT","COMPLEXE.PRODUIT","IMPRODUKT"]
[null,"SANÇIKAR","IMSUM","COMPLEXE.SOMME","IMSUMME"]
[null,"SANEŞLENEK","IMCONJUGATE","COMPLEXE.CONJUGUE","IMKONJUGIERTE"]
[null,"SANGERÇEK","IMREAL","COMPLEXE.REEL","IMREALTEIL"]
[null,"SANİYE","SECOND","SECONDE","SEKUNDE"]
[null,"SANKAREKÖK","IMSQRT","COMPLEXE.RACINE","IMWURZEL"]
[null,"SANKUVVET","IMPOWER","COMPLEXE.PUISSANCE","IMAPOTENZ"]
[null,"SANLN","IMLN","COMPLEXE.LN","IMLN"]
[null,"SANLOG10","IMLOG10","COMPLEXE.LOG10","IMLOG10"]
[null,"SANLOG2","IMLOG2","COMPLEXE.LOG2","IMLOG2"]
[null,"SANMUTLAK","IMABS","COMPLEXE.MODULE","IMABS"]
[null,"SANSEC","IMSEC","COMPLEXE.SEC","IMSEC"]
[null,"SANSECH","IMSECH","COMPLEXE.SECH","IMSECHYP"]
[null,"SANSIN","IMSIN","COMPLEXE.SIN","IMSIN"]
[null,"SANSINH","IMSINH","COMPLEXE.SINH","IMSINHYP"]
[null,"SANTAN","IMTAN","COMPLEXE.TAN","IMTAN"]
[null,"SANTOPLA","IMSUB","COMPLEXE.DIFFERENCE","IMSUB"]
[null,"SANÜS","IMEXP","COMPLEXE.EXP","IMEXP"]
[null,"SAPKARE","DEVSQ","SOMME.CARRES.ECARTS","SUMQUADABW"]
[null,"SATIR","ROW","LIGNE","ZEILE"]
[null,"SATIRSAY","ROWS","LIGNES","ZEILEN"]
[null,"SAYFA","SHEET","FEUILLE","BLATT"]
[null,"SAYFALAR","SHEETS","FEUILLES","BLÄTTER"]
[null,"SAYIDEĞERİ","NUMBERVALUE","VALEURNOMBRE","ZAHLENWERT"]
[null,"SAYIDİZİ","NUMBERSTRING","NUMBERSTRING","NUMBERSTRING"]
[null,"SAYIDÜZENLE","FIXED","CTXT","FEST"]
[null,"SAYIYAÇEVİR","VALUE","CNUM","WERT"]
[null,"SEC","SEC","SEC","SEC"]
[null,"SECH","SECH","SECH","SECHYP"]
[null,"SERİAY","EOMONTH","FIN.MOIS","MONATSENDE"]
[null,"SERİTARİH","EDATE","MOIS.DECALER","EDATUM"]
[null,"SERİTOPLA","SERIESSUM","SOMME.SERIES","POTENZREIHE"]
[null,"SES","PHONETIC","PHONETIQUE","PHONETIC"]
[null,"SIKLIK","FREQUENCY","FREQUENCE","HÄUFIGKEIT"]
[null,"SİN","SIN","SIN","SIN"]
[null,"SİNH","SINH","SINH","SINHYP"]
[null,"SOLB","LEFTB","GAUCHEB","LINKSB"]
[null,"SOLDAN","LEFT","GAUCHE","LINKS"]
[null,"STANDARTLAŞTIRMA","STANDARDIZE","CENTREE.REDUITE","STANDARDISIERUNG"]
[null,"STDSAPMA","STDEV","ECARTYPE","STABW"]
[null,"STDSAPMA.P","STDEV.P","ECARTYPE.PEARSON","STABW.N"]
[null,"STDSAPMA.S","STDEV.S","ECARTYPE.STANDARD","STABW.S"]
[null,"STDSAPMAA","STDEVA","STDEVA","STABWA"]
[null,"STDSAPMAS","STDEVP","ECARTYPEP","STABWN"]
[null,"STDSAPMASA","STDEVPA","STDEVPA","STABWNA"]
[null,"STHYX","STEYX","ERREUR.TYPE.XY","STFEHLERYX"]
[null,"SÜRE","DURATION","DUREE","DURATION"]
[null,"SÜTUN","COLUMN","COLONNE","SPALTE"]
[null,"SÜTUNSAY","COLUMNS","COLONNES","SPALTEN"]
[null,"ŞİMDİ","NOW","MAINTENANT","JETZT"]
[null,"T.DAĞ","T.DIST","LOI.STUDENT.N","T.VERT"]
[null,"T.DAĞ.2K","T.DIST.2T","LOI.STUDENT.BILATERALE","T.VERT.2S"]
[null,"T.DAĞ.SAĞK","T.DIST.RT","LOI.STUDENT.DROITE","T.VERT.RE"]
[null,"T.TERS","T.INV","LOI.STUDENT.INVERSE.N","T.INV"]
[null,"T.TERS.2K","T.INV.2T","LOI.STUDENT.INVERSE.BILATERALE","T.INV.2S"]
[null,"T.TEST","T.TEST","T.TEST","T.TEST"]
[null,"TABAN","BASE","BASE","BASIS"]
[null,"TABANAYUVARLA","FLOOR","PLANCHER","UNTERGRENZE"]
[null,"TABANAYUVARLA.DUYARLI","FLOOR.PRECISE","PLANCHER.PRECIS","UNTERGRENZE.GENAU"]
[null,"TABANAYUVARLA.MATEMATİK","FLOOR.MATH","PLANCHER.MATH","UNTERGRENZE.MATHEMATIK"]
[null,"TAHMİN","FORECAST","PREVISION","SCHÄTZER"]
[null,"TAHMİN.DOĞRUSAL","FORECAST.LINEAR","PREVISION.LINEAIRE","PROGNOSE.LINEAR"]
[null,"TAHMİN.ETS","FORECAST.ETS","PREVISION.ETS","PROGNOSE.ETS"]
[null,"TAHMİN.ETS.GVNARAL","FORECAST.ETS.CONFINT","PREVISION.ETS.CONFINT","PROGNOSE.ETS.KONFINT"]
[null,"TAHMİN.ETS.İSTAT","FORECAST.ETS.STAT","PREVISION.ETS.STAT","PROGNOSE.ETS.STAT"]
[null,"TAHMİN.ETS.MEVSİMSELLİK","FORECAST.ETS.SEASONALITY","PREVISION.ETS.CARACTERESAISONNIER","PROGNOSE.ETS.SAISONALITÄT"]
[null,"TAKSİT_SAYISI","NPER","NPM","ZZR"]
[null,"TAMİŞGÜNÜ","NETWORKDAYS","NB.JOURS.OUVRES","NETTOARBEITSTAGE"]
[null,"TAMİŞGÜNÜ.ULUSL","NETWORKDAYS.INTL","NB.JOURS.OUVRES.INTL","NETTOARBEITSTAGE.INTL"]
[null,"TAMSAYI","INT","ENT","GANZZAHL"]
[null,"TAN","TAN","TAN","TAN"]
[null,"TANH","TANH","TANH","TANHYP"]
[null,"TARİH","DATE","DATE","DATUM"]
[null,"TARİHDİZİ","DATESTRING","DATESTRING","DATESTRING"]
[null,"TARİHSAYISI","DATEVALUE","DATEVAL","DATWERT"]
[null,"TAVANAYUVARLA","CEILING","PLAFOND","OBERGRENZE"]
[null,"TAVANAYUVARLA.DUYARLI","CEILING.PRECISE","PLAFOND.PRECIS","OBERGRENZE.GENAU"]
[null,"TAVANAYUVARLA.MATEMATİK","CEILING.MATH","PLAFOND.MATH","OBERGRENZE.MATHEMATIK"]
[null,"TAYDİZEUZUNLUĞU","THAISTRINGLENGTH","THAISTRINGLENGTH","THAIZEICHENFOLGENLÄNGE"]
[null,"TAYHAFTANINGÜNÜ","THAIDAYOFWEEK","THAIDAYOFWEEK","THAIWOCHENTAG"]
[null,"TAYRAKAM","THAIDIGIT","THAIDIGIT","THAIZAHLENWORT"]
[null,"TAYRAKAMIYSA","ISTHAIDIGIT","ISTHAIDIGIT","ISTTHAIZAHLENWORT"]
[null,"TAYSAYIDİZE","THAINUMSTRING","THAINUMSTRING","THAIZAHLZEICHENFOLGE"]
[null,"TAYSAYISES","THAINUMSOUND","THAINUMSOUND","THAIZAHLSOUND"]
[null,"TAYYILI","THAIYEAR","THAIYEAR","THAIJAHR"]
[null,"TAYYILINAYI","THAIMONTHOFYEAR","THAIMONTHOFYEAR","THAIMONATDESJAHRES"]
[null,"TDAĞ","TDIST","LOI.STUDENT","TVERT"]
[null,"TEK","ODD","IMPAIR","UNGERADE"]
[null,"TEKMİ","ISODD","EST.IMPAIR","ISTUNGERADE"]
[null,"TEKSDEĞER","ODDLPRICE","PRIX.DCOUPON.IRREG","UNREGLE.KURS"]
[null,"TEKSÖDEME","ODDLYIELD","REND.DCOUPON.IRREG","UNREGLE.REND"]
[null,"TEKYDEĞER","ODDFPRICE","PRIX.PCOUPON.IRREG","UNREGER.KURS"]
[null,"TEKYÖDEME","ODDFYIELD","REND.PCOUPON.IRREG","UNREGER.REND"]
[null,"TEMİZ","CLEAN","EPURAGE","SÄUBERN"]
[null,"TOPANAPARA","CUMPRINC","CUMUL.PRINCPER","KUMKAPITAL"]
[null,"TOPKARE","SUMSQ","SOMME.CARRES","QUADRATESUMME"]
[null,"TOPLA","SUM","SOMME","SUMME"]
[null,"TOPLA.ÇARPIM","SUMPRODUCT","SOMMEPROD","SUMMENPRODUKT"]
[null,"TOPLAMA","AGGREGATE","AGREGAT","AGGREGAT"]
[null,"TOPÖDENENFAİZ","CUMIPMT","CUMUL.INTER","KUMZINSZ"]
[null,"TOPX2AY2","SUMX2PY2","SOMME.X2PY2","SUMMEX2PY2"]
[null,"TOPX2EY2","SUMX2MY2","SOMME.X2MY2","SUMMEX2MY2"]
[null,"TOPXEY2","SUMXMY2","SOMME.XMY2","SUMMEXMY2"]
[null,"TTERS","TINV","LOI.STUDENT.INVERSE","TINV"]
[null,"TTEST","TTEST","TEST.STUDENT","TTEST"]
[null,"TÜMHATAİŞLEV","ERFC","ERFC","GAUSSFKOMPL"]
[null,"TÜMHATAİŞLEV.DUYARLI","ERFC.PRECISE","ERFC.PRECIS","GAUSSFKOMPL.GENAU"]
[null,"TÜR","TYPE","TYPE","TYP"]
[null,"UNICODE","UNICODE","UNICODE","UNICODE"]
[null,"UNICODEKARAKTERİ","UNICHAR","UNICAR","UNIZEICHEN"]
[null,"URLKODLA","ENCODEURL","URLENCODAGE","URLCODIEREN"]
[null,"UZUNLUK","LEN","NBCAR","LÄNGE"]
[null,"UZUNLUKB","LENB","LENB","LÄNGEB"]
[null,"ÜS","EXP","EXP","EXP"]
[null,"ÜSTEL.DAĞ","EXPON.DIST","LOI.EXPONENTIELLE.N","EXPON.VERT"]
[null,"ÜSTELDAĞ","EXPONDIST","LOI.EXPONENTIELLE","EXPONVERT"]
[null,"VAL","DGET","BDLIRE","DBAUSZUG"]
[null,"VAR","VAR","VAR","VARIANZ"]
[null,"VAR.P","VAR.P","VAR.P.N","VAR.P"]
[null,"VAR.S","VAR.S","VAR.S","VAR.S"]
[null,"VARA","VARA","VARA","VARIANZA"]
[null,"VARS","VARP","VAR.P","VARIANZEN"]
[null,"VARSA","VARPA","VARPA","VARIANZENA"]
[null,"VE","AND","ET","UND"]
[null,"VSEÇÇARP","DPRODUCT","BDPRODUIT","DBPRODUKT"]
[null,"VSEÇMAK","DMAX","BDMAX","DBMAX"]
[null,"VSEÇMİN","DMIN","BDMIN","DBMIN"]
[null,"VSEÇORT","DAVERAGE","BDMOYENNE","DBMITTELWERT"]
[null,"VSEÇSAY","DCOUNT","BDNB","DBANZAHL"]
[null,"VSEÇSAYDOLU","DCOUNTA","BDNBVAL","DBANZAHL2"]
[null,"VSEÇSTDSAPMA","DSTDEV","BDECARTYPE","DBSTDABW"]
[null,"VSEÇSTDSAPMAS","DSTDEVP","BDECARTYPEP","DBSTDABWN"]
[null,"VSEÇTOPLA","DSUM","BDSOMME","DBSUMME"]
[null,"VSEÇVAR","DVAR","BDVAR","DBVARIANZ"]
[null,"VSEÇVARS","DVARP","BDVARP","DBVARIANZEN"]
[null,"WEBHİZMETİ","WEBSERVICE","SERVICEWEB","WEBDIENST"]
[null,"WEIBULL","WEIBULL","LOI.WEIBULL","WEIBULL"]
[null,"WEIBULL.DAĞ","WEIBULL.DIST","LOI.WEIBULL.N","WEIBULL.VERT"]
[null,"XMLFİLTRELE","FILTERXML","FILTRE.XML","XMLFILTERN"]
[null,"YADA","OR","OU","ODER"]
[null,"YAT","SYD","SYD","DIA"]
[null,"YATAYARA","HLOOKUP","RECHERCHEH","WVERWEIS"]
[null,"YAZIM.DÜZENİ","PROPER","NOMPROPRE","GROSS2"]
[null,"YERİNEKOY","SUBSTITUTE","SUBSTITUE","WECHSELN"]
[null,"YIL","YEAR","ANNEE","JAHR"]
[null,"YILORAN","YEARFRAC","FRACTION.ANNEE","BRTEILJAHRE"]
[null,"YİNELE","REPT","REPT","WIEDERHOLEN"]
[null,"YOKSAY","NA","NA","NV"]
[null,"YUKARIYUVARLA","ROUNDUP","ARRONDI.SUP","AUFRUNDEN"]
[null,"YUVARLA","ROUND","ARRONDI","RUNDEN"]
[null,"YÜZDEBİRLİK","PERCENTILE","CENTILE","QUANTIL"]
[null,"YÜZDEBİRLİK.DHL","PERCENTILE.INC","CENTILE.INCLURE","QUANTIL.INKL"]
[null,"YÜZDEBİRLİK.HRC","PERCENTILE.EXC","CENTILE.EXCLURE","QUANTIL.EXKL"]
[null,"YÜZDERANK","PERCENTRANK","RANG.POURCENTAGE","QUANTILSRANG"]
[null,"YÜZDERANK.DHL","PERCENTRANK.INC","RANG.POURCENTAGE.INCLURE","QUANTILSRANG.INKL"]
[null,"YÜZDERANK.HRC","PERCENTRANK.EXC","RANG.POURCENTAGE.EXCLURE","QUANTILSRANG.EXKL"]
[null,"Z.TEST","Z.TEST","Z.TEST","G.TEST"]
[null,"ZAMAN","TIME","TEMPS","ZEIT"]
[null,"ZAMANSAYISI","TIMEVALUE","TEMPSVAL","ZEITWERT"]
[null,false,"FALSE","FAUX","FALSCH"]
[null,true,"TRUE","VRAI","WAHR"]
[null,"ÇAPRAZARA","XLOOKUP"]
[null,"SIRALA","SORT"]
[null,"SIRALAÖLÇÜT","SORTBY"]
[null,"DÜŞEYYIĞ","VSTACK"]
[null,"BENZERSİZ","UNİQ"]
[null,"ÖZETÖLÇÜT","PIVOTBY"]
[null,"GRUPLAÖLÇÜT","GROUPBY"]
[null,"METİNBÖL","TEXTSPLIT"]
[null,"DİLİALGILA","DETECTLANGUAGE"]
[null,"DİLÇEVİR","TRANSLATE"]
[null,"FİLTRE","FILTER"]
[null,"SÜTUNSEÇ","CHOOSECOLS"]

{"sheet":"Sayfa2","index":56,"n_rows":17,"n_cols":1,"rows_kept":17,"cut":false,"hidden":false,"merged":[]}
[]
[]
["Varsayımlar:"]
[]
["1. Ok tuşuna basma hızı: İnsan elinin bir tuşa basma hızı, genellikle saniyede 3-5 kez arasında değişir. Hızlı bir kullanıcı için saniyede 5 basış (0.2 saniyede bir basış) varsayalım."]
["2. Excel davranışı: Aşağı ok tuşuna her basıldığında bir satır aşağı inilir ve Excel'in herhangi bir gecikme yaratmadığını varsayalım (modern bilgisayarlarda bu genellikle sorun olmaz)."]
["3. Kesintisiz basma: Kullanıcının durmaksızın aşağı ok tuşuna bastığını ve yorulmadığını farz edelim. 😅"]
[]
["Hesaplama:"]
[]
["Excel'de A1'den A1048576'ya kadar 1.048.576 satır vardır."]
["Saniyede 5 basış (0.2 saniye/basış) varsayarsak:"]
["Toplam süre = 1.048.576 satır × 0.2 saniye/satır = 209.715,2 saniye."]
["Bu süreyi daha anlaşılır birimlere çevirelim:"]
["209.715,2 saniye ÷ 60 = 3.495,25 dakika."]
["3.495,25 dakika ÷ 60 ≈ 58,25 saat."]
["58,25 saat ÷ 24 ≈ 2,43 gün."]